Workbook

Sheet 1-1
A1: 1. 연구개발활동 국제비교
A2: International Comparison of R&D Activities
A4: 1-1) 주요국의 연구개발 관련 주요 지표
A5: Main indicators concerning R&D activities in major countries
A7: 지표 Indicators | B7: 단위 Unit | C7: 한국 (2021) Korea | D7: 미국 (2020) United States | E7: 일본 (2020) Japan | F7: 독일 (2020) Germany | G7: 프랑스 (2020) France | H7: 영국 (2019) United Kingdom | I7: 중국 (2020) China
A8: ㅇ 연구개발비 R&D expenditure | B8: 억 달러 USD, 0.1 billions | C8: 892.823109 | D8: 7208.8 | E8: 1650.434745 | F8: 1217.387097 | G8: 619.4214557 | H8: 491.6753569 | I8: 3534.84074
A9: - 배율(한국을 1로 본 경우) Multiplier | B9: 배 | C9: =C8/$C$8 -> 1 | D9: =D8/$C$8 -> 8.07416377 | E9: =E8/$C$8 -> 1.848557377 | F9: 1.363525523 | G9: 0.6937784758 | H9: 0.5506973912 | I9: 3.959172544
A10: - GDP 대비 As a percent of GDP | B10: % | C10: 4.930120876 | D10: 3.450219027 | E10: 3.274602094 | F10: 3.129794792 | G10: 2.347173673 | H10: 1.707992301 | I10: 2.400929967
A11: - 정부 : 민간 Gov't vs Business enterprise | B11: % | C11: 24 : 76 | D11: 27 : 73 | E11: 21 : 79 | F11: 30 : 70 | G11: 35 : 65 (2019) | H11: 32 : 68 | I11: 20 : 78
A12: ㅇ 연구원 Researchers | B12: 천 명(FTE) 1,000 Person | C12: 470.7281152 | D12: 1586.5 (2019) | E12: 689.889 | F12: 450.7964441 | G12: 321.5496363 | H12: 316.296 | I12: 2281.134
A13: - 배율 Multiplier | B13: 배 | C13: =C12/$C$12 -> 1 | D13: 3.4 (2019) | E13: =E12/$C$12 -> 1.465578489 | F13: 0.9576577849 | G13: 0.6830899322 | H13: 0.6719292725 | I13: 4.845969311
A14: - 인구만명당 Researchers per 10,000 population | B14: 명 Person | C14: 90.60827595 | D14: 48.3 (2019) | E14: 54.88010348 | F14: 54.20767476 | G14: 47.28392981 | H14: 47.4 (2019) | I14: 16.15396708
A15: - 연구원 1인당 연구개발비 R&D expenditure per researcher | B15: 천 달러 1,000 USD | C15: 189.6685327 | D15: 427.7 (2019) | E15: 239.2319264 | F15: 270.0525066 | G15: 192.6363416 | H15: 155.447858 | I15: 154.9598025
A16: ㅇ 특허 Patent
A17: - 삼극특허 건수(2020) Number of triadic patent families | B17: 건 Case | C17: 3244.2901 | D17: 13039.825 | E17: 17468.57 | F17: 4380.7546 | G17: 1879.7165 | H17: 1708.0272 | I17: 5897.4019
A18: - PCT 출원건수(2021) Number of PCT Filings | B18: 건 Case | C18: 20718 | D18: 59430 | E18: 50277 | F18: 17269 | G18: 7336 | H18: 5843 | I18: 69580
A19: ㅇ 과학기술논문발표건수(2021) Number of scientific and technical papers | B19: 천 건 1,000 Case | C19: 83.68 | D19: 521.072 | E19: 102.491 | F19: 149.965 | G19: 94.189 | H19: 174.396 | I19: 641.543
A21: 주 : 1. 연구원은 상근상당 연구원 기준임
A22: 2. 중국은 정부재원과 민간재원의 비율 합이 100.0%가 되지 않음
A23: 3. 연구개발비 하위 항목 중 '정부:민간'에서 정부는 정부재원과 공공재원을, 민간은 민간재원과 외국재원을 포함함

Sheet 1-2
A1: 1-2) 주요국의 연구개발비 및 GDP 대비 연구개발비 비율
A2: R&D expenditure and as a percentage of GDP in major countries
O4: (단위 : 백만달러 Unit : US dollar, Millions)
A5: 연도별 Year | B5: 한국 Korea | D5: 미국 United States | F5: 일본 Japan | H5: 독일 Germany | J5: 프랑스 France | L5: 영국 United Kingdom | N5: 중국 China
C6: GDP 대비(%) As a percent of GDP(%) | E6: GDP 대비(%) As a percent of GDP(%) | G6: GDP 대비(%) As a percent of GDP(%) | I6: GDP 대비(%) As a percent of GDP(%) | K6: GDP 대비(%) As a percent of GDP(%) | M6: GDP 대비(%) As a percent of GDP(%) | O6: GDP 대비(%) As a percent of GDP(%)
A7: 1991 | B7: 5670.633581 | C7: 1.714954691 | D7: 161391 | E7: 2.620779786 | F7: 95940.99749 | G7: 2.629913501 | H7: 44604.92486 | I7: 2.386656577 | J7: 28906.2131 | K7: 2.27747064 | L7: 21396.25936 | M7: 1.872320461 | N7: 2934.970786 | O7: 0.7246337296
A8: 1992 | B8: 6390.69732 | C8: 1.797584715 | D8: 165838 | E8: 2.543400047 | F8: 102652.7925 | G8: 2.57876092 | H8: 48453.78303 | I8: 2.273039026 | J8: 31995.67378 | K8: 2.283088518 | L8: 21703.34203 | M8: 1.839713168 | N8: 3509.416472 | O8: 0.7281987167
A9: 1993 | B9: 7666.902311 | C9: 1.952204334 | D9: 166153 | E9: 2.422564273 | F9: 114542.1313 | G9: 2.524655489 | H9: 45691.25618 | I9: 2.205968539 | J9: 30675.26295 | K9: 2.318812289 | L9: 19781.11966 | M9: 1.863581515 | N9: 4208.985904 | O9: 0.69522779
A10: 1994 | B10: 9822.125268 | C10: 2.119432452 | D10: 169622 | E10: 2.327645214 | F10: 123541.3996 | G10: 2.471422294 | H10: 46885.49548 | I10: 2.126300029 | J10: 31620.95396 | K10: 2.268425747 | L10: 20942.20165 | M10: 1.836322256 | N10: 3476.377008 | O10: 0.6296787458
A11: 1995 | B11: 12240.58994 | C11: 2.160377108 | D11: 184087 | E11: 2.409581781 | F11: 142133.8894 | G11: 2.563019132 | H11: 55208.04123 | I11: 2.135198115 | J11: 35879.5689 | K11: 2.241079151 | L11: 22146.45524 | M11: 1.644753806 | N11: 4085.414487 | O11: 0.5684554425
A12: 1996 | B12: 13522.21839 | C12: 2.216161975 | D12: 197802 | E12: 2.450130197 | F12: 130126.6658 | G12: 2.643028325 | H12: 53557.52358 | I12: 2.144611477 | J12: 35692.94993 | K12: 2.222799402 | L12: 22366.52012 | M12: 1.573325461 | N12: 4761.025598 | O12: 0.563235933
A13: 1997 | B13: 12828.65069 | C13: 2.248296408 | D13: 212479 | E13: 2.477140331 | F13: 122273.9439 | G13: 2.721765284 | H13: 48404.96086 | I13: 2.188321291 | J13: 31193.35262 | K13: 2.146989216 | L13: 23994.16537 | M13: 1.538613352 | N13: 6017.261901 | O13: 0.6387254594
A14: 1998 | B14: 8079.212982 | C14: 2.110255795 | D14: 226228 | E14: 2.496210615 | F14: 115879.211 | G14: 2.827451354 | H14: 49618.55331 | I14: 2.216129308 | J14: 31487.34337 | K14: 2.094757636 | L14: 25594.36858 | M14: 1.548053227 | N14: 6508.306963 | O14: 0.6468886267
A15: 1999 | B15: 10023.00271 | C15: 2.015671913 | D15: 244980 | E15: 2.543615668 | F15: 131973.3268 | G15: 2.84671783 | H15: 51532.79133 | I15: 2.347792355 | J15: 31470.67459 | K15: 2.107667383 | L15: 27390.09163 | M15: 1.624676129 | N15: 7989.007339 | O15: 0.7496323059
A16: 2000 | B16: 12251.38042 | C16: 2.125194895 | D16: 268559 | E16: 2.619834724 | F16: 142015.9911 | G16: 2.858408118 | H16: 46942.71939 | I16: 2.409817362 | J16: 28589.13554 | K16: 2.093460978 | L16: 26807.67753 | M16: 1.612926718 | N16: 10819.16491 | O16: 0.8931632497
A17: 2001 | B17: 12481.13248 | C17: 2.278647331 | D17: 279062 | E17: 2.637146781 | F17: 127893.973 | G17: 2.923484997 | H17: 46784.15506 | I17: 2.40437244 | J17: 29454.90192 | K17: 2.138042517 | L17: 26323.85861 | M17: 1.601193671 | N17: 12594.79806 | O17: 0.9403309126
A18: 2002 | B18: 13842.31895 | C18: 2.207744358 | D18: 278414 | E18: 2.54745401 | F18: 124027.0891 | G18: 2.965137192 | H18: 50636.47607 | I18: 2.436220998 | J18: 32648.06455 | K18: 2.174494514 | L18: 28817.65167 | M18: 1.615325421 | N18: 15556.43994 | O18: 1.057860257
A19: 2003 | B19: 16001.97011 | C19: 2.277224627 | D19: 292157 | E19: 2.550152971 | F19: 135279.3444 | G19: 2.993195203 | H19: 61905.82186 | I19: 2.474613872 | J19: 39103.18815 | K19: 2.119937208 | L19: 32488.17905 | M19: 1.579251887 | N19: 18601.22167 | O19: 1.120366462
A20: 2004 | B20: 19354.73017 | C20: 2.44213845 | D20: 303823 | E20: 2.486855413 | F20: 145876.4049 | G20: 2.981245971 | H20: 68534.78696 | I20: 2.43518833 | J20: 44398.08942 | K20: 2.094612844 | L20: 37072.21063 | M20: 1.530705816 | N20: 23757.12549 | O20: 1.214982433
A21: 2005 | B21: 23581.70991 | C21: 2.522896183 | D21: 326231 | E21: 2.50192554 | F21: 151269.302 | G21: 3.130918982 | H21: 69518.42374 | I21: 2.441928279 | J21: 45070.47015 | K21: 2.051505823 | L21: 39420.50698 | M21: 1.549037764 | N21: 29898.44181 | O21: 1.307915592
A22: 2006 | B22: 28624.02941 | C22: 2.719338038 | D22: 351670 | E22: 2.545451755 | F22: 148525.8227 | G22: 3.227655613 | H22: 74038.3962 | I22: 2.472315478 | J22: 47592.74289 | K22: 2.050937992 | L22: 42693.0175 | M22: 1.571257149 | N22: 37663.7606 | O22: 1.368536788
A23: 2007 | B23: 33679.99914 | C23: 2.872581495 | D23: 378524 | E23: 2.615158473 | F23: 150791.5572 | G23: 3.292571953 | H23: 84285.73798 | I23: 2.460480567 | J23: 53864.04508 | K23: 2.024512996 | L23: 50016.48152 | M23: 1.610133336 | N23: 48770.63941 | O23: 1.373694104
A24: 2008 | B24: 31358.27994 | C24: 2.988872005 | D24: 405405 | E24: 2.744812375 | F24: 168124.0816 | G24: 3.292238812 | H24: 97943.59611 | I24: 2.615133026 | J24: 60398.49042 | K24: 2.061169195 | L24: 47137.52496 | M24: 1.603826672 | N24: 66430.43582 | O24: 1.445920088
A25: 2009 | B25: 29695.53806 | C25: 3.146685578 | D25: 404201 | E25: 2.791816062 | F25: 169046.8415 | G25: 3.195898318 | H25: 93559.33859 | I25: 2.742662559 | J25: 59745.36416 | K25: 2.21206518 | L25: 40291.06476 | M25: 1.660989519 | N25: 84932.71088 | O25: 1.664795447
A26: 2010 | B26: 37921.61794 | C26: 3.315776721 | D26: 408496 | E26: 2.714444909 | F26: 178816.3745 | G26: 3.104951313 | H26: 92819.00069 | I26: 2.730237388 | J26: 57627.35404 | K26: 2.178573219 | L26: 40733.71633 | M26: 1.635162 | N26: 104317.5242 | O26: 1.713721488
A27: 2011 | B27: 45017.97362 | C27: 3.591985221 | D27: 427126 | E27: 2.738034393 | F27: 199795.1809 | G27: 3.205366018 | H27: 105188.7507 | I27: 2.805546283 | J27: 62793.25152 | K27: 2.191614526 | L27: 43867.81192 | M27: 1.639985169 | N27: 134443.4223 | O27: 1.780343022
A28: 2012 | B28: 49209.96412 | C28: 3.850404604 | D28: 434443 | E28: 2.672836236 | F28: 199066.3169 | G28: 3.173705284 | H28: 101640.1337 | I28: 2.881655551 | J28: 59767.24765 | K28: 2.227065823 | L28: 42660.3396 | M28: 1.56888033 | N28: 163147.429 | O28: 1.912141
A29: 2013 | B29: 54156.98363 | C29: 3.951238982 | D29: 455129 | E29: 2.702147502 | F29: 170909.9497 | G29: 3.27895603 | H29: 105890.2143 | I29: 2.835986547 | J29: 62902.41651 | K29: 2.237025131 | L29: 45141.25451 | M29: 1.610295819 | N29: 191204.9817 | O29: 1.99786394
A30: 2014 | B30: 60535.43444 | C30: 4.077864757 | D30: 477002 | E30: 2.717859421 | F30: 164924.6601 | G30: 3.367875199 | H30: 111921.924 | I30: 2.877840495 | J30: 64999.38565 | K30: 2.27591667 | L30: 50350.64914 | M30: 1.630967901 | N30: 211862.4484 | O30: 2.02243256
A31: 2015 | B31: 58321.96465 | C31: 3.978200252 | D31: 507400 | E31: 2.786995271 | F31: 144047.1916 | G31: 3.240707296 | H31: 98504.50906 | I31: 2.933791744 | J31: 54321.16752 | K31: 2.227016847 | L31: 48090.15423 | M31: 1.626548409 | N31: 227537.6899 | O31: 2.05701037
A32: 2016 | B32: 59792.79217 | C32: 3.987037181 | D32: 533465 | E32: 2.853500804 | F32: 155447.0742 | G32: 3.106656458 | H32: 102027.2464 | I32: 2.940389187 | J32: 54958.78776 | K32: 2.222383891 | L32: 44799.57712 | M32: 1.645316611 | N32: 235936.4943 | O32: 2.10032842
A33: 2017 | B33: 69663.24434 | C33: 4.292055599 | D33: 565929 | E33: 2.905235897 | F33: 156127.8728 | G33: 3.166356159 | H33: 112463.8096 | I33: 3.047099499 | J33: 57064.22912 | K33: 2.198880135 | L33: 44754.24626 | M33: 1.658114397 | N33: 260493.6781 | O33: 2.116029774 | S33: `
A34: 2018 | B34: 77923.62476 | C34: 4.51633384 | D34: 618531 | E34: 3.013232372 | F34: 162275.8388 | G34: 3.221142137 | H34: 123609.3333 | I34: 3.110105484 | J34: 61307.81213 | K34: 2.196660102 | L34: 49716.43639 | M34: 1.7137791 | N34: 297431.3371 | O34: 2.140578042
A35: 2019 | B35: 76411.81107 | C35: 4.62702858 | D35: 678603 | E35: 3.175110055 | F35: 164709.1919 | G35: 3.214892911 | H35: 123170.6774 | I35: 3.16778502 | J35: 59811.08862 | K35: 2.191788762 | L35: 49167.52293 | M35: 1.707992301 | N35: 320531.8955 | O35: 2.234772159
A36: 2020 | B36: 78855.86246 | C36: 4.795714408 | D36: 720880 | E36: 3.450219027 | F36: 165043.4745 | G36: 3.274602094 | H36: 121738.7097 | I36: 3.129794792 | J36: 61942.14557 | K36: 2.347173673 | N36: 353484.074 | O36: 2.400929967
A37: 2021 | B37: 89282.3109 | C37: 4.930120876
A39: 자료 : 1. OECD, Main Science and Technology Indicators 2022-september, 2022
A40: 2. 과학기술정보통신부·한국과학기술기획평가원, 연구개발활동조사보고서, 각 연도

Sheet 1-3
A1: 1-3) 주요국의 연구원 1인당 연구개발비
A2: R&D expenditure per researcher in major countries
A5: 국가별 · 연도별 Country · Year | C5: 연구개발비(억달러) R&D expenditure (USD, 0.1 billions) | E5: 연구원(명) Researchers (person) | F5: 연구원 1인당 연구개발비(천 달러) R&D expenditure per researcher (1,000 USD)
D6: 정부·공공재원 비율(%)
A7: 한국 Korea | B7: 1991 | C7: ='1-2'!B7/100 -> 56.70633581 | D7: 19.4 | E7: 76,252(73,275) | F7: 74.4(77.4)
B8: 1992 | C8: ='1-2'!B8/100 -> 63.9069732 | D8: 17.2 | E8: 88,764(85,268) | F8: 72.0(75.0)
B9: 1993 | C9: ='1-2'!B9/100 -> 76.66902311 | D9: 16.7 | E9: 98,764(93,680) | F9: 77.6(81.8)
B10: 1994 | C10: ='1-2'!B10/100 -> 98.22125268 | D10: 23.8 | E10: 117,446(89,018) | F10: 83.7(110.4)
B11: 1995 | C11: ='1-2'!B11/100 -> 122.4058994 | D11: 23.72777764 | E11: 128,315(100,456) | F11: 95.4(121.8)
B12: 1996 | C12: ='1-2'!B12/100 -> 135.2221839 | D12: 25.00434361 | E12: 132,023(99,433) | F12: 102.4(136.0)
B13: 1997 | C13: ='1-2'!B13/100 -> 128.2865069 | D13: 27.44845705 | E13: 138,438(102,660) | F13: 92.5(124.8)
B14: 1998 | C14: ='1-2'!B14/100 -> 80.79212982 | D14: 30.7949188 | E14: 129,767(92,541) | F14: 62.3(87.4)
B15: 1999 | C15: ='1-2'!B15/100 -> 100.2300271 | D15: 29.98191876 | E15: 134,568(100,210) | F15: 74.5(100.1)
B16: 2000 | C16: ='1-2'!B16/100 -> 122.5138042 | D16: 27.56147398 | E16: 159,973(108,370) | F16: 76.5(113.0)
B17: 2001 | C17: ='1-2'!B17/100 -> 124.8113248 | D17: 27.07256953 | E17: 178,937(136,337) | F17: 69.7(91.5)
B18: 2002 | C18: ='1-2'!B18/100 -> 138.4231895 | D18: 27.35892548 | E18: 189,888(141,917) | F18: 72.9(97.6)
B19: 2003 | C19: ='1-2'!B19/100 -> 160.0197011 | D19: 25.57189981 | E19: 198,171(151,254) | F19: 80.8(105.8)
B20: 2004 | C20: ='1-2'!B20/100 -> 193.5473017 | D20: 24.54810063 | E20: 209,979(156,220) | F20: 92.2(124.0)
B21: 2005 | C21: ='1-2'!B21/100 -> 235.8170991 | D21: 24.33063907 | E21: 234,702(179,812) | F21: 100.5(131.2)
B22: 2006 | C22: ='1-2'!B22/100 -> 286.2402941 | D22: 24.25280679 | E22: 256,598(199,990) | F22: 111.6(143.2)
B23: 2007 | C23: ='1-2'!B23/100 -> 336.7999914 | D23: 26.12498208 | E23: 289,098(221,928) | F23: 116.5(151.8)
B24: 2008 | C24: ='1-2'!B24/100 -> 313.5827994 | D24: 26.81094225 | E24: 300,050(236,137) | F24: 104.3(132.6)
B25: 2009 | C25: ='1-2'!B25/100 -> 296.9553806 | D25: 28.70913319 | E25: 323,175(244,077) | F25: 91.9(121.7)
B26: 2010 | C26: ='1-2'!B26/100 -> 379.2161794 | D26: 27.97919045 | E26: 345,912(264,118) | F26: 109.7(143.6)
B27: 2011 | C27: ='1-2'!B27/100 -> 450.1797362 | D27: 26.06367557 | E27: 375,176(288,901) | F27: 120.0(155.8)
B28: 2012 | C28: ='1-2'!B28/100 -> 492.0996412 | D28: 24.92704932 | E28: 401,724(315,589) | F28: 122.5(156.0)
B29: 2013 | C29: ='1-2'!B29/100 -> 541.5698363 | D29: 24.01604791 | E29: 410,333(321,842) | F29: 132.0(168.3)
B30: 2014 | C30: ='1-2'!B30/100 -> 605.3543444 | D30: 23.96676339 | E30: 437,447(345,463) | F30: 138.4(175.2)
B31: 2015 | C31: ='1-2'!B31/100 -> 583.2196465 | D31: 24.70235445 | E31: 453,262(356,447) | F31: 128.6(163.6)
B32: 2016 | C32: ='1-2'!B32/100 -> 597.9279217 | D32: 23.64371727 | E32: 460,769(361,292) | F32: 129.8(165.5)
B33: 2017 | C33: ='1-2'!B33/100 -> 696.6324434 | D33: 22.51214178 | E33: 482,796(383,100) | F33: 144.4(181.9)
B34: 2018 | C34: ='1-2'!B34/100 -> 779.2362476 | D34: 21.41990695 | E34: 514,170(408,370) | F34: 151.5(190.8)
B35: 2019 | C35: ='1-2'!B35/100 -> 764.1181107 | D35: 21.44425263 | E35: 538,136(430,690) | F35: 142.0(177.4)
B36: 2020 | C36: ='1-2'!B36/100 -> 788.5586246 | D36: 23.18774769 | E36: 558,045(446,739) | F36: 141.3(176.5)
B37: 2021 | C37: ='1-2'!B37/100 -> 892.823109 | D37: 23.59122419 | E37: 586,666(470,728) | F37: 152.2(189.7)
A38: 미국 United States | B38: 1991
B39: 1992
B40: 1993
B41: 1994
B42: 1995
B43: 1996
B44: 1997
B45: 1998
B46: 1999
B47: 2000
B48: 2001
B49: 2002
B50: 2003
B51: 2004
B52: 2005
B53: 2006
B54: 2007
B55: 2008 | C55: 4054.05 | E55: 1193542.8 | F55: =C55*100000/E55 -> 339.6652387
B56: 2009 | C56: 4042.01 | E56: 1252470.715 | F56: 322.7229149
B57: 2010 | C57: 4084.96 | D57: 39.14848615 | E57: 1199962.518 | F57: 340.4239664
B58: 2011 | C58: 4271.26 | D58: 37.48964006 | E58: 1254250.876 | F58: 340.5427161
B59: 2012 | C59: 4344.42 | D59: 36.39795416 | E59: 1252897.134 | F59: 346.7499351
B60: 2013 | C60: 4551.28 | D60: 34.44920989 | E60: 1294372.909 | F60: 351.6204619
B61: 2014 | C61: 4770.03 | D61: 33.01907954 | E61: 1340299.15 | F61: 355.8929363
B62: 2015 | C62: 5074.01 | D62: 31.80245999 | E62: 1370109.932 | F62: 370.3359767
B63: 2016 | C63: 5334.65 | D63: 30.28652301 | E63: 1373193.952 | F63: 388.4848161
B64: 2017 | C64: 5659.29 | D64: 29.6505392 | E64: 1434176.206 | F64: 394.6021399
B65: 2018 | C65: 6185.31 | D65: 28.89911742 | E65: 1553328.391 | F65: 398.1971896
B66: 2019 | C66: 6786.03 | D66: 27.36489523 | E66: 1586496.82 | F66: 427.736754
B67: 2020 | C67: 7208.8 | D67: 26.57515814
A68: 일본 Japan | B68: 1991
B69: 1992
B70: 1993
B71: 1994
B72: 1995
B73: 1996
B74: 1997
B75: 1998
B76: 1999
B77: 2000
B78: 2001
B79: 2002
B80: 2003
B81: 2004
B82: 2005
B83: 2006
B84: 2007
B85: 2008 | C85: 1681.240816 | E85: 656676 | F85: 256.0228812
B86: 2009 | C86: 1690.468415 | E86: 655530 | F86: 257.8781161
B87: 2010 | C87: 1788.163745 | D87: 23.62216393 | E87: 656032 | F87: 272.5726405
B88: 2011 | C88: 1997.951809 | D88: 22.99726975 | E88: 656651 | F88: 304.2638798
B89: 2012 | C89: 1990.663169 | D89: 23.43821221 | E89: 646347 | F89: 307.9867577
B90: 2013 | C90: 1709.099497 | D90: 23.99719689 | E90: 660489 | F90: 258.7627496
B91: 2014 | C91: 1649.246601 | D91: 22.29254697 | E91: 682935 | F91: 241.4939345
B92: 2015 | C92: 1440.471916 | D92: 21.54838148 | E92: 662071 | F92: 217.5706103
B93: 2016 | C93: 1554.470742 | D93: 21.1814029 | E93: 665566 | F93: 233.5562126
B94: 2017 | C94: 1561.278728 | D94: 21.09041203 | E94: 676292 | F94: 230.8586718
B95: 2018 | C95: 1622.758388 | D95: 20.33033179 | E95: 678134 | F95: =C95*100000/E95 -> 239.2976002
B96: 2019 | C96: 1647.091919 | D96: 20.50293363 | E96: 681821 | F96: =C96*100000/E96 -> 241.572483
B97: 2020 | C97: 1650.434745 | D97: 21.15557952 | E97: 689889 | F97: 239.2319264
A98: 독일 Germany | B98: 1991
B99: 1992
B100: 1993
B101: 1994
B102: 1995
B103: 1996
B104: 1997
B105: 1998
B106: 1999
B107: 2000
B108: 2001
B109: 2002
B110: 2003
B111: 2004
B112: 2005
B113: 2006
B114: 2007
B115: 2008 | C115: 979.4359214 | E115: 302641 | F115: =C115*100000/E115 -> 323.629621
B116: 2009 | C116: 935.5934518 | E116: 317307 | F116: 294.8543372
B117: 2010 | C117: 928.1900068 | D117: 30.60016156 | E117: 327996 | F117: 282.9882092
B118: 2011 | C118: 1051.887525 | D118: 30.23582712 | E118: 338689 | F118: 310.5762294
B119: 2012 | C119: 1016.401332 | D119: 29.60206182 | E119: 352419 | F119: 288.4070757
B120: 2013 | C120: 1058.902148 | D120: 29.40414114 | E120: 354463 | F120: 298.7341833
B121: 2014 | C121: 1119.21924 | D121: 29.01777974 | E121: 351923 | F121: 318.0295803
B122: 2015 | C122: 985.0450906 | D122: 28.17475827 | E122: 387982 | F122: 253.889379
B123: 2016 | C123: 1020.272464 | D123: 28.83125472 | E123: 399605 | F123: 255.3202448
B124: 2017 | C124: 1124.638096 | D124: 28.06596753 | E124: 419617 | F124: 268.0153796
B125: 2018 | C125: 1236.093333 | D125: 28.19441767 | E125: 433685.036 | F125: 285.0209785
B126: 2019 | C126: 1231.706774 | D126: 28.16502115 | E126: 450697.27 | F126: 273.2891579
B127: 2020 | C127: 1217.387097 | D127: 30.07664328 | E127: 450796.4441 | F127: 270.0525066
A128: 프랑스 France | B128: 1991
B129: 1992
B130: 1993
B131: 1994
B132: 1995
B133: 1996
B134: 1997
B135: 1998
B136: 1999
B137: 2000
B138: 2001
B139: 2002
B140: 2003
B141: 2004
B142: 2005
B143: 2006
B144: 2007
B145: 2008 | C145: 603.9849042 | E145: 227678.5299 | F145: 265.2796926
B146: 2009 | C146: 597.4536416 | E146: 234366.0471 | F146: 254.9232916
B147: 2010 | C147: 576.2735404 | D147: 38.95965339 | E147: 243533.2276 | F147: 236.6303548
B148: 2011 | C148: 627.9320002 | D148: 37.20861375 | E148: 249246.6 | F148: 251.9320224
B149: 2012 | C149: 597.6714487 | D149: 37.07507722 | E149: 258913 | F149: 230.8387175
B150: 2013 | C150: 629.0240323 | D150: 37.04083755 | E150: 265465.8112 | F150: 236.951052
B151: 2014 | C151: 649.9938889 | D151: 37.86546429 | E151: 271772.2718 | F151: 239.1685821
B152: 2015 | C152: 543.2116752 | D152: 39.02611163 | E152: 279470 | F152: 194.3720883
B153: 2016 | C153: 549.5878776 | D153: 36.19996954 | E153: 285487.9646 | F153: 192.5082476
B154: 2017 | C154: 570.6422912 | D154: 36.1734854 | E154: 296324.277 | F154: 192.5735876
B155: 2018 | C155: 613.0781213 | D155: 35.51556675 | E155: 305438.6168 | F155: 200.7205663
B156: 2019 | C156: 598.1108862 | D156: 35.19993427 | E156: 313373.7036 | F156: 190.8618622
B157: 2019 | C157: 619.4214557 | E157: 321549.6363 | F157: 192.6363416
A158: 영국 United Kingdom | B158: 1991
B159: 1992
B160: 1993
B161: 1994
B162: 1995
B163: 1996
B164: 1997
B165: 1998
B166: 1999
B167: 2000
B168: 2001
B169: 2002
B170: 2003
B171: 2004
B172: 2005
B173: 2006
B174: 2007
B175: 2008 | C175: 471.3752514 | E175: 251931.7 | F175: =C175*100000/E175 -> 187.1043824
B176: 2009 | C176: 402.9106476 | E176: 256124.1127 | F176: 157.3107051
B177: 2010 | C177: 407.3370737 | D177: 38.32623928 | E177: 256584.957 | F177: 158.753295
B178: 2011 | C178: 438.6781192 | D178: 36.37914221 | E178: 251357.6 | F178: 174.5235152
B179: 2012 | C179: 426.603396 | D179: 34.54972969 | E179: 256156.4 | F179: 166.5402059
B180: 2013 | C180: 451.4125451 | D180: 35.11537622 | E180: 267698.5 | F180: 168.6272224
B181: 2014 | C181: 503.5064914 | D181: 34.41744337 | E181: 276583.8 | F181: 182.0448238
B182: 2015 | C182: 480.9013895 | D182: 33.31583917 | E182: 285855 | F182: 168.2326318
B183: 2016 | C183: 447.9956362 | D183: 31.61670146 | E183: 291103 | F183: 153.8959187
B184: 2017 | C184: 447.5425914 | D184: 31.25055 | E184: 295842 | F184: 151.2775709
B185: 2018 | C185: 497.1644973 | D185: 31.22589669 | E185: 306578 | F185: 162.1657449
B186: 2019 | C186: 491.6753569 | D186: 31.8714976 | E186: 316296 | F186: 155.447858
A187: 중국 China | B187: 1991
B188: 1992
B189: 1993
B190: 1994
B191: 1995
B192: 1996
B193: 1997
B194: 1998
B195: 1999
B196: 2000
B197: 2001
B198: 2002
B199: 2003
B200: 2004
B201: 2005
B202: 2006
... 17 more rows

Sheet 1-4
A1: 1-4) 주요국의 연구원 및 인구 만명당 연구원
A2: Researchers and researchers per 10,000 population in major countries
O4: (단위 : 명 Unit : person)
A5: 연도별 Year | B5: 한국 Korea | D5: 미국 United States | F5: 일본 Japan | H5: 독일 Germany | J5: 프랑스 France | L5: 영국 United Kingdom | N5: 중국 China
C6: 인구만명당 per 10,000 population | E6: 인구만명당 per 10,000 population | G6: 인구만명당 per 10,000 population | I6: 인구만명당 per 10,000 population | K6: 인구만명당 per 10,000 population | M6: 인구만명당 per 10,000 population | O6: 인구만명당 per 10,000 population
A7: 1991 | B7: 76,252(73,275) | C7: 17.6(16.9) | D7: 746155 | E7: 29.43063937 | F7: 491102 | G7: 39.57276734 | H7: 241869 | I7: 30.24383229 | J7: 129780 | K7: 22.16642755 | L7: 128000 | M7: 22.28451052 | N7: 471400 | O7: 4.070003367
A8: 1992 | B8: 88,764(85,268) | C8: 20.3(19.5) | D8: 765469 | E8: 29.79382848 | F8: 511407 | G8: 41.05477374 | J8: 141710 | K8: 24.08436581 | L8: 129000 | M8: 22.4016671 | N8: 471900 | O8: 4.027447065
A9: 1993 | B9: 98,764(93,680) | C9: 22.3(21.2) | D9: 781241 | E9: 30.01517585 | F9: 526501 | G9: 42.14098193 | H9: 230107 | I9: 28.42722309 | J9: 145898 | K9: 24.68872155 | L9: 131000 | M9: 22.69813217 | N9: 489200 | O9: 4.127677886
A10: 1994 | B10: 117,446(89,018) | C10: 26.3(19.9) | D10: 774354 | E10: 29.39226813 | F10: 541015 | G10: 43.24107228 | J10: 149193 | K10: 25.15265953 | L10: 134000 | M10: 23.15854965 | N10: 552000 | O10: 4.605757196
A11: 1995 | B11: 128,315(100,456) | C11: 28.5(22.3) | D11: 796548 | E11: 29.87936441 | F11: 551990 | G11: 44.00570809 | H11: 231128 | I11: 28.42623112 | J11: 151248.85 | K11: 25.40716445 | L11: 145673 | M11: 25.10521327 | N11: 522000 | O11: 4.309739847
A12: 1996 | B12: 132,023(99,433) | C12: 29.0(21.8) | D12: 842820 | E12: 31.24865598 | F12: 617365 | G12: 49.1098631 | H12: 230189 | I12: 28.25583679 | J12: 154827 | K12: 25.91593854 | L12: 144735 | M12: 24.88394883 | N12: 548000 | O12: 4.477526575
A13: 1997 | B13: 138,438(102,660) | C13: 30.1(22.3) | D13: 881271 | E13: 32.28595608 | F13: 625442 | G13: 49.63392085 | H13: 235793 | I13: 28.92810698 | J13: 154742.4 | K13: 25.80975732 | L13: 145641.2 | M13: 24.9753404 | N13: 588700 | O13: 4.761943281
A14: 1998 | B14: 129,767(92,541) | C14: 28.0(20.0) | D14: 937900 | E14: 33.96293373 | F14: 652845 | G14: 51.6699776 | H14: 237712 | I14: 29.18645483 | J14: 155727.04 | K14: 25.87859612 | L14: 157662 | M14: 26.96229158 | N14: 485500 | O14: 3.891440434
A15: 1999 | B15: 134,568(100,210) | C15: 28.9(21.5) | D15: 965178.0114 | E15: 34.55357184 | F15: 658910 | G15: 52.05194846 | H15: 254691 | I15: 31.28036649 | J15: 160424 | K15: 26.52206259 | L15: 167573.03 | M15: 28.55514791 | N15: 531100 | O15: 4.222250489
A16: 2000 | B16: 159,973(108,370) | C16: 34.0(23.1) | D16: 984709.0767 | E16: 34.86954854 | F16: 647572 | G16: 51.0578644 | H16: 257874 | I16: 31.65768442 | J16: 172070 | K16: 28.25312382 | L16: 170554.39 | M16: 28.96348708 | N16: 695062 | O16: 5.484026731
A17: 2001 | B17: 178,937(136,337) | C17: 37.8(28.8) | D17: 1014920.656 | E17: 35.58315913 | F17: 653021 | G17: 51.36558852 | H17: 264385 | I17: 32.43311211 | J17: 177372 | K17: 28.91243398 | L17: 182143.84 | M17: 30.8128229 | N17: 742726 | O17: 5.819505277
A18: 2002 | B18: 189,888(141,917) | C18: 39.9(29.8) | D18: 1048833.926 | E18: 36.42353583 | F18: 623035 | G18: 48.90384615 | H18: 265812 | I18: 32.58378484 | J18: 186420 | K18: 30.1670011 | L18: 198162.98 | M18: 33.37987737 | N18: 810525 | O18: 6.309895448
A19: 2003 | B19: 198,171(151,254) | C19: 41.4(31.6) | D19: 1128041.084 | E19: 38.8141833 | F19: 652369 | G19: 51.11247787 | H19: 268942 | I19: 32.97919043 | J19: 192789.9118 | K19: 30.97773147 | L19: 216689.87 | M19: 36.3348039 | N19: 862108 | O19: 6.671268388
A20: 2004 | B20: 209,979(156,220) | C20: 43.7(32.5) | D20: 1107011.72 | E20: 37.74821558 | F20: 653747 | G20: 51.18034353 | H20: 270215 | I20: 33.17312414 | J20: 202377.2 | K20: 32.27963952 | L20: 228969.09 | M20: 38.19334279 | N20: 926252 | O20: 7.125673139
A21: 2005 | B21: 234,702(179,812) | C21: 48.7(37.3) | D21: 1103197.727 | E21: 37.2710749 | F21: 680631 | G21: 53.27627099 | H21: 272148 | I21: 33.45931126 | J21: 202506.79 | K21: 32.05844573 | L21: 248599.3 | M21: 41.14996772 | N21: 1118698 | O21: 8.555615039
A22: 2006 | B22: 256,598(199,990) | C22: 53.0(41.3) | D22: 1132338.573 | E22: 37.89392116 | F22: 684884 | G22: 53.57436756 | H22: 279822 | I22: 34.4722999 | J22: 210591.0899 | K22: 33.10712162 | L22: 254009 | M22: 41.75925165 | N22: 1223756.4 | O22: 9.309813767
A23: 2007 | B23: 289,098(221,928) | C23: 59.4(45.6) | D23: 1135552.609 | E23: 37.638968 | F23: 684311 | G23: 53.47015159 | H23: 290853 | I23: 35.91132458 | J23: 221851.0428 | K23: 34.66260063 | L23: 252650.8 | M23: 41.20269411 | N23: 1423381 | O23: 10.77266157
A24: 2008 | B24: 300,050(236,137) | C24: 61.2(48.1) | D24: 1193542.8 | E24: 39.19127347 | F24: 656676 | G24: 51.28478269 | H24: 302641 | I24: 37.47226487 | J24: 227678.5299 | K24: 35.37523188 | L24: 251931.7 | M24: 40.74982208 | N24: 1592420 | O24: 11.99093387
A25: 2009 | B25: 323,175(244,077) | C25: 65.5(49.5) | D25: 1252470.715 | E25: 40.76522311 | F25: 655530 | G25: 51.19968133 | H25: 317307 | I25: 39.42534448 | J25: 234366.0471 | K25: 36.22797983 | L25: 256124.1127 | M25: 41.13716656 | N25: 1152311 | O25: 8.63477707
A26: 2010 | B26: 345,912(264,118) | C26: 69.8(53.3) | D26: 1199962.518 | E26: 38.73670864 | F26: 656032 | G26: 51.23528815 | H26: 327996 | I26: 40.85446664 | J26: 243533.2276 | K26: 37.46031096 | L26: 256584.957 | M26: 40.88351769 | N26: 1210840.8 | O26: 9.029993064
A27: 2011 | B27: 375,176(288,901) | C27: 75.1(57.9) | D27: 1254250.876 | E27: 40.19906016 | F27: 656651 | G27: 51.36868209 | H27: 338689 | I27: 42.19109312 | J27: 249246.6 | K27: 38.15193632 | L27: 251357.6 | M27: 39.71835348 | N27: 1318086 | O27: 9.769678911
A28: 2012 | B28: 401,724(315,589) | C28: 80.0(62.9) | D28: 1252897.134 | E28: 39.87426115 | F28: 646347 | G28: 50.67321563 | H28: 352419 | I28: 43.81903862 | J28: 258913 | K28: 39.43778465 | L28: 256156.4 | M28: 40.20977945 | N28: 1404017 | O28: 10.32957873
A29: 2013 | B29: 410,333(321,842) | C29: 81.4(63.8) | D29: 1294372.909 | E29: 40.91494446 | F29: 660489 | G29: 51.87099966 | H29: 354463 | I29: 43.95295489 | J29: 265465.8112 | K29: 40.22757818 | L29: 267698.5 | M29: 41.75872773 | N29: 1484039.7 | O29: 10.8541148
A30: 2014 | B30: 437,447(345,463) | C30: 86.2(68.1) | D30: 1340299.15 | E30: 42.06430479 | F30: 682935 | G30: 53.66370165 | H30: 351923 | I30: 43.45640443 | J30: 271772.2718 | K30: 40.98387498 | L30: 276583.8 | M30: 42.81681812 | N30: 1524280.3 | O30: 11.07391642
A31: 2015 | B31: 453,262(356,447) | C31: 88.8(69.9) | D31: 1370109.932 | E31: 42.69345853 | F31: 662071 | G31: 52.08646055 | H31: 387982 | I31: 47.49617442 | J31: 279470 | K31: 41.97443715 | L31: 285855 | M31: 43.90339426 | N31: 1619027.7 | O31: 11.70443517
A32: 2016 | B32: 460,769(361,292) | C32: 90.0(70.5) | D32: 1373193.952 | E32: 42.48927714 | F32: 665566 | G32: 52.43443391 | H32: 399605 | I32: 48.52578659 | J32: 285487.9646 | K32: 42.71789508 | L32: 291103 | M32: 44.34301121 | N32: 1692175.8 | O32: 12.1536414
A33: 2017 | B33: 482,796(383,100) | C33: 94.0(74.6) | D33: 1434176.206 | E33: 44.09864726 | F33: 676292 | G33: 53.37489937 | H33: 419617 | I33: 50.76605732 | J33: 296324.277 | K33: 44.15106338 | L33: 295842 | M33: 44.79739552 | N33: 1740442.2 | O33: 12.4307533
A34: 2018 | B34: 514,170(408,370) | C34: 99.6(79.1) | D34: 1553328.391 | E34: 47.50980708 | F34: 678134 | G34: 53.63159685 | H34: 433685.036 | I34: 52.31045232 | J34: 305438.6168 | K34: 45.28438032 | L34: 306578 | M34: 46.14636643 | N34: 1866108.8 | O34: 13.27803844
A35: 2019 | B35: 538,136(430,690) | C35: 104.1(83.3) | D35: 1586496.82 | E35: 48.29121564 | F35: 681821 | G35: 54.04119464 | H35: 450697.27 | I35: 54.24010085 | J35: 313373.7036 | K35: 46.24622998 | L35: 316296 | M35: 47.35182718 | N35: 2109459.8 | O35: 14.95985902
A36: 2020 | B36: 558,045(446,739) | C36: 107.6(86.1) | F36: 689889 | G36: 54.88010348 | H36: 450796.4441 | I36: 54.20767476 | J36: 321549.6363 | K36: 47.28392981 | N36: 2281134 | O36: 16.15396708
A37: 2021 | B37: 586,666(470,728) | C37: 112.9(90.6)
A39: 주 : 상근상당 연구원 기준임. 한국은 괄호 안의 수치가 상근상당 연구원
A40: 자료 : OECD, Main Science and Technology Indicators 2022-september, 2022

Sheet 1-5
A1: 1-5) 주요국의 연구개발단계별 연구개발비 비율
A2: Percentage of R&D expenditure by type of R&D in major countries
V3: (단위 : % Unit : %)
A4: 연도 Year | B4: 한국 Korea | E4: 미국 United States | I4: 일본 Japan | M4: 프랑스 France | Q4: 영국 United Kingdom | T4: 중국 China
B5: 기초 Basic research | C5: 응용 Applied research | D5: 개발 Exper-imental develop-ment | E5: 기초 Basic research | F5: 응용 Applied research | G5: 개발 Exper-imental develop-ment | H5: 기타 Others | I5: 기초 Basic research | J5: 응용 Applied research | K5: 개발 Exper-imental develop-ment | L5: 기타 Others | M5: 기초 Basic research | N5: 응용 Applied research | O5: 개발 Exper-imental develop-ment | P5: 기타 Others | Q5: 기초 Basic research | R5: 응용 Applied research | S5: 개발 Exper-imental develop-ment | T5: 기초 Basic research | U5: 응용 Applied research | V5: 개발 Exper-imental develop-ment
A6: 1991 | B6: 14.83695809 | C6: 30.7327267 | D6: 54.43031521 | E6: 16.9 | F6: 24 | G6: 59.1 | I6: 12.3 | J6: 22.7 | K6: 57.3 | L6: 7.7 | M6: 20.3 | N6: 30.9 | O6: 48.8 | T6: 4.7 | U6: 24.4 | V6: 71
A7: 1992 | B7: 12.60038272 | C7: 26.32427018 | D7: 61.0753471 | E7: 16.7 | F7: 22.9 | G7: 60.4 | I7: 12.8 | J7: 22.4 | K7: 56.8 | L7: 8 | M7: 20.8 | N7: 31.7 | O7: 47.5 | T7: 4.5 | U7: 25.4 | V7: 70.1
A8: 1993 | B8: 13.1535387 | C8: 24.33231166 | D8: 62.51414964 | E8: 17.3 | F8: 22.5 | G8: 60.2 | I8: 13.5 | J8: 21.9 | K8: 55.9 | L8: 8.6 | M8: 21.7 | N8: 29.3 | O8: 49 | T8: 4.8 | U8: 25.8 | V8: 69.4
A9: 1994 | B9: 14.3378267 | C9: 23.82374303 | D9: 61.83843027 | E9: 17.5 | F9: 21.6 | G9: 60.8 | I9: 13.7 | J9: 22.5 | K9: 55.3 | L9: 8.6 | M9: 22.2 | N9: 29.1 | O9: 48.7 | T9: 5.5 | U9: 27.3 | V9: 67.2
A10: 1995 | B10: 12.46550234 | C10: 25.02074233 | D10: 62.51375534 | E10: 16.1 | F10: 22.3 | G10: 61.6 | I10: 14.2 | J10: 22.5 | K10: 55 | L10: 8.4 | M10: 22.2 | N10: 29.6 | O10: 48.2 | T10: 5.2 | U10: 26.4 | V10: 68.4
A11: 1996 | B11: 13.22865427 | C11: 26.90987762 | D11: 60 | E11: 16.6 | F11: 21.9 | G11: 61.5 | I11: 12.2 | J11: 22.3 | K11: 59.5 | L11: 6 | M11: 22 | N11: 28.5 | O11: 49.5 | T11: 5 | U11: 24.5 | V11: 70.5
A12: 1997 | B12: 13.2653508 | C12: 28.48034337 | D12: 58 | E12: 17.4 | F12: 21.9 | G12: 60.7 | I12: 12 | J12: 22.5 | K12: 59.8 | L12: 5.7 | M12: 22 | N12: 29.6 | O12: 48.3 | T12: 5.4 | U12: 26 | V12: 68.6
A13: 1998 | B13: 13.98448034 | C13: 25.12617534 | D13: 61 | E13: 15.6 | F13: 20.5 | G13: 63.9 | I13: 12 | J13: 22.6 | K13: 59.4 | L13: 5.9 | M13: 25.1 | N13: 26.8 | O13: 48.2 | T13: 5.3 | U13: 22.6 | V13: 72.1
A14: 1999 | B14: 13.63454835 | C14: 25.71095939 | D14: 60.65449226 | E14: 15.9 | F14: 21.3 | G14: 62.9 | I14: 12.3 | J14: 21.6 | K14: 60.2 | L14: 6 | M14: 24.4 | N14: 27.5 | O14: 48.1 | T14: 5 | U14: 22.3 | V14: 72.7
A15: 2000 | B15: 12.60885897 | C15: 24.33540519 | D15: 63.05573585 | E15: 15.9 | F15: 21.1 | G15: 63 | I15: 12.4 | J15: 22 | K15: 59.8 | L15: 5.9 | M15: 23.6 | N15: 32.6 | O15: 43.8 | T15: 5.2 | U15: 17 | V15: 77.8
A16: 2001 | B16: 12.56954763 | C16: 25.29987061 | D16: 62.13058176 | E16: 17.1 | F16: 22.9 | G16: 60 | I16: 12.2 | J16: 21.2 | K16: 59.9 | L16: 6.7 | M16: 23.3 | N16: 33.5 | O16: 43.2 | T16: 5.3 | U16: 17.7 | V16: 76.9
A17: 2002 | B17: 13.69826075 | C17: 21.72343024 | D17: 64.57830901 | E17: 18.24225793 | F17: 18.14599841 | G17: 63.43107746 | H17: 0.1806662021 | I17: 12.6 | J17: 21 | K17: 61 | L17: 5.4 | M17: 23.4 | N17: 35.7 | O17: 40.9 | T17: 5.7 | U17: 19.2 | V17: 75.1
A18: 2003 | B18: 14.46676253 | C18: 20.84042308 | D18: 64.69281439 | E18: 18.76491065 | F18: 20.89937944 | G18: 60.06462279 | H18: 0.271087121 | I18: 12.6 | J18: 21.2 | K18: 60.9 | L18: 5.2 | M18: 24.1 | N18: 36.2 | O18: 39.7 | T18: 5.7 | U18: 20.2 | V18: 74.1
A19: 2004 | B19: 15.32273018 | C19: 21.23997273 | D19: 63.4372971 | E19: 18.5564669 | F19: 22.75396282 | G19: 58.32982253 | H19: 0.3597477487 | I19: 12 | J19: 21.2 | K19: 61.6 | L19: 5.3 | M19: 23.8 | N19: 37.1 | O19: 39.1 | T19: 6 | U19: 20.4 | V19: 73.7
A20: 2005 | B20: 15.34579047 | C20: 20.8406665 | D20: 63.81354303 | E20: 18.36244869 | F20: 21.35082196 | G20: 59.99767036 | H20: 0.2890589797 | I20: 12 | J20: 21 | K20: 61.8 | L20: 5.2 | M20: 23.9 | N20: 38.6 | O20: 37.5 | T20: 5.4 | U20: 17.7 | V20: 76.9
A21: 2006 | B21: 15.15145805 | C21: 19.85722715 | D21: 64.9913148 | E21: 17.50737199 | F21: 21.78810188 | G21: 60.48841382 | H21: 0.2163966685 | I21: 11.6 | J21: 20.5 | K21: 62.9 | L21: 5 | M21: 23.9 | N21: 39 | O21: 37.1 | T21: 5.2 | U21: 16.8 | V21: 78
A22: 2007 | B22: 15.71396864 | C22: 19.8420471 | D22: 64.44398426 | E22: 17.06708161 | F22: 22.53991821 | G22: 60.2255075 | H22: 0.1674926821 | I22: 11.6 | J22: 21.5 | K22: 62 | L22: 5 | M22: 24.9 | N22: 38.5 | O22: 36.6 | Q22: 15.738015 | R22: 43.953225 | S22: 40.308759 | T22: 4.7 | U22: 13.3 | V22: 82
A23: 2008 | B23: 16.05044347 | C23: 19.63551202 | D23: 64.31404451 | E23: 16.90704357 | F23: 18.90430557 | G23: 64.03374403 | H23: 0.1549068216 | I23: 11.4 | J23: 21.7 | K23: 62.6 | L23: 4.3 | M23: 25.3 | N23: 39.3 | O23: 35.3 | Q23: 15.847933 | R23: 44.05293 | S23: 40.099137 | T23: 4.8 | U23: 12.5 | V23: 82.8
A24: 2009 | B24: 18.05791386 | C24: 19.96990754 | D24: 61.9721786 | E24: 18.03137548 | F24: 18.33666913 | G24: 63.31775528 | H24: 0.3139527116 | I24: 12.5 | J24: 22.3 | K24: 60.5 | L24: 4.7 | M24: 26.1 | N24: 39.6 | O24: 34.3 | Q24: 16.815139 | R24: 45.627059 | S24: 37.557802 | T24: 4.7 | U24: 12.6 | V24: 82.7
A25: 2010 | B25: 18.22152555 | C25: 19.93546337 | D25: 61.84301108 | E25: 18.69981591 | F25: 19.34339626 | G25: 61.49264619 | H25: 0.4641416317 | I25: 12.1 | J25: 21.2 | K25: 61.9 | L25: 4.7 | M25: 25.1 | N25: 38.2 | O25: 32.8 | P25: 3.9 | Q25: 17.813005 | R25: 46.229829 | S25: 35.957166 | T25: 4.6 | U25: 12.7 | V25: 82.8
A26: 2011 | B26: 18.06601663 | C26: 20.27751826 | D26: 61.65646511 | E26: 17.22021137 | F26: 19.17256266 | G26: 63.39393996 | H26: 0.2132860093 | I26: 12.3 | J26: 21 | K26: 62.1 | L26: 4.6 | M26: 24.3 | N26: 37 | O26: 34.8 | P26: 3.8 | Q26: 16.3738096 | R26: 46.89751847 | S26: 36.72867193 | T26: 4.7 | U26: 11.8 | V26: 83.4
A27: 2012 | B27: 18.31071297 | C27: 19.06696209 | D27: 62.62232494 | E27: 16.99720561 | F27: 19.98471603 | G27: 62.85096745 | H27: 0.1671109147 | I27: 12.5 | J27: 20.8 | K27: 62.1 | L27: 4.7 | M27: 24.1 | N27: 37.3 | O27: 35.2 | P27: 3.4 | Q27: 16.77442104 | R27: 45.72280195 | S27: 37.50277701 | T27: 4.8 | U27: 11.3 | V27: 83.9
A28: 2013 | B28: 17.98582541 | C28: 19.08212842 | D28: 62.93204618 | E28: 17.38785572 | F28: 19.36993549 | G28: 63.05391011 | H28: 0.1882986764 | I28: 12.6 | J28: 20.9 | K28: 61.8 | L28: 4.7 | M28: 24.3 | N28: 37.8 | O28: 34.5 | P28: 3.4 | Q28: 16.81725746 | R28: 45.63966891 | S28: 37.54307362 | T28: 4.7 | U28: 10.7 | V28: 84.6
A29: 2014 | B29: 17.63984403 | C29: 18.92000189 | D29: 63.44015408 | E29: 17.35188248 | F29: 19.23908235 | G29: 63.1920554 | H29: 0.2167701251 | I29: 12.3 | J29: 19.9 | K29: 63.4 | L29: 4.4 | M29: 23.9 | N29: 38.6 | O29: 34.3 | P29: 3.2 | Q29: 16.91002453 | R29: 43.32703714 | S29: 39.76293833 | T29: 4.7 | U29: 10.7 | V29: 84.5
A30: 2015 | B30: 17.2252361 | C30: 20.8385165 | D30: 61.9362474 | E30: 16.72207978 | F30: 19.49661116 | G30: 63.50322526 | H30: 0.2778867208 | I30: 11.9 | J30: 19.9 | K30: 63.7 | L30: 4.5 | M30: 23.8 | N30: 37.9 | O30: 35.2 | P30: 3.1 | Q30: 16.55627713 | R30: 43.95523983 | S30: 39.48848304 | T30: 5.1 | U30: 10.8 | V30: 84.2
A31: 2016 | B31: 15.97373093 | C31: 22.5074713 | D31: 61.51879777 | E31: 16.1750068 | F31: 21.00925084 | G31: 62.63634915 | H31: 0.179580666 | I31: 12.6 | J31: 18.9 | K31: 64 | L31: 4.5 | M31: 22.3 | N31: 42.2 | O31: 35.5 | Q31: 17.73752854 | R31: 43.4964827 | S31: 38.76598877 | T31: 5.2 | U31: 10.3 | V31: 84.5
A32: 2017 | B32: 14.45769859 | C32: 21.97751017 | D32: 63.56479124 | E32: 15.76081099 | F32: 20.41316137 | G32: 63.63042007 | H32: 0.1957842768 | I32: 13.1 | J32: 18.7 | K32: 63.9 | L32: 4.3 | M32: 22.7 | N32: 41.9 | O32: 35.4 | Q32: 17.51005887 | R32: 42.56188736 | S32: 39.92805377 | T32: 5.5 | U32: 10.5 | V32: 84
A33: 2018 | B33: 14.20815263 | C33: 21.95846956 | D33: 63.83337781 | E33: 15.63203784 | F33: 19.64444789 | G33: 64.49781822 | H33: 0.2256960443 | I33: 12.6 | J33: 19 | K33: 64.3 | L33: 4.2 | M33: 22.7 | N33: 41.3 | O33: 36.1 | Q33: 18.27880395 | R33: 42.05746151 | S33: 39.66562268 | T33: 5.5 | U33: 11.1 | V33: 83.3
A34: 2019 | B34: 14.66898367 | C34: 22.50511059 | D34: 62.82590574 | E34: 15.24160665 | F34: 19.64226507 | G34: 64.8978858 | H34: 0.2183898391 | I34: 12.5 | J34: 18.6 | K34: 64.8 | L34: 4.1 | M34: 22.7 | N34: 41.4 | O34: 36 | Q34: 18.27165248 | R34: 43.1974847 | S34: 38.53086281 | T34: 6 | U34: 11.3 | V34: 82.7
A35: 2020 | B35: 14.44918335 | C35: 21.57329415 | D35: 63.9775225 | E35: 15.06505937 | F35: 19.57815448 | G35: 65.0925258 | H35: 0.2643990678 | I35: 12.3 | J35: 18.6 | K35: 64.9 | L35: 4.2 | T35: 6 | U35: 11.3 | V35: 82.7
A36: 2021 | B36: 14.78448644 | C36: 21.02150292 | D36: 64.19401064
A38: 주 : 1. 공란은 데이터 없음
A39: 2. 프랑스는 2010년(조사대상년도)부터 '기타' 추가됨
A40: 3. 미국은 2002년(조사대상년도)부터 '기타' 추가됨
A41: 4. 사사오입으로 인해 합계(100.0%) 수치 마지막 단위에서 차이 발생할 수도 있음
A42: 자료 : OECD, Research & Development Statistics 2022, 2022

Sheet 1-6
A1: 1-6) 주요국의 연구수행주체별 연구개발비 비율
A2: Percentage of R&D expenditure by sector of performance in major countries
F4: (단위 : % Unit : %)
A5: 국가 · 연도 Country · Year | C5: 공공연구기관 Public research institutes | E5: 대학 Higher educations | F5: 기업체 Business enterprises
C6: 국립·공립·출연(연) Government | D6: 비영리법인 Private non-profit
A7: 한국 Korea | B7: 1995 | C7: 16.95810629 | D7: 1.148485595 | E7: 8.165916468 | F7: 73.72749165
B8: 1996 | C8: 16.21583832 | D8: 1.21023529 | E8: 9.365842224 | F8: 73.20808417
B9: 1997 | C9: 15.77635359 | D9: 1.201602815 | E9: 10.43508239 | F9: 72.58696121
B10: 1998 | C10: 17.45863868 | D10: 1.060730904 | E10: 11.15918444 | F10: 70.32144598
B11: 1999 | C11: 14.45170978 | D11: 2.149658876 | E11: 12.00680068 | F11: 71.39183066
B12: 2000 | C12: 13.31462517 | D12: 1.358313077 | E12: 11.27821704 | F12: 74.04884471
B13: 2001 | C13: 12.36004099 | D13: 1.048370813 | E13: 10.4079626 | F13: 76.18362559
B14: 2002 | C14: 13.40725045 | D14: 1.326481533 | E14: 10.37279999 | F14: 74.89346803
B15: 2003 | C15: 12.59159456 | D15: 1.18153951 | E15: 10.13527365 | F15: 76.09159228
B16: 2004 | C16: 12.06139413 | D16: 1.160288557 | E16: 10.06185393 | F16: 76.71646338
B17: 2005 | C17: 11.8607284 | D17: 1.357372742 | E17: 9.928555312 | F17: 76.85334355
B18: 2006 | C18: 11.55986545 | D18: 1.22843244 | E18: 9.953570733 | F18: 77.25813138
B19: 2007 | C19: 11.6558146 | D19: 1.450208393 | E19: 10.65166731 | F19: 76.2423097
B20: 2008 | C20: 12.05731407 | D20: 1.431086235 | E20: 11.14482984 | F20: 75.36676985
B21: 2009 | C21: 13.01865539 | D21: 1.636243625 | E21: 11.0846966 | F21: 74.26040438
B22: 2010 | C22: 12.67379517 | D22: 1.705773542 | E22: 10.82083371 | F22: 74.79959757
B23: 2011 | C23: 11.72849965 | D23: 1.647437559 | E23: 10.0897459 | F23: 76.5343169
B24: 2012 | C24: 11.25369393 | D24: 1.280566076 | E24: 9.516532792 | F24: 77.9492072
B25: 2013 | C25: 10.91364587 | D25: 1.330189391 | E25: 9.24154266 | F25: 78.51462207
B26: 2014 | C26: 11.21289607 | D26: 1.516078725 | E26: 9.04846612 | F26: 78.22255909
B27: 2015 | C27: 11.74255052 | D27: 1.635501024 | E27: 9.094799301 | F27: 77.52714915
B28: 2016 | C28: 11.54450843 | D28: 1.585815206 | E28: 9.134557346 | F28: 77.73511902
B29: 2017 | C29: 10.69907722 | D29: 1.413266766 | E29: 8.481522957 | F29: 79.40613306
B30: 2018 | C30: 10.07387259 | D30: 1.40870641 | E30: 8.224099743 | F30: 80.29332125
B31: 2019 | C31: 9.992599744 | D31: 1.426939593 | E31: 8.278372787 | F31: 80.30208788
B32: 2020 | C32: 10.10799455 | D32: 1.838235735 | E32: 8.975178989 | F32: 79.07859072
B33: 2021 | C33: 9.770970243 | D33: 1.975224996 | E33: 9.135548675 | F33: 79.11826011
A34: 미국 United States | B34: 1991 | C34: 14.78314995 | D34: 2.882557933 | E34: 11.27873381 | F34: 71.0555583
B35: 1992 | C35: 14.89442177 | D35: 3.010594158 | E35: 11.68934837 | F35: 70.4056357
B36: 1993 | C36: 15.02029822 | D36: 3.170275296 | E36: 12.33158677 | F36: 69.47783972
B37: 1994 | C37: 14.75359706 | D37: 3.300808581 | E37: 12.73372866 | F37: 69.21186569
B38: 1995 | C38: 14.02277367 | D38: 3.165410361 | E38: 12.28154574 | F38: 70.53027022
B39: 1996 | C39: 12.89454615 | D39: 3.139280063 | E39: 11.98606722 | F39: 71.98010656
B40: 1997 | C40: 12.12961715 | D40: 3.115215061 | E40: 11.69330667 | F40: 73.06186112
B41: 1998 | C41: 11.59808579 | D41: 3.234861237 | E41: 11.53242793 | F41: 73.63462505
B42: 1999 | C42: 11.01251079 | D42: 3.360646391 | E42: 11.47026243 | F42: 74.15658038
B43: 2000 | C43: 10.78834787 | D43: 3.629880562 | E43: 11.38831893 | F43: 74.19345263
B44: 2001 | C44: 11.88489784 | D44: 3.99481869 | E44: 12.03262941 | F44: 72.08765407
B45: 2002 | C45: 12.8424994 | D45: 4.355266872 | E45: 13.53669821 | F45: 69.26553551
B46: 2003 | C46: 12.9088793 | D46: 4.503967984 | E46: 14.27895675 | F46: 68.30785566
B47: 2004 | C47: 12.63610784 | D47: 4.559612616 | E47: 14.65187803 | F47: 68.15240152
B48: 2005 | C48: 12.30556368 | D48: 4.444911742 | E48: 14.32550712 | F48: 68.92401746
B49: 2006 | C49: 11.9594258 | D49: 4.090250419 | E49: 13.85426572 | F49: 70.09605805
B50: 2007 | C50: 11.75390991 | D50: 3.99615057 | E50: 13.44907919 | F50: 70.80086034
B51: 2008 | C51: 11.34962847 | D51: 4.032040232 | E51: 13.23967803 | F51: 71.37865327
B52: 2009 | C52: 12.02248988 | D52: 4.4731241 | E52: 14.01852832 | F52: 69.48561164
B53: 2010 | C53: 12.70955613 | D53: 4.540677359 | E53: 14.72202647 | F53: 68.02774005
B54: 2011 | C54: 12.79083836 | D54: 4.25577954 | E54: 14.52679436 | F54: 68.42658774
B55: 2012 | C55: 12.28090775 | D55: 4.111900799 | E55: 14.02006221 | F55: 69.58712924
B56: 2013 | C56: 11.50709251 | D56: 4.104559596 | E56: 13.52322863 | F56: 70.86533898
B57: 2014 | C57: 11.3429056 | D57: 4.154481209 | E57: 13.0716159 | F57: 71.43099729
B58: 2015 | C58: 10.77372729 | D58: 4.096759762 | E58: 12.73844553 | F58: 72.39087034
B59: 2016 | C59: 9.842820054 | D59: 4.279381028 | E59: 12.70786275 | F59: 73.16993617
B60: 2017 | C60: 9.564627365 | D60: 4.255657512 | E60: 12.56606394 | F60: 73.61365118
B61: 2018 | C61: 9.73564785 | D61: 4.128814886 | E61: 12.1115999 | F61: 74.02393736
B62: 2019 | C62: 9.549176765 | D62: 4.009118734 | E62: 11.52013769 | F62: 74.92156681
B63: 2020 | C63: 9.454555543 | D63: 3.976389968 | E63: 11.25166463 | F63: 75.31738986
A64: 일본 Japan | B64: 1991 | C64: 8.102017566 | D64: 4.437154071 | E64: 12.07294985 | F64: 75.38787851
B65: 1992 | C65: 8.923090579 | D65: 4.710573988 | E65: 12.82890264 | F65: 73.53744049
B66: 1993 | C66: 10.03891753 | D66: 4.853475567 | E66: 14.02550088 | F66: 71.08210603
B67: 1994 | C67: 9.712815845 | D67: 5.043203656 | E67: 14.12394326 | F67: 71.12004516
B68: 1995 | C68: 10.39813304 | D68: 4.78733207 | E68: 14.53359998 | F68: 70.28093492
B69: 1996 | C69: 9.385584997 | D69: 4.79864512 | E69: 14.75699358 | F69: 71.05876218
B70: 1997 | C70: 8.834482558 | D70: 4.846326525 | E70: 14.27420385 | F70: 72.04498707
B71: 1998 | C71: 9.248435795 | D71: 4.707353445 | E71: 14.84691055 | F71: 71.19730021
B72: 1999 | C72: 9.856745247 | D72: 4.587405023 | E72: 14.84207718 | F72: 70.71377255
B73: 2000 | C73: 9.890160511 | D73: 4.620030432 | E73: 14.52853205 | F73: 70.96128355
B74: 2001 | C74: 9.535102442 | D74: 2.326282833 | E74: 14.46465127 | F74: 73.67395059
B75: 2002 | C75: 9.537406425 | D75: 2.139110195 | E75: 13.88158181 | F75: 74.44188871
B76: 2003 | C76: 9.310090419 | D76: 2.052921805 | E76: 13.66002646 | F76: 74.97696131
B77: 2004 | C77: 9.488502727 | D77: 1.893181686 | E77: 13.42684855 | F77: 75.19146703
B78: 2005 | C78: 8.29023276 | D78: 1.85798499 | E78: 13.4041044 | F78: 76.44767785
B79: 2006 | C79: 8.281147757 | D79: 1.869215364 | E79: 12.69429021 | F79: 77.15534666
B80: 2007 | C80: 7.76839103 | D80: 1.747453486 | E80: 12.59359668 | F80: 77.8905588
B81: 2008 | C81: 8.329088312 | D81: 1.57234011 | E81: 11.6367808 | F81: 78.46179078
B82: 2009 | C82: 9.214585053 | D82: 1.612987655 | E82: 13.41032037 | F82: 75.76210692
B83: 2010 | C83: 9.024437901 | D83: 1.589012415 | E83: 12.87236456 | F83: 76.51418512
B84: 2011 | C84: 8.375466555 | D84: 1.450781803 | E84: 13.21085819 | F84: 76.96289346
B85: 2012 | C85: 8.620159722 | D85: 1.400715909 | E85: 13.35618543 | F85: 76.62293894
B86: 2013 | C86: 9.168409315 | D86: 1.275228538 | E86: 13.4658196 | F86: 76.09054255
B87: 2014 | C87: 8.325804058 | D87: 1.339353549 | E87: 12.5781188 | F87: 77.75672359
B88: 2015 | C88: 7.898760568 | D88: 1.332102015 | E88: 12.27806042 | F88: 78.49107699
B89: 2016 | C89: 7.548668844 | D89: 1.38103347 | E89: 12.31760825 | F89: 78.75268944
B90: 2017 | C90: 7.813759742 | D90: 1.378017379 | E90: 12.01258364 | F90: 78.79563924
B91: 2018 | C91: 7.752268066 | D91: 1.266180159 | E91: 11.5596818 | F91: 79.42186998
B92: 2019 | C92: 7.81121849 | D92: 1.342090908 | E92: 11.69242213 | F92: 79.15426847
B93: 2020 | C93: 8.277022579 | D93: 1.3679541 | E93: 11.70066724 | F93: 78.65435608
A94: 독일 Germany | B94: 1991 | C94: 14.41835149 | E94: 16.2363366 | F94: 69.34521608
B95: 1992 | C95: 14.21602922 | E95: 17.08394825 | F95: 68.70002252
B96: 1993 | C96: 15.20965661 | E96: 17.64829552 | F96: 67.14204787
B97: 1994 | C97: 15.24949243 | E97: 18.14677245 | F97: 66.60373512
B98: 1995 | C98: 15.48890321 | E98: 18.22145117 | F98: 66.28964779
B99: 1996 | C99: 15.30148136 | E99: 18.66223516 | F99: 66.03628159
B100: 1997 | C100: 14.61526201 | E100: 18.02147358 | F100: 67.36327438
B101: 1998 | C101: 14.66526081 | E101: 17.38451587 | F101: 67.95020997
B102: 1999 | C102: 13.71507878 | E102: 16.7483277 | F102: 69.53659779
B103: 2000 | C103: 13.52261811 | E103: 16.43341139 | F103: 70.0439705
B104: 2001 | C104: 13.68004141 | E104: 16.76652286 | F104: 69.55343573
B105: 2002 | C105: 13.69419926 | E105: 17.30623414 | F105: 68.9995666
B106: 2003 | C106: 13.35225899 | E106: 17.16022736 | F106: 69.48751364
B107: 2004 | C107: 13.63858544 | E107: 16.73282771 | F107: 69.62858686
B108: 2005 | C108: 14.0784832 | E108: 16.75221388 | F108: 69.16930292
B109: 2006 | C109: 13.83167063 | E109: 16.38657356 | F109: 69.78175581
B110: 2007 | C110: 13.88629137 | E110: 16.14079667 | F110: 69.97291196
B111: 2008 | C111: 14.03484672 | E111: 16.78034666 | F111: 69.18480662
B112: 2009 | C112: 14.80621379 | E112: 17.69785849 | F112: 67.49592762
B113: 2010 | C113: 14.78803954 | E113: 18.18413622 | F113: 67.02782424
B114: 2011 | C114: 14.52221079 | E114: 17.88770463 | F114: 67.59008458
B115: 2012 | C115: 14.33509394 | E115: 17.67117206 | F115: 67.99373402
B116: 2013 | C116: 14.87734633 | E116: 17.93778514 | F116: 67.18491243
B117: 2014 | C117: 14.62367113 | E117: 17.72209986 | F117: 67.65422901
B118: 2015 | C118: 14.06324757 | E118: 17.28305657 | F118: 68.65369587
B119: 2016 | C119: 13.80098756 | E119: 18.03846539 | F119: 68.16054704
B120: 2017 | C120: 13.54446934 | E120: 17.35979836 | F120: 69.09573229
B121: 2018 | C121: 13.536023 | E121: 17.57894992 | F121: 68.88502709
B122: 2019 | C122: 13.65339152 | E122: 17.42580191 | F122: 68.92080657
B123: 2020 | C123: 14.62621461 | E123: 18.72899262 | F123: 66.64479277
A124: 프랑스 France | B124: 1991 | C124: 22.6514066 | D124: 0.7839732471 | E124: 15.08336077 | F124: 61.48119807
B125: 1992 | C125: 20.91306343 | D125: 1.327512729 | E125: 15.27687597 | F125: 62.48390166
B126: 1993 | C126: 21.12352565 | D126: 1.350441225 | E126: 15.82825335 | F126: 61.69783733
B127: 1994 | C127: 20.62906193 | D127: 1.34937316 | E127: 16.1805164 | F127: 61.83990932
B128: 1995 | C128: 20.9896665 | D128: 1.32350666 | E128: 16.70569605 | F128: 60.98108724
B129: 1996 | C129: 20.26858282 | D129: 1.347295551 | E129: 16.83955134 | F129: 61.54457029
B130: 1997 | C130: 18.66520932 | D130: 1.385761207 | E130: 17.41456395 | F130: 62.53446553
B131: 1998 | C131: 18.64070917 | D131: 1.490632272 | E131: 17.60765633 | F131: 62.2609484
B132: 1999 | C132: 18.14205529 | D132: 1.518377479 | E132: 17.16267342 | F132: 63.17689382
B133: 2000 | C133: 17.3208609 | D133: 1.419511785 | E133: 18.75180916 | F133: 62.50781815
B134: 2001 | C134: 16.51710064 | D134: 1.386216046 | E134: 18.90479537 | F134: 63.19188795
B135: 2002 | C135: 16.53338524 | D135: 1.355245318 | E135: 18.86084369 | F135: 63.25052575
B136: 2003 | C136: 16.6812523 | D136: 1.340576015 | E136: 19.36102159 | F136: 62.6171501
B137: 2004 | C137: 16.97857779 | D137: 1.284389451 | E137: 18.63324567 | F137: 63.10378709
B138: 2005 | C138: 17.76911581 | D138: 1.2875582 | E138: 18.8274209 | F138: 62.1159051
B139: 2006 | C139: 16.49850119 | D139: 1.217037132 | E139: 19.20326149 | F139: 63.08120019
B140: 2007 | C140: 16.35222507 | D140: 1.172549163 | E140: 19.49616144 | F140: 62.97906433
B141: 2008 | C141: 15.98470365 | D141: 1.248553474 | E141: 20.03599894 | F141: 62.73074394
B142: 2009 | C142: 16.30877686 | D142: 1.195961235 | E142: 20.80275781 | F142: 61.69250409
B143: 2010 | C143: 14.01649354 | D143: 1.245264659 | E143: 21.57903401 | F143: 63.15920779
B144: 2011 | C144: 13.85231717 | D144: 1.247087384 | E144: 20.94671662 | F144: 63.95396084
B145: 2012 | C145: 13.15525858 | D145: 1.437755379 | E145: 20.82843928 | F145: 64.57871874
B146: 2013 | C146: 13.05935871 | D146: 1.473986029 | E146: 20.87979722 | F146: 64.58687916
B147: 2014 | C147: 12.73744115 | D147: 1.510213408 | E147: 22.12130515 | F147: 63.6310353
B148: 2015 | C148: 12.96918137 | D148: 1.56844079 | E148: 20.78742672 | F148: 64.67495111
B149: 2016 | C149: 12.70955426 | D149: 1.64324639 | E149: 20.54142075 | F149: 65.1057786
B150: 2017 | C150: 12.41729009 | D150: 1.580406131 | E150: 20.63553263 | F150: 65.36677114
B151: 2018 | C151: 12.43773332 | D151: 1.57568893 | E151: 20.44909061 | F151: 65.53748714
B152: 2019 | C152: 12.32708209 | D152: 1.645772118 | E152: 20.10570899 | F152: 65.92143679
B153: 2020 | C153: 11.87976481 | D153: 1.739147108 | E153: 20.20387518 | F153: 66.1772129
A154: 영국 United Kingdom | B154: 1991 | C154: 14.4823607 | D154: 1.813386086 | E154: 16.65018134 | F154: 67.05407188
B155: 1992 | C155: 14.93126314 | D155: 1.812227074 | E155: 17.22060488 | F155: 66.0359049
B156: 1993 | C156: 14.62029539 | D156: 1.758256756 | E156: 17.52949383 | F156: 66.09195402
B157: 1994 | C157: 14.98808845 | D157: 1.229154792 | E157: 19.16809167 | F157: 64.61466509
B158: 1995 | C158: 14.56372252 | D158: 1.263405423 | E158: 19.21402359 | F158: 64.95884847
B159: 1996 | C159: 14.43708147 | D159: 1.236049107 | E159: 19.47614397 | F159: 64.85072545
B160: 1997 | C160: 13.7651297 | D160: 1.297026596 | E160: 19.74059468 | F160: 65.19656673
B161: 1998 | C161: 13.45013041 | D161: 1.313746838 | E161: 19.67055311 | F161: 65.56556964
B162: 1999 | C162: 12.23885623 | D162: 1.36433712 | E162: 19.63515196 | F162: 66.76165469
B163: 2000 | C163: 12.63235128 | D163: 1.819618467 | E163: 20.58817001 | F163: 64.96000202
B164: 2001 | C164: 10.02953079 | D164: 1.777315979 | E164: 22.68948923 | F164: 65.50366401
B165: 2002 | C165: 9.189298828 | D165: 1.943020002 | E165: 24.01834843 | F165: 64.84933274
B166: 2003 | C166: 10.39144441 | D166: 1.854950975 | E166: 24.04500932 | F166: 63.70859529
B167: 2004 | C167: 10.71507944 | D167: 2.006114154 | E167: 24.7154054 | F167: 62.56340101
B168: 2005 | C168: 10.55799494 | D168: 2.317214914 | E168: 25.73704408 | F168: 61.38774607
B169: 2006 | C169: 9.992199318 | D169: 2.23073641 | E169: 26.12323353 | F169: 61.65383074
B170: 2007 | C170: 9.160554993 | D170: 2.227885872 | E170: 26.08087215 | F170: 62.53068698
B171: 2008 | C171: 9.152995933 | D171: 2.355483522 | E171: 26.49736668 | F171: 61.99415347
B172: 2009 | C172: 9.163457523 | D172: 2.480706476 | E172: 27.94661223 | F172: 60.40922377
B173: 2010 | C173: 9.526803733 | D173: 2.478825582 | E173: 27.04529929 | F173: 60.94909339
B174: 2011 | C174: 8.578618466 | D174: 1.811926354 | E174: 26.02877314 | F174: 63.58068204
B175: 2012 | C175: 8.046360068 | D175: 1.906243057 | E175: 26.70332519 | F175: 63.34407169
B176: 2013 | C176: 7.899193423 | D176: 1.7942795 | E176: 26.41826349 | F176: 63.88826359
B177: 2014 | C177: 7.262186434 | D177: 1.810481183 | E177: 25.77974875 | F177: 65.14758363
B178: 2015 | C178: 6.643864948 | D178: 2.215479414 | E178: 24.36757319 | F178: 66.77311422
B179: 2016 | C179: 6.543715386 | D179: 2.176727723 | E179: 23.2277921 | F179: 68.05179493
B180: 2017 | C180: 6.34313432 | D180: 2.169152357 | E180: 23.42013336 | F180: 68.0675512
B181: 2018 | C181: 6.987910875 | D181: 2.130792477 | E181: 23.45422816 | F181: 67.42704165
B182: 2019 | C182: 6.910425373 | D182: 2.187691296 | E182: 23.53877434 | F182: 67.36308303
A183: 중국 China | B183: 1991 | C183: 49.55474727 | E183: 8.60403863 | F183: 39.82189891
B184: 1992 | C184: 46.26066758 | E184: 9.670251982 | F184: 41.79669747
B185: 1993 | C185: 44.88931898 | E185: 11.20116124 | F185: 41.69589936
B186: 1994 | C186: 42.06883041 | E186: 12.63305688 | F186: 43.13002024
B187: 1995 | C187: 42.05454702 | E187: 12.11964782 | F187: 43.67489747
B188: 1996 | C188: 42.80310522 | E188: 11.81269778 | F188: 43.24812104
B189: 1997 | C189: 40.59234818 | E189: 11.32453453 | F189: 46.05232147
B190: 1998 | C190: 42.5551604 | E190: 10.38793729 | F190: 44.82508347
B191: 1999 | C191: 38.47400206 | E191: 9.353365739 | F191: 49.58756812
B192: 2000 | C192: 31.4719231 | E192: 8.567488961 | F192: 59.96058794
B193: 2001 | C193: 29.74349628 | E193: 9.82081191 | F193: 60.43569181
B194: 2002 | C194: 28.68126747 | E194: 10.13513514 | F194: 61.18359739
B195: 2003 | C195: 27.08962543 | E195: 10.54214324 | F195: 62.36823133
B196: 2004 | C196: 22.95748933 | E196: 10.2190375 | F196: 66.82347317
B197: 2005 | C197: 21.79028823 | E197: 9.890071854 | F197: 68.31963992
B198: 2006 | C198: 19.70452099 | E198: 9.217529 | F198: 71.07795001
B199: 2007 | C199: 19.23359716 | E199: 8.481603087 | F199: 72.28479975
B200: 2008 | C200: 18.28781008 | E200: 8.452405922 | F200: 73.259784
B201: 2009 | C201: 18.70577253 | E201: 8.069050022 | F201: 73.22517745
... 13 more rows

Sheet 1-7,8
A1: 1-7) 주요국의 기업 연구개발비 대비 하이테크산업 연구개발비 비율
A2: Percentage of R&D expenditure for high-technology industry to BERD in major countries
O4: (단위 : % Unit : %)
A5: 연도 국가 Year Country | B5: 2008 | C5: 2009 | D5: 2010 | E5: 2011 | F5: 2012 | G5: 2013 | H5: 2014 | I5: 2015 | J5: 2016 | K5: 2017 | L5: 2018 | M5: 2019 | N5: 2020 | O5: 2021
A6: 한국 Korea | B6: 51.247522 | C6: 50.28350078 | D6: 52.76862661 | E6: 51.42114341 | F6: 52.70069602 | G6: 54.25244756 | H6: 55.57094167 | I6: 53.22320852 | J6: 53.65866186 | K6: 54.08974352 | L6: 54.47621594 | M6: 53.86642287 | N6: 53.03352271 | O6: 52.5609045
A7: 미국 United States | B7: 50.0674281 | C7: 48.13327526 | D7: 49.87651312 | E7: 45.80421839 | F7: 45.6678247 | G7: 45.498376 | H7: 45.9850677 | I7: 44.4743287 | J7: 45.0132778 | K7: 42.7793045 | L7: 40.97023387 | M7: 38.64857184
A8: 일본 Japan | B8: 37.14459769 | C8: 36.46461019 | D8: 35.2180631 | E8: 35.83820535 | F8: 35.31929551 | G8: 34.6547004 | H8: 32.61986299 | I8: 32.22553852 | J8: 30.45860798 | K8: 30.59954479 | L8: 29.90916141 | M8: 28.56269655 | N8: 31.13889446
A9: 독일 Germany | B9: 25.90844963 | C9: 25.66184428 | D9: 25.69349443 | E9: 25.32793497 | F9: 25.7684965 | G9: 24.5944274 | H9: 23.4093323 | I9: 21.6629475 | J9: 22.1031107 | K9: 20.1513944 | L9: 21.1010065 | M9: 20.63802908
A10: 프랑스 France | B10: 27.74496018 | C10: 24.65532494 | D10: 23.19835658 | E10: 23.19226091 | F10: 23.6243977 | G10: 24.7236053 | H10: 25.0866308 | I10: 24.5310069 | J10: 23.3443985 | K10: 21.8590903
A11: 영국 United Kingdom | C11: 16.06182796 | D11: 15.00304965 | E11: 15.09403614 | F11: 16.5327036 | G11: 15.5958975 | H11: 14.5428369 | I11: 13.5703752 | J11: 14.0723075 | K11: 12.0676552 | L11: 12.67051022 | M11: 14.11845863
A13: 주 : 하이테크산업은 제약(pharmaceutical industry), 항공우주(aerospace industry), 컴퓨터/전자/광학(computer, electronic and optical industry)의 합, 중국은 항공우주 데이터 결측으로 주요국 비교에서 제외
A14: 자료 : OECD, Main Science and Technology Indicators 2022-september, 2022
A16: 1-8) 주요국의 연구개발인력(FTE 기준)
A17: R&D personnel(FTE) in major countries
O18: (단위 : 명 Unit : person)
A19: 국가 Country | I19: 연구개발인력 R&D personnel | K19: 연구원 Researchers | M19: 연구보조원 Other R&D Personnel
A20: 한국(2021) Korea | I20: 577,099 (100.0) | K20: 470,728 (81.6) | M20: 106,371 (18.4) | Q20: 한 국 (2016) Korea | R20: 447,408 (100.0) | T20: 361,292 (80.8) | V20: 86,117 (19.2)
A21: 미국(2019) United States | K21: 1,586,497 (100.0) | Q21: 미 국 (2015) United States | T21: 1379977 | Y21: 872340 | Z21: 665566 | AA21: =Y21-Z21 -> 206774 | AB21: =Z21/Y21*100 -> 76.29662746 | AC21: =AA21/Y21*100 -> 23.70337254
A22: 일본(2020) Japan | I22: 911,620 (100.0) | K22: 689,889 (75.7) | M22: 221,731 (24.3) | Q22: 일 본 (2015) Japan | R22: 875,005 (100.0) | T22: 662,071 (75.7) | V22: 212,934 (24.3) | Y22: 656727 | Z22: 400821 | AA22: =Y22-Z22 -> 255906 | AB22: =Z22/Y22*100 -> 61.03312335 | AC22: =AA22/Y22*100 -> 38.96687665
A23: 독일(2020) Germany | I23: 733,831 (100.0) | K23: 450,796 (61.4) | M23: 283,035 (38.6) | Q23: 독 일 (2015) Germany | R23: 640,516 (100.0) | T23: 387,982 (60.6) | V23: 252,534 (39.4) | Y23: .. | Z23: ..
A24: 프랑스(2020) France | I24: 470,586 (100.0) | K24: 321,550 (68.3) | M24: 149,036 (31.7) | Q24: 프랑스 (2015) France | R24: 428,643 (100.0) | T24: 277,631 (64.8) | V24: 151,011 (35.2) | Y24: 419898 | Z24: 291416 | AA24: =Y24-Z24 -> 128482 | AB24: =Z24/Y24*100 -> 69.40161658 | AC24: =AA24/Y24*100 -> 30.59838342
A25: 영국(2019) United Kingdom | I25: 475,093 (100.0) | K25: 316,296 (66.6) | M25: 158,797 (33.4) | Q25: 영 국 (2015) United Kingdom | R25: 416,538 (100.0) | T25: 289,330 (69.5) | V25: 127,208 (30.5) | Y25: 3878056.8 | Z25: 1692175.8 | AA25: =Y25-Z25 -> 2185881 | AB25: =Z25/Y25*100 -> 43.63463165 | AC25: =AA25/Y25*100 -> 56.36536835
A26: 중국(2020) China | I26: 5,234,508 (100.0) | K26: 2,281,134 (43.6) | M26: 2,953,374 (56.4) | Q26: 중 국 (2015) China | R26: 3,758,848 (100.0) | T26: 1,619,028 (43.1) | V26: 2,139,870 (56.9)
A28: 주 : 괄호 안의 수치는 구성비임
A29: 자료 : OECD, Main Science and Technology Indicators 2022-september, 2022

Sheet 1-9
A1: 1-9) 주요국의 정부연구개발예산
A2: Government Budget Allocations for R&D in major countries
G4: (단위 : 백만달러 Unit : US dollar, Millions)
A5: 연도 Year | B5: 한국 Korea | C5: 미국 United States | D5: 일본 Japan | E5: 독일 Germany | F5: 프랑스 France | G5: 영국 United Kingdom
A6: 1981 | B6: 309.531909 | C6: 33735 | E6: 7850.307367 | F6: 7507.806027 | G6: 6821.986131
A7: 1982 | B7: 314.9757067 | C7: 36115 | E7: 7956.012675 | F7: 7271.041049 | G7: 6146.769919
A8: 1983 | B8: 324.3319893 | C8: 38768 | E8: 7478.837336 | F8: 7276.984361 | G8: 5752.699989
A9: 1984 | B9: 340.0867485 | C9: 44214 | E9: 6821.502518 | F9: 7068.806808 | G9: 5392.607411
A10: 1985 | B10: 398.1517666 | C10: 49887 | E10: 7143.696226 | F10: 7649.222585 | G10: 5311.031433
A11: 1986 | B11: 478.1861827 | C11: 53249 | E11: 9846.677518 | F11: 9957.129436 | G11: 6236.946219
A12: 1987 | B12: 686.0255074 | C12: 57069 | E12: 12322.63175 | F12: 12337.97445 | G12: 7159.350707
A13: 1988 | B13: 848.9830891 | C13: 59106 | D13: 13388.40173 | E13: 12673.65496 | F13: 13130.8977 | G13: 7998.407955
A14: 1989 | B14: 1122.188479 | C14: 62115 | D14: 13157.00845 | E14: 12572.1687 | F14: 13123.53746 | G14: 7807.643662
A15: 1990 | B15: 1301.701717 | C15: 63781 | D15: 13266.37084 | E15: 15546.19793 | F15: 16966.08164 | G15: 8798.404409
A16: 1991 | B16: 1123.779112 | C16: 65897 | D16: 15015.07717 | E16: 17745.56606 | F16: 16506.59154 | G16: 8866.432105
A17: 1992 | B17: 1243.930167 | C17: 68398 | D17: 16854.74562 | E17: 19916.68984 | F17: 17006.2018 | G17: 8913.291937
A18: 1993 | B18: 1451.021032 | C18: 69884 | D18: 20380.48671 | E18: 18981.15509 | F18: 15792.0099 | G18: 8102.352131
A19: 1994 | B19: 1926.293329 | C19: 68331 | D19: 23075.28253 | E19: 19060.79564 | F19: 16115.09079 | G19: 7958.654907
A20: 1995 | B20: 2470.651157 | C20: 68791 | D20: 26574.10363 | E20: 22076.95417 | F20: 17336.97047 | G20: 8903.716142
A21: 1996 | B21: 2954.661993 | C21: 69049 | D21: 25836.33355 | E21: 21394.70822 | F21: 16804.41082 | G21: 9081.094237
A22: 1997 | B22: 3151.733359 | C22: 71653.28158 | D22: 24816.83266 | E22: 18056.90262 | F22: 14112.20384 | G22: 9862.876451
A23: 1998 | B23: 2367.901558 | C23: 73568.71422 | D23: 23163.14906 | E23: 17802.52319 | F23: 14124.55642 | G23: 9660.596465
A24: 1999 | B24: 3116.342645 | C24: 77637.10471 | D24: 27713.25207 | E24: 17395.94497 | F24: 13739.82913 | G24: 10236.11091
A25: 2000 | B25: 3713.322054 | C25: 72681 | D25: 30476.54454 | E25: 15011.5156 | F25: 12784.71975 | G25: 10118.15152
A26: 2001 | B26: 4442.163326 | C26: 78538 | D26: 28540.62392 | E26: 14742.16078 | F26: 13289.92515 | G26: 9719.78896
A27: 2002 | B27: 4907.069137 | C27: 88665 | D27: 28267.66886 | E27: 15825.95297 | F27: 14654.45168 | G27: 11883.8829
A28: 2003 | B28: 5467.56412 | C28: 98767 | D28: 31029.574 | E28: 19343.46778 | F28: 17876.85183 | G28: 13385.10169
A29: 2004 | B29: 6179.023029 | C29: 106246 | D29: 33351.28312 | E29: 21075.64664 | F29: 19785.27424 | G29: 15479.14607
A30: 2005 | B30: 7614.355426 | C30: 111332 | D30: 32462.37564 | E30: 21423.86166 | F30: 20773.86797 | G30: 15588.42032
A31: 2006 | B31: 9326.095664 | C31: 114442 | D31: 30733.92214 | E31: 22108.03671 | F31: 18333.75124 | G31: 16517.96639
A32: 2007 | B32: 10504.7922 | C32: 117691 | D32: 29818.70717 | E32: 25629.58562 | F32: 19335.24734 | G32: 18696.9258
A33: 2008 | B33: 9855.508956 | C33: 116710 | D33: 34547.34405 | E33: 28961.71125 | F33: 24931.47651 | G33: 16976.61251
A34: 2009 | B34: 9664.310253 | C34: 136599 | D34: 38088.33611 | E34: 30281.41118 | F34: 24426.98024 | G34: 14687.83445
A35: 2010 | B35: 11847.70766 | C35: 119382 | D35: 40886.46743 | E35: 30512.16411 | F35: 21689.1563 | G35: 14449.94352
A36: 2011 | B36: 13435.97919 | C36: 113386 | D36: 45920.20852 | E36: 33049.91913 | F36: 23403.74979 | G36: 14595.41995
A37: 2012 | B37: 14221.07312 | C37: 116796 | D37: 46279.60826 | E37: 30925.15626 | F37: 19445.1056 | G37: 14380.29088
A38: 2013 | B38: 15659.70232 | C38: 109608 | D38: 36986.96309 | E38: 33695.6803 | F38: 19896.0009 | G38: 15610.92516
A39: 2014 | B39: 16852.32324 | C39: 112502 | D39: 34464.37819 | E39: 33900.90444 | F39: 19686.00211 | G39: 16746.58154
A40: 2015 | B40: 16743.49718 | C40: 115220 | D40: 28730.43069 | E40: 29438.50855 | F40: 15725.67281 | G40: 15514.89966
A41: 2016 | B41: 16497.01598 | C41: 126093 | D41: 32785.82178 | E41: 31379.72109 | F41: 15549.97437 | G41: 13952.64058
A42: 2017 | B42: 17242.95812 | C42: 127306 | D42: 39729.33964 | E42: 34072.04375 | F42: 16660.38041 | G42: 14097.7146
A43: 2018 | B43: 17950.33465 | C43: 144459 | D43: 43214.98582 | E43: 37507.01782 | F43: 18376.0509 | G43: 15747.29298
A44: 2019 | B44: 17894.25133 | C44: 149971 | D44: 52589.76514 | E44: 38056.50213 | F44: 18115.18734 | G44: 15525.53147
A45: 2020 | B45: 20550.95487 | C45: 169901 | D45: 86167.10324 | E45: 42456.71646 | F45: 19427.40017 | G45: 16084.34615
A46: 2021 | B46: 23952.35841 | C46: 165560 | D46: 74528.53822 | E46: 46314.24942 | F46: 20887.08497
A48: 자료 : 1. 한국 : 한국과학기술기획평가원, 정부연구개발예산 현황분석, 각 연도
A49: 2. 그 외 국가 : OECD, Main Science and Technology Indicators 2022-september, 2022

Sheet 1-10
A1: 1-10) 국가별 과학기술논문발표건수(SCI 기준)
A2: Number of scientific and technical papers by country (based on SCI)
S3: (단위 : 건 Unit : case) | U3: (단위 : 건 Unit : case)
A4: 국가 Country | B4: 2012 | D4: 2013 | F4: 2014 | H4: 2015 | J4: 2016 | L4: 2017 | N4: 2018 | P4: 2019 | R4: 2020 | T4: 2021
B5: 논문수 Papers | C5: 순위 Ranking | D5: 논문수 Papers | E5: 순위 Ranking | F5: 논문수 Papers | G5: 순위 Ranking | H5: 논문수 Papers | I5: 순위 Ranking | J5: 논문수 Papers | K5: 순위 Ranking | L5: 논문수 Papers | M5: 순위 Ranking | N5: 논문수 Papers | O5: 순위 Ranking | P5: 논문수 Papers | Q5: 순위 Ranking | R5: 논문수 Papers | S5: 순위 Ranking | T5: 논문수 Papers | U5: 순위 Ranking
A6: 중국 China | B6: 183299 | C6: 2 | D6: 217260 | E6: 2 | F6: 252243 | G6: 2 | H6: 282816 | I6: 2 | J6: 313271 | K6: 2 | L6: 350335 | M6: 2 | N6: 402878 | O6: 2 | P6: 495136 | Q6: 2 | R6: 555152 | S6: 1 | T6: 641543 | U6: 1
A7: 미국 United States | B7: 409638 | C7: 1 | D7: 423284 | E7: 1 | F7: 434817 | G7: 1 | H7: 440302 | I7: 1 | J7: 457446 | K7: 1 | L7: 472219 | M7: 1 | N7: 476865 | O7: 1 | P7: 510389 | Q7: 1 | R7: 522096 | S7: 2 | T7: 521072 | U7: 2
A8: 영국 United Kingdom | B8: 118498 | C8: 3 | D8: 126578 | E8: 3 | F8: 126702 | G8: 3 | H8: 134372 | I8: 3 | J8: 142183 | K8: 3 | L8: 149425 | M8: 3 | N8: 151444 | O8: 3 | P8: 165626 | Q8: 3 | R8: 171141 | S8: 3 | T8: 174396 | U8: 3
A9: 독일 Germany | B9: 105521 | C9: 4 | D9: 109375 | E9: 4 | F9: 112112 | G9: 4 | H9: 114724 | I9: 4 | J9: 120813 | K9: 4 | L9: 124510 | M9: 4 | N9: 126549 | O9: 4 | P9: 136028 | Q9: 4 | R9: 141470 | S9: 4 | T9: 149965 | U9: 4
A10: 인도 India | B10: 51102 | C10: 11 | D10: 56261 | E10: 11 | F10: 61610 | G10: 10 | H10: 64497 | I10: 10 | J10: 69992 | K10: 10 | L10: 75669 | M10: 10 | N10: 80887 | O10: 8 | P10: 92411 | Q10: 6 | R10: 104292 | S10: 5 | T10: 118124 | U10: 5
A11: 이탈리아 Italy | B11: 61882 | C11: 8 | D11: 66748 | E11: 8 | F11: 68778 | G11: 8 | H11: 71089 | I11: 8 | J11: 75596 | K11: 8 | L11: 78048 | M11: 8 | N11: 80735 | O11: 9 | P11: 88679 | Q11: 9 | R11: 102115 | S11: 6 | T11: 106752 | U11: 6
A12: 일본 Japan | B12: 80209 | C12: 5 | D12: 82051 | E12: 5 | F12: 81024 | G12: 5 | H12: 80498 | I12: 5 | J12: 83795 | K12: 5 | L12: 86060 | M12: 5 | N12: 87504 | O12: 5 | P12: 92457 | Q12: 5 | R12: 98557 | S12: 7 | T12: 102491 | U12: 7
A13: 캐나다 Canada | B13: 65990 | C13: 7 | D13: 69428 | E13: 7 | F13: 71304 | G13: 7 | H13: 73423 | I13: 7 | J13: 76183 | K13: 7 | L13: 79986 | M13: 7 | N13: 81929 | O13: 7 | P13: 90164 | Q13: 7 | R13: 93669 | S13: 8 | T13: 97828 | U13: 8
A14: 호주 Australia | B14: 53479 | C14: 10 | D14: 59498 | E14: 9 | F14: 63790 | G14: 9 | H14: 68605 | I14: 9 | J14: 72820 | K14: 9 | L14: 76398 | M14: 9 | N14: 79561 | O14: 10 | P14: 88979 | Q14: 8 | R14: 92524 | S14: 9 | T14: 96411 | U14: 9
A15: 프랑스 France | B15: 73180 | C15: 6 | D15: 75882 | E15: 6 | F15: 76683 | G15: 6 | H15: 79063 | I15: 6 | J15: 82745 | K15: 6 | L15: 84016 | M15: 6 | N15: 83949 | O15: 6 | P15: 87982 | Q15: 10 | R15: 92424 | S15: 10 | T15: 94189 | U15: 10
A16: 스페인 Spain | B16: 56512 | C16: 9 | D16: 58658 | E16: 10 | F16: 60234 | G16: 11 | H16: 61315 | I16: 11 | J16: 63972 | K16: 11 | L16: 66233 | M16: 11 | N16: 68418 | O16: 11 | P16: 75536 | Q16: 11 | R16: 84300 | S16: 11 | T16: 89915 | U16: 11
A17: 한국 Korea | B17: 50344 | C17: 12 | D17: 52811 | E17: 12 | F17: 55842 | G17: 12 | H17: 58976 | I17: 12 | J17: 60693 | K17: 12 | L17: 61714 | M17: 12 | N17: 64501 | O17: 12 | P17: 70710 | Q17: 12 | R17: 76822 | S17: 12 | T17: 83680 | U17: 12
A18: 브라질 Brazil | B18: 39177 | C18: 13 | D18: 40907 | E18: 13 | F18: 42690 | G18: 13 | H18: 44816 | I18: 13 | J18: 48655 | K18: 13 | L18: 51492 | M18: 13 | N18: 54857 | O18: 13 | P18: 60045 | Q18: 13 | R18: 66498 | S18: 13 | T18: 68815 | U18: 13
A19: 네덜란드 Netherlands | B19: 38747 | C19: 14 | D19: 40766 | E19: 14 | F19: 41824 | G19: 14 | H19: 42902 | I19: 14 | J19: 45001 | K19: 14 | L19: 46359 | M19: 14 | N19: 48067 | O19: 14 | P19: 52726 | Q19: 14 | R19: 54207 | S19: 14 | T19: 56704 | U19: 14
A20: 이란 Iran | B20: 24890 | C20: 19 | D20: 26654 | E20: 19 | F20: 28130 | G20: 17 | H20: 30069 | I20: 17 | J20: 34203 | K20: 17 | L20: 37963 | M20: 16 | N20: 40623 | O20: 16 | P20: 47582 | Q20: 15 | R20: 52589 | S20: 15 | T20: 53748 | U20: 15
A21: 러시아 Russia | B21: 29184 | C21: 15 | D21: 30453 | E21: 15 | F21: 31730 | G21: 15 | H21: 36202 | I21: 15 | J21: 38240 | K21: 15 | L21: 40179 | M21: 15 | N21: 42492 | O21: 15 | P21: 45945 | Q21: 16 | R21: 48772 | S21: 16 | T21: 50207 | U21: 16
A22: 터키 Turkey | B22: 26144 | C22: 18 | D22: 27318 | E22: 18 | F22: 28069 | G22: 19 | H22: 29798 | I22: 18 | J22: 32433 | K22: 18 | L22: 30860 | M22: 19 | N22: 31404 | O22: 20 | P22: 37747 | Q22: 18 | R22: 43916 | S22: 17 | T22: 48944 | U22: 17
A23: 폴란드 Poland | B23: 23787 | C23: 21 | D23: 25154 | E23: 21 | F23: 26543 | G23: 21 | H23: 28895 | I23: 20 | J23: 30550 | K23: 20 | L23: 30791 | M23: 20 | N23: 32433 | O23: 19 | P23: 35767 | Q23: 20 | R23: 41077 | S23: 19 | T23: 44829 | U23: 18
A24: 스위스 Switzerland | B24: 27848 | C24: 17 | D24: 29454 | E24: 16 | F24: 31013 | G24: 16 | H24: 32069 | I24: 16 | J24: 34469 | K24: 16 | L24: 36629 | M24: 17 | N24: 37088 | O24: 17 | P24: 39690 | Q24: 17 | R24: 41715 | S24: 18 | T24: 43826 | U24: 19
A25: 스웨덴 Sweden | B25: 24674 | C25: 20 | D25: 26174 | E25: 20 | F25: 27544 | G25: 20 | H25: 28947 | I25: 19 | J25: 31021 | K25: 19 | L25: 32303 | M25: 18 | N25: 33252 | O25: 18 | P25: 36601 | Q25: 19 | R25: 37530 | S25: 20 | T25: 39530 | U25: 20
A26: 사우디 아라비아 Saudi Arabia | B26: 7870 | C26: 39 | D26: 9730 | E26: 36 | F26: 12179 | G26: 34 | H26: 14003 | I26: 32 | J26: 15338 | K26: 30 | L26: 15688 | M26: 31 | N26: 16626 | O26: 31 | P26: 20556 | Q26: 25 | R26: 28560 | S26: 23 | T26: 38353 | U26: 21
A27: 대만 Chinese taipei | B27: 28109 | C27: 16 | D27: 28699 | E27: 17 | F27: 28111 | G27: 18 | H27: 27093 | I27: 21 | J27: 27074 | K27: 21 | L27: 26063 | M27: 21 | N27: 26079 | O27: 22 | P27: 29127 | Q27: 21 | R27: 32771 | S27: 21 | T27: 37371 | U27: 22
A28: 벨기에 Belgium | B28: 21060 | C28: 22 | D28: 22375 | E28: 22 | F28: 23216 | G28: 22 | H28: 24276 | I28: 22 | J28: 25126 | K28: 22 | L28: 26033 | M28: 22 | N28: 27044 | O28: 21 | P28: 28504 | Q28: 22 | R28: 30019 | S28: 22 | T28: 31844 | U28: 23
A29: 덴마크 Denmark | B29: 15815 | C29: 23 | D29: 16786 | E29: 23 | F29: 18461 | G29: 23 | H29: 19645 | I29: 23 | J29: 21467 | K29: 23 | L29: 22226 | M29: 23 | N29: 22773 | O29: 23 | P29: 25050 | Q29: 23 | R29: 26219 | S29: 24 | T29: 27432 | U29: 24
A30: 이집트 EGYPT | B30: 7604 | C30: 41 | D30: 8379 | E30: 41 | F30: 9391 | G30: 38 | H30: 10561 | I30: 38 | J30: 12147 | K30: 36 | L30: 12775 | M30: 36 | N30: 14617 | O30: 35 | P30: 17681 | Q30: 34 | R30: 22528 | S30: 27 | T30: 26778 | U30: 25
A31: 파키스탄 PAKISTAN | B31: 6084 | C31: 45 | D31: 6937 | E31: 44 | F31: 7635 | G31: 43 | H31: 8458 | I31: 42 | J31: 9882 | K31: 40 | L31: 12034 | M31: 38 | N31: 13878 | O31: 36 | P31: 17952 | Q31: 32 | R31: 22406 | S31: 28 | T31: 26758 | U31: 26
A32: 홍콩 Hong Kong | B32: 11848 | C32: 30 | D32: 12922 | E32: 27 | F32: 13667 | G32: 28 | H32: 14086 | I32: 31 | J32: 15244 | K32: 31 | L32: 16357 | M32: 30 | N32: 17942 | O32: 26 | P32: 20340 | Q32: 26 | R32: 22663 | S32: 25 | T32: 25330 | U32: 27
A33: 오스트리아 Austria | B33: 14158 | C33: 24 | D33: 15173 | E33: 24 | F33: 15859 | G33: 24 | H33: 16680 | I33: 24 | J33: 18068 | K33: 24 | L33: 18694 | M33: 24 | N33: 19331 | O33: 24 | P33: 20986 | Q33: 24 | R33: 22646 | S33: 26 | T33: 24269 | U33: 28
A34: 포르투갈 Portugal | B34: 12814 | C34: 26 | D34: 13975 | E34: 26 | F34: 14725 | G34: 26 | H34: 15234 | I34: 26 | J34: 16531 | K34: 25 | L34: 16994 | M34: 25 | N34: 17335 | O34: 28 | P34: 19637 | Q34: 29 | R34: 21625 | S34: 30 | T34: 23681 | U34: 29
A35: 멕시코 Mexico | B35: 12062 | C35: 28 | D35: 12815 | E35: 28 | F35: 13351 | G35: 30 | H35: 14533 | I35: 27 | J35: 15634 | K35: 28 | L35: 16986 | M35: 26 | N35: 18362 | O35: 25 | P35: 20216 | Q35: 27 | R35: 22054 | S35: 29 | T35: 22960 | U35: 30
A36: 노르웨이 Norway | B36: 12331 | C36: 27 | D36: 12773 | E36: 29 | F36: 13610 | G36: 29 | H36: 14122 | I36: 30 | J36: 15540 | K36: 29 | L36: 16710 | M36: 28 | N36: 17330 | O36: 29 | P36: 19515 | Q36: 30 | R36: 20680 | S36: 32 | T36: 22249 | U36: 31
A37: 남아프리카 South Africa | B37: 10809 | C37: 34 | D37: 11677 | E37: 32 | F37: 13039 | G37: 32 | H37: 13961 | I37: 33 | J37: 15702 | K37: 27 | L37: 16883 | M37: 27 | N37: 17605 | O37: 27 | P37: 19749 | Q37: 28 | R37: 21143 | S37: 31 | T37: 21750 | U37: 32
A38: 이스라엘 Israel | B38: 13833 | C38: 25 | D38: 14191 | E38: 25 | F38: 14885 | G38: 25 | H38: 15404 | I38: 25 | J38: 16348 | K38: 26 | L38: 16552 | M38: 29 | N38: 17234 | O38: 30 | P38: 18745 | Q38: 31 | R38: 19909 | S38: 33 | T38: 20833 | U38: 33
A39: 말레이시아 Malaysia | B39: 8982 | C39: 36 | D39: 10279 | E39: 35 | F39: 11736 | G39: 35 | H39: 12292 | I39: 35 | J39: 12789 | K39: 35 | L39: 13139 | M39: 35 | N39: 13260 | O39: 37 | P39: 14766 | Q39: 37 | R39: 17450 | S39: 37 | T39: 20553 | U39: 34
A40: 싱가포르 Singapore | B40: 11542 | C40: 32 | D40: 12664 | E40: 31 | F40: 13279 | G40: 31 | H40: 14217 | I40: 29 | J40: 15037 | K40: 32 | L40: 15669 | M40: 32 | N40: 16257 | O40: 32 | P40: 17733 | Q40: 33 | R40: 19180 | S40: 34 | T40: 19922 | U40: 35
A41: 체코 Czech republic | B41: 10986 | C41: 33 | D41: 11431 | E41: 34 | F41: 12758 | G41: 33 | H41: 13495 | I41: 34 | J41: 14044 | K41: 34 | L41: 14791 | M41: 34 | N41: 15222 | O41: 34 | P41: 16653 | Q41: 36 | R41: 18074 | S41: 36 | T41: 19595 | U41: 36
A42: 핀란드 Finland | B42: 12031 | C42: 29 | D42: 12745 | E42: 30 | F42: 13876 | G42: 27 | H42: 14242 | I42: 28 | J42: 14845 | K42: 33 | L42: 15333 | M42: 33 | N42: 15719 | O42: 33 | P42: 17382 | Q42: 35 | R42: 18092 | S42: 35 | T42: 18696 | U42: 37
A43: 그리스 Greece | B43: 11774 | C43: 31 | D43: 11565 | E43: 33 | F43: 11427 | G43: 36 | H43: 11528 | I43: 36 | J43: 12111 | K43: 37 | L43: 12530 | M43: 37 | N43: 12747 | O43: 38 | P43: 14040 | Q43: 38 | R43: 15194 | S43: 38 | T43: 17021 | U43: 38
A44: 태국 Thailand | B44: 6543 | C44: 44 | D44: 7077 | E44: 42 | F44: 7275 | G44: 45 | H44: 7733 | I44: 44 | J44: 8726 | K44: 43 | L44: 9419 | M44: 43 | N44: 10011 | O44: 43 | P44: 10999 | Q44: 43 | R44: 12810 | S44: 42 | T44: 15233 | U44: 39
A45: 칠레 Chile | B45: 6601 | C45: 43 | D45: 6845 | E45: 45 | F45: 7861 | G45: 41 | H45: 8564 | I45: 41 | J45: 9582 | K45: 42 | L45: 9959 | M45: 42 | N45: 10979 | O45: 41 | P45: 12002 | Q45: 41 | R45: 13493 | S45: 41 | T45: 14431 | U45: 40
A46: 아일랜드 Ireland | B46: 8182 | C46: 38 | D46: 8661 | E46: 40 | F46: 8754 | G46: 40 | H46: 9079 | I46: 40 | J46: 9860 | K46: 41 | L46: 10507 | M46: 40 | N46: 11150 | O46: 40 | P46: 12453 | Q46: 40 | R46: 13518 | S46: 40 | T46: 14425 | U46: 41
A47: 뉴질랜드 New Zealand | B47: 9346 | C47: 35 | D47: 9704 | E47: 37 | F47: 10024 | G47: 37 | H47: 10680 | I47: 37 | J47: 11139 | K47: 38 | L47: 11915 | M47: 39 | N47: 12237 | O47: 39 | P47: 13556 | Q47: 39 | R47: 14209 | S47: 39 | T47: 14202 | U47: 42
A48: 아르헨티나 Argentina | B48: 8847 | C48: 37 | D48: 9096 | E48: 38 | F48: 9234 | G48: 39 | H48: 9653 | I48: 39 | J48: 10017 | K48: 39 | L48: 10346 | M48: 41 | N48: 10871 | O48: 42 | P48: 11425 | Q48: 42 | R48: 12378 | S48: 43 | T48: 12174 | U48: 43
A49: 루마니아 Romania | B49: 7637 | C49: 40 | D49: 8714 | E49: 39 | F49: 7806 | G49: 42 | H49: 8414 | I49: 43 | J49: 8595 | K49: 44 | L49: 8674 | M49: 44 | N49: 8783 | O49: 44 | P49: 10172 | Q49: 44 | R49: 10441 | S49: 45 | T49: 11788 | U49: 44
A50: 베트남 Vietnam | B50: 1867 | C50: 57 | D50: 2382 | E50: 54 | F50: 2682 | G50: 53 | H50: 3019 | I50: 53 | J50: 3681 | K50: 53 | L50: 4490 | M50: 50 | N50: 5771 | O50: 47 | P50: 8295 | Q50: 46 | R50: 12321 | S50: 44 | T50: 11526 | U50: 45
A51: 헝가리 Hungary | B51: 6716 | C51: 42 | D51: 7009 | E51: 43 | F51: 7356 | G51: 44 | H51: 7513 | I51: 45 | J51: 7904 | K51: 45 | L51: 8234 | M51: 45 | N51: 8514 | O51: 45 | P51: 9245 | Q51: 45 | R51: 9668 | S51: 46 | T51: 10494 | U51: 46
A52: 콜롬비아 Colombia | B52: 3553 | C52: 50 | D52: 3749 | E52: 50 | F52: 3907 | G52: 49 | H52: 4823 | I52: 47 | J52: 5563 | K52: 47 | L52: 6407 | M52: 46 | N52: 7008 | O52: 46 | P52: 7918 | Q52: 47 | R52: 8719 | S52: 47 | T52: 9222 | U52: 47
A53: 아랍에미레이트 UNITED ARAB EMIRATES | B53: 1396 | C53: 62 | D53: 1644 | E53: 61 | F53: 1972 | G53: 59 | H53: 2563 | I53: 56 | J53: 2931 | K53: 56 | L53: 3345 | M53: 56 | N53: 3922 | O53: 56 | P53: 4968 | Q53: 53 | R53: 6544 | S53: 49 | T53: 8294 | U53: 48
A54: 인도네시아 INDONESIA | B54: 1507 | C54: 60 | D54: 1738 | E54: 59 | F54: 1901 | G54: 60 | H54: 2142 | I54: 59 | J54: 2653 | K54: 58 | L54: 2992 | M54: 57 | N54: 3709 | O54: 57 | P54: 4967 | Q54: 54 | R54: 6197 | S54: 51 | T54: 7906 | U54: 49
A55: 나이지리아 NIGERIA | B55: 2158 | C55: 54 | D55: 2162 | E55: 56 | F55: 2527 | G55: 54 | H55: 2658 | I55: 55 | J55: 3208 | K55: 55 | L55: 3787 | M55: 55 | N55: 4211 | O55: 54 | P55: 5187 | Q55: 50 | R55: 6915 | S55: 48 | T55: 7879 | U55: 50
A56: 세계 논문 수 합 Total | B56: 1496300 | D56: 1575150 | F56: 1627670 | H56: 1683040 | J56: 1755691 | L56: 1831287 | N56: 1892507 | P56: 2108858 | R56: 2251799 | T56: 2385779
A58: 주 : 논문 1편을 여러 국가의 과학자가 공저하는 경우가 있어 국가별 논문 수 합이 세계 논문 수 합보다 많음
A59: 자료 : KISTEP, 과학기술 논문성과 분석연구(2012-2021), 2022

Sheet 1-11
A1: 1-11) 국가별 PCT 출원건수(WIPO)
A2: Number of PCT Filings by country of origin (WIPO)
W4: (단위 : 건 Unit : case)
A5: 국가 Country | B5: 2000 | C5: 2001 | D5: 2002 | E5: 2003 | F5: 2004 | G5: 2005 | H5: 2006 | I5: 2007 | J5: 2008 | K5: 2009 | L5: 2010 | M5: 2011 | N5: 2012 | O5: 2013 | P5: 2014 | Q5: 2015 | R5: 2016 | S5: 2017 | T5: 2018 | U5: 2019 | V5: 2020 | W5: 2021
A6: 그리스 Greece | B6: 49 | C6: 55 | D6: 75 | E6: 67 | F6: 79 | G6: 55 | H6: 84 | I6: 87 | J6: 107 | K6: 100 | L6: 90 | M6: 92 | N6: 95 | O6: 111 | P6: 133 | Q6: 122 | R6: 111 | S6: 110 | T6: 115 | U6: 123 | V6: 99 | W6: 91
A7: 남아프리카 South Africa | B7: 390 | C7: 419 | D7: 385 | E7: 357 | F7: 412 | G7: 360 | H7: 424 | I7: 406 | J7: 394 | K7: 375 | L7: 291 | M7: 309 | N7: 313 | O7: 351 | P7: 313 | Q7: 313 | R7: 287 | S7: 295 | T7: 275 | U7: 275 | V7: 237 | W7: 226
A8: 네덜란드 Netherlands | B8: 2930 | C8: 3411 | D8: 3977 | E8: 4479 | F8: 4284 | G8: 4499 | H8: 4552 | I8: 4421 | J8: 4361 | K8: 4421 | L8: 4010 | M8: 3511 | N8: 4080 | O8: 4190 | P8: 4206 | Q8: 4335 | R8: 4675 | S8: 4429 | T8: 4132 | U8: 4035 | V8: 4004 | W8: 4114
A9: 노르웨이 Norway | B9: 529 | C9: 592 | D9: 550 | E9: 535 | F9: 476 | G9: 584 | H9: 609 | I9: 601 | J9: 644 | K9: 633 | L9: 707 | M9: 705 | N9: 664 | O9: 708 | P9: 687 | Q9: 679 | R9: 653 | S9: 820 | T9: 767 | U9: 785 | V9: 699 | W9: 722
A10: 뉴질랜드 New Zealand | B10: 258 | C10: 288 | D10: 299 | E10: 300 | F10: 340 | G10: 350 | H10: 354 | I10: 399 | J10: 358 | K10: 302 | L10: 309 | M10: 329 | N10: 303 | O10: 322 | P10: 348 | Q10: 358 | R10: 307 | S10: 273 | T10: 275 | U10: 249 | V10: 298 | W10: 371
A11: 덴마크 Denmark | B11: 795 | C11: 919 | D11: 979 | E11: 1036 | F11: 1049 | G11: 1122 | H11: 1158 | I11: 1153 | J11: 1357 | K11: 1339 | L11: 1156 | M11: 1288 | N11: 1409 | O11: 1264 | P11: 1299 | Q11: 1327 | R11: 1356 | S11: 1430 | T11: 1445 | U11: 1443 | V11: 1577 | W11: 1552
A12: 독일 Germany | B12: 12581 | C12: 14029 | D12: 14323 | E12: 14653 | F12: 15216 | G12: 15986 | H12: 16734 | I12: 17825 | J12: 18856 | K12: 16793 | L12: 17560 | M12: 18846 | N12: 18749 | O12: 17922 | P12: 17983 | Q12: 18005 | R12: 18308 | S12: 18955 | T12: 19758 | U12: 19346 | V12: 18492 | W12: 17269
A13: 라트비아 Latvia | B13: 3 | C13: 8 | D13: 10 | E13: 12 | F13: 12 | G13: 16 | H13: 17 | I13: 21 | J13: 19 | K13: 24 | L13: 26 | M13: 17 | N13: 36 | O13: 25 | P13: 29 | Q13: 28 | R13: 24 | S13: 26 | T13: 31 | U13: 36 | V13: 28 | W13: 38
A14: 러시아 Russian Federation | B14: 533 | C14: 557 | D14: 540 | E14: 587 | F14: 522 | G14: 658 | H14: 695 | I14: 735 | J14: 802 | K14: 736 | L14: 814 | M14: 1009 | N14: 1111 | O14: 1187 | P14: 952 | Q14: 877 | R14: 893 | S14: 1059 | T14: 1031 | U14: 1177 | V14: 1063 | W14: 988
A15: 루마니아 Romania | B15: 24 | C15: 21 | D15: 25 | E15: 16 | F15: 18 | G15: 15 | H15: 26 | I15: 31 | J15: 14 | K15: 26 | L15: 19 | M15: 27 | N15: 29 | O15: 29 | P15: 28 | Q15: 35 | R15: 44 | S15: 32 | T15: 32 | U15: 39 | V15: 39 | W15: 25
A16: 룩셈부르크 Luxembourg | B16: 138 | C16: 128 | D16: 143 | E16: 117 | F16: 125 | G16: 119 | H16: 128 | I16: 165 | J16: 227 | K16: 245 | L16: 259 | M16: 280 | N16: 335 | O16: 372 | P16: 392 | Q16: 403 | R16: 431 | S16: 499 | T16: 387 | U16: 350 | V16: 321 | W16: 345
A17: 리투아니아 Lithuania | B17: 1 | C17: 3 | D17: 10 | E17: 4 | F17: 9 | G17: 8 | H17: 10 | I17: 13 | J17: 18 | K17: 25 | L17: 11 | M17: 25 | N17: 30 | O17: 40 | P17: 54 | Q17: 39 | R17: 28 | S17: 30 | T17: 37 | U17: 33 | V17: 39 | W17: 47
A18: 멕시코 Mexico | B18: 73 | C18: 104 | D18: 132 | E18: 131 | F18: 118 | G18: 141 | H18: 168 | I18: 186 | J18: 202 | K18: 194 | L18: 191 | M18: 226 | N18: 188 | O18: 233 | P18: 284 | Q18: 317 | R18: 289 | S18: 270 | T18: 273 | U18: 216 | V18: 178 | W18: 166
A19: 미국 United States | B19: 38015 | C19: 43059 | D19: 41316 | E19: 41046 | F19: 43395 | G19: 46879 | H19: 51301 | I19: 54062 | J19: 51667 | K19: 45655 | L19: 45089 | M19: 49206 | N19: 51857 | O19: 57451 | P19: 61488 | Q19: 57132 | R19: 56593 | S19: 56687 | T19: 56160 | U19: 57443 | V19: 58435 | W19: 59430
A20: 벨기에 Belgium | B20: 581 | C20: 689 | D20: 694 | E20: 775 | F20: 831 | G20: 1075 | H20: 1030 | I20: 1123 | J20: 1135 | K20: 1005 | L20: 1066 | M20: 1188 | N20: 1212 | O20: 1103 | P20: 1196 | Q20: 1180 | R20: 1219 | S20: 1354 | T20: 1301 | U20: 1355 | V20: 1314 | W20: 1389
A21: 불가리아 Bulgaria | B21: 35 | C21: 20 | D21: 31 | E21: 45 | F21: 24 | G21: 21 | H21: 25 | I21: 30 | J21: 27 | K21: 25 | L21: 33 | M21: 28 | N21: 33 | O21: 58 | P21: 52 | Q21: 57 | R21: 58 | S21: 50 | T21: 59 | U21: 49 | V21: 51 | W21: 47
A22: 브라질 Brazil | B22: 178 | C22: 173 | D22: 201 | E22: 219 | F22: 279 | G22: 270 | H22: 333 | I22: 398 | J22: 471 | K22: 492 | L22: 487 | M22: 562 | N22: 588 | O22: 657 | P22: 580 | Q22: 548 | R22: 567 | S22: 589 | T22: 615 | U22: 642 | V22: 690 | W22: 617
A23: 스웨덴 Sweden | B23: 3090 | C23: 3421 | D23: 2990 | E23: 2608 | F23: 2851 | G23: 2884 | H23: 3333 | I23: 3654 | J23: 4135 | K23: 3567 | L23: 3303 | M23: 3476 | N23: 3600 | O23: 3947 | P23: 3913 | Q23: 3843 | R23: 3719 | S23: 3975 | T23: 4175 | U23: 4201 | V23: 4355 | W23: 4438
A24: 스위스 Switzerland | B24: 1997 | C24: 2354 | D24: 2755 | E24: 2862 | F24: 2897 | G24: 3290 | H24: 3614 | I24: 3816 | J24: 3778 | K24: 3677 | L24: 3762 | M24: 4046 | N24: 4225 | O24: 4377 | P24: 4100 | Q24: 4257 | R24: 4368 | S24: 4485 | T24: 4595 | U24: 4648 | V24: 5135 | W24: 5447
A25: 스페인 Spain | B25: 555 | C25: 616 | D25: 719 | E25: 785 | F25: 822 | G25: 1124 | H25: 1202 | I25: 1295 | J25: 1391 | K25: 1563 | L25: 1770 | M25: 1732 | N25: 1705 | O25: 1705 | P25: 1703 | Q25: 1530 | R25: 1507 | S25: 1418 | T25: 1399 | U25: 1495 | V25: 1460 | W25: 1561
A26: 슬로바키아 Slovakia | B26: 31 | C26: 28 | D26: 26 | E26: 26 | F26: 26 | G26: 31 | H26: 31 | I26: 38 | J26: 41 | K26: 33 | L26: 44 | M26: 59 | N26: 42 | O26: 41 | P26: 65 | Q26: 38 | R26: 55 | S26: 52 | T26: 50 | U26: 42 | V26: 48 | W26: 39
A27: 슬로베니아 Slovenia | B27: 39 | C27: 42 | D27: 44 | E27: 65 | F27: 62 | G27: 85 | H27: 79 | I27: 87 | J27: 108 | K27: 137 | L27: 125 | M27: 127 | N27: 114 | O27: 124 | P27: 156 | Q27: 84 | R27: 69 | S27: 99 | T27: 115 | U27: 89 | V27: 81 | W27: 96
A28: 싱가포르 Singapore | B28: 222 | C28: 289 | D28: 330 | E28: 282 | F28: 432 | G28: 448 | H28: 473 | I28: 523 | J28: 580 | K28: 583 | L28: 643 | M28: 668 | N28: 714 | O28: 838 | P28: 940 | Q28: 907 | R28: 864 | S28: 872 | T28: 900 | U28: 1161 | V28: 1316 | W28: 1651
A29: 아르헨티나 Argentina | B29: 9 | C29: 9 | D29: 9 | E29: 14 | F29: 10 | G29: 20 | H29: 20 | I29: 32 | J29: 23 | K29: 9 | L29: 16 | M29: 24 | N29: 25 | O29: 26 | P29: 33 | Q29: 29 | R29: 46 | S29: 36 | T29: 42 | U29: 34 | V29: 38 | W29: 30
A30: 아이슬란드 Iceland | B30: 24 | C30: 37 | D30: 39 | E30: 58 | F30: 46 | G30: 44 | H30: 55 | I30: 51 | J30: 66 | K30: 58 | L30: 54 | M30: 42 | N30: 44 | O30: 43 | P30: 43 | Q30: 46 | R30: 56 | S30: 39 | T30: 49 | U30: 41 | V30: 49 | W30: 30
A31: 아일랜드 Ireland | B31: 243 | C31: 242 | D31: 309 | E31: 311 | F31: 323 | G31: 340 | H31: 422 | I31: 418 | J31: 481 | K31: 477 | L31: 448 | M31: 408 | N31: 391 | O31: 433 | P31: 439 | Q31: 455 | R31: 441 | S31: 489 | T31: 623 | U31: 639 | V31: 759 | W31: 901
A32: 에스토니아 Estonia | B32: 6 | C32: 11 | D32: 11 | E32: 8 | F32: 12 | G32: 13 | H32: 17 | I32: 29 | J32: 35 | K32: 30 | L32: 49 | M32: 35 | N32: 34 | O32: 21 | P32: 33 | Q32: 36 | R32: 24 | S32: 47 | T32: 49 | U32: 38 | V32: 56 | W32: 49
A33: 영국 United Kingdom | B33: 4808 | C33: 5500 | D33: 5389 | E33: 5210 | F33: 5035 | G33: 5093 | H33: 5095 | I33: 5542 | J33: 5480 | K33: 5039 | L33: 4892 | M33: 4874 | N33: 4918 | O33: 4849 | P33: 5267 | Q33: 5291 | R33: 5504 | S33: 5569 | T33: 5636 | U33: 5777 | V33: 5891 | W33: 5843
A34: 오스트리아 Austria | B34: 484 | C34: 620 | D34: 552 | E34: 644 | F34: 709 | G34: 851 | H34: 913 | I34: 1008 | J34: 951 | K34: 1029 | L34: 1144 | M34: 1343 | N34: 1319 | O34: 1262 | P34: 1387 | Q34: 1399 | R34: 1422 | S34: 1397 | T34: 1484 | U34: 1434 | V34: 1522 | W34: 1586
A35: 우루과이 Uruguay | B35: 4 | C35: 4 | D35: 9 | E35: 11 | F35: 6 | G35: 5 | H35: 4 | I35: 4 | J35: 8 | K35: 10 | L35: 5 | M35: 5 | N35: 5 | O35: 4 | P35: 6 | Q35: 6 | R35: 14 | S35: 14 | T35: 8 | U35: 11 | V35: 8 | W35: 5
A36: 우크라이나 Ukraine | B36: 40 | C36: 58 | D36: 75 | E36: 58 | F36: 89 | G36: 60 | H36: 77 | I36: 94 | J36: 98 | K36: 79 | L36: 106 | M36: 139 | N36: 120 | O36: 152 | P36: 147 | Q36: 139 | R36: 162 | S36: 141 | T36: 155 | U36: 183 | V36: 128 | W36: 133
A37: 이스라엘 Israel | B37: 964 | C37: 1314 | D37: 1175 | E37: 1128 | F37: 1227 | G37: 1454 | H37: 1593 | I37: 1742 | J37: 1902 | K37: 1555 | L37: 1476 | M37: 1449 | N37: 1374 | O37: 1607 | P37: 1581 | Q37: 1685 | R37: 1838 | S37: 1816 | T37: 1896 | U37: 2001 | V37: 1930 | W37: 2121
A38: 이탈리아 Italy | B38: 1394 | C38: 1623 | D38: 1980 | E38: 2163 | F38: 2190 | G38: 2349 | H38: 2701 | I38: 2949 | J38: 2884 | K38: 2653 | L38: 2658 | M38: 2684 | N38: 2845 | O38: 2869 | P38: 3059 | Q38: 3072 | R38: 3362 | S38: 3223 | T38: 3328 | U38: 3385 | V38: 3399 | W38: 3567
A39: 인도 India | B39: 190 | C39: 295 | D39: 525 | E39: 763 | F39: 724 | G39: 679 | H39: 832 | I39: 904 | J39: 1073 | K39: 960 | L39: 1276 | M39: 1324 | N39: 1310 | O39: 1321 | P39: 1429 | Q39: 1412 | R39: 1528 | S39: 1583 | T39: 2009 | U39: 2041 | V39: 1907 | W39: 2089
A40: 인도네시아 Indonesia | B40: 9 | C40: 6 | D40: 16 | E40: 2 | F40: 6 | G40: 8 | H40: 8 | I40: 9 | J40: 10 | K40: 7 | L40: 16 | M40: 13 | N40: 15 | O40: 15 | P40: 17 | Q40: 6 | R40: 9 | S40: 8 | T40: 7 | U40: 7 | V40: 16 | W40: 9
A41: 일본 Japan | B41: 9569 | C41: 11905 | D41: 14061 | E41: 17415 | F41: 20268 | G41: 24870 | H41: 27024 | I41: 27743 | J41: 28763 | K41: 29810 | L41: 32216 | M41: 38864 | N41: 43523 | O41: 43772 | P41: 42381 | Q41: 44053 | R41: 45210 | S41: 48204 | T41: 49704 | U41: 52702 | V41: 50583 | W41: 50277
A42: 중국 China | B42: 782 | C42: 1730 | D42: 1015 | E42: 1297 | F42: 1707 | G42: 2503 | H42: 3930 | I42: 5455 | J42: 6119 | K42: 7900 | L42: 12300 | M42: 16396 | N42: 18616 | O42: 21506 | P42: 25542 | Q42: 29837 | R42: 43092 | S42: 48903 | T42: 53463 | U42: 59187 | V42: 68929 | W42: 69580
A43: 체코 Czech Republic | B43: 94 | C43: 82 | D43: 73 | E43: 83 | F43: 95 | G43: 117 | H43: 107 | I43: 132 | J43: 155 | K43: 183 | L43: 136 | M43: 147 | N43: 163 | O43: 197 | P43: 189 | Q43: 191 | R43: 199 | S43: 184 | T43: 180 | U43: 183 | V43: 210 | W43: 281
A44: 칠레 Chile | B44: 1 | C44: 3 | D44: 6 | E44: 9 | F44: 6 | G44: 9 | H44: 12 | I44: 17 | J44: 27 | K44: 53 | L44: 89 | M44: 115 | N44: 120 | O44: 142 | P44: 142 | Q44: 166 | R44: 197 | S44: 167 | T44: 240 | U44: 224 | V44: 244 | W44: 166
A45: 캐나다 Canada | B45: 1801 | C45: 2113 | D45: 2259 | E45: 2270 | F45: 2107 | G45: 2318 | H45: 2573 | I45: 2844 | J45: 2907 | K45: 2509 | L45: 2689 | M45: 2914 | N45: 2738 | O45: 2847 | P45: 3071 | Q45: 2822 | R45: 2336 | S45: 2402 | T45: 2417 | U45: 2727 | V45: 2606 | W45: 2599
A46: 콜롬비아 Colombia | B46: 3 | C46: 17 | D46: 36 | E46: 24 | F46: 22 | G46: 23 | H46: 29 | I46: 44 | J46: 37 | K46: 63 | L46: 46 | M46: 55 | N46: 71 | O46: 82 | P46: 101 | Q46: 87 | R46: 100 | S46: 143 | T46: 159 | U46: 128 | V46: 123 | W46: 99
A47: 크로아티아 Croatia | B47: 43 | C47: 56 | D47: 69 | E47: 72 | F47: 76 | G47: 71 | H47: 75 | I47: 79 | J47: 56 | K47: 36 | L47: 47 | M47: 47 | N47: 29 | O47: 44 | P47: 54 | Q47: 28 | R47: 39 | S47: 35 | T47: 39 | U47: 41 | V47: 20 | W47: 38
A48: 터키 Turkey | B48: 71 | C48: 76 | D48: 85 | E48: 111 | F48: 115 | G48: 174 | H48: 269 | I48: 359 | J48: 392 | K48: 388 | L48: 479 | M48: 539 | N48: 536 | O48: 805 | P48: 853 | Q48: 1010 | R48: 1065 | S48: 1251 | T48: 1397 | U48: 1687 | V48: 1617 | W48: 1741
A49: 포르투갈 Portugal | B49: 21 | C49: 42 | D49: 34 | E49: 36 | F49: 49 | G49: 56 | H49: 68 | I49: 92 | J49: 98 | K49: 163 | L49: 117 | M49: 89 | N49: 126 | O49: 144 | P49: 159 | Q49: 161 | R49: 184 | S49: 201 | T49: 250 | U49: 195 | V49: 256 | W49: 249
A50: 폴란드 Poland | B50: 109 | C50: 99 | D50: 116 | E50: 154 | F50: 107 | G50: 97 | H50: 101 | I50: 107 | J50: 128 | K50: 179 | L50: 206 | M50: 237 | N50: 251 | O50: 332 | P50: 348 | Q50: 439 | R50: 344 | S50: 330 | T50: 333 | U50: 368 | V50: 348 | W50: 381
A51: 프랑스 France | B51: 4137 | C51: 4706 | D51: 5091 | E51: 5169 | F51: 5183 | G51: 5747 | H51: 6262 | I51: 6566 | J51: 7076 | K51: 7217 | L51: 7230 | M51: 7406 | N51: 7801 | O51: 7905 | P51: 8260 | Q51: 8420 | R51: 8210 | S51: 8015 | T51: 7922 | U51: 7924 | V51: 7788 | W51: 7336
A52: 핀란드 Finland | B52: 1579 | C52: 1696 | D52: 1761 | E52: 1557 | F52: 1672 | G52: 1893 | H52: 1845 | I52: 1994 | J52: 2212 | K52: 2123 | L52: 2136 | M52: 2075 | N52: 2312 | O52: 2095 | P52: 1811 | Q52: 1584 | R52: 1525 | S52: 1603 | T52: 1833 | U52: 1660 | V52: 1679 | W52: 1895
A53: 한국 Korea | B53: 1582 | C53: 2324 | D53: 2520 | E53: 2945 | F53: 3555 | G53: 4689 | H53: 5946 | I53: 7064 | J53: 7902 | K53: 8040 | L53: 9604 | M53: 10357 | N53: 11787 | O53: 12381 | P53: 13119 | Q53: 14564 | R53: 15555 | S53: 15751 | T53: 16920 | U53: 19074 | V53: 20048 | W53: 20718
A54: 헝가리 Hungary | B54: 135 | C54: 127 | D54: 185 | E54: 114 | F54: 136 | G54: 158 | H54: 145 | I54: 167 | J54: 173 | K54: 143 | L54: 173 | M54: 140 | N54: 162 | O54: 163 | P54: 158 | Q54: 148 | R54: 177 | S54: 147 | T54: 153 | U54: 153 | V54: 139 | W54: 114
A55: 호주 Australia | B55: 1576 | C55: 1664 | D55: 1762 | E55: 1680 | F55: 1835 | G55: 2004 | H55: 2000 | I55: 2051 | J55: 1937 | K55: 1736 | L55: 1770 | M55: 1748 | N55: 1710 | O55: 1603 | P55: 1722 | Q55: 1741 | R55: 1835 | S55: 1852 | T55: 1827 | U55: 1768 | V55: 1722 | W55: 1770
A57: 자료 : WIPO statistics database, 2022.12. (ipstats.wipo.int)

Sheet 2-1
A1: 2. 국내 연구개발활동
A2: R&D Activities in Korea
A3: 2-1) 연구개발비 및 GDP 대비 연구개발비 비율
A4: R&D expenditure and as a percentage of GDP
A6: 연도 Year | B6: 연구개발비(백만원) R&D expenditure(Won, Millions) | E6: 정부 : 민간 Gov't : Business enterprises | F6: 국내총생산(B)(십억원) GDP(Won, Billions) | G6: 국내총생산대비(A/B) As a percent of GDP
B7: 총계(A) Total | C7: 정부·공공재원 Gov't & Other national sources | D7: 민간·외국재원 Business enterprises sector & Rest of the world
A8: 1991 | B8: 4158441 | C8: 808464 | D8: 3349977 | E8: 19 : 81 | F8: 242481.1 | G8: =B8/(F8*1000) -> 0.01714954691
A9: 1992 | B9: 4989031 | C9: 856882 | D9: 4132149 | E9: 17 : 83 | F9: 277540.8 | G9: 0.01797584715
A10: 1993 | B10: 6152983 | C10: 1026617 | D10: 5126366 | E10: 17 : 83 | F10: 315181.3 | G10: 0.01952204334
A11: 1994 | B11: 7894746 | C11: 1880222 | D11: 6014524 | E11: 24 : 76 | F11: 372493.4 | G11: 0.02119432452
A12: 1995 | B12: 9440606 | C12: 2289131 | D12: 7151475 | E12: 24 : 76 | F12: 436988.8 | G12: 0.02160377108
A13: 1996 | B13: 10878051 | C13: 2850638 | D13: 8027414 | E13: 26 : 74 | F13: 490850.9 | G13: 0.02216161975
A14: 1997 | B14: 12185807 | C14: 3344814 | D14: 8840992 | E14: 27 : 73 | F14: 542001.8 | G14: 0.02248296408
A15: 1998 | B15: 11336617 | C15: 3491103 | D15: 7845514 | E15: 31 : 69 | F15: 537215.3 | G15: 0.02110255795
A16: 1999 | B16: 11921752 | C16: 3574370 | D16: 8347382 | E16: 30 : 70 | F16: 591453 | G16: 0.02015671913
A17: 2000 | B17: 13848501 | C17: 3816850 | D17: 10031650 | E17: 28 : 72 | F17: 651634.426 | G17: 0.0212519481
A18: 2001 | B18: 16110521.98 | C18: 4361534 | D18: 11748988 | E18: 27 : 73 | F18: 707021.316 | G18: 0.02278647279
A19: 2002 | B19: 17325081.78 | C19: 4739957 | D19: 12585125 | E19: 27 : 73 | F19: 784741.2502 | G19: 0.02207744499
A20: 2003 | B20: 19068682 | C20: 4876225 | D20: 14192457 | E20: 26 : 74 | F20: 837364.9986 | G20: 0.02277224631
A21: 2004 | B21: 22185343 | C21: 5446050 | D21: 16739293 | E21: 25 : 75 | F21: 908439.1448 | G21: 0.02442138599
A22: 2005 | B22: 24155413.6 | C22: 5973784.01 | D22: 18181629.59 | E22: 24 : 76 | F22: 957447.785 | G22: 0.02522896181
A23: 2006 | B23: 27345704.1 | C23: 6786698.363 | D23: 20559005.74 | E23: 24 : 76 | F23: 1005601.505 | G23: 0.02719338024
A24: 2007 | B24: 31301377.26 | C24: 8175935.845 | D24: 23125441.41 | E24: 26 : 74 | F24: 1089660.171 | G24: 0.0287258157
A25: 2008 | B25: 34498053.84 | C25: 9248057.258 | D25: 25249996.58 | E25: 27 : 73 | F25: 1154216.49 | G25: 0.02988872031
A26: 2009 | B26: 37928502.24 | C26: 10887135.84 | D26: 27041366.4 | E26: 29 : 71 | F26: 1205347.749 | G26: 0.0314668545
A27: 2010 | B27: 43854834.28 | C27: 12270227.61 | D27: 31584606.68 | E27: 28 : 72 | F27: 1322611.152 | G27: 0.03315776841
A28: 2011 | B28: 49890418.95 | C28: 13002403.59 | D28: 36888015.36 | E28: 26 : 74 | F28: 1388937.2 | G28: 0.03591985221
A29: 2012 | B29: 55450115.65 | C29: 13822077.68 | D29: 41628037.97 | E29: 25 : 75 | F29: 1440111.43 | G29: 0.03850404525
A30: 2013 | B30: 59300949.33 | C30: 14241744.4 | D30: 45059204.93 | E30: 24 : 76 | F30: 1500819.149 | G30: 0.03951238853
A31: 2014 | B31: 63734126.79 | C31: 15275007.37 | D31: 48459119.43 | E31: 24 : 76 | F31: 1562928.872 | G31: 0.04077864829
A32: 2015 | B32: 65959371.73 | C32: 16293517.79 | D32: 49665853.93 | E32: 25 : 75 | F32: 1658020.359 | G32: 0.0397820035
A33: 2016 | B33: 69405529.89 | C33: 16410047.25 | D33: 52995482.63 | E33: 24 : 76 | F33: 1740779.572 | G33: 0.03987037244
A34: 2017 | B34: 78789187.37 | C34: 17737133.57 | D34: 61052053.81 | E34: 23 : 77 | F34: 1835698.159 | G34: 0.04292055695
A35: 2018 | B35: 85728714.74 | C35: 18363010.93 | D35: 67365703.81 | E35: 21 : 79 | F35: 1898192.55 | G35: 0.04516333958
A36: 2019 | B36: 89047077.12 | C36: 19095480.17 | D36: 69951596.95 | E36: 21 : 79 | F36: 1924498.062 | G36: 0.04627028671
A37: 2020 | B37: 93071686.49 | C37: 21581227.83 | D37: 71490458.66 | E37: 23 : 77 | F37: 1940726.2 | G37: 0.04795714434
A38: 2021 | B38: 102135243.5 | C38: 24094954.28 | D38: 78040289.26 | E38: 24 : 76 | F38: 2071658 | G38: 0.04930120876
A39: 전년대비 증가율(%) Percent change from previous year
A40: 1991 | B40: =(B8/B7-1)*100 ->  | E40: 0 | F40: =(F8/F7-1)*100 ->  | G40: 0
A41: 1992 | B41: 19.97359106 | C41: 5.98888757 | D41: 23.34857821 | E41: 0 | F41: 14.45873513 | G41: 0
A42: 1993 | B42: 23.33022184 | C42: 19.80844504 | D42: 24.06053122 | E42: 0 | F42: 13.56215014 | G42: 0
A43: 1994 | B43: 28.30761925 | C43: 83.14736654 | D43: 17.32529437 | E43: 0 | F43: 18.18385164 | G43: 0
A44: 1995 | B44: 19.58087062 | C44: 21.74791062 | D44: 18.90342444 | E44: 0 | F44: 17.31450812 | G44: 0
A45: 1996 | B45: 15.22619417 | C45: 24.5292646 | D45: 12.24836834 | E45: 0 | F45: 12.32573924 | G45: 0
A46: 1997 | B46: 12.02196974 | C46: 17.33562802 | D46: 10.13499491 | E46: 0 | F46: 10.42086304 | G46: 0
A47: 1998 | B47: -6.96868086 | C47: 4.373606425 | D47: -11.25979981 | E47: 0 | F47: -0.8831151483 | G47: 0
A48: 1999 | B48: 5.161460425 | C48: 2.385120118 | D48: 6.396878522 | E48: 0 | F48: 10.09608252 | G48: 0
A49: 2000 | B49: 16.16162624 | C49: 6.783852819 | D49: 20.17720047 | E49: 0 | F49: 10.17518315 | G49: 0
A50: 2001 | B50: 16.3340493 | C50: 14.27051102 | D50: 17.11919774 | E50: 0 | F50: 8.499687534 | G50: 0
A51: 2002 | B51: 7.538922702 | C51: 8.676373955 | D51: 7.116672517 | E51: 0 | F51: 10.99258712 | G51: 0
A52: 2003 | B52: 10.06402303 | C52: 2.874878401 | D52: 12.77168085 | E52: 0 | F52: 6.70587259 | G52: 0
A53: 2004 | B53: 16.34439653 | C53: 11.68578152 | D53: 17.94499712 | E53: 0 | F53: 8.487833423 | G53: 0
A54: 2005 | B54: 8.880054728 | C54: 9.690216033 | D54: 8.61647257 | E54: 0 | F54: 5.39481819 | G54: 0
A55: 2006 | B55: 13.20735199 | C55: 13.60803055 | D55: 13.07570444 | E55: 0 | F55: 5.029383429 | G55: 0
A56: 2007 | B56: 14.46542808 | C56: 20.47000482 | D56: 12.48326748 | E56: 0 | F56: 8.35904338 | G56: 0
A57: 2008 | B57: 10.21257484 | C57: 13.11313388 | D57: 9.187090222 | E57: 0 | F57: 5.924445095 | G57: 0
A58: 2009 | B58: 9.943889635 | C58: 17.7234908 | D58: 7.094534911 | E58: 0 | F58: 4.429953975 | G58: 0
A59: 2010 | B59: 15.62500941 | C59: 12.70390848 | D59: 16.80107507 | E59: 0 | F59: 9.728595196 | G59: 0
A60: 2011 | B60: 13.76264388 | C60: 5.967093689 | D60: 16.79111836 | E60: 0 | F60: 5.014780593 | G60: 0
A61: 2012 | B61: 11.14381642 | C61: 6.304019763 | D61: 12.84976316 | E61: 0 | F61: 3.684416389 | G61: 0
A62: 2013 | B62: 6.944681062 | C62: 3.036205824 | D62: 8.242442161 | E62: 0 | F62: 4.215487639 | G62: 0
A63: 2014 | B63: 7.475727646 | C63: 7.255171375 | D63: 7.545438287 | E63: 0 | F63: 4.138388257 | G63: 0
A64: 2015 | B64: 3.49144963 | C64: 6.667822822 | D64: 2.49021138 | E64: 0 | F64: 6.084185173 | G64: 0
A65: 2016 | B65: 5.224667956 | C65: 0.7151890667 | D65: 6.704060109 | E65: 0 | F65: 4.991447345 | G65: 0
A66: 2017 | B66: 13.52004301 | C66: 8.087035292 | D66: 15.20237344 | E66: 0 | F66: 5.45264825 | G66: 0
A67: 2018 | B67: 8.807715366 | C67: 3.528627448 | D67: 10.34142114 | E67: 0 | F67: 3.404393635 | G67: 0
A68: 2019 | B68: 3.870771176 | C68: 3.988829754 | D68: 3.83858995 | E68: 0 | F68: 1.385818934 | G68: 0
A69: 2020 | B69: =(B37/B36-1)*100 -> 4.519642309 | C69: 13.01746611 | D69: 2.199895042 | E69: 0 | F69: =(F37/F36-1)*100 -> 0.8432400184 | G69: 0
A70: 2021 | B70: =(B38/B37-1)*100 -> 9.738253808 | C70: 11.6477453 | D70: 9.161824845 | E70: 0 | F70: 6.746536425 | G70: 0
A72: 주 : '정부 : 민간'에서 정부는 정부재원과 공공재원의 합이며, 민간은 민간재원과 외국재원의 합

Sheet 2-2
A1: 2-2) 재원별 연구개발비
A2: R&D expenditure by source of funds
I4: (단위 : 백만원 Unit : Won, Millions)
A5: 연도 Year | B5: 총계 Total | D5: 정부〮공공부문 Gov't & Other national sources | F5: 민간부문 Business enterprise | H5: 외국부문 Rest of the world
C6: 구성비(%) | E6: 구성비(%) | G6: 구성비(%) | I6: 구성비(%)
A7: 1991 | B7: 4158441 | C7: =B7/$B7*100 -> 100 | D7: 808464 | E7: =D7/$B7*100 -> 19.44151666 | F7: 3342601 | G7: =F7/$B7*100 -> 80.38110917 | H7: 7376 | I7: =H7/$B7*100 -> 0.177374165
A8: 1992 | B8: 4989031 | C8: =B8/$B8*100 -> 100 | D8: 856882 | E8: =D8/$B8*100 -> 17.17531922 | F8: 4110546 | G8: =F8/$B8*100 -> 82.39167085 | H8: 21603 | I8: 0.4330099372
A9: 1993 | B9: 6152983 | C9: 100 | D9: 1026617 | E9: 16.68486651 | F9: 5113985 | G9: 83.11391402 | H9: 12381 | I9: 0.2012194735
A10: 1994 | B10: 7894746 | C10: 100 | D10: 1880222 | E10: 23.81611771 | F10: 6011453 | G10: 76.14498301 | H10: 3071 | I10: 0.03889928821
A11: 1995 | B11: 9440606 | C11: 100 | D11: 2289131 | E11: 24.24771249 | F11: 7150144 | G11: 75.73818884 | H11: 1331 | I11: 0.01409867121
A12: 1996 | B12: 10878051 | C12: 100 | D12: 2850638 | E12: 26.20541125 | F12: 8013779 | G12: 73.6692538 | H12: 13635 | I12: 0.1253441448
A13: 1997 | B13: 12185807 | C13: 100 | D13: 3344814 | E13: 27.44844063 | F13: 8829196 | G13: 72.45475002 | H13: 11796 | I13: 0.09680113923
A14: 1998 | B14: 11336617 | C14: 100 | D14: 3491103 | E14: 30.79492762 | F14: 7837081 | G14: 69.13068511 | H14: 8433 | I14: 0.07438727091
A15: 1999 | B15: 11921752 | C15: 100 | D15: 3574370 | E15: 29.98191876 | F15: 8340040 | G15: 69.95649633 | H15: 7342 | I15: 0.06158490799
A16: 2000 | B16: 13848501 | C16: 100 | D16: 3816850 | E16: 27.56146676 | F16: 10023405 | G16: 72.37898889 | H16: 8245 | I16: 0.05953712969
A17: 2001 | B17: 16110521.98 | C17: 100 | D17: 4361534 | E17: 27.0725803 | F17: 11673266 | G17: 72.45740402 | H17: 75722 | I17: 0.4700158076
A18: 2002 | B18: 17325081.78 | C18: 100 | D18: 4739957 | E18: 27.35893002 | F18: 12508848 | G18: 72.20080205 | H18: 76277 | I18: 0.4402692061
A19: 2003 | B19: 19068682 | C19: 100 | D19: 4876225 | E19: 25.57190371 | F19: 14113599 | G19: 74.01454909 | H19: 78858 | I19: 0.4135471974
A20: 2004 | B20: 22185343 | C20: 100 | D20: 5446050 | E20: 24.54796394 | F20: 16630869 | G20: 74.963317 | H20: 108424 | I20: 0.488719061
A21: 2005 | B21: 24155413.6 | C21: 100 | D21: 5973784.01 | E21: 24.73062192 | F21: 18004157.27 | G21: 74.53466777 | H21: 177472.3151 | I21: 0.734710314
A22: 2006 | B22: 27345704.1 | C22: 100 | D22: 6786698.363 | E22: 24.81815183 | F22: 20469436.27 | G22: 74.85430324 | H22: 89569.46656 | I22: 0.3275449271
A23: 2007 | B23: 31301377.26 | C23: =B23/$B23*100 -> 100 | D23: 8175935.845 | E23: =D23/$B23*100 -> 26.12005145 | F23: 23055735.07 | G23: =F23/$B23*100 -> 73.65725437 | H23: 69706.3465 | I23: =H23/$B23*100 -> 0.2226941834
A24: 2008 | B24: 34498053.84 | C24: 100 | D24: 9248057.258 | E24: 26.80747529 | F24: 25143874.54 | G24: =F24/$B24*100 -> 72.88490723 | H24: 106122.0443 | I24: 0.3076174813
A25: 2009 | B25: 37928502.24 | C25: 100 | D25: 10887135.84 | E25: 28.7043653 | F25: 26963044.97 | G25: 71.08913713 | H25: 78321.43648 | I25: 0.2064975727
A26: 2010 | B26: 43854834.28 | C26: 100 | D26: 12270227.61 | E26: 27.97919046 | F26: 31489621.01 | G26: 71.80421844 | H26: 94985.6683 | I26: 0.2165911007
A27: 2011 | B27: 49890418.95 | C27: 100 | D27: 13002403.59 | E27: 26.06192503 | F27: 36776186.95 | G27: 73.71392688 | H27: 111828.4193 | I27: 0.2241480863
A28: 2012 | B28: 55450115.65 | C28: 100 | D28: 13822077.68 | E28: 24.92704932 | F28: 41437794.51 | G28: 74.72986129 | H28: 190243.4608 | I28: 0.3430893851
A29: 2013 | B29: 59300949.33 | C29: 100 | D29: 14241744.4 | E29: 24.01604791 | F29: 44879192.8 | G29: 75.68039519 | H29: 180012.1241 | I29: 0.3035569011
A30: 2014 | B30: 63734126.79 | C30: 100 | D30: 15275007.37 | E30: 23.96676339 | F30: 48008280.39 | G30: 75.32586199 | H30: 450839.0397 | I30: 0.7073746239
A31: 2015 | B31: 65959371.73 | C31: 100 | D31: 16293517.79 | E31: =D31/$B31*100 -> 24.70235445 | F31: 49169995.25 | G31: =F31/$B31*100 -> 74.54588175 | H31: 495858.6842 | I31: =H31/$B31*100 -> 0.7517638073
A32: 2016 | B32: 69405529.89 | C32: 100 | D32: 16410047.25 | E32: =D32/$B32*100 -> 23.64371727 | F32: 52345866.61 | G32: =F32/$B32*100 -> 75.42031117 | H32: 649616.0269 | I32: =H32/$B32*100 -> 0.9359715688
A33: 2017 | B33: 78789187.37 | C33: 100 | D33: 17737133.57 | E33: =D33/$B33*100 -> 22.51214178 | F33: 60064289.4 | G33: =F33/$B33*100 -> 76.23417806 | H33: 987764.4108 | I33: =H33/$B33*100 -> 1.253680161
A34: 2018 | B34: 85728714.74 | C34: 100 | D34: 18363010.93 | E34: =D34/$B34*100 -> 21.41990695 | F34: 65702767.63 | G34: 76.64032738 | H34: 1662936.178 | I34: 1.93976567
A35: 2019 | B35: 89047077.12 | C35: 100 | D35: 19095480.17 | E35: 21.44425263 | F35: 68521556.96 | G35: 76.94981034 | H35: 1430039.989 | I35: 1.605937034
A36: 2020 | B36: 93071686.49 | C36: 100 | D36: 21581227.83 | E36: 23.18774769 | F36: 71269260.33 | G36: 76.57458784 | H36: 221198.3323 | I36: 0.2376644721
A37: 2021 | B37: 102135243.5 | C37: 100 | D37: 24094954.28 | E37: 23.59122419 | F37: 77742094.16 | G37: 76.11681479 | H37: 298195.1023 | I37: 0.2919610234

Sheet 2-3
A1: 2-3) 연구수행주체별 연구개발비
A2: R&D expenditure by sector of performance
K4: (단위 : 백만원 Unit : Won, Millions)
A5: 연도 Year | B5: 총계 Total | C5: 공공연구기관 Public research institutes | F5: 대학 Higher educations | I5: 기업체 Business enterprises
C6: 계 Sub total | D6: 국립·공립·출연(연) Government | E6: 비영리법인 Non-profit | F6: 계 Sub total | G6: 국·공립 National & Pub. | H6: 사립 Private | I6: 계 Sub total | J6: 민간기업체 Private | K6: 정부투자기관 Gov't invest
A7: 1991
A8: 1992
A9: 1993
A10: 1994
A11: 1995
A12: 1996
A13: 1997
A14: 1998
A15: 1999
A16: 2000
A17: 2001
A18: 2002
A19: 2003
A20: 2004
A21: 2005 | B21: 24155413.6 | C21: 3192887 | D21: 2842252 | E21: 350635 | F21: 2398283.6 | G21: 932462 | H21: 1465821.6 | I21: 18564243 | J21: 18120101 | K21: 315878
A22: 2006 | B22: 27345704.1 | C22: 3497050.1 | D22: 3140796.6 | E22: 356253.5 | F22: 2721874 | G22: 1039265 | H22: 1682609 | I22: 21126780 | J22: 20745227 | K22: 381553
A23: 2007 | B23: 31301377.26 | C23: 4102365.7 | D23: 3630947.5 | E23: 471418.2 | F23: 3334118.57 | G23: 1311716 | H23: 2022402.57 | I23: 23864892.99 | J23: 23467579.23 | K23: 221423.76
A24: 2008 | B24: 34498053.84 | C24: 4653235.6 | D24: 4159538.7 | E24: 493696.9 | F24: 3844749.4 | G24: 1519323.6 | H24: 2325425.8 | I24: 26000068.84 | J24: 25553070.84 | K24: 446998
A25: 2009 | B25: 37928502.24 | C25: 5558383.7 | D25: 4925499 | E25: 632884.7 | F25: 4204259.4 | G25: 1771080 | H25: 2433179.4 | I25: 28165859.14 | J25: 27648365.14 | K25: 329064
A26: 2010 | B26: 43854834.28 | C26: 6306136.03 | D26: 5643330.87 | E26: 662805.16 | F26: 4745458.693 | G26: 1993071.65 | H26: 2752387.043 | I26: 32803239.56 | J26: 32238691.56 | K26: 564548
A27: 2011 | B27: 49890418.95 | C27: 6673311.11 | D27: 5870369.61 | E27: 802941.5 | F27: 5033816.5 | G27: 2068282.1 | H27: 2965534.4 | I27: 38183291.34 | J27: 37560684.34 | K27: 622607
A28: 2012 | B28: 55450115.65 | C28: 6950261.67 | D28: 6240186.3 | E28: 710075.37 | F28: 5276928.439 | G28: 2261530.768 | H28: 3015397.671 | I28: 43222925.54 | J28: 42580790.54 | K28: 642135
A29: 2013 | B29: 59300949.33 | C29: 7260710.547 | D29: 6471895.61 | E29: 788814.937 | F29: 5480322.53 | G29: 2432044.25 | H29: 3048278.28 | I29: 46559916.25 | J29: 45947538.25 | K29: 612378
A30: 2014 | B30: 63734126.79 | C30: 8112700.933 | D30: 7146441.396 | E30: 966259.537 | F30: 5766960.87 | G30: 2635650.05 | H30: 3131310.82 | I30: 49854464.99 | J30: 49218203.99 | K30: 636261
A31: 2015 | B31: 65959371.73 | C31: 8824078.748 | D31: 7745312.548 | E31: 1078766.2 | F31: 5998872.479 | G31: 2715086.65 | H31: 3283785.829 | I31: 51136420.5 | J31: 50503751.5 | K31: 632669
A32: 2016 | B32: 69405529.89 | C32: 9113170.697 | D32: 8012527.25 | E32: 1100643.447 | F32: 6339887.929 | G32: 2874488.3 | H32: 3465399.629 | I32: 53952471.26 | J32: 53147044.26 | K32: 805427
A33: 2017 | B33: 78789187.37 | C33: 9543217.4 | D33: 8429716 | E33: 1113501.4 | F33: 6682523.015 | G33: 2957915.515 | H33: 3724607.5 | I33: 62563446.96 | J33: 61673311.96 | K33: 890135
A34: 2018 | B34: 85728714.74 | C34: 9843867.4 | D34: 8636201.5 | E34: 1207665.9 | F34: 7050415.008 | G34: 3088493.055 | H34: 3961921.953 | I34: 68834432.33 | J34: 67925985.33 | K34: 908447
A35: 2019 | B35: 89047077.12 | C35: 10168766 | D35: 8898118 | E35: 1270648 | F35: 7371649 | G35: 3274570 | H35: 4097079 | I35: 71506662.12 | J35: 70637773.12 | K35: 868889
A36: 2020 | B36: 93071686.49 | C36: 11118558 | D36: 9407681 | E36: 1710877 | F36: 8353350.45 | G36: 3774963.45 | H36: 4578387 | I36: 73599778.04 | J36: 72723759.04 | K36: 876019
A37: 2021 | B37: 102135243.5 | C37: 11997001 | D37: 9979636 | E37: 2017365 | F37: 9330614.888 | G37: 4216323.118 | H37: 5114291.77 | I37: 80807627.66 | J37: 79948109.66 | K37: 859518
A38: 구성비(%) Percent distribution
A39: 1991 | B39: =B7/$B7*100 -> 
A40: 1992 | B40: =B8/$B8*100 -> 
A41: 1993 | B41: =B9/$B9*100 -> 
A42: 1994 | B42: =B10/$B10*100 -> 
A43: 1995 | B43: =B11/$B11*100 -> 
A44: 1996 | B44: =B12/$B12*100 -> 
A45: 1997 | B45: =B13/$B13*100 -> 
A46: 1998 | B46: =B14/$B14*100 -> 
A47: 1999 | B47: =B15/$B15*100 -> 
A48: 2000 | B48: =B16/$B16*100 -> 
A49: 2001 | B49: =B17/$B17*100 -> 
A50: 2002 | B50: =B18/$B18*100 -> 
A51: 2003 | B51: =B19/$B19*100 -> 
A52: 2004 | B52: =B20/$B20*100 -> 
A53: 2005 | B53: =B21/$B21*100 -> 100 | C53: 13.21810114 | D53: 11.76652177 | E53: 1.451579368 | F53: 9.928555312 | G53: 3.860260956 | H53: 6.068294355 | I53: 76.85334355 | J53: 75.01465841 | K53: 1.307690298
A54: 2006 | B54: =B22/$B22*100 -> 100 | C54: 12.78829789 | D54: 11.48552105 | E54: 1.302776841 | F54: 9.953570733 | G54: 3.800468974 | H54: 6.153101759 | I54: 77.25813138 | J54: 75.86283726 | K54: 1.395294115
A55: 2007 | B55: =B23/$B23*100 -> 100 | C55: 13.10602299 | D55: 11.59996083 | E55: 1.506062165 | F55: 10.65166731 | G55: 4.190601548 | H55: 6.461065765 | I55: 76.2423097 | J55: 74.97299251 | K55: 0.7073930267
A56: 2008 | B56: =B24/$B24*100 -> 100 | C56: 13.48840031 | D56: 12.05731407 | E56: 1.431086235 | F56: 11.14482984 | G56: 4.404084958 | H56: 6.740744886 | I56: 75.36676985 | J56: 74.07105038 | K56: 1.295719469
A57: 2009 | B57: =B25/$B25*100 -> 100 | C57: 14.65489901 | D57: 12.98627341 | E57: 1.668625605 | F57: 11.0846966 | G57: 4.669522642 | H57: 6.415173962 | I57: 74.26040438 | J57: 72.89601093 | K57: 0.8675902832
A58: 2010 | B58: =B26/$B26*100 -> 100 | C58: 14.37956871 | D58: 12.86820703 | E58: 1.51136168 | F58: 10.82083371 | G58: 4.544702272 | H58: 6.276131441 | I58: 74.79959757 | J58: 73.51228681 | K58: 1.287310759
A59: 2011 | B59: =B27/$B27*100 -> 100 | C59: 13.3759372 | D59: 11.76652699 | E59: 1.609410217 | F59: 10.0897459 | G59: 4.145649893 | H59: 5.944096006 | I59: 76.5343169 | J59: 75.28636786 | K59: 1.247949031
A60: 2012 | B60: =B28/$B28*100 -> 100 | C60: 12.53426001 | D60: 11.25369393 | E60: 1.280566076 | F60: 9.516532792 | G60: 4.078496035 | H60: 5.438036758 | I60: 77.9492072 | J60: 76.79116633 | K60: 1.158040867
A61: 2013 | B61: =B29/$B29*100 -> 100 | C61: 12.24383527 | D61: 10.91364587 | E61: 1.330189391 | F61: 9.24154266 | G61: 4.101189403 | H61: 5.140353257 | I61: 78.51462207 | J61: 77.4819607 | K61: 1.032661377
A62: 2014 | B62: =B30/$B30*100 -> 100 | C62: 12.72897479 | D62: 11.21289607 | E62: 1.516078725 | F62: 9.04846612 | G62: 4.135382695 | H62: 4.913083426 | I62: 78.22255909 | J62: 77.22425405 | K62: 0.99830504
A63: 2015 | B63: =B31/$B31*100 -> 100 | C63: 13.37805154 | D63: 11.74255052 | E63: 1.635501024 | F63: 9.094799301 | G63: 4.116301564 | H63: 4.978497737 | I63: 77.52714915 | J63: 76.56796931 | K63: 0.9591798458
A64: 2016 | B64: =B32/$B32*100 -> 100 | C64: 13.13032364 | D64: 11.54450843 | E64: 1.585815206 | F64: 9.134557346 | G64: 4.14158397 | H64: 4.992973376 | I64: 77.73511902 | J64: 76.57465385 | K64: 1.160465169
A65: 2017 | B65: =B33/$B33*100 -> 100 | C65: 12.11234399 | D65: 10.69907722 | E65: 1.413266766 | F65: 8.481522957 | G65: 3.754215031 | H65: 4.727307926 | I65: 79.40613306 | J65: 78.27636509 | K65: 1.129767966
A66: 2018 | B66: =B34/$B34*100 -> 100 | C66: 11.48257901 | D66: 10.07387259 | E66: 1.40870641 | F66: 8.224099743 | G66: 3.602635435 | H66: 4.621464307 | I66: 80.29332125 | J66: 79.2336448 | K66: 1.059676449
A67: 2019 | B67: =B35/$B35*100 -> 100 | C67: 11.41953934 | D67: 9.992599744 | E67: 1.426939593 | F67: 8.278372787 | G67: 3.677346979 | H67: 4.601025809 | I67: 80.30208788 | J67: 79.32632424 | K67: 0.9757636389
A68: 2020 | B68: =B36/$B36*100 -> 100 | C68: 11.94623029 | D68: 10.10799455 | E68: 1.838235735 | F68: 8.975178989 | G68: 4.055974048 | H68: 4.91920494 | I68: 79.07859072 | J68: 78.13736033 | K68: 0.9412303924
A69: 2021 | B69: =B37/$B37*100 -> 100 | C69: 11.74619121 | D69: 9.771001325 | E69: 1.975189885 | F69: 9.135548675 | G69: 4.128176496 | H69: 5.007372179 | I69: 79.11826011 | J69: 78.27671123 | K69: 0.8415488818
A70: 전년대비증가율(%) Percent change from previous year
A71: 1991 | B71: =(B7/B6-1)*100 -> 
A72: 1992 | B72: =(B8/B7-1)*100 -> 
A73: 1993 | B73: =(B9/B8-1)*100 -> 
A74: 1994 | B74: =(B10/B9-1)*100 -> 
A75: 1995 | B75: =(B11/B10-1)*100 -> 
A76: 1996 | B76: =(B12/B11-1)*100 -> 
A77: 1997 | B77: =(B13/B12-1)*100 -> 
A78: 1998 | B78: =(B14/B13-1)*100 -> 
A79: 1999 | B79: =(B15/B14-1)*100 -> 
A80: 2000 | B80: =(B16/B15-1)*100 -> 
A81: 2001 | B81: =(B17/B16-1)*100 -> 
A82: 2002 | B82: =(B18/B17-1)*100 -> 
A83: 2003 | B83: =(B19/B18-1)*100 -> 
A84: 2004 | B84: =(B20/B19-1)*100 -> 
A85: 2005 | B85: =(B21/B20-1)*100 -> 
A86: 2006 | B86: =(B22/B21-1)*100 -> 13.20735199 | C86: 9.526271991 | D86: 10.50380473 | E86: 1.602378542 | F86: 13.49258278 | G86: 11.45387158 | H86: 14.78948052 | I86: 13.80361699 | J86: 14.48736958 | K86: 20.79125485
A87: 2007 | B87: =(B23/B22-1)*100 -> 14.46542808 | C87: 17.30932022 | D87: 15.60594214 | E87: 32.32661574 | F87: 22.49349419 | G87: 26.21573901 | H87: 20.19444624 | I87: 12.96038956 | J87: 13.12278834 | K87: -41.96775808
A88: 2008 | B88: =(B24/B23-1)*100 -> 10.21257484 | C88: 13.4281032 | D88: 14.55794114 | E88: 4.725888818 | F88: 15.31531706 | G88: 15.827176 | H88: 14.98332896 | I88: 8.946932429 | J88: 8.886692528 | K88: 101.8744511
A89: 2009 | B89: =(B25/B24-1)*100 -> 9.943889635 | C89: 19.45201528 | D89: 18.41454919 | E89: 28.19296617 | F89: 9.350674455 | G89: 16.57029483 | H89: 4.633714823 | I89: 8.329940637 | J89: 8.199774943 | K89: -26.38356324
A90: 2010 | B90: =(B26/B25-1)*100 -> 15.62500941 | C90: 13.45269363 | D90: 14.57378978 | E90: 4.727632063 | F90: 12.87264275 | G90: 12.53425311 | H90: 13.11895222 | I90: 16.46454453 | J90: 16.60252386 | K90: 71.56176306
A91: 2011 | B91: =(B27/B26-1)*100 -> 13.76264388 | C91: 5.82250491 | D91: 4.023133593 | E91: 21.14291627 | F91: 6.076500201 | G91: 3.773594893 | H91: 7.74409099 | I91: 16.40097701 | J91: 16.50809174 | K91: 10.28415653
A92: 2012 | B92: =(B28/B27-1)*100 -> 11.14381642 | C92: 4.150122112 | D92: 6.299717302 | E92: -11.56574047 | F92: 4.82957492 | G92: 9.343438596 | H92: 1.68142616 | I92: 13.19853272 | J92: 13.36532145 | K92: 3.136488989
A93: 2013 | B93: =(B29/B28-1)*100 -> 6.944681062 | C93: 4.466722143 | D93: 3.713179365 | E93: 11.08890272 | F93: 3.854403052 | G93: 7.539737439 | H93: 1.090423632 | I93: 7.720418437 | J93: 7.906728996 | K93: -4.634072275
A94: 2014 | B94: =(B30/B29-1)*100 -> 7.475727646 | C94: 11.73425632 | D94: 10.42269262 | E94: 22.4950862 | F94: 5.230318808 | G94: 8.371796689 | H94: 2.723916007 | I94: 7.075933555 | J94: 7.118261091 | K94: 3.900042131
A95: 2015 | B95: =(B31/B30-1)*100 -> 3.49144963 | C95: 8.768692706 | D95: 8.379991087 | E95: 11.6435242 | F95: 4.021383433 | G95: 3.013928196 | H95: 4.869366785 | I95: 2.571395582 | J95: 2.611935028 | K95: -0.5645481964
A96: 2016 | B96: =(B32/B31-1)*100 -> 5.224667956 | C96: 3.276171454 | D96: 3.450018322 | E96: 2.027987807 | F96: 5.684659093 | G96: 5.870959956 | H96: 5.53062256 | I96: 5.506937585 | J96: 5.233854281 | K96: 27.30622174
A97: 2017 | B97: =(B33/B32-1)*100 -> 13.52004301 | C97: 4.718958059 | D97: 5.206706161 | E97: 1.168221465 | F97: 5.40443443 | G97: 2.902332736 | H97: 7.479883964 | I97: 15.96029894 | J97: 16.04278811 | K97: 10.51715425
A98: 2018 | B98: =(B34/B33-1)*100 -> 8.807715366 | C98: 3.15040502 | D98: 2.449495333 | E98: 8.456612628 | F98: 5.505285842 | G98: 4.414512176 | H98: 6.371529158 | I98: 10.02340132 | J98: 10.1383778 | K98: 2.05721604
A99: 2019 | B99: =(B35/B34-1)*100 -> 3.870771176 | C99: 3.300517843 | D99: 3.032774305 | E99: 5.215192381 | F99: 4.55624231 | G99: 6.024845812 | H99: 3.411401051 | I99: 3.882112044 | J99: 3.992268607 | K99: -4.354464267
A100: 2020 | B100: =(B36/B35-1)*100 -> 4.519642309 | C100: 9.340287701 | D100: 5.726637925 | E100: 34.64602313 | F100: 13.31725711 | G100: 15.28119571 | H100: 11.74758895 | I100: 2.927162113 | J100: 2.953074297 | K100: 0.8205881304
A101: 2021 | B101: =(B37/B36-1)*100 -> 9.738253808 | C101: 7.900691798 | D101: 6.079659801 | E101: 17.91408734 | F101: 11.69907145 | G101: 11.69176003 | H101: 11.70509986 | I101: 9.793303469 | J101: 9.933962038 | K101: -1.883634944
A103: 주 : 1. 공공연구기관: '국·공립, 출연(연)'은 '국·공립 연구기관', '국·공립 병원','정부 출연(연)', '지자체 출연(연)'을 포함하며, 나머지는 모두 '비영리법인'으로 분류
A104: 2. 대학: '국·공립'은 '국·공립대학'과 '국·공립대학 부속병원', '사립'은 '사립대학'과 '사립대학 부속병원'

Sheet 2-4
A1: 2-4) 비목별 연구개발비
A2: R&D expenditure by type of costs
K4: (단위 : 백만원 Unit : Won, Millions)
A5: 연도 Year | B5: 총계 Total | C5: 경상비 Current costs | F5: 자본적지출 Capital costs
C6: 계 Sub total | D6: 인건비 Labour costs | E6: 기타 Other current costs | F6: 계 Sub total | G6: 기계·장치 Machinery | H6: 토지 Land | I6: 건물 Buildings | J6: 컴퓨터 소프트웨어 Computer software | K6: 기타 지식재산물 Other intellectual properties
A7: 1991 | B7: 4158440 | C7: =SUM(D7,E7) -> 2884882 | D7: 1376617 | E7: 1508265 | F7: =SUM(G7:K7) -> 1273559 | G7: 854651 | H7: 418908
A8: 1992 | B8: 4989031 | C8: 3593363 | D8: 1746546 | E8: 1846817 | F8: =SUM(G8:K8) -> 1395668 | G8: 858744 | H8: 536924
A9: 1993 | B9: 6152983 | C9: 4302251 | D9: 1980083 | E9: 2322168 | F9: =SUM(G9:K9) -> 1850732 | G9: 1137882 | H9: 712850
A10: 1994 | B10: 7894746 | C10: 5561911 | D10: 2471758 | E10: 3090153 | F10: =SUM(G10:K10) -> 2332835 | G10: 1618243 | H10: 714592
A11: 1995 | B11: 9440606 | C11: 7161647 | D11: 3160442 | E11: 4001205 | F11: =SUM(G11:K11) -> 2278959 | G11: 1675833 | H11: 603126
A12: 1996 | B12: 10878051 | C12: 8233354 | D12: 3621555 | E12: 4611799 | F12: 2644697 | G12: 1950540 | H12: 694157
A13: 1997 | B13: 12185807 | C13: 9427321 | D13: 4091203 | E13: 5336118 | F13: 2758486 | G13: 2156982 | H13: 601504
A14: 1998 | B14: 11336617 | C14: 8775383 | D14: 3880492 | E14: 4894891 | F14: 2561234 | G14: 2062431 | H14: 498803
A15: 1999 | B15: 11921752 | C15: 9172514 | D15: 3860804 | E15: 5311710 | F15: 2749238 | G15: 2440146 | H15: 309092
A16: 2000 | B16: 13848501 | C16: 10941530.44 | D16: 4739129.597 | E16: 6202400.838 | F16: 2906970.565 | G16: 2491452.897 | H16: 415517.668
A17: 2001 | B17: 16110521.98 | C17: 13249438.11 | D17: 5549175.864 | E17: 7700262.242 | F17: 2861083.876 | G17: 2423719.987 | H17: 437363.889
A18: 2002 | B18: 17325081.78 | C18: 14591141.16 | D18: 6526892.098 | E18: 8064249.063 | F18: 2733940.618 | G18: 2159287.609 | H18: 301084.412 | J18: 273568.5965
A19: 2003 | B19: 19068681.99 | C19: 16461997.93 | D19: 7562177.651 | E19: 8899820.282 | F19: 2606684.061 | G19: 1964562.201 | H19: 337804.48 | J19: 304317.38
A20: 2004 | B20: 22185343 | C20: 19399393 | D20: 8859601 | E20: 10539792 | F20: 2785950 | G20: 2208399 | H20: 261887 | J20: 315664
A21: 2005 | B21: 24155413.6 | C21: 21084497.5 | D21: 9953563.1 | E21: 11130934.4 | F21: 3070916.1 | G21: 2393576.6 | H21: 299853 | J21: 377486.5
A22: 2006 | B22: 27345704.1 | C22: 23467080.71 | D22: 11165778.89 | E22: 12301301.82 | F22: 3878623.392 | G22: 2979276.788 | H22: 472471.7193 | J22: 426874.8849
A23: 2007 | B23: 31301377.26 | C23: 27241543.8 | D23: 12804076.47 | E23: 14437467.33 | F23: 4059833.456 | G23: 3031128.785 | H23: 582928.093 | J23: 445776.578
A24: 2008 | B24: 34498053.84 | C24: =SUM(D24,E24) -> 30821176.47 | D24: 13987687.63 | E24: 16833488.84 | F24: 3676877.367 | G24: 2689458.015 | H24: 645218.7123 | J24: 342200.6405
A25: 2009 | B25: 37928502.24 | C25: =SUM(D25,E25) -> 34324319.88 | D25: 14523856.24 | E25: 19800463.64 | F25: 3604182.36 | G25: 2862195.73 | H25: 460855 | J25: 281131.63
A26: 2010 | B26: 43854834.28 | C26: 39578894.79 | D26: 17342032.62 | E26: 22236862.17 | F26: 4275939.49 | G26: 3418978.97 | H26: 518209.95 | J26: 338750.57
A27: 2011 | B27: 49890418.95 | C27: 44645764.71 | D27: 19649822.9 | E27: 24995941.81 | F27: 5244654.24 | G27: 3827194.43 | H27: 1033435.52 | J27: 384024.29
A28: 2012 | B28: 55450115.65 | C28: 49748360.33 | D28: 22559549.17 | E28: 27188811.16 | F28: 5701755.32 | G28: 3849541.73 | H28: 1361486.3 | J28: 490727.29
A29: 2013 | B29: 59300949.33 | C29: 53744731.42 | D29: 24728306.13 | E29: 29016425.29 | F29: 5556217.913 | G29: 4052268.166 | H29: 1086772.66 | J29: 417177.0878
A30: 2014 | B30: 63734126.79 | C30: 58044107.06 | D30: 26698757.29 | E30: 31345349.78 | F30: 5690019.728 | G30: 4277087.102 | H30: 230960.5412 | I30: 695913.0772 | J30: 486059.0082
A31: 2015 | B31: 65959371.73 | C31: 59506111.79 | D31: 28026786.17 | E31: 31479325.62 | F31: 6453259.939 | G31: 4542379.341 | H31: 319048.5907 | I31: 1182507.565 | J31: 409324.443
A32: 2016 | B32: 69405529.89 | C32: 63216052.97 | D32: 29233901.53 | E32: 33982151.45 | F32: 6189476.911 | G32: 4660267.601 | H32: 197272.6 | I32: 908450.55 | J32: 423486.16
A33: 2017 | B33: 78789187.37 | C33: 72046073.39 | D33: 33411593.43 | E33: 38634479.96 | F33: 6743113.983 | G33: 4568794.603 | H33: 282999.2 | I33: 1262408.8 | J33: 399572.03 | K33: 229339.35
A34: 2018 | B34: 85728714.74 | C34: 78131193.63 | D34: 36317218.69 | E34: 41813974.94 | F34: 7597521.105 | G34: 5458633.248 | H34: 375874.3041 | I34: 841806.3224 | J34: 505944.4103 | K34: 415262.82
A35: 2019 | B35: 89047077.12 | C35: 80748021.15 | D35: 37372667.75 | E35: 43375353.41 | F35: 8299055.964 | G35: 5696653.812 | H35: 372657.764 | I35: 1194809.278 | J35: 546748.756 | K35: 488186.354
A36: 2020 | B36: 93071686.49 | C36: 84516135.4 | D36: 40475587.14 | E36: 44040548.26 | F36: 8555551.092 | G36: 5851287.944 | H36: 600313.82 | I36: 1092484.36 | J36: 557070.363 | K36: 454394.6051
A37: 2021 | B37: 102135243.5 | C37: 92739180.02 | D37: 45771271.07 | E37: 46967908.95 | F37: 9396063.521 | G37: 6481440.161 | H37: 406188.219 | I37: 1250498.471 | J37: 710469.8836 | K37: 547466.7864
A38: 구성비(%) Percent distribution
A39: 1991 | B39: =B7/$B7*100 -> 100 | C39: 69.3741403 | D39: 33.10416887 | E39: 36.26997143 | F39: 30.62588374 | G39: 20.55220227 | H39: 10.07368148
A40: 1992 | B40: =B8/$B8*100 -> 100 | C40: 72.02526904 | D40: 35.00771994 | E40: 37.0175491 | F40: 27.97473096 | G40: 17.21264109 | H40: 10.76208987
A41: 1993 | B41: =B9/$B9*100 -> 100 | C41: 69.9213861 | D41: 32.18086252 | E41: 37.74052358 | F41: 30.0786139 | G41: 18.4931764 | H41: 11.5854375
A42: 1994 | B42: =B10/$B10*100 -> 100 | C42: 70.45079094 | D42: 31.30889835 | E42: 39.1418926 | F42: 29.54920906 | G42: 20.49772089 | H42: 9.051488167
A43: 1995 | B43: =B11/$B11*100 -> 100 | C43: 75.86003483 | D43: 33.47710941 | E43: 42.38292542 | F43: 24.13996517 | G43: 17.75132868 | H43: 6.388636492
A44: 1996 | B44: =B12/$B12*100 -> 100 | C44: 75.68776797 | D44: 33.29231496 | E44: 42.39545301 | F44: 24.31223203 | G44: 17.93096944 | H44: 6.381262599
A45: 1997 | B45: 100 | C45: 77.36312417 | D45: 33.57350892 | E45: 43.78961525 | F45: 22.63687583 | G45: 17.70077271 | H45: 4.936103124
A46: 1998 | B46: 100 | C46: 77.40742234 | D46: 34.22971774 | E46: 43.1777046 | F46: 22.59257766 | G46: 18.19264954 | H46: 4.399928127
A47: 1999 | B47: 100 | C47: 76.93931228 | D47: 32.38453543 | E47: 44.55477685 | F47: 23.06068772 | G47: 20.4680151 | H47: 2.592672621
A48: 2000 | B48: 100 | C48: 79.00877095 | D48: 34.22124602 | E48: 44.78752493 | F48: 20.99122905 | G48: 17.99077674 | H48: 3.000452309
A49: 2001 | B49: 100 | C49: 82.24089897 | D49: 34.44442005 | E49: 47.79647891 | F49: 17.75910103 | G49: 15.04432935 | H49: 2.714771684
A50: 2002 | B50: 100 | C50: 84.21975346 | D50: 37.67308104 | E50: 46.54667243 | F50: 15.78024654 | G50: 12.46336171 | H50: 1.737852761 | J50: =J18/$B18*100 -> 1.579032065
A51: 2003 | B51: 100 | C51: 86.330025 | D51: 39.65757913 | E51: 46.67244587 | F51: 13.669975 | G51: 10.30255894 | H51: 1.771514571 | J51: 1.59590149
A52: 2004 | B52: 100 | C52: 87.44238482 | D52: 39.93447836 | E52: 47.50790646 | F52: 12.55761518 | G52: 9.954315333 | H52: 1.180450534 | J52: 1.422849311
A53: 2005 | B53: 100 | C53: 87.28684116 | D53: 41.20634515 | E53: 46.08049601 | F53: 12.71315884 | G53: 9.909068996 | H53: 1.241349061 | J53: 1.562740785
A54: 2006 | B54: =B22/$B22*100 -> 100 | C54: 85.81633379 | D54: 40.83193049 | E54: 44.9844033 | F54: 14.18366621 | G54: 10.89486223 | H54: 1.7277731 | J54: 1.561030879
A55: 2007 | B55: 100 | C55: 87.02985679 | D55: 40.90579264 | E55: 46.12406416 | F55: 12.97014321 | G55: 9.683691423 | H55: 1.862308128 | J55: 1.424143654
A56: 2008 | B56: 100 | C56: 89.34178321 | D56: 40.54630936 | E56: 48.79547385 | F56: 10.65821679 | G56: 7.795970251 | H56: 1.870304671 | J56: 0.9919418703
A57: 2009 | B57: 100 | C57: 90.4974303 | D57: 38.29272284 | E57: 52.20470746 | F57: 9.502569696 | G57: 7.546292527 | H57: 1.21506248 | J57: 0.7412146892
A58: 2010 | B58: 100 | C58: 90.2497876 | D58: 39.54417547 | E58: 50.70561213 | F58: 9.750212399 | G58: 7.796127898 | H58: 1.181648405 | J58: 0.7724360964
A59: 2011 | B59: 100 | C59: 89.48765244 | D59: 39.38596491 | E59: 50.10168753 | F59: 10.51234756 | G59: 7.671201226 | H59: 2.071410787 | J59: 0.7697355486
A60: 2012 | B60: =B28/$B28*100 -> 100 | C60: 89.71732475 | D60: 40.68440418 | E60: 49.03292057 | F60: 10.28267525 | G60: 6.942351129 | H60: 2.455335366 | J60: 0.8849887584
A61: 2013 | B61: =B29/$B29*100 -> 100 | C61: 90.63047392 | D61: 41.69968004 | E61: 48.93079388 | F61: 9.369526081 | G61: 6.8333951 | H61: 1.832639565 | J61: 0.7034914155
A62: 2014 | B62: 100 | C62: 91.07225593 | D62: 41.89083405 | E62: 49.18142188 | F62: 8.927744075 | G62: 6.710827177 | H62: 0.3623812749 | I62: =I30/$B30*100 -> 1.09190023 | J62: 0.7626353928
A63: 2015 | B63: 100 | C63: 90.21631078 | D63: 42.49098412 | E63: 47.72532666 | F63: 9.783689217 | G63: 6.886632213 | H63: 0.4837047145 | I63: =I31/$B31*100 -> 1.792781729 | J63: 0.6205705608
A64: 2016 | B64: 100 | C64: 91.08215596 | D64: 42.12042121 | E64: 48.96173475 | F64: 8.917844041 | G64: 6.714547975 | H64: 0.2842318189 | I64: =I32/$B32*100 -> 1.308902261 | J64: 0.6101619867
A65: 2017 | B65: 100 | C65: 91.4415744 | D65: 42.40631811 | E65: 49.03525629 | F65: 8.558425601 | G65: 5.798758377 | H65: 0.3591853266 | I65: =I33/$B33*100 -> 1.60226148 | J65: 0.5071406919 | K65: =K33/$B33*100 -> 0.2910797251
A66: 2018 | B66: 100 | C66: 91.13771724 | D66: 42.36295715 | E66: 48.77476009 | F66: 8.862282758 | G66: 6.367333588 | H66: 0.438446214 | I66: =I34/$B34*100 -> 0.9819420774 | J66: 0.5901691305 | K66: =K34/$B34*100 -> 0.4843917482
A67: 2019 | B67: =B35/$B35*100 -> 100 | C67: 90.68014781 | D67: 41.96956145 | E67: 48.71058637 | F67: 9.319852187 | G67: 6.397350701 | H67: 0.418495223 | I67: 1.341772596 | J67: 0.6139996659 | K67: 0.5482340014
A68: 2020 | B68: =B36/$B36*100 -> 100 | C68: 90.80756843 | D68: 43.4886147 | E68: 47.31895373 | F68: 9.192431571 | G68: 6.286861413 | H68: 0.6450015495 | I68: 1.173809567 | J68: 0.598539023 | K68: 0.4882200186
A69: 2021 | B69: =B37/$B37*100 -> 100 | C69: 90.80037096 | D69: 44.81437502 | E69: 45.98599594 | F69: 9.199629036 | G69: 6.34593891 | H69: 0.3976964316 | I69: 1.224355499 | J69: 0.6956167714 | K69: 0.5360214236
A70: 전년대비증가율(%) Percent change from previous year
A71: 1991 | B71: =(B7/B6-1)*100 -> 
A72: 1992 | B72: =(B8/B7-1)*100 -> 19.97361992 | C72: 24.55840482 | D72: 26.87232542 | E72: 22.44645338 | F72: 9.588012805 | G72: 0.4789089348 | H72: 28.17229559
A73: 1993 | B73: =(B9/B8-1)*100 -> 23.33022184 | C73: 19.72770355 | D73: 13.37136268 | E73: 25.73893353 | F73: 32.60546204 | G73: 32.50537995 | H73: 32.76553106
A74: 1994 | B74: =(B10/B9-1)*100 -> 28.30761925 | C74: 29.27909134 | D74: 24.83102981 | E74: 33.07189661 | F74: 26.04931454 | G74: 42.21536152 | H74: 0.2443711861
A75: 1995 | B75: =(B11/B10-1)*100 -> 19.58087062 | C75: 28.76234445 | D75: 27.86211271 | E75: 29.48242369 | F75: -2.309464664 | G75: 3.55879803 | H75: -15.59855134
A76: 1996 | B76: =(B12/B11-1)*100 -> 15.22619417 | C76: 14.9645326 | D76: 14.59014277 | E76: 15.26025285 | F76: 16.04846774 | G76: 16.39226582 | H76: 15.09319777
A77: 1997 | B77: 12.02196974 | C77: 14.50158708 | D77: 12.96813109 | E77: 15.70577989 | F77: 4.302534468 | G77: 10.58383832 | H77: -13.34755682
A78: 1998 | B78: -6.96868086 | C78: -6.91541107 | D78: -5.15034331 | E78: -8.268688961 | F78: -7.150734135 | G78: -4.383485815 | H78: -17.07403442
A79: 1999 | B79: 5.161460425 | C79: 4.525511878 | D79: -0.5073583453 | E79: 8.5153888 | F79: 7.340367963 | G79: 18.31406723 | H79: -38.0332516
A80: 2000 | B80: 16.16162624 | C80: 19.28605871 | D80: 22.74981058 | E80: 16.76843876 | F80: 5.737319394 | G80: 2.102615866 | H80: 34.43171224
A81: 2001 | B81: 16.33404931 | C81: 21.09309739 | D81: 17.09272243 | E81: 24.14970336 | F81: -1.578505455 | G81: -2.718610895 | H81: 5.257591346
A82: 2002 | B82: 7.538922689 | C82: 10.12649023 | D82: 17.61912503 | E82: 4.726940594 | F82: -4.443884347 | G82: -10.9101868 | H82: -31.15928873
A83: 2003 | B83: 10.064023 | C83: 12.8218674 | D83: 15.86184569 | E83: 10.36142624 | F83: -4.65469351 | G83: -9.018039431 | H83: 12.19593793 | J83: =(J19/J18-1)*100 -> 11.23988056
A84: 2004 | B84: 16.34439657 | C84: 17.84349068 | D84: 17.15674253 | E84: 18.42702061 | F84: 6.877164045 | G84: 12.41176273 | H84: -22.47379312 | J84: 3.728548136
A85: 2005 | B85: 8.880054728 | C85: 8.686377455 | D85: 12.3477581 | E85: 5.608672353 | F85: 10.2286868 | G85: 8.385151415 | H85: 14.49709226 | J85: 19.58490674
A86: 2006 | B86: =(B22/B21-1)*100 -> 13.20735199 | C86: 11.30016595 | D86: 12.17871205 | E86: 10.51454781 | F86: 26.30183521 | G86: 24.46966552 | H86: 57.56778132 | J86: 13.08348377
A87: 2007 | B87: 14.46542808 | C87: 16.084076 | D87: 14.67248816 | E87: 17.36536134 | F87: 4.672020084 | G87: 1.740422284 | H87: 23.37840958 | J87: 4.427923432
A88: 2008 | B88: 10.21257484 | C88: 13.14034437 | D88: 9.244018195 | E88: 16.59585754 | F88: -9.432802917 | G88: -11.2720638 | H88: 10.68581529 | J88: -23.23494383
A89: 2009 | B89: 9.943889635 | C89: 11.36602754 | D89: 3.833146836 | E89: 17.62543006 | F89: -1.977085447 | G89: 6.42277048 | H89: -28.57383222 | J89: -17.84596616
A90: 2010 | B90: 15.62500941 | C90: 15.30860606 | D90: 19.40377497 | E90: 12.30475496 | F90: 18.63826696 | G90: 19.45301064 | H90: 12.4453353 | J90: 20.49536013
A91: 2011 | B91: 13.76264388 | C91: 12.80194898 | D91: 13.30749589 | E91: 12.40768422 | F91: 22.6550154 | G91: 11.93968912 | H91: 99.42409828 | J91: 13.3649133
A92: 2012 | B92: 11.14381642 | C92: 11.42906982 | D92: 14.80790073 | E92: 8.772901489 | F92: 8.715561772 | G92: 0.583908145 | H92: 31.74371053 | J92: 27.78548201
A93: 2013 | B93: 6.944681062 | C93: 8.033171466 | D93: 9.613476518 | E93: 6.721934674 | F93: -2.552501789 | G93: 5.266248553 | H93: -20.17748104 | J93: -14.98799917
A94: 2014 | B94: =(B30/B29-1)*100 -> 7.475727646 | C94: 7.999622541 | D94: 7.96840328 | E94: 8.026228142 | F94: 2.408145556 | G94: 5.547977745 | H94: =((H30+I30)/H29-1)*100 -> -14.71320061 | J94: 16.5114342
A95: 2015 | B95: =(B31/B30-1)*100 -> 3.49144963 | C95: 2.518782348 | D95: 4.974122455 | E95: 0.4274185566 | F95: 13.41366546 | G95: 6.202638215 | H95: =(H31/H30-1)*100 -> 38.1398697 | I95: 69.92173356 | J95: -15.78708837
A96: 2016 | B96: =(B32/B31-1)*100 -> 5.224667956 | C96: 6.234554864 | D96: 4.307005996 | E96: 7.950697091 | F96: -4.08759341 | G96: 2.595297566 | H96: -38.16847786 | I96: -23.17592064 | J96: =(J32/J31-1)*100 -> 3.459777987
A97: 2017 | B97: 13.52004301 | C97: 13.96800338 | D97: 14.29057255 | E97: 13.69050609 | F97: 8.944811969 | G97: -1.962827165 | H97: 43.45590822 | I97: 38.96285274 | J97: =(J33/J32-1)*100 -> -5.646968487
A98: 2018 | B98: =(B34/B33-1)*100 -> 8.807715366 | C98: 8.446151129 | D98: 8.696458203 | E98: 8.229682363 | F98: 12.67080943 | G98: 19.47644232 | H98: 32.81815076 | I98: -33.3174545 | J98: 26.62157817 | K98: =(K34/K33-1)*100 -> 81.06915364
A99: 2019 | B99: =(B35/B34-1)*100 -> 3.870771176 | C99: 3.349273701 | D99: 2.90619462 | E99: 3.73410676 | F99: 9.233733601 | G99: 4.360442497 | H99: -0.8557488668 | I99: 41.93398721 | J99: 8.064985962 | K99: 17.56081462
A100: 2020 | B100: =(B36/B35-1)*100 -> 4.519642309 | C100: 4.666509705 | D100: 8.302643548 | E100: 1.533577952 | F100: 3.090654278 | G100: 2.714473044 | H100: 61.0898465 | I100: -8.564121478 | J100: 1.887815361 | K100: -6.921895431
A101: 2021 | B101: =(B37/B36-1)*100 -> 9.738253808 | C101: 9.729555885 | D101: 13.08364946 | E101: 6.646966949 | F101: 9.824176368 | G101: 10.76946174 | H101: -32.33735332 | I101: 14.46374125 | J101: 27.53683031 | K101: 20.48267747
A103: 주 : 1. 2014년(조사대상년도)부터 토지와 건물을 구분
A104: 2. 2014년(조사대상년도) 전년대비 증가율은 토지와 건물을 합하여 산출
A105: 3. 2017년(조사대상년도) 기타 지식재산물 항목 신설

Sheet 2-5
A1: 2-5) 연구개발단계별 연구개발비
A2: R&D expenditure by type of R&D
K3: (단위 : 백만원 Unit : Won, Millions)
A4: 연도·연구수행주체 Year · Sector of performance | C4: 연구개발수행기관 R&D performing inst. | D4: 총계 Total | F4: 기초연구 Basic research | H4: 응용연구 Applied research | J4: 개발연구 Experimental development
E5: 구성비(%) | G5: 구성비(%) | I5: 구성비(%) | K5: 구성비(%)
A6: 1995 | B6: 계 Total | C6: =SUM(C7:C9) -> 2587 | D6: =SUM(D7:D9) -> 9440606 | E6: =D6/$D6*100 -> 100 | F6: 1176819 | G6: =F6/$D6*100 -> 12.46550274 | H6: 2362110 | I6: =H6/$D6*100 -> 25.02074549 | J6: 5901677 | K6: =J6/$D6*100 -> 62.51375177
B7: 공공연구기관 Public research institutes | C7: 178 | D7: =F7+H7+J7 -> 1766713 | E7: 100 | F7: 249948 | G7: 14.14762896 | H7: 587561 | I7: 33.25729759 | J7: 929204 | K7: 52.59507345
B8: 대학 Higher educations | C8: 257 | D8: =F8+H8+J8 -> 770912 | E8: 100 | F8: 372851 | G8: 48.36492362 | H8: 205618 | I8: 26.67204558 | J8: 192443 | K8: 24.9630308
B9: 기업체 Business enterprises | C9: 2152 | D9: =F9+H9+J9 -> 6902981 | E9: 100 | F9: 554020 | G9: 8.025807981 | H9: 1568931 | I9: 22.72831115 | J9: 4780030 | K9: 69.24588087
A10: 1996 | B10: 계 Total | C10: =SUM(C11:C13) -> 2856 | D10: =SUM(D11:D13) -> 10878051 | E10: 100 | F10: 1439020 | G10: 13.22865649 | H10: 2927270 | I10: 26.90987568 | J10: 6511761 | K10: 59.86146783
B11: 공공연구기관 Public research institutes | C11: 163 | D11: =F11+H11+J11 -> 1895618 | E11: 100 | F11: 340156 | G11: 17.94433267 | H11: 561389 | I11: 29.61509123 | J11: 994073 | K11: 52.44057611
B12: 대학 Higher educations | C12: 258 | D12: =F12+H12+J12 -> 1018822 | E12: 100 | F12: 452063 | G12: 44.37114628 | H12: 270913 | I12: 26.59080782 | J12: 295846 | K12: 29.0380459
B13: 기업체 Business enterprises | C13: 2435 | D13: =F13+H13+J13 -> 7963611 | E13: 100 | F13: 646801 | G13: 8.121956233 | H13: 2094968 | I13: 26.30675958 | J13: 5221842 | K13: 65.57128418
A14: 1997 | B14: 계 Total | C14: =SUM(C15:C17) -> 2962 | D14: =SUM(D15:D17) -> 12185807 | E14: 100 | F14: 1616490 | G14: =F14/$D14*100 -> 13.26535042 | H14: 3470560 | I14: 28.48034603 | J14: 7098757 | K14: 58.25430355
B15: 공공연구기관 Public research institutes | C15: 184 | D15: =F15+H15+J15 -> 2068900 | E15: 100 | F15: 419311 | G15: 20.26734013 | H15: 716210 | I15: 34.6179129 | J15: 933379 | K15: 45.11474697
B16: 대학 Higher educations | C16: 271 | D16: =F16+H16+J16 -> 1271600 | E16: 100 | F16: 480168 | G16: 37.76093111 | H16: 400962 | I16: 31.53208556 | J16: 390470 | K16: 30.70698333
B17: 기업체 Business enterprises | C17: 2507 | D17: =F17+H17+J17 -> 8845307 | E17: 100 | F17: 717011 | G17: 8.106117741 | H17: 2353388 | I17: 26.60606353 | J17: 5774908 | K17: 65.28781873
A18: 1998 | B18: 계 Total | C18: =SUM(C19:C21) -> 2869 | D18: =SUM(D19:D21) -> 11336617 | E18: 100 | F18: 1585367 | G18: 13.98448056 | H18: 2848458 | I18: 25.126173 | J18: 6902792 | K18: 60.88934644
B19: 공공연구기관 Public research institutes | C19: 183 | D19: =F19+H19+J19 -> 2099470 | E19: =D19/$D19*100 -> 100 | F19: 561521 | G19: 26.74584538 | H19: 741199 | I19: =H19/$D19*100 -> 35.30410056 | J19: 796750 | K19: =J19/$D19*100 -> 37.95005406
B20: 대학 Higher educations | C20: 267 | D20: =F20+H20+J20 -> 1265074 | E20: 100 | F20: 507261 | G20: =F20/$D20*100 -> 40.09733818 | H20: 427539 | I20: 33.79557243 | J20: 330274 | K20: 26.10708939
B21: 기업체 Business enterprises | C21: 2419 | D21: =F21+H21+J21 -> 7972073 | E21: 100 | F21: 516585 | G21: 6.479933137 | H21: 1679720 | I21: 21.07005292 | J21: 5775768 | K21: 72.45001394
A22: 1999 | B22: 계 Total | C22: =SUM(C23:C25) -> 3059 | D22: =SUM(D23:D25) -> 11921752 | E22: 100 | F22: 1625477 | G22: 13.63454801 | H22: 3065197 | I22: 25.71096094 | J22: 7231078 | K22: 60.65449105
B23: 공공연구기관 Public research institutes | C23: 169 | D23: =F23+H23+J23 -> 1979174 | E23: 100 | F23: 494138 | G23: 24.96688012 | H23: 756409 | I23: 38.21841839 | J23: 728627 | K23: 36.81470149
B24: 대학 Higher educations | C24: 285 | D24: =F24+H24+J24 -> 1431421 | E24: 100 | F24: 491402 | G24: 34.32966262 | H24: 479440 | I24: 33.49398954 | J24: 460579 | K24: 32.17634784
B25: 기업체 Business enterprises | C25: 2605 | D25: =F25+H25+J25 -> 8511157 | E25: 100 | F25: 639937 | G25: 7.518801498 | H25: 1829348 | I25: 21.49352902 | J25: 6041872 | K25: 70.98766948
A26: 2000 | B26: 계 Total | C26: =SUM(C27:C29) -> 4635 | D26: =SUM(D27:D29) -> 13848501 | E26: 100 | F26: 1746138 | G26: 12.60885925 | H26: 3370088.5 | I26: 24.3354028 | J26: 8732274.5 | K26: 63.05573795
B27: 공공연구기관 Public research institutes | C27: 173 | D27: =F27+H27+J27 -> 2031981 | E27: 100 | F27: 454443 | G27: 22.36452998 | H27: 672213 | I27: 33.08165775 | J27: 905325 | K27: 44.55381226
B28: 대학 Higher educations | C28: 268 | D28: =F28+H28+J28 -> 1561865 | E28: 100 | F28: 661562 | G28: 42.35718196 | H28: 475685 | I28: 30.45621741 | J28: 424618 | K28: 27.18660063
B29: 기업체 Business enterprises | C29: 4194 | D29: =F29+H29+J29 -> 10254655 | E29: 100 | F29: 630133 | G29: 6.144848364 | H29: 2222190.5 | I29: 21.67006594 | J29: 7402331.5 | K29: 72.1850857
A30: 2001 | B30: 계 Total | C30: =SUM(C31:C33) -> 6801 | D30: =SUM(D31:D33) -> 16110521.98 | E30: 100 | F30: 2025019.904 | G30: 12.56954869 | H30: 4075940.789 | I30: 25.29986796 | J30: 10009561.29 | K30: 62.13058336
B31: 공공연구기관 Public research institutes | C31: 188 | D31: =F31+H31+J31 -> 2160166.079 | E31: 100 | F31: 438260.1848 | G31: 20.28826344 | H31: 894402.6681 | I31: 41.40434742 | J31: 827503.2261 | K31: 38.30738915
B32: 대학 Higher educations | C32: 276 | D32: =F32+H32+J32 -> 1676777.181 | E32: 100 | F32: 679826.0851 | G32: 40.54361503 | H32: 498455.4529 | I32: 29.72699406 | J32: 498495.643 | K32: 29.72939092
B33: 기업체 Business enterprises | C33: 6337 | D33: =F33+H33+J33 -> 12273578.72 | E33: 100 | F33: 906933.6342 | G33: 7.389316961 | H33: 2683082.668 | I33: 21.86063844 | J33: 8683562.42 | K33: 70.7500446
A34: 2002 | B34: 계 Total | C34: =SUM(C35:C37) -> 7210 | D34: =SUM(D35:D37) -> 17325081.78 | E34: 100 | F34: 2373234.759 | G34: 13.69826007 | H34: 3763601.721 | I34: 21.72342832 | J34: 11188245.3 | K34: 64.57831162
B35: 공공연구기관 Public research institutes | C35: 163 | D35: =F35+H35+J35 -> 2552631.59 | E35: 100 | F35: 526181.77 | G35: 20.61330636 | H35: 1015664.28 | I35: 39.78890977 | J35: 1010785.54 | K35: 39.59778387
B36: 대학 Higher educations | C36: 304 | D36: =F36+H36+J36 -> 1797096.31 | E36: 100 | F36: 666130.197 | G36: 37.06702826 | H36: 596213.366 | I36: 33.17648379 | J36: 534752.747 | K36: 29.75648795
B37: 기업체 Business enterprises | C37: 6743 | D37: =F37+H37+J37 -> 12975353.88 | E37: 100 | F37: 1180922.792 | G37: 9.101276181 | H37: 2151724.075 | I37: 16.58316293 | J37: 9642707.012 | K37: 74.31556089
A38: 2003 | B38: 계 Total | C38: =SUM(C39:C41) -> 7127 | D38: =SUM(D39:D41) -> 19068681.99 | E38: 100 | F38: 2758620.607 | G38: 14.46676078 | H38: 3973994.147 | I38: 20.84042383 | J38: 12336067.24 | K38: 64.69281539
B39: 공공연구기관 Public research institutes | C39: 169 | D39: =F39+H39+J39 -> 2626355.83 | E39: 100 | F39: 525515.4 | G39: 20.00929935 | H39: 972984.43 | I39: 37.04693853 | J39: 1127856 | K39: 42.94376212
B40: 대학 Higher educations | C40: 310 | D40: =F40+H40+J40 -> 1932662.944 | E40: 100 | F40: 695637.7575 | G40: 35.99374426 | H40: 634121.9068 | I40: 32.81078621 | J40: 602903.2797 | K40: 31.19546952
B41: 기업체 Business enterprises | C41: 6648 | D41: =F41+H41+J41 -> 14509663.22 | E41: 100 | F41: 1537467.45 | G41: 10.5961622 | H41: 2366887.81 | I41: 16.31249309 | J41: 10605307.96 | K41: 73.09134471
A42: 2004 | B42: 계 Total | C42: =SUM(C43:C45) -> 7254 | D42: =SUM(D43:D45) -> 22185343 | E42: 100 | F42: 3399400 | G42: 15.32272906 | H42: 4712161 | I42: 21.23997362 | J42: 14073782 | K42: 63.43729732
B43: 공공연구기관 Public research institutes | C43: 159 | D43: =F43+H43+J43 -> 2964646 | E43: 100 | F43: 616140 | G43: 20.78291978 | H43: 1151992 | I43: 38.85765788 | J43: 1196514 | K43: 40.35942234
B44: 대학 Higher educations | C44: 293 | D44: =F44+H44+J44 -> 2200886 | E44: 100 | F44: 736761 | G44: 33.4756548 | H44: 760983 | I44: 34.57621158 | J44: 703142 | K44: 31.94813362
B45: 기업체 Business enterprises | C45: 6802 | D45: =F45+H45+J45 -> 17019811 | E45: 100 | F45: 2046499 | G45: 12.02421696 | H45: 2799186 | I45: 16.44663387 | J45: 12174126 | K45: 71.52914918
A46: 2005 | B46: 계 Total | C46: =SUM(C47:C49) -> 7761 | D46: =SUM(D47:D49) -> 24155414 | E46: 100 | F46: 3706840 | G46: 15.3457937 | H46: 5034149 | I46: 20.84066537 | J46: 15414425 | K46: 63.81354093
B47: 공공연구기관 Public research institutes | C47: 137 | D47: =F47+H47+J47 -> 3192887 | E47: 100 | F47: 684540 | G47: 21.43953106 | H47: 1158356 | I47: 36.27926701 | J47: 1349991 | K47: 42.28120193
B48: 대학 Higher educations | C48: 256 | D48: =F48+H48+J48 -> 2398284 | E48: 100 | F48: 833799 | G48: 34.76648304 | H48: 825172 | I48: 34.40676751 | J48: 739313 | K48: 30.82674946
B49: 기업체 Business enterprises | C49: 7368 | D49: =F49+H49+J49 -> 18564243 | E49: 100 | F49: 2188501 | G49: 11.78879742 | H49: 3050621 | I49: 16.43277886 | J49: 13325121 | K49: 71.77842371
A50: 2006 | B50: 계 Total | C50: =SUM(C51:C53) -> 9443 | D50: =SUM(D51:D53) -> 27345704.1 | E50: 100 | F50: 4143273.139 | G50: 15.15145898 | H50: 5430098.263 | I50: 19.85722599 | J50: 17772332.7 | K50: 64.99131503
B51: 공공연구기관 Public research institutes | C51: 139 | D51: =F51+H51+J51 -> 3497050.1 | E51: 100 | F51: 716725 | G51: 20.49513102 | H51: 1252429.6 | I51: 35.81388783 | J51: 1527895.5 | K51: 43.69098115
B52: 대학 Higher educations | C52: 268 | D52: =F52+H52+J52 -> 2721874 | E52: 100 | F52: 909221.0082 | G52: 33.40422842 | H52: 876798.079 | I52: 32.21302966 | J52: 935854.9128 | K52: 34.38274192
B53: 기업체 Business enterprises | C53: 9036 | D53: =F53+H53+J53 -> 21126780 | E53: 100 | F53: 2517327.131 | G53: 11.91533746 | H53: 3300870.584 | I53: 15.62410639 | J53: 15308582.29 | K53: 72.46055615
A54: 2007 | B54: 계 Total | C54: =SUM(C55:C57) -> 11200 | D54: =SUM(D55:D57) -> 31301377.26 | E54: 100 | F54: 4918688.629 | G54: 15.71396871 | H54: 6210834.345 | I54: 19.84204814 | J54: 20171854.29 | K54: 64.44398315
B55: 공공연구기관 Public research institutes | C55: 188 | D55: =F55+H55+J55 -> 4102365.7 | E55: 100 | F55: 995180.1 | G55: 24.2586881 | H55: 1503405.9 | I55: 36.6472911 | J55: 1603779.7 | K55: 39.0940208
B56: 대학 Higher educations | C56: 322 | D56: =F56+H56+J56 -> 3334118.57 | E56: 100 | F56: 1369545.13 | G56: 41.07667743 | H56: 873851.5 | I56: 26.20937083 | J56: 1090721.94 | K56: 32.71395174
B57: 기업체 Business enterprises | C57: 10690 | D57: =F57+H57+J57 -> 23864892.99 | E57: 100 | F57: 2553963.399 | G57: 10.70175927 | H57: 3833576.945 | I57: 16.06366702 | J57: 17477352.65 | K57: 73.2345737
A58: 2008 | B58: 계 Total | C58: =SUM(C59:C61) -> 12822 | D58: =SUM(D59:D61) -> 34498053.84 | E58: 100 | F58: 5537090.578 | G58: 16.05044332 | H58: 6773869.412 | I58: 19.63551174 | J58: 22187093.85 | K58: 64.31404494
B59: 공공연구기관 Public research institutes | C59: 228 | D59: =F59+H59+J59 -> 4653235.6 | E59: 100 | F59: 1053146.194 | G59: 22.63255688 | H59: 1510661.241 | I59: 32.46474864 | J59: 2089428.165 | K59: 44.90269448
B60: 대학 Higher educations | C60: 338 | D60: =F60+H60+J60 -> 3844749.4 | E60: 100 | F60: 1419209.395 | G60: 36.91292325 | H60: 1201965.411 | I60: 31.26251639 | J60: 1223574.593 | K60: 31.82456036
B61: 기업체 Business enterprises | C61: 12256 | D61: =F61+H61+J61 -> 26000068.84 | E61: 100 | F61: 3064734.989 | G61: 11.78741105 | H61: 4061242.76 | I61: 15.6201231 | J61: 18874091.09 | K61: 72.59246584
A62: 2009 | B62: 계 Total | C62: =SUM(C63:C65) -> 15237 | D62: =SUM(D63:D65) -> 37928502.24 | E62: 100 | F62: 6849096.196 | G62: 18.05791368 | H62: 7574286.807 | I62: 19.96990748 | J62: 23505119.24 | K62: 61.97217883
B63: 공공연구기관 Public research institutes | C63: 252 | D63: =F63+H63+J63 -> 5558383.7 | E63: 100 | F63: 1446414.5 | G63: 26.02221398 | H63: 1602959.7 | I63: 28.83859385 | J63: 2509009.5 | K63: 45.13919217
B64: 대학 Higher educations | C64: 359 | D64: =F64+H64+J64 -> 4204259.4 | E64: 100 | F64: 1523234.6 | G64: 36.23074732 | H64: 1245293.1 | I64: 29.61979701 | J64: 1435731.7 | K64: 34.14945567
B65: 기업체 Business enterprises | C65: 14626 | D65: =F65+H65+J65 -> 28165859.14 | E65: 100 | F65: 3879447.096 | G65: 13.77357984 | H65: 4726034.007 | I65: 16.77930001 | J65: 19560378.04 | K65: 69.44712015
A66: 2010 | B66: 계 Total | C66: =SUM(C67:C69) -> 16550 | D66: =SUM(D67:D69) -> 43854834.28 | E66: 100 | F66: 7991019.6 | G66: 18.22152502 | H66: 8742664.421 | I66: 19.93546336 | J66: 27121150.26 | K66: 61.84301162
B67: 공공연구기관 Public research institutes | C67: 261 | D67: =F67+H67+J67 -> 6306136.03 | E67: 100 | F67: 1763069.36 | G67: 27.9579976 | H67: 1794518.37 | I67: 28.45670251 | J67: 2748548.3 | K67: 43.58529989
B68: 대학 Higher educations | C68: 352 | D68: =F68+H68+J68 -> 4745458.693 | E68: 100 | F68: 1677091.85 | G68: 35.34098511 | H68: 1498120.1 | I68: 31.56955306 | J68: 1570246.743 | K68: 33.08946183
B69: 기업체 Business enterprises | C69: 15937 | D69: =F69+H69+J69 -> 32803239.56 | E69: 100 | F69: 4550858.39 | G69: 13.87319805 | H69: 5450025.951 | I69: 16.61429183 | J69: 22802355.22 | K69: 69.51251012
A70: 2011 | B70: 계 Total | C70: =SUM(C71:C73) -> 20372 | D70: =SUM(D71:D73) -> 49890418.95 | E70: =D70/$D70*100 -> 100 | F70: 9013211.34 | G70: =F70/$D70*100 -> 18.06601654 | H70: 10116538.75 | I70: =H70/$D70*100 -> 20.27751813 | J70: 30760668.86 | K70: =J70/$D70*100 -> 61.65646533
B71: 공공연구기관 Public research institutes | C71: 268 | D71: =F71+H71+J71 -> 6673311.11 | E71: 100 | F71: 2072824.81 | G71: 31.06141428 | H71: 1856153.05 | I71: 27.8145739 | J71: 2744333.25 | K71: 41.12401183
B72: 대학 Higher educations | C72: 350 | D72: =F72+H72+J72 -> 5033816.5 | E72: 100 | F72: 1860682.2 | G72: 36.96364776 | H72: 1662220.3 | I72: 33.02107457 | J72: 1510914 | K72: 30.01527767
B73: 기업체 Business enterprises | C73: 19754 | D73: =F73+H73+J73 -> 38183291.34 | E73: 100 | F73: 5079704.33 | G73: 13.30347425 | H73: 6598165.396 | I73: 17.28024265 | J73: 26505421.61 | K73: 69.4162831
A74: 2012 | B74: 계 Total | C74: =SUM(C75:C77) -> 23533 | D74: =SUM(D75:D77) -> 55450115.65 | E74: 100 | F74: 10153311.53 | G74: 18.31071298 | H74: 10572652.52 | I74: 19.06696207 | J74: 34724151.6 | K74: 62.62232494
B75: 공공연구기관 Public research institutes | C75: 272 | D75: =F75+H75+J75 -> 6950261.67 | E75: 100 | F75: 2372764.13 | G75: 34.13920573 | H75: 1690754.94 | I75: 24.32649331 | J75: 2886742.6 | K75: 41.53430097
B76: 대학 Higher educations | C76: 344 | D76: =F76+H76+J76 -> 5276928.439 | E76: 100 | F76: 2112598.468 | G76: 40.03462417 | H76: 1545750.967 | I76: 29.29262704 | J76: 1618579.004 | K76: 30.67274879
B77: 기업체 Business enterprises | C77: 22917 | D77: =F77+H77+J77 -> 43222925.54 | E77: 100 | F77: 5667948.928 | G77: 13.11329313 | H77: 7336146.614 | I77: 16.97281367 | J77: 30218830 | K77: 69.9138932
A78: 2013 | B78: 계 Total | C78: =SUM(C79:C81) -> 25882 | D78: =SUM(D79:D81) -> 59300949.33 | E78: =D78/$D78*100 -> 100 | F78: 10665765.32 | G78: =F78/$D78*100 -> 17.98582559 | H78: 11315883.15 | I78: =H78/$D78*100 -> 19.08212816 | J78: 37319300.86 | K78: =J78/$D78*100 -> 62.93204625
B79: 공공연구기관 Public research institutes | C79: 326 | D79: =F79+H79+J79 -> 7260710.547 | E79: 100 | F79: 2393866.71 | G79: 32.97014382 | H79: 1674619.287 | I79: 23.06412404 | J79: 3192224.55 | K79: 43.96573213
B80: 대학 Higher educations | C80: 371 | D80: =F80+H80+J80 -> 5480322.53 | E80: 100 | F80: 2187559.25 | G80: 39.91661509 | H80: 1689983.49 | I80: 30.83729983 | J80: 1602779.79 | K80: 29.24608508
B81: 기업체 Business enterprises | C81: 25185 | D81: =F81+H81+J81 -> 46559916.25 | E81: 100 | F81: 6084339.361 | G81: 13.06776268 | H81: 7951280.376 | I81: 17.07752293 | J81: 32524296.52 | K81: 69.85471439
A82: 2014 | B82: 계 Total | C82: =SUM(C83:C85) -> 30111 | D82: =SUM(D83:D85) -> 63734126.79 | E82: 100 | F82: 11242600.29 | G82: 17.63984361 | H82: 12058498.37 | I82: 18.92000248 | J82: 40433028.13 | K82: 63.44015391
B83: 공공연구기관 Public research institutes | C83: 348 | D83: =F83+H83+J83 -> 8112700.933 | E83: 100 | F83: 2530137.297 | G83: 31.18736063 | H83: 1732691.855 | I83: 21.35776814 | J83: 3849871.781 | K83: 47.45487123
B84: 대학 Higher educations | C84: 371 | D84: =F84+H84+J84 -> 5766960.87 | E84: 100 | F84: 2171150.589 | G84: 37.64808949 | H84: 1846515.494 | I84: 32.01886637 | J84: 1749294.786 | K84: 30.33304414
B85: 기업체 Business enterprises | C85: 29392 | D85: =F85+H85+J85 -> 49854464.99 | E85: 100 | F85: 6541312.408 | G85: 13.12081558 | H85: 8479291.02 | I85: 17.00808748 | J85: 34833861.56 | K85: 69.87109694
A86: 2015 | B86: 계 Total | C86: =SUM(C87:C89) -> 35379 | D86: =SUM(D87:D89) -> 65959371.73 | E86: =D86/$D86*100 -> 100 | F86: 11361657.87 | G86: =F86/$D86*100 -> 17.22523665 | H86: 13744954.17 | I86: =H86/$D86*100 -> 20.83851591 | J86: 40852759.68 | K86: =J86/$D86*100 -> 61.93624744
B87: 공공연구기관 Public research institutes | C87: 372 | D87: =F87+H87+J87 -> 8824078.748 | E87: 100 | F87: 2879746.604 | G87: 32.63509638 | H87: 1872355.147 | I87: 21.21870396 | J87: 4071976.998 | K87: 46.14619967
B88: 대학 Higher educations | C88: 365 | D88: =F88+H88+J88 -> 5998872.479 | E88: 100 | F88: 2119484.663 | G88: 35.33138386 | H88: 1983975.404 | I88: 33.07247172 | J88: 1895412.412 | K88: 31.59614442
B89: 기업체 Business enterprises | C89: 34642 | D89: =F89+H89+J89 -> 51136420.5 | E89: 100 | F89: 6362426.604 | G89: 12.44206486 | H89: 9888623.621 | I89: 19.33773136 | J89: 34885370.27 | K89: 68.22020379
A90: 2016 | B90: 계 Total | C90: =SUM(C91:C93) -> 37218 | D90: =SUM(D91:D93) -> 69405529.89 | E90: 100 | F90: 11086652.8 | G90: 15.97373122 | H90: 15621429.66 | I90: 22.50747121 | J90: 42697447.43 | K90: 61.51879757
B91: 공공연구기관 Public research institutes | C91: 372 | D91: =F91+H91+J91 -> 9113170.697 | E91: 100 | F91: 2478945.597 | G91: 27.20179046 | H91: 2323017 | I91: 25.49076581 | J91: 4311208.1 | K91: 47.30744374
B92: 대학 Higher educations | C92: 368 | D92: =F92+H92+J92 -> 6339887.929 | E92: 100 | F92: 2209088.156 | G92: 34.8442777 | H92: 2116431.534 | I92: 33.38279095 | J92: 2014368.239 | K92: 31.77293135
B93: 기업체 Business enterprises | C93: 36478 | D93: =F93+H93+J93 -> 53952471.26 | E93: 100 | F93: 6398619.043 | G93: =F93/$D93*100 -> 11.85973301 | H93: 11181981.12 | I93: =H93/$D93*100 -> 20.72561435 | J93: 36371871.09 | K93: =J93/$D93*100 -> 67.41465265
A94: 2017 | B94: 계 Total | C94: =SUM(C95:C97) -> 42368 | D94: =SUM(D95:D97) -> 78789187.37 | E94: =D94/$D94*100 -> 100 | F94: 11391103.29 | G94: 14.45769866 | H94: 17315901.47 | I94: 21.97750992 | J94: 50082182.61 | K94: 63.56479142
B95: 공공연구기관 Public research institutes | C95: 375 | D95: =F95+H95+J95 -> 9543217.4 | E95: 100 | F95: 2322231.4 | G95: 24.33384154 | H95: 2571596.6 | I95: 26.94685128 | J95: 4649389.4 | K95: 48.71930718
B96: 대학 Higher educations | C96: 364 | D96: =F96+H96+J96 -> 6682523.015 | E96: 100 | F96: 2464891.226 | G96: 36.88563767 | H96: 2060511.228 | I96: 30.83433044 | J96: 2157120.561 | K96: 32.2800319
B97: 기업체 Business enterprises | C97: 41629 | D97: =F97+H97+J97 -> 62563446.96 | E97: 100 | F97: 6603980.664 | G97: 10.55565348 | H97: 12683793.64 | I97: 20.27348917 | J97: 43275672.65 | K97: 69.17085735
A98: 2018 | B98: 계 Total | C98: =SUM(C99:C101) -> 49302 | D98: =SUM(D99:D101) -> 85728714.74 | E98: 100 | F98: 12180466.84 | G98: 14.20815287 | H98: 18824713.4 | I98: 21.95846917 | J98: 54723534.5 | K98: 63.83337796
B99: 공공연구기관 Public research institutes | C99: 401 | D99: =F99+H99+J99 -> 9843867.4 | E99: 100 | F99: 2353558 | G99: 23.90887549 | H99: 2568973 | I99: 26.09719225 | J99: 4921336.4 | K99: 49.99393226
B100: 대학 Higher educations | C100: 365 | D100: =F100+H100+J100 -> 7050415.008 | E100: 100 | F100: 2533533.651 | G100: 35.9345322 | H100: 2302551.572 | I100: 32.6583835 | J100: 2214329.785 | K100: 31.4070843
B101: 기업체 Business enterprises | C101: 48536 | D101: =F101+H101+J101 -> 68834432.33 | E101: 100 | F101: 7293375.19 | G101: 10.59553329 | H101: 13953188.83 | I101: 20.27065286 | J101: 47587868.31 | K101: 69.13381385
A102: 2019 | B102: 계 Total | C102: =SUM(C103:C105) -> 53005 | D102: =SUM(D103:D105) -> 89047077.12 | E102: =D102/$D102*100 -> 100 | F102: 13062301.51 | G102: =F102/$D102*100 -> 14.66898402 | H102: 20040143.19 | I102: =H102/$D102*100 -> 22.5051106 | J102: 55944632.42 | K102: =J102/$D102*100 -> 62.82590538
B103: 공공연구기관 Public research institutes | C103: 419 | D103: =F103+H103+J103 -> 10168766 | E103: =D103/$D103*100 -> 100 | F103: 2516381.5 | G103: =F103/$D103*100 -> 24.74618356 | H103: 2733997.5 | I103: =H103/$D103*100 -> 26.8862269 | J103: 4918387 | K103: =J103/$D103*100 -> 48.36758954
B104: 대학 Higher educations | C104: 368 | D104: =F104+H104+J104 -> 7371649 | E104: =D104/$D104*100 -> 100 | F104: 2937469.2 | G104: =F104/$D104*100 -> 39.84819679 | H104: 2166220.4 | I104: =H104/$D104*100 -> 29.38583213 | J104: 2267959.4 | K104: =J104/$D104*100 -> 30.76597109
B105: 기업체 Business enterprises | C105: 52218 | D105: =F105+H105+J105 -> 71506662.12 | E105: =D105/$D105*100 -> 100 | F105: 7608450.814 | G105: =F105/$D105*100 -> 10.64019853 | H105: 15139925.29 | I105: =H105/$D105*100 -> 21.17274788 | J105: 48758286.02 | K105: =J105/$D105*100 -> 68.18705359
A106: 2020 | B106: 계 Total | C106: 56223 | D106: 93071686.49 | E106: =D106/$D106*100 -> 100 | F106: 13448098.63 | G106: =F106/$D106*100 -> 14.44918335 | H106: 20078628.7 | I106: =H106/$D106*100 -> 21.57329415 | J106: 59544959.16 | K106: =J106/$D106*100 -> 63.9775225
B107: 공공연구기관 Public research institutes | C107: 415 | D107: 11118558 | E107: =D107/$D107*100 -> 100 | F107: 2577697 | G107: =F107/$D107*100 -> 23.1837348 | H107: 2780583 | I107: =H107/$D107*100 -> 25.00848581 | J107: 5760278 | K107: =J107/$D107*100 -> 51.80777939
B108: 대학 Higher educations | C108: 363 | D108: 8353350.45 | E108: 100 | F108: 3132144.798 | G108: 37.49567095 | H108: 2568755.766 | I108: 30.75120315 | J108: 2652449.886 | K108: 31.75312591
B109: 기업체 Business enterprises | C109: 55445 | D109: 73599778.04 | E109: 100 | F109: 7738256.831 | G109: 10.51396762 | H109: 14729289.93 | I109: 20.01268254 | J109: 51132231.28 | K109: 69.47334984
A110: 2021 | B110: 계 Total | C110: 59576 | D110: 102135243.5 | E110: =D110/$D110*100 -> 100 | F110: 15100171.23 | G110: 14.78448644 | H110: 21470363.2 | I110: 21.02150292 | J110: 65564709.11 | K110: 64.19401064
B111: 공공연구기관 Public research institutes | C111: 433 | D111: 11997001 | E111: =D111/$D111*100 -> 100 | F111: 2683404.4 | G111: 22.36729329 | H111: 2988450.9 | I111: 24.90998292 | J111: 6325145.7 | K111: 52.72272379
B112: 대학 Higher educations | C112: 366 | D112: 9330614.888 | E112: 100 | F112: 3639259.495 | G112: 39.00342623 | H112: 2906056.977 | I112: 31.14539622 | J112: 2785298.416 | K112: 29.85117755
B113: 기업체 Business enterprises | C113: 58777 | D113: 80807627.66 | E113: 100 | F113: 8777507.337 | G113: 10.86222624 | H113: 15575855.32 | I113: 19.27522905 | J113: 56454264.99 | K113: 69.8625447

Sheet 2-6
A1: 2-6) 연구원 1인당 연구개발비
A2: R&D expenditure per researcher
G3: (단위 : 백만원, 명 Unit : Won, Millions, person)
A4: 연도·연구수행주체 Year · Sector of performance | C4: 연구개발비(A) R&D expenditure | D4: 연구원(B) Researchers | F4: 연구원 1인당 연구개발비(A/B) R&D expenditure per researcher
D5: FTE | E5: HC | F5: FTE | G5: HC
A6: 1995 | B6: 계 Total | C6: =SUM(C7:C9) -> 9440606 | D6: =SUM(D7:D9) -> 100456 | E6: =SUM(E7:E9) -> 128315 | F6: =C6/D6 -> 93.9775225 | G6: =C6/E6 -> 73.57367416
B7: 공공연구기관 Public research institutes | C7: 1766713 | D7: 14363 | E7: 15007 | F7: 123.0044559 | G7: 117.7259279
B8: 대학 Higher educations | C8: 770912 | D8: 19406 | E8: 44683 | F8: 39.72544574 | G8: 17.25291498
B9: 기업체 Business enterprises | C9: 6902981 | D9: 66687 | E9: 68625 | F9: 103.5131435 | G9: 100.5898871
A10: 1996 | B10: 계 Total | C10: =SUM(C11:C13) -> 10878051 | D10: =SUM(D11:D13) -> 99433 | E10: =SUM(E11:E13) -> 132023 | F10: 109.4008126 | G10: 82.39512055
B11: 공공연구기관 Public research institutes | C11: 1895618 | D11: 13732 | E11: 15503 | F11: 138.0438392 | G11: 122.2742695
B12: 대학 Higher educations | C12: 1018822 | D12: 19483 | E12: 45327 | F12: 52.29287071 | G12: 22.4771549
B13: 기업체 Business enterprises | C13: 7963611 | D13: 66218 | E13: 71193 | F13: 120.2635386 | G13: 111.8594665
A14: 1997 | B14: 계 Total | C14: =SUM(C15:C17) -> 12185806 | D14: =SUM(D15:D17) -> 102660 | E14: =SUM(E15:E17) -> 138438 | F14: =C14/D14 -> 118.7006234 | G14: =C14/E14 -> 88.02356289
B15: 공공연구기관 Public research institutes | C15: 2068899 | D15: 13216 | E15: 15185 | F15: 156.5450212 | G15: 136.2462298
B16: 대학 Higher educations | C16: 1271600 | D16: 19573 | E16: 48588 | F16: 64.96704644 | G16: 26.17107105
B17: 기업체 Business enterprises | C17: 8845307 | D17: 69871 | E17: 74665 | F17: 126.5948247 | G17: 118.4665774
A18: 1998 | B18: 계 Total | C18: =SUM(C19:C21) -> 11336617 | D18: =SUM(D19:D21) -> 92541 | E18: =SUM(E19:E21) -> 129767 | F18: 122.5037227 | G18: 87.36132453
B19: 공공연구기관 Public research institutes | C19: 2099470 | D19: 10952 | E19: 12587 | F19: 191.6974069 | G19: 166.796695
B20: 대학 Higher educations | C20: 1265074 | D20: 21525 | E20: 51162 | F20: 58.77231127 | G20: 24.72682851
B21: 기업체 Business enterprises | C21: 7972073 | D21: 60064 | E21: 66018 | F21: 132.7263086 | G21: 120.7560514
A22: 1999 | B22: 계 Total | C22: =SUM(C23:C25) -> 11921752 | D22: =SUM(D23:D25) -> 100210 | E22: =SUM(E23:E25) -> 134568 | F22: 118.9676879 | G22: 88.59277094
B23: 공공연구기관 Public research institutes | C23: 1979174 | D23: 13013 | E23: 13986 | F23: 152.0920618 | G23: 141.5110825
B24: 대학 Higher educations | C24: 1431421 | D24: 21723 | E24: 50151 | F24: 65.89425954 | G24: 28.54222249
B25: 기업체 Business enterprises | C25: 8511157 | D25: 65474 | E25: 70431 | F25: 129.9929285 | G25: 120.843904
A26: 2000 | B26: 계 Total | C26: =SUM(C27:C29) -> 13848501 | D26: =SUM(D27:D29) -> 108370 | E26: =SUM(E27:E29) -> 159973 | F26: 127.7890652 | G26: 86.56773956
B27: 공공연구기관 Public research institutes | C27: 2031981 | D27: 12801.7 | E27: 13913 | F27: 158.7274346 | G27: 146.0490908
B28: 대학 Higher educations | C28: 1561865 | D28: 23674 | E28: 51727 | F28: 65.97385317 | G28: 30.19438591
B29: 기업체 Business enterprises | C29: 10254655 | D29: 71894.3 | E29: 94333 | F29: 142.6351602 | G29: 108.7069742
A30: 2001 | B30: 계 Total | C30: =SUM(C31:C33) -> 16110521.98 | D30: =SUM(D31:D33) -> 136337.393 | E30: =SUM(E31:E33) -> 178937 | F30: 118.1665692 | G30: 90.03460425
B31: 공공연구기관 Public research institutes | C31: 2160166.079 | D31: 13085.61 | E31: 13921 | F31: 165.0795094 | G31: 155.1731973
B32: 대학 Higher educations | C32: 1676777.181 | D32: 23082.683 | E32: 53717 | F32: 72.64221326 | G32: 31.2150191
B33: 기업체 Business enterprises | C33: 12273578.72 | D33: 100169.1 | E33: 111299 | F33: 122.5285914 | G33: 110.2757322
A34: 2002 | B34: 계 Total | C34: =SUM(C35:C37) -> 17325081.78 | D34: =SUM(D35:D37) -> 141917.23 | E34: =SUM(E35:E37) -> 189888 | F34: 122.0787763 | G34: 91.23842359
B35: 공공연구기관 Public research institutes | C35: 2552631.59 | D35: 12773.97 | E35: 14094 | F35: 199.8307175 | G35: 181.1147715
B36: 대학 Higher educations | C36: 1797096.31 | D36: 24952.59 | E36: 57634 | F36: 72.02043195 | G36: 31.18118316
B37: 기업체 Business enterprises | C37: 12975353.88 | D37: 104190.67 | E37: 118160 | F37: 124.5347005 | G37: 109.8117288
A38: 2003 | B38: 계 Total | C38: =SUM(C39:C41) -> 19068681.99 | D38: =SUM(D39:D41) -> 151254.2614 | E38: =SUM(E39:E41) -> 198171 | F38: 126.0703786 | G38: 96.22337271
B39: 공공연구기관 Public research institutes | C39: 2626355.83 | D39: 13447.225 | E39: 14395 | F39: 195.3083874 | G39: 182.4491719
B40: 대학 Higher educations | C40: 1932662.944 | D40: 26419.2164 | E40: 59746 | F40: 73.15368158 | G40: 32.34798889
B41: 기업체 Business enterprises | C41: 14509663.22 | D41: 111387.82 | E41: 124030 | F41: 130.2625657 | G41: 116.9851102
A42: 2004 | B42: 계 Total | C42: =SUM(C43:C45) -> 22185343 | D42: =SUM(D43:D45) -> 156220 | E42: =SUM(E43:E45) -> 209979 | F42: 142.0134618 | G42: 105.655056
B43: 공공연구기관 Public research institutes | C43: 2964646 | D43: 14848 | E43: 15722 | F43: 199.6663524 | G43: 188.5667218
B44: 대학 Higher educations | C44: 2200886 | D44: 25522 | E44: 59957 | F44: 86.2348562 | G44: 36.70774055
B45: 기업체 Business enterprises | C45: 17019811 | D45: 115850 | E45: 134300 | F45: 146.9124817 | G45: 126.7297915
A46: 2005 | B46: 계 Total | C46: =SUM(C47:C49) -> 24155414 | D46: =SUM(D47:D49) -> 179812.4276 | E46: =SUM(E47:E49) -> 234702 | F46: 134.3367326 | G46: 102.9195064
B47: 공공연구기관 Public research institutes | C47: 3192887 | D47: 14690.31 | E47: 15501 | F47: 217.3464685 | G47: 205.9794207
B48: 대학 Higher educations | C48: 2398284 | D48: 27415.6776 | E48: 64895 | F48: 87.47856008 | G48: 36.95637568
B49: 기업체 Business enterprises | C49: 18564243 | D49: 137706.44 | E49: 154306 | F49: 134.8102747 | G49: 120.307979
A50: 2006 | B50: 계 Total | C50: =SUM(C51:C53) -> 27345704.1 | D50: =SUM(D51:D53) -> 199990.0211 | E50: =SUM(E51:E53) -> 256598 | F50: 136.7353429 | G50: 106.5702153
B51: 공공연구기관 Public research institutes | C51: 3497050.1 | D51: 16097.8 | E51: 16771 | F51: 217.2377654 | G51: 208.5176853
B52: 대학 Higher educations | C52: 2721874 | D52: 28385.9788 | E52: 65923 | F52: 95.8879741 | G52: 41.28868528
B53: 기업체 Business enterprises | C53: 21126780 | D53: 155506.2423 | E53: 173904 | F53: 135.8580832 | G53: 121.4853022
A54: 2007 | B54: 계 Total | C54: =SUM(C55:C57) -> 31301377.26 | D54: =SUM(D55:D57) -> 221928.2309 | E54: =SUM(E55:E57) -> 289098 | F54: 141.0427918 | G54: 108.2725486
B55: 공공연구기관 Public research institutes | C55: 4102365.7 | D55: 18224.41 | E55: 20342 | F55: 225.1027989 | G55: 201.6697326
B56: 대학 Higher educations | C56: 3334118.57 | D56: 37414.7009 | E56: 83123 | F56: 89.11252769 | G56: 40.11066215
B57: 기업체 Business enterprises | C57: 23864892.99 | D57: 166289.12 | E57: 185633 | F57: 143.5144584 | G57: 128.5595395
A58: 2008 | B58: 계 Total | C58: =SUM(C59:C61) -> 34498053.84 | D58: =SUM(D59:D61) -> 236136.871 | E58: =SUM(E59:E61) -> 300050 | F58: 146.0934656 | G58: 114.9743504
B59: 공공연구기관 Public research institutes | C59: 4653235.6 | D59: 18462.22299 | E59: 20950 | F59: 252.0409163 | G59: 222.1114845
B60: 대학 Higher educations | C60: 3844749.4 | D60: 34773.32797 | E60: 82077 | F60: 110.5660466 | G60: 46.8432009
B61: 기업체 Business enterprises | C61: 26000068.84 | D61: 182901.32 | E61: 197023 | F61: 142.1535331 | G61: 131.9646378
A62: 2009 | B62: 계 Total | C62: =SUM(C63:C65) -> 37928502.24 | D62: =SUM(D63:D65) -> 244076.773 | E62: =SUM(E63:E65) -> 323175 | F62: 155.395787 | G62: 117.3621172
B63: 공공연구기관 Public research institutes | C63: 5558383.7 | D63: 21084.236 | E63: 24318 | F63: 263.6274656 | G63: 228.5707583
B64: 대학 Higher educations | C64: 4204259.4 | D64: 38163.0226 | E64: 88554 | F64: 110.1657865 | G64: 47.47678705
B65: 기업체 Business enterprises | C65: 28165859.14 | D65: 184829.5144 | E65: 210303 | F65: 152.3883198 | G65: 133.9298971
A66: 2010 | B66: 계 Total | C66: =SUM(C67:C69) -> 43854834.28 | D66: =SUM(D67:D69) -> 264117.936 | E66: =SUM(E67:E69) -> 345912 | F66: 166.0426208 | G66: 126.7803207
B67: 공공연구기관 Public research institutes | C67: 6306136.03 | D67: 22774.5826 | E67: 26235 | F67: 276.8935941 | G67: 240.3711084
B68: 대학 Higher educations | C68: 4745458.693 | D68: 39264.7499 | E68: 93509 | F68: 120.8579885 | G68: 50.74868401
B69: 기업체 Business enterprises | C69: 32803239.56 | D69: 202078.6035 | E69: 226168 | F69: 162.3291085 | G69: 145.0392609
A70: 2011 | B70: 계 Total | C70: =SUM(C71:C73) -> 49890418.95 | D70: =SUM(D71:D73) -> 288900.9624 | E70: =SUM(E71:E73) -> 375176 | F70: 172.6903868 | G70: 132.9787059
B71: 공공연구기관 Public research institutes | C71: 6673311.11 | D71: 24543.8346 | E71: 28800 | F71: 271.8935822 | G71: 231.7121913
B72: 대학 Higher educations | C72: 5033816.5 | D72: 40843.7979 | E72: 95750 | F72: 123.245554 | G72: 52.57249608
B73: 기업체 Business enterprises | C73: 38183291.34 | D73: 223513.3299 | E73: 250626 | F73: 170.8322781 | G73: 152.3516768
A74: 2012 | B74: 계 Total | C74: =SUM(C75:C77) -> 55450115.65 | D74: =SUM(D75:D77) -> 315589.1929 | E74: =SUM(E75:E77) -> 401724 | F74: 175.703468 | G74: 138.0303782
B75: 공공연구기관 Public research institutes | C75: 6950261.67 | D75: 24722.5896 | E75: 28822 | F75: 281.1300023 | G75: 241.1443227
B76: 대학 Higher educations | C76: 5276928.439 | D76: 43825.7833 | E76: 96916 | F76: 120.4069395 | G76: 54.44847537
B77: 기업체 Business enterprises | C77: 43222925.54 | D77: 247040.82 | E77: 275986 | F77: 174.9626865 | G77: 156.6127468
A78: 2013 | B78: 계 Total | C78: =SUM(C79:C81) -> 59300949.33 | D78: =SUM(D79:D81) -> 321841.8477 | E78: =SUM(E79:E81) -> 410333 | F78: =C78/D78 -> 184.2549369 | G78: =C78/E78 -> 144.5190841
B79: 공공연구기관 Public research institutes | C79: 7260710.547 | D79: 26611.7427 | E79: 31140 | F79: 272.8385972 | G79: 233.1634729
B80: 대학 Higher educations | C80: 5480322.53 | D80: 41783.5011 | E80: 97319 | F80: 131.1599647 | G80: 56.31297619
B81: 기업체 Business enterprises | C81: 46559916.25 | D81: 253446.6039 | E81: 281874 | F81: 183.7070039 | G81: 165.1798898
A82: 2014 | B82: 계 Total | C82: =SUM(C83:C85) -> 63734126.79 | D82: =SUM(D83:D85) -> 345463.4268 | E82: =SUM(E83:E85) -> 437447 | F82: 184.4887819 | G82: 145.6956541
B83: 공공연구기관 Public research institutes | C83: 8112700.933 | D83: 28887.65399 | E83: 33322 | F83: 280.8362678 | G83: 243.4638057
B84: 대학 Higher educations | C84: 5766960.87 | D84: 41938.21564 | E84: 99317 | F84: 137.5108784 | G84: 58.06620085
B85: 기업체 Business enterprises | C85: 49854464.99 | D85: 274637.5572 | E85: 304808 | F85: 181.528213 | G85: 163.5602248
A86: 2015 | B86: 계 Total | C86: =SUM(C87:C89) -> 65959371.73 | D86: =SUM(D87:D89) -> 356447.29 | E86: =SUM(E87:E89) -> 453262 | F86: 185.0466354 | G86: 145.5215123
B87: 공공연구기관 Public research institutes | C87: 8824078.748 | D87: 31444.69684 | E87: 35550 | F87: 280.62216 | G87: 248.2159985
B88: 대학 Higher educations | C88: 5998872.479 | D88: 40866.21758 | E88: 99870 | F88: 146.7929462 | G88: 60.06681165
B89: 기업체 Business enterprises | C89: 51136420.5 | D89: 284136.3756 | E89: 317842 | F89: 179.9713972 | G89: 160.886291
A90: 2016 | B90: 계 Total | C90: =SUM(C91:C93) -> 69405529.89 | D90: =SUM(D91:D93) -> 361291.5335 | E90: =SUM(E91:E93) -> 460769 | F90: 192.1039478 | G90: 150.629773
B91: 공공연구기관 Public research institutes | C91: 9113170.697 | D91: 32663.69847 | E91: 36280 | F91: 278.999964 | G91: 251.189931
B92: 대학 Higher educations | C92: 6339887.929 | D92: 40758.71671 | E92: 103166 | F92: 155.5467993 | G92: 61.4532688
B93: 기업체 Business enterprises | C93: 53952471.26 | D93: 287869.1184 | E93: 321323 | F93: 187.4201428 | G93: 167.907281
A94: 2017 | B94: 계 Total | C94: =SUM(C95:C97) -> 78789187.37 | D94: =SUM(D95:D97) -> 383100.2805 | E94: =SUM(E95:E97) -> 482796 | F94: 205.6620456 | G94: 163.193538
B95: 공공연구기관 Public research institutes | C95: 9543217.4 | D95: 32721.87166 | E95: 36552 | F95: 291.6464407 | G95: 261.0860527
B96: 대학 Higher educations | C96: 6682523.015 | D96: 38812.73328 | E96: 102877 | F96: 172.1734712 | G96: 64.95643356
B97: 기업체 Business enterprises | C97: 62563446.96 | D97: 311565.6756 | E97: 343367 | F97: 200.8033999 | G97: 182.2057651
A98: 2018 | B98: 계 Total | C98: =SUM(C99:C101) -> 85728714.74 | D98: =SUM(D99:D101) -> 408370.4603 | E98: =SUM(E99:E101) -> 514170 | F98: 209.9287855 | G98: 166.7322379
B99: 공공연구기관 Public research institutes | C99: 9843867.4 | D99: 32824.93431 | E99: 37404 | F99: 299.8899345 | G99: 263.1768634
B100: 대학 Higher educations | C100: 7050415.008 | D100: 40735.96095 | E100: 108529 | F100: 173.0759468 | G100: 64.96341999
B101: 기업체 Business enterprises | C101: 68834432.33 | D101: 334809.565 | E101: 368237 | F101: =C101/D101 -> 205.5927892 | G101: =C101/E101 -> 186.9297011
A102: 2019 | B102: 계 Total | C102: =SUM(C103:C105) -> 89047077.12 | D102: =SUM(D103:D105) -> 430690.0064 | E102: =SUM(E103:E105) -> 538136 | F102: 206.754454 | G102: 165.4731836
B103: 공공연구기관 Public research institutes | C103: 10168766 | D103: 34860.99082 | E103: 40069 | F103: 291.6946926 | G103: 253.7813771
B104: 대학 Higher educations | C104: 7371649 | D104: 41447.76561 | E104: 110619 | F104: 177.853954 | G104: 66.63998951
B105: 기업체 Business enterprises | C105: 71506662.12 | D105: 354381.25 | E105: 387448 | F105: 201.7789093 | G105: 184.5580881
A106: 2020 | B106: 계 Total | C106: =SUM(C107:C109) -> 93071686.49 | D106: =SUM(D107:D109) -> 446738.854 | E106: =SUM(E107:E109) -> 558045 | F106: =C106/D106 -> 208.3357775 | G106: =C106/E106 -> 166.7816869
B107: 공공연구기관 Public research institutes | C107: 11118558 | D107: 36285.37094 | E107: 41005 | F107: 306.4198522 | G107: 271.1512742
B108: 대학 Higher educations | C108: 8353350.45 | D108: 44894.65304 | E108: 115924 | F108: 186.0655977 | G108: 72.05885279
B109: 기업체 Business enterprises | C109: 73599778.04 | D109: 365558.83 | E109: 401116 | F109: 201.3349754 | G109: 183.4875149
A110: 2021 | B110: 계 Total | C110: 102135243.5 | D110: 470728.1152 | E110: 586666 | F110: 216.9728985 | G110: 174.094363
B111: 공공연구기관 Public research institutes | C111: 11997001 | D111: 36546.34257 | E111: 42566 | F111: 328.2681702 | G111: 281.8446882
B112: 대학 Higher educations | C112: 9330614.888 | D112: 43772.56266 | E112: 114635 | F112: 213.1612663 | G112: 81.39411949
B113: 기업체 Business enterprises | C113: 80807627.66 | D113: 390409.21 | E113: 429465 | F113: 206.9818682 | G113: 188.1588201

Sheet 2-7
A1: 2-7) 인구 만명당 연구개발인력 및 연구원
A2: R&D personnel and researchers per 10,000 population
A4: 연도·연구수행주체 Year · Sector of performance | C4: 연구개발수행기관 R&D performing inst. | D4: 연구개발인력(명)(A) R&D personnel(Person) | E4: 연구원(명)(B) Researchers(Person) | G4: 인구(만명)(D) Population (Ten thousand) | H4: A/D(명) (person) | I4: B/D(명) (person) | J4: C/D(명) (person)
F5: 상근상당(C) FTE
A6: 1995 | B6: 계 Total | C6: =SUM(C7:C9) -> 2585 | D6: =SUM(D7:D9) -> 201661 | E6: =SUM(E7:E9) -> 128315 | F6: =SUM(F7:F9) -> 100456 | G6: 4509.3 | H6: =D6/$G6 -> 44.72113188 | I6: =E6/$G6 -> 28.45563613 | J6: =F6/$G6 -> 22.27751536
B7: 공공연구기관 Public research institutes | C7: 178 | D7: 25621 | E7: 15007 | F7: 14363
B8: 대학 Higher educations | C8: 257 | D8: 75702 | E8: 44683 | F8: 19406
B9: 기업체 Business enterprises | C9: 2150 | D9: 100338 | E9: 68625 | F9: 66687
A10: 1996 | B10: 계 Total | C10: =SUM(C11:C13) -> 2856 | D10: =SUM(D11:D13) -> 202347 | E10: =SUM(E11:E13) -> 132023 | F10: =SUM(F11:F13) -> 99433 | G10: 4552.5 | H10: =D10/$G10 -> 44.44744646 | I10: =E10/$G10 -> 29.00010983 | J10: =F10/$G10 -> 21.84140582
B11: 공공연구기관 Public research institutes | C11: 163 | D11: 24203 | E11: 15503 | F11: 13732
B12: 대학 Higher educations | C12: 258 | D12: 77220 | E12: 45327 | F12: 19483
B13: 기업체 Business enterprises | C13: 2435 | D13: 100924 | E13: 71193 | F13: 66218
A14: 1997 | B14: 계 Total | C14: =SUM(C15:C17) -> 2962 | D14: =SUM(D15:D17) -> 212117 | E14: =SUM(E15:E17) -> 138438 | F14: =SUM(F15:F17) -> 102660 | G14: 4595.4 | H14: =D14/$G14 -> 46.15854985 | I14: =E14/$G14 -> 30.12534273 | J14: =F14/$G14 -> 22.33973104
B15: 공공연구기관 Public research institutes | C15: 184 | D15: 23382 | E15: 15185 | F15: 13216
B16: 대학 Higher educations | C16: 271 | D16: 86665 | E16: 48588 | F16: 19573
B17: 기업체 Business enterprises | C17: 2507 | D17: 102070 | E17: 74665 | F17: 69871
A18: 1998 | B18: 계 Total | C18: =SUM(C19:C21) -> 2869 | D18: =SUM(D19:D21) -> 199191 | E18: =SUM(E19:E21) -> 129767 | F18: =SUM(F19:F21) -> 92541 | G18: 4628.7 | H18: =D18/$G18 -> 43.03389721 | I18: =E18/$G18 -> 28.03530149 | J18: =F18/$G18 -> 19.99287057
B19: 공공연구기관 Public research institutes | C19: 183 | D19: 19431 | E19: 12587 | F19: 10952
B20: 대학 Higher educations | C20: 267 | D20: 92591 | E20: 51162 | F20: 21525
B21: 기업체 Business enterprises | C21: 2419 | D21: 87169 | E21: 66018 | F21: 60064
A22: 1999 | B22: 계 Total | C22: =SUM(C23:C25) -> 3059 | D22: =SUM(D23:D25) -> 212510 | E22: =SUM(E23:E25) -> 134568 | F22: =SUM(F23:F25) -> 100210 | G22: 4661.7 | H22: =D22/$G22 -> 45.58637407 | I22: =E22/$G22 -> 28.86672244 | J22: =F22/$G22 -> 21.49644979
B23: 공공연구기관 Public research institutes | C23: 169 | D23: 21020 | E23: 13986 | F23: 13013
B24: 대학 Higher educations | C24: 285 | D24: 98052 | E24: 50151 | F24: 21723
B25: 기업체 Business enterprises | C25: 2605 | D25: 93438 | E25: 70431 | F25: 65474
A26: 2000 | B26: 계 Total | C26: =SUM(C27:C29) -> 4635 | D26: =SUM(D27:D29) -> 237232 | E26: =SUM(E27:E29) -> 159973 | F26: =SUM(F27:F29) -> 108370 | G26: 4700.8 | H26: =D26/$G26 -> 50.46630361 | I26: =E26/$G26 -> 34.031016 | J26: =F26/$G26 -> 23.0535228
B27: 공공연구기관 Public research institutes | C27: 173 | D27: 21563 | E27: 13913 | F27: 12801.7
B28: 대학 Higher educations | C28: 268 | D28: 100643 | E28: 51727 | F28: 23674
B29: 기업체 Business enterprises | C29: 4194 | D29: 115026 | E29: 94333 | F29: 71894.3
A30: 2001 | B30: 계 Total | C30: =SUM(C31:C33) -> 6801 | D30: =SUM(D31:D33) -> 261802 | E30: =SUM(E31:E33) -> 178937 | F30: =SUM(F31:F33) -> 136337.393 | G30: 4737 | H30: =D30/$G30 -> 55.26746886 | I30: =E30/$G30 -> 37.77432974 | J30: =F30/$G30 -> 28.78137914
B31: 공공연구기관 Public research institutes | C31: 188 | D31: 20984 | E31: 13921 | F31: 13085.61
B32: 대학 Higher educations | C32: 276 | D32: 102501 | E32: 53717 | F32: 23082.683
B33: 기업체 Business enterprises | C33: 6337 | D33: 138317 | E33: 111299 | F33: 100169.1
A34: 2002 | B34: 계 Total | C34: =SUM(C35:C37) -> 7210 | D34: =SUM(D35:D37) -> 279806 | E34: =SUM(E35:E37) -> 189888 | F34: =SUM(F35:F37) -> 141917.23 | G34: 4764.5 | H34: =D34/$G34 -> 58.72725365 | I34: =E34/$G34 -> 39.85475916 | J34: =F34/$G34 -> 29.78638472
B35: 공공연구기관 Public research institutes | C35: 163 | D35: 21702 | E35: 14094 | F35: 12773.97
B36: 대학 Higher educations | C36: 304 | D36: 111083 | E36: 57634 | F36: 24952.59
B37: 기업체 Business enterprises | C37: 6743 | D37: 147021 | E37: 118160 | F37: 104190.67
A38: 2003 | B38: 계 Total | C38: =SUM(C39:C41) -> 7127 | D38: =SUM(D39:D41) -> 297059.8 | E38: =SUM(E39:E41) -> 198171 | F38: =SUM(F39:F41) -> 151254.2614 | G38: 4789.2 | H38: =D38/$G38 -> 62.02701913 | I38: =E38/$G38 -> 41.37872714 | J38: =F38/$G38 -> 31.58236478
B39: 공공연구기관 Public research institutes | C39: 169 | D39: 22025 | E39: 14395 | F39: 13447.225
B40: 대학 Higher educations | C40: 310 | D40: 121039 | E40: 59746 | F40: 26419.2164
B41: 기업체 Business enterprises | C41: 6648 | D41: 153995.8 | E41: 124030 | F41: 111387.82
A42: 2004 | B42: 계 Total | C42: =SUM(C43:C45) -> 7254 | D42: =SUM(D43:D45) -> 312314 | E42: =SUM(E43:E45) -> 209979 | F42: =SUM(F43:F45) -> 156220 | G42: 4808.3 | H42: =D42/$G42 -> 64.95310193 | I42: =E42/$G42 -> 43.6701121 | J42: =F42/$G42 -> 32.48965331
B43: 공공연구기관 Public research institutes | C43: 159 | D43: 24057 | E43: 15722 | F43: 14848
B44: 대학 Higher educations | C44: 293 | D44: 121968 | E44: 59957 | F44: 25522
B45: 기업체 Business enterprises | C45: 6802 | D45: 166289 | E45: 134300 | F45: 115850
A46: 2005 | B46: 계 Total | C46: =SUM(C47:C49) -> 7761 | D46: =SUM(D47:D49) -> 335428 | E46: =SUM(E47:E49) -> 234702 | F46: =SUM(F47:F49) -> 179812.4276 | G46: 4818.5 | H46: =D46/$G46 -> 69.61253502 | I46: =E46/$G46 -> 48.70851925 | J46: =F46/$G46 -> 37.31709611
B47: 공공연구기관 Public research institutes | C47: 137 | D47: 22604 | E47: 15501 | F47: 14690.31
B48: 대학 Higher educations | C48: 256 | D48: 125039 | E48: 64895 | F48: 27415.6776
B49: 기업체 Business enterprises | C49: 7368 | D49: 187785 | E49: 154306 | F49: 137706.44
A50: 2006 | B50: 계 Total | C50: =SUM(C51:C53) -> 9443 | D50: =SUM(D51:D53) -> 365794 | E50: =SUM(E51:E53) -> 256598 | F50: =SUM(F51:F53) -> 199990.0211 | G50: 4843.8 | H50: =D50/$G50 -> 75.51798175 | I50: =E50/$G50 -> 52.97452413 | J50: =F50/$G50 -> 41.28783622
B51: 공공연구기관 Public research institutes | C51: 139 | D51: 23874 | E51: 16771 | F51: 16097.8
B52: 대학 Higher educations | C52: 268 | D52: 132042 | E52: 65923 | F52: 28385.9788
B53: 기업체 Business enterprises | C53: 9036 | D53: 209878 | E53: 173904 | F53: 155506.2423
A54: 2007 | B54: 계 Total | C54: =SUM(C55:C57) -> 11200 | D54: =SUM(D55:D57) -> 421549 | E54: =SUM(E55:E57) -> 289098 | F54: =SUM(F55:F57) -> 221928.2309 | G54: 4868.4 | H54: =D54/$G54 -> 86.58881768 | I54: =E54/$G54 -> 59.38254868 | J54: =F54/$G54 -> 45.58545537
B55: 공공연구기관 Public research institutes | C55: 188 | D55: 28877 | E55: 20342 | F55: 18224.41
B56: 대학 Higher educations | C56: 322 | D56: 168547 | E56: 83123 | F56: 37414.7009
B57: 기업체 Business enterprises | C57: 10690 | D57: 224125 | E57: 185633 | F57: 166289.12
A58: 2008 | B58: 계 Total | C58: =SUM(C59:C61) -> 12822 | D58: =SUM(D59:D61) -> 436228 | E58: =SUM(E59:E61) -> 300050 | F58: =SUM(F59:F61) -> 236136.871 | G58: 4905.5 | H58: =D58/$G58 -> 88.92630721 | I58: =E58/$G58 -> 61.16603812 | J58: =F58/$G58 -> 48.13716664
B59: 공공연구기관 Public research institutes | C59: 228 | D59: 30028 | E59: 20950 | F59: 18462.22299
B60: 대학 Higher educations | C60: 338 | D60: 167789 | E60: 82077 | F60: 34773.32797
B61: 기업체 Business enterprises | C61: 12256 | D61: 238411 | E61: 197023 | F61: 182901.32
A62: 2009 | B62: 계 Total | C62: =SUM(C63:C65) -> 15237 | D62: =SUM(D63:D65) -> 466824 | E62: =SUM(E63:E65) -> 323175 | F62: =SUM(F63:F65) -> 244076.773 | G62: 4930.8 | H62: =D62/$G62 -> 94.67510343 | I62: =E62/$G62 -> 65.5421027 | J62: =F62/$G62 -> 49.5004407
B63: 공공연구기관 Public research institutes | C63: 252 | D63: 36686 | E63: 24318 | F63: 21084.236
B64: 대학 Higher educations | C64: 359 | D64: 174575 | E64: 88554 | F64: 38163.0226
B65: 기업체 Business enterprises | C65: 14626 | D65: 255563 | E65: 210303 | F65: 184829.5144
A66: 2010 | B66: 계 Total | C66: =SUM(C67:C69) -> 16550 | D66: =SUM(D67:D69) -> 500124 | E66: =SUM(E67:E69) -> 345912 | F66: =SUM(F67:F69) -> 264117.936 | G66: 4955.4 | H66: =D66/$G66 -> 100.9250515 | I66: =E66/$G66 -> 69.80506115 | J66: =F66/$G66 -> 53.29901441
B67: 공공연구기관 Public research institutes | C67: 261 | D67: 39738 | E67: 26235 | F67: 22774.5826
B68: 대학 Higher educations | C68: 352 | D68: 188211 | E68: 93509 | F68: 39264.7499
B69: 기업체 Business enterprises | C69: 15937 | D69: 272175 | E69: 226168 | F69: 202078.6035
A70: 2011 | B70: 계 Total | C70: =SUM(C71:C73) -> 20372 | D70: =SUM(D71:D73) -> 531131 | E70: =SUM(E71:E73) -> 375176 | F70: =SUM(F71:F73) -> 288900.9624 | G70: 4993.7 | H70: =D70/$G70 -> 106.3602139 | I70: =E70/$G70 -> 75.12986363 | J70: =F70/$G70 -> 57.85308737
B71: 공공연구기관 Public research institutes | C71: 268 | D71: 43457 | E71: 28800 | F71: 24543.8346
B72: 대학 Higher educations | C72: 350 | D72: 186690 | E72: 95750 | F72: 40843.7979
B73: 기업체 Business enterprises | C73: 19754 | D73: 300984 | E73: 250626 | F73: 223513.3299
A74: 2012 | B74: 계 Total | C74: =SUM(C75:C77) -> 23533 | D74: =SUM(D75:D77) -> 562601 | E74: =SUM(E75:E77) -> 401724 | F74: =SUM(F75:F77) -> 315589.1929 | G74: 5020 | H74: =D74/$G74 -> 112.0719124 | I74: =E74/$G74 -> 80.0247012 | J74: =F74/$G74 -> 62.86637309
B75: 공공연구기관 Public research institutes | C75: 272 | D75: 46500 | E75: 28822 | F75: 24722.5896
B76: 대학 Higher educations | C76: 344 | D76: 184281 | E76: 96916 | F76: 43825.7833
B77: 기업체 Business enterprises | C77: 22917 | D77: 331820 | E77: 275986 | F77: 247040.82
A78: 2013 | B78: 계 Total | C78: =SUM(C79:C81) -> 25882 | D78: =SUM(D79:D81) -> 569333 | E78: =SUM(E79:E81) -> 410333 | F78: =SUM(F79:F81) -> 321841.8477 | G78: 5042.9 | H78: =D78/$G78 -> 112.8979357 | I78: =E78/$G78 -> 81.36845862 | J78: =F78/$G78 -> 63.82078719
B79: 공공연구기관 Public research institutes | C79: 326 | D79: 49782 | E79: 31140 | F79: 26611.7427
B80: 대학 Higher educations | C80: 371 | D80: 181284 | E80: 97319 | F80: 41783.5011
B81: 기업체 Business enterprises | C81: 25185 | D81: 338267 | E81: 281874 | F81: 253446.6039
A82: 2014 | B82: 계 Total | C82: =SUM(C83:C85) -> 30111 | D82: =SUM(D83:D85) -> 605604 | E82: =SUM(E83:E85) -> 437447 | F82: =SUM(F83:F85) -> 345463.4268 | G82: 5074.7 | H82: =D82/$G82 -> 119.3378919 | I82: =E82/$G82 -> 86.20154886 | J82: =F82/$G82 -> 68.07563537
B83: 공공연구기관 Public research institutes | C83: 348 | D83: 51849 | E83: 33322 | F83: 28887.65399
B84: 대학 Higher educations | C84: 371 | D84: 187087 | E84: 99317 | F84: 41938.21564
B85: 기업체 Business enterprises | C85: 29392 | D85: 366668 | E85: 304808 | F85: 274637.5572
A86: 2015 | B86: 계 Total | C86: =SUM(C87:C89) -> 35379 | D86: =SUM(D87:D89) -> 619907 | E86: =SUM(E87:E89) -> 453262 | F86: =SUM(F87:F89) -> 356447.29 | G86: 5101.5 | H86: =D86/$G86 -> 121.5146526 | I86: =E86/$G86 -> 88.84876997 | J86: =F86/$G86 -> 69.87107517
B87: 공공연구기관 Public research institutes | C87: 372 | D87: 54178 | E87: 35550 | F87: 31444.69684
B88: 대학 Higher educations | C88: 365 | D88: 185113 | E88: 99870 | F88: 40866.21758
B89: 기업체 Business enterprises | C89: 34642 | D89: 380616 | E89: 317842 | F89: 284136.3756
A90: 2016 | B90: 계 Total | C90: =SUM(C91:C93) -> 37218 | D90: =SUM(D91:D93) -> 624910 | E90: =SUM(E91:E93) -> 460769 | F90: =SUM(F91:F93) -> 361291.5335 | G90: 5121.8 | H90: =D90/$G90 -> 122.0098403 | I90: =E90/$G90 -> 89.96231794 | J90: =F90/$G90 -> 70.53995344
B91: 공공연구기관 Public research institutes | C91: 372 | D91: 55157 | E91: 36280 | F91: 32663.69847
B92: 대학 Higher educations | C92: 368 | D92: 185737 | E92: 103166 | F92: 40758.71671
B93: 기업체 Business enterprises | C93: 36478 | D93: 384016 | E93: 321323 | F93: 287869.1184
A94: 2017 | B94: 계 Total | C94: =SUM(C95:C97) -> 42368 | D94: =SUM(D95:D97) -> 650243 | E94: =SUM(E95:E97) -> 482796 | F94: =SUM(F95:F97) -> 383100.2805 | G94: 5136.2 | H94: =D94/$G94 -> 126.6000156 | I94: =E94/$G94 -> 93.99867606 | J94: =F94/$G94 -> 74.58827159
B95: 공공연구기관 Public research institutes | C95: 375 | D95: 55816 | E95: 36552 | F95: 32721.87166 | I95: `
B96: 대학 Higher educations | C96: 364 | D96: 185660 | E96: 102877 | F96: 38812.73328
B97: 기업체 Business enterprises | C97: 41629 | D97: 408767 | E97: 343367 | F97: 311565.6756
A98: 2018 | B98: 계 Total | C98: =SUM(C99:C101) -> 49302 | D98: =SUM(D99:D101) -> 691060 | E98: =SUM(E99:E101) -> 514170 | F98: =SUM(F99:F101) -> 408370.4603 | G98: 5160.7 | H98: =D98/$G98 -> 133.9081907 | I98: =E98/$G98 -> 99.63183289 | J98: =F98/$G98 -> 79.13082726
B99: 공공연구기관 Public research institutes | C99: 401 | D99: 58386 | E99: 37404 | F99: 32824.93431
B100: 대학 Higher educations | C100: 365 | D100: 192448 | E100: 108529 | F100: 40735.96095
B101: 기업체 Business enterprises | C101: 48536 | D101: 440226 | E101: 368237 | F101: 334809.565
A102: 2019 | B102: 계 Total | C102: =SUM(C103:C105) -> 53005 | D102: =SUM(D103:D105) -> 718759 | E102: =SUM(E103:E105) -> 538136 | F102: =SUM(F103:F105) -> 430690.0064 | G102: 5170.9 | H102: =D102/$G102 -> 139.0007542 | I102: =E102/$G102 -> 104.0700845 | J102: =F102/$G102 -> 83.29111111
B103: 공공연구기관 Public research institutes | C103: 419 | D103: 62412 | E103: 40069 | F103: 34860.99082
B104: 대학 Higher educations | C104: 368 | D104: 194136 | E104: 110619 | F104: 41447.76561
B105: 기업체 Business enterprises | C105: 52218 | D105: 462211 | E105: 387448 | F105: 354381.25
A106: 2020 | B106: 계 Total | C106: =SUM(C107:C109) -> 56223 | D106: =SUM(D107:D109) -> 747288 | E106: =SUM(E107:E109) -> 558045 | F106: =SUM(F107:F109) -> 446738.854 | G106: 5178.1 | H106: =D106/$G106 -> 144.3170275 | I106: =E106/$G106 -> 107.7702246 | J106: =F106/$G106 -> 86.27466715
B107: 공공연구기관 Public research institutes | C107: 415 | D107: 64134 | E107: 41005 | F107: 36285.37094
B108: 대학 Higher educations | C108: 363 | D108: 207025 | E108: 115924 | F108: 44894.65304
B109: 기업체 Business enterprises | C109: 55445 | D109: 476129 | E109: 401116 | F109: 365558.83
A110: 2021 | B110: 계 Total | C110: 59576 | D110: 785594 | E110: 586666 | F110: 470728.1152 | G110: 5195.2 | H110: =D110/$G110 -> 151.2153526 | I110: =E110/$G110 -> 112.9246227 | J110: =F110/$G110 -> 90.60827595
B111: 공공연구기관 Public research institutes | C111: 433 | D111: 66560 | E111: 42566 | F111: 36546.34257
B112: 대학 Higher educations | C112: 366 | D112: 210163 | E112: 114635 | F112: 43772.56266
B113: 기업체 Business enterprises | C113: 58777 | D113: 508871 | E113: 429465 | F113: 390409.21
A115: 자료 : 인구(OECD, Main Science and Technology Indicators 2022-september, 2022)

Sheet 2-8
A1: 2-8) 전공별·학위별 연구원
A2: Researchers by major field of study and degree
A4: 전공·학위 Major field of study · Degree | C4: 이학 Natural sciences | H4: 공학 Engineering & technology | M4: 농업과학 Agricultural sciences | R4: 의·약·보건학 Medical & health sciences
C5: 계 Total | D5: 박사 Doctoral | E5: 석사 Master's | F5: 학사 Bachelor's | G5: 기타 Others | H5: 계 Total | I5: 박사 Doctoral | J5: 석사 Master's | K5: 학사 Bachelor's | L5: 기타 Others | M5: 계 Total | N5: 박사 Doctoral | O5: 석사 Master's | P5: 학사 Bachelor's | Q5: 기타 Others | R5: 계 Total | S5: 박사 Doctoral | T5: 석사 Master's | U5: 학사 Bachelor's | V5: 기타 Others
A6: 연구원(명) Researchers(Person) | B6: 1995 | C6: =SUM(D6:G6) -> 23383 | D6: 8707 | E6: 8479 | F6: 5954 | G6: 243 | H6: =SUM(I6:L6) -> 78936 | I6: 14748 | J6: 26875 | K6: 34631 | L6: 2682 | M6: =SUM(N6:Q6) -> 6705 | N6: 3186 | O6: 2054 | P6: 1361 | Q6: 104 | R6: =SUM(S6:V6) -> 10343 | S6: 5991 | T6: 3436 | U6: 804 | V6: 112
B7: 1996 | C7: 23483 | D7: 8688 | E7: 8958 | F7: 5455 | G7: 382 | H7: 84358 | I7: 15732 | J7: 29411 | K7: 35832 | L7: 3383 | M7: 6855 | N7: 3175 | O7: 2315 | P7: 1279 | Q7: 86 | R7: 11854 | S7: 6999 | T7: 4031 | U7: 781 | V7: 43
B8: 1997 | C8: 24539 | D8: 9170 | E8: 9587 | F8: 5511 | G8: 271 | H8: 88433 | I8: 16727 | J8: 31427 | K8: 36635 | L8: 3644 | M8: 6407 | N8: 3048 | O8: 2201 | P8: 1084 | Q8: 74 | R8: 12489 | S8: 7649 | T8: 3931 | U8: 871 | V8: 38
B9: 1998 | C9: 21548 | D9: 8449 | E9: 7947 | F9: 4858 | G9: 294 | H9: 81748 | I9: 17846 | J9: 28078 | K9: 32241 | L9: 3583 | M9: 5553 | N9: 2590 | O9: 2064 | P9: 861 | Q9: 38 | R9: 10548 | S9: 6910 | T9: 2947 | U9: 651 | V9: 40
B10: 1999 | C10: 22679 | D10: 10149 | E10: 7494 | F10: 4729 | G10: 307 | H10: 88239 | I10: 21333 | J10: 29339 | K10: 32774 | L10: 4793 | M10: 6790 | N10: 3099 | O10: 2753 | P10: 817 | Q10: 121 | R10: 11538 | S10: 6780 | T10: 3885 | U10: 732 | V10: 141
B11: 2000 | C11: 27040 | D11: 9663 | E11: 9557 | F11: 7174 | G11: 646 | H11: 109060 | I11: 22825 | J11: 34432 | K11: 44612 | L11: 7191 | M11: 7264 | N11: 3529 | O11: 2555 | P11: 1002 | Q11: 178 | R11: 12255 | S11: 7857 | T11: 3404 | U11: 867 | V11: 127
B12: 2001 | C12: 30088 | D12: 10139 | E12: 11116 | F12: 8264 | G12: 569 | H12: 118949 | I12: 22796 | J12: 37839 | K12: 51359 | L12: 6955 | M12: 6080 | N12: 3031 | O12: 2079 | P12: 834 | Q12: 136 | R12: 12487 | S12: 7067 | T12: 4546 | U12: 733 | V12: 141
B13: 2002 | C13: =SUM(D13:G13) -> 32778 | D13: 10845 | E13: 11705 | F13: 9638 | G13: 590 | H13: =SUM(I13:L13) -> 128930 | I13: 24640 | J13: 42987 | K13: 54323 | L13: 6980 | M13: =SUM(N13:Q13) -> 6040 | N13: 3010 | O13: 2240 | P13: 727 | Q13: 63 | R13: =SUM(S13:V13) -> 13096 | S13: 7642 | T13: 4677 | U13: 662 | V13: 115
B14: 2003 | C14: =SUM(D14:G14) -> 29242 | D14: 10549 | E14: 11120 | F14: 7242 | G14: 331 | H14: =SUM(I14:L14) -> 139457 | I14: 26763 | J14: 47148 | K14: 58807 | L14: 6739 | M14: =SUM(N14:Q14) -> 6247 | N14: 3437 | O14: 2070 | P14: 691 | Q14: 49 | R14: =SUM(S14:V14) -> 14080 | S14: 8367 | T14: 4989 | U14: 659 | V14: 65
B15: 2004 | C15: 30965 | D15: 11531 | E15: 11088 | F15: 7917 | G15: 429 | H15: 150628 | I15: 29813 | J15: 49179 | K15: 65919 | L15: 5717 | M15: 6219 | N15: 3555 | O15: 1941 | P15: 657 | Q15: 66 | R15: 14451 | S15: 9116 | T15: 4425 | U15: 639 | V15: 271
B16: 2005 | C16: 33248 | D16: 11619 | E16: 12635 | F16: 8442 | G16: 552 | H16: 169145 | I16: 30636 | J16: 55619 | K16: 74596 | L16: 8294 | M16: 6813 | N16: 3641 | O16: 2201 | P16: 841 | Q16: 130 | R16: 15143 | S16: 9038 | T16: 5197 | U16: 729 | V16: 179
B17: 2006 | C17: 35239 | D17: 11715 | E17: 13306 | F17: 9504 | G17: 714 | H17: 184897 | I17: 31784 | J17: 58663 | K17: 85307 | L17: 9143 | M17: 7132 | N17: 3803 | O17: 2349 | P17: 801 | Q17: 179 | R17: 17391 | S17: 9848 | T17: 5911 | U17: 1382 | V17: 250
B18: 2007 | C18: 35443 | D18: 11196 | E18: 13699 | F18: 9865 | G18: 683 | H18: 195841 | I18: 30904 | J18: 61999 | K18: 92434 | L18: 10504 | M18: 7326 | N18: 3739 | O18: 2434 | P18: 980 | Q18: 173 | R18: 16576 | S18: 9393 | T18: 5460 | U18: 1386 | V18: 337
B19: 2008 | C19: 35760 | D19: 10905 | E19: 13526 | F19: 10522 | G19: 807 | H19: 205478 | I19: 31400 | J19: 64006 | K19: 98701 | L19: 11371 | M19: 6853 | N19: 3503 | O19: 2245 | P19: 1009 | Q19: 96 | R19: 17247 | S19: 9104 | T19: 5655 | U19: 1895 | V19: 593
B20: 2009 | C20: 41687 | D20: 12210 | E20: 16113 | F20: 12121 | G20: 1243 | H20: 217911 | I20: 31990 | J20: 68321 | K20: 104986 | L20: 12614 | M20: 8713 | N20: 4193 | O20: 2982 | P20: 1363 | Q20: 175 | R20: 17227 | S20: 9031 | T20: 5902 | U20: 1582 | V20: 712
B21: 2010 | C21: 46023 | D21: 13337 | E21: 18019 | F21: 13536 | G21: 1131 | H21: 231913 | I21: 33780 | J21: 71273 | K21: 113385 | L21: 13475 | M21: 9202 | N21: 4248 | O21: 3210 | P21: 1559 | Q21: 185 | R21: 18926 | S21: 10021 | T21: 6108 | U21: 2515 | V21: 282
B22: 2011 | C22: =SUM(D22:G22) -> 48544 | D22: 13532 | E22: 19005 | F22: 14636 | G22: 1371 | H22: =SUM(I22:L22) -> 253445 | I22: 35728 | J22: 75360 | K22: 127008 | L22: 15349 | M22: =SUM(N22:Q22) -> 9841 | N22: 4435 | O22: 3334 | P22: 1814 | Q22: 258 | R22: =SUM(S22:V22) -> 20473 | S22: 10663 | T22: 7010 | U22: 2206 | V22: 594
B23: 2012 | C23: =SUM(D23:G23) -> 53654 | D23: 14573 | E23: 20668 | F23: 16716 | G23: 1697 | H23: =SUM(I23:L23) -> 273839 | I23: 37793 | J23: 80950 | K23: 137938 | L23: 17158 | M23: =SUM(N23:Q23) -> 9912 | N23: 4329 | O23: 3356 | P23: 1978 | Q23: 249 | R23: =SUM(S23:V23) -> 19945 | S23: 9836 | T23: 7004 | U23: 2603 | V23: 502
B24: 2013 | C24: 51494 | D24: 14245 | E24: 19142 | F24: 16332 | G24: 1775 | H24: 279388 | I24: 38287 | J24: 81780 | K24: 141846 | L24: 17475 | M24: 10102 | N24: 4383 | O24: 3468 | P24: 1984 | Q24: 267 | R24: 23292 | S24: 10619 | T24: 7735 | U24: 4434 | V24: 504
B25: 2014 | C25: 54772 | D25: 14621 | E25: 20595 | F25: 17817 | G25: 1739 | H25: 298436 | I25: 39333 | J25: 85908 | K25: 153951 | L25: 19244 | M25: 10662 | N25: 4729 | O25: 3775 | P25: 1959 | Q25: 199 | R25: 23522 | S25: 10961 | T25: 7301 | U25: 4137 | V25: 1123
B26: 2015 | C26: 57976 | D26: 16599 | E26: 21265 | F26: 18276 | G26: 1836 | H26: 308230 | I26: 42168 | J26: 86006 | K26: 159455 | L26: 20601 | M26: 11045 | N26: 5053 | O26: 3720 | P26: 2059 | Q26: 213 | R26: 24066 | S26: 12136 | T26: 7085 | U26: 4404 | V26: 441
B27: 2016 | C27: 56710 | D27: 16410 | E27: 20775 | F27: 17668 | G27: 1857 | H27: 312987 | I27: 43123 | J27: 88114 | K27: 160356 | L27: 21394 | M27: 11378 | N27: 5061 | O27: 3991 | P27: 2098 | Q27: 228 | R27: 26347 | S27: 13181 | T27: 8225 | U27: 4172 | V27: 769
B28: 2017 | C28: 67736 | D28: 17976 | E28: 22587 | F28: 24296 | G28: 2877 | H28: 322952 | I28: 45445 | J28: 91783 | K28: 166088 | L28: 19636 | M28: 10423 | N28: 4795 | O28: 3453 | P28: 1965 | Q28: 210 | R28: 27911 | S28: 14123 | T28: 8112 | U28: 4882 | V28: 794
B29: 2018 | C29: 72884 | D29: 18299 | E29: 23670 | F29: 27424 | G29: 3491 | H29: 344916 | I29: 46530 | J29: 96063 | K29: 180386 | L29: 21937 | M29: 10991 | N29: 4754 | O29: 3826 | P29: 2147 | Q29: 264 | R29: 29774 | S29: 14683 | T29: 8952 | U29: 5250 | V29: 889
B30: 2019 | C30: =SUM(D30:G30) -> 86248 | D30: 19586 | E30: 27263 | F30: 35824 | G30: 3575 | H30: =SUM(I30:L30) -> 350000 | I30: 48859 | J30: 96415 | K30: 183156 | L30: 21570 | M30: =SUM(N30:Q30) -> 11051 | N30: 4928 | O30: 3537 | P30: 2314 | Q30: 272 | R30: =SUM(S30:V30) -> 31848 | S30: 15846 | T30: 9913 | U30: 5152 | V30: 937
B31: 2020 | C31: 81152 | D31: 20200 | E31: 26386 | F31: 30315 | G31: 4251 | H31: 371068 | I31: 52138 | J31: 100893 | K31: 196013 | L31: 22024 | M31: 10853 | N31: 4816 | O31: 3409 | P31: 2335 | Q31: 293 | R31: 33262 | S31: 16837 | T31: 10335 | U31: 4925 | V31: 1165
B32: 2021 | C32: 88727 | D32: 21581 | E32: 28296 | F32: 34363 | G32: 4487 | H32: 386778 | I32: 54230 | J32: 104605 | K32: 205757 | L32: 22186 | M32: 11361 | N32: 4681 | O32: 3858 | P32: 2504 | Q32: 318 | R32: 35396 | S32: 17793 | T32: 10369 | U32: 6060 | V32: 1174
A33: 전년대비증가율(%) Percent change from previous year(%) | B33: 1995 | C33: =(C6/C5-1)*100 -> 
B34: 1996 | C34: =(C7/C6-1)*100 -> 0.4276611213 | D34: -0.2182152291 | E34: 5.649251091 | F34: -8.38092039 | G34: 57.20164609 | H34: 6.868855782 | I34: 6.672091131 | J34: 9.43627907 | K34: 3.467991106 | L34: 26.13721104 | M34: 2.237136465 | N34: -0.3452605148 | O34: 12.70691334 | P34: -6.024981631 | Q34: -17.30769231 | R34: 14.60891424 | S34: 16.82523786 | T34: 17.31664726 | U34: -2.860696517 | V34: -61.60714286
B35: 1997 | C35: =(C8/C7-1)*100 -> 4.496870076 | D35: 5.547882136 | E35: 7.02165662 | F35: 1.026581118 | G35: -29.05759162 | H35: 4.830602907 | I35: 6.324688533 | J35: 6.854578219 | K35: 2.241013619 | L35: 7.715045817 | M35: -6.535375638 | N35: -4 | O35: -4.924406048 | P35: -15.24628616 | Q35: -13.95348837 | R35: 5.356841572 | S35: 9.287041006 | T35: -2.480774001 | U35: 11.52368758 | V35: -11.62790698
B36: 1998 | C36: =(C9/C8-1)*100 -> -12.18876075 | D36: -7.86259542 | E36: -17.10649838 | F36: -11.84902921 | G36: 8.487084871 | H36: -7.559395248 | I36: 6.689782986 | J36: -10.65644191 | K36: -11.99399481 | L36: -1.673984632 | M36: -13.32917122 | N36: -15.02624672 | O36: -6.224443435 | P36: -20.57195572 | Q36: -48.64864865 | R36: -15.54167668 | S36: -9.661393646 | T36: -25.03179852 | U36: -25.25832377 | V36: 5.263157895
B37: 1999 | C37: =(C10/C9-1)*100 -> 5.248746983 | D37: 20.12072435 | E37: -5.700264251 | F37: -2.655413751 | G37: 4.421768707 | H37: 7.940255419 | I37: 19.53939258 | J37: 4.491060617 | K37: 1.653174529 | L37: 33.77058331 | M37: 22.27624707 | N37: 19.65250965 | O37: 33.38178295 | P37: -5.110336818 | Q37: 218.4210526 | R37: 9.385665529 | S37: -1.881331404 | T37: 31.82897862 | U37: 12.44239631 | V37: 252.5
B38: 2000 | C38: =(C11/C10-1)*100 -> 19.22924291 | D38: -4.788649128 | E38: 27.52868962 | F38: 51.70226263 | G38: 110.4234528 | H38: 23.5961423 | I38: 6.993859279 | J38: 17.35914653 | K38: 36.1200952 | L38: 50.03129564 | M38: 6.980854197 | N38: 13.87544369 | O38: -7.192154014 | P38: 22.64381885 | Q38: 47.10743802 | R38: 6.21424857 | S38: 15.88495575 | T38: -12.38095238 | U38: 18.44262295 | V38: -9.929078014
B39: 2001 | C39: =(C12/C11-1)*100 -> 11.27218935 | D39: 4.926006416 | E39: 16.31265041 | F39: 15.19375523 | G39: -11.91950464 | H39: 9.067485788 | I39: -0.1270536692 | J39: 9.894865242 | K39: 15.12373352 | L39: -3.281880128 | M39: -16.29955947 | N39: -14.11164636 | O39: -18.63013699 | P39: -16.76646707 | Q39: -23.59550562 | R39: 1.893104855 | S39: -10.05472827 | T39: 33.54876616 | U39: -15.455594 | V39: 11.02362205
B40: 2002 | C40: =(C13/C12-1)*100 -> 8.940441372 | D40: 6.963211362 | E40: 5.298668586 | F40: 16.62633107 | G40: 3.690685413 | H40: 8.390991097 | I40: 8.089138445 | J40: 13.6050107 | K40: 5.771140404 | L40: 0.3594536305 | M40: -0.6578947368 | N40: -0.6928406467 | O40: 7.744107744 | P40: -12.82973621 | Q40: -53.67647059 | R40: 4.877072155 | S40: 8.13640866 | T40: 2.881654201 | U40: -9.68622101 | V40: -18.43971631
B41: 2003 | C41: =(C14/C13-1)*100 -> -10.78772347 | D41: -2.729368373 | E41: -4.997864161 | F41: -24.85992945 | G41: -43.89830508 | H41: 8.16489568 | I41: 8.616071429 | J41: 9.679670598 | K41: 8.254330578 | L41: -3.452722063 | M41: 3.427152318 | N41: 14.18604651 | O41: -7.589285714 | P41: -4.951856946 | Q41: -22.22222222 | R41: 7.513744655 | S41: 9.487045276 | T41: 6.670942912 | U41: -0.4531722054 | V41: -43.47826087
B42: 2004 | C42: =(C15/C14-1)*100 -> 5.892209835 | D42: 9.308939236 | E42: -0.2877697842 | F42: 9.32062966 | G42: 29.60725076 | H42: 8.010354446 | I42: 11.39633076 | J42: 4.307711886 | K42: 12.09379836 | L42: -15.16545482 | M42: -0.4482151433 | N42: 3.433226651 | O42: -6.231884058 | P42: -4.92040521 | Q42: 34.69387755 | R42: 2.634943182 | S42: 8.951834588 | T42: -11.30487072 | U42: -3.034901366 | V42: 316.9230769
B43: 2005 | C43: =(C16/C15-1)*100 -> 7.372840304 | D43: 0.7631601769 | E43: 13.9520202 | F43: 6.631299735 | G43: 28.67132867 | H43: 12.29319914 | I43: 2.760540704 | J43: 13.09502023 | K43: 13.16312444 | L43: 45.07608886 | M43: 9.551374819 | N43: 2.419127989 | O43: 13.39515714 | P43: 28.00608828 | Q43: 96.96969697 | R43: 4.788595945 | S43: -0.8556384379 | T43: 17.44632768 | U43: 14.08450704 | V43: -33.94833948
B44: 2006 | C44: =(C17/C16-1)*100 -> 5.988330125 | D44: 0.8262328944 | E44: 5.310645034 | F44: 12.57995736 | G44: 29.34782609 | H44: 9.312719856 | I44: 3.747225486 | J44: 5.472949891 | K44: 14.35867875 | L44: 10.23631541 | M44: 4.682225158 | N44: 4.449327108 | O44: 6.724216265 | P44: -4.756242568 | Q44: 37.69230769 | R44: 14.84514297 | S44: 8.96215977 | T44: 13.7386954 | U44: 89.57475995 | V44: 39.66480447
B45: 2007 | C45: =(C18/C17-1)*100 -> 0.5789040552 | D45: -4.43021767 | E45: 2.953554787 | F45: 3.798400673 | G45: -4.341736695 | H45: 5.918971103 | I45: -2.768688648 | J45: 5.686719056 | K45: 8.354531281 | L45: 14.88570491 | M45: 2.720134605 | N45: -1.682881935 | O45: 3.61856109 | P45: 22.34706617 | Q45: -3.351955307 | R45: -4.686332011 | S45: -4.620227457 | T45: -7.629842666 | U45: 0.2894356006 | V45: 34.8
B46: 2008 | C46: =(C19/C18-1)*100 -> 0.8943938154 | D46: -2.599142551 | E46: -1.262865903 | F46: 6.659908768 | G46: 18.15519766 | H46: 4.920828631 | I46: 1.60497023 | J46: 3.237148986 | K46: 6.779972737 | L46: 8.253998477 | M46: -6.456456456 | N46: -6.311848088 | O46: -7.764995892 | P46: 2.959183673 | Q46: -44.50867052 | R46: 4.048021236 | S46: -3.076759289 | T46: 3.571428571 | U46: 36.72438672 | V46: 75.96439169
B47: 2009 | C47: =(C20/C19-1)*100 -> 16.57438479 | D47: 11.96698762 | E47: 19.12612746 | F47: 15.19673066 | G47: 54.02726146 | H47: 6.050769425 | I47: 1.878980892 | J47: 6.741555479 | K47: 6.367716639 | L47: 10.93131651 | M47: 27.14139793 | N47: 19.69740223 | O47: 32.8285078 | P47: 35.08424182 | Q47: 82.29166667 | R47: -0.1159621963 | S47: -0.8018453427 | T47: 4.367816092 | U47: -16.5171504 | V47: 20.06745363
B48: 2010 | C48: =(C21/C20-1)*100 -> 10.40132415 | D48: 9.23013923 | E48: 11.82895798 | F48: 11.67395429 | G48: -9.010458568 | H48: 6.425559059 | I48: 5.595498593 | J48: 4.320779848 | K48: 8.000114301 | L48: 6.825749168 | M48: 5.612303455 | N48: 1.311709993 | O48: 7.645875252 | P48: 14.38004402 | Q48: 5.714285714 | R48: 9.862425263 | S48: 10.96224117 | T48: 3.490342257 | U48: 58.97597977 | V48: -60.39325843
B49: 2011 | C49: =(C22/C21-1)*100 -> 5.477695935 | D49: 1.462097923 | E49: 5.472001776 | F49: 8.126477541 | G49: 21.22015915 | H49: 9.284516176 | I49: 5.766725873 | J49: 5.734289282 | K49: 12.01481677 | L49: 13.90723562 | M49: 6.944142578 | N49: 4.402071563 | O49: 3.862928349 | P49: 16.35663887 | Q49: 39.45945946 | R49: 8.173940611 | S49: 6.406546253 | T49: 14.76751801 | U49: -12.28628231 | V49: 110.6382979
B50: 2012 | C50: =(C23/C22-1)*100 -> 10.52653263 | D50: 7.692876145 | E50: 8.750328861 | F50: 14.21153321 | G50: 23.77826404 | H50: 8.04671625 | I50: 5.779780564 | J50: 7.417728238 | K50: 8.605757118 | L50: 11.78578409 | M50: 0.7214713952 | N50: -2.390078918 | O50: 0.6598680264 | P50: 9.040793826 | Q50: -3.488372093 | R50: -2.579006496 | S50: -7.755791053 | T50: -0.08559201141 | U50: 17.99637353 | V50: -15.48821549
B51: 2013 | C51: =(C24/C23-1)*100 -> -4.025794908 | D51: -2.250737666 | E51: -7.38339462 | F51: -2.297200287 | G51: 4.596346494 | H51: 2.026373161 | I51: 1.307120366 | J51: 1.025324274 | K51: 2.833156926 | L51: 1.847534678 | M51: 1.916868442 | N51: 1.247401247 | O51: 3.337306317 | P51: 0.3033367037 | Q51: 7.228915663 | R51: 16.78114816 | S51: 7.96055307 | T51: 10.4368932 | U51: 70.34191318 | V51: 0.3984063745
B52: 2014 | C52: =(C25/C24-1)*100 -> 6.365790189 | D52: 2.63952264 | E52: 7.590638387 | F52: 9.092578986 | G52: -2.028169014 | H52: 6.817758816 | I52: 2.731997806 | J52: 5.047688921 | K52: 8.533902965 | L52: 10.1230329 | M52: 5.543456741 | N52: 7.894136436 | O52: 8.852364475 | P52: -1.260080645 | Q52: -25.46816479 | R52: 0.9874635068 | S52: 3.220642245 | T52: -5.610859729 | U52: -6.698240866 | V52: 122.8174603
B53: 2015 | C53: =(C26/C25-1)*100 -> 5.849704228 | D53: 13.52848642 | E53: 3.2532168 | F53: 2.576191278 | G53: 5.577918344 | H53: 3.281775657 | I53: 7.207688201 | J53: 0.1140755227 | K53: 3.575163526 | L53: 7.051548535 | M53: 3.592196586 | N53: 6.851342779 | O53: -1.456953642 | P53: 5.104645227 | Q53: 7.035175879 | R53: 2.312728509 | S53: 10.71982483 | T53: -2.958498836 | U53: 6.453952139 | V53: -60.730187
B54: 2016 | C54: =(C27/C26-1)*100 -> -2.183662205 | D54: -1.138622809 | E54: -2.304255819 | F54: -3.326767345 | G54: 1.14379085 | H54: 1.543328034 | I54: 2.264750522 | J54: 2.450991791 | K54: 0.5650497005 | L54: 3.849327703 | M54: 3.014938886 | N54: 0.158321789 | O54: 7.284946237 | P54: 1.894123361 | Q54: 7.042253521 | R54: 9.478101886 | S54: 8.610744891 | T54: 16.09033169 | U54: -5.267938238 | V54: 74.37641723
B55: 2017 | C55: =(C28/C27-1)*100 -> 19.44277905 | D55: 9.542961609 | E55: 8.722021661 | F55: 37.51414988 | G55: 54.9273021 | H55: 3.183838306 | I55: 5.384597547 | J55: 4.163924008 | K55: 3.574546634 | L55: -8.217257175 | M55: -8.393390754 | N55: -5.255878285 | O55: -13.48033074 | P55: -6.339370829 | Q55: -7.894736842 | R55: 5.936159715 | S55: 7.146650482 | T55: -1.373860182 | U55: 17.01821668 | V55: 3.250975293
B56: 2018 | C56: =(C29/C28-1)*100 -> 7.600094484 | D56: 1.796840231 | E56: 4.794793465 | F56: 12.87454725 | G56: 21.34167536 | H56: 6.801010677 | I56: 2.387501375 | J56: 4.663172919 | K56: 8.608689369 | L56: 11.71827256 | M56: 5.449486712 | N56: -0.8550573514 | O56: 10.80220098 | P56: 9.262086514 | Q56: 25.71428571 | R56: 6.674787718 | S56: 3.965163209 | T56: 10.35502959 | U56: 7.537894306 | V56: 11.96473552
B57: 2019 | C57: =(C30/C29-1)*100 -> 18.33598595 | D57: 7.033171212 | E57: 15.17955218 | F57: 30.63010502 | G57: 2.406187339 | H57: 1.473982071 | I57: 5.005372878 | J57: 0.3664261995 | K57: 1.535595889 | L57: -1.672972603 | M57: 0.5459011919 | N57: 3.660075726 | O57: -7.553580763 | P57: 7.778295296 | Q57: 3.03030303 | R57: 6.965809095 | S57: 7.920724648 | T57: 10.73503128 | U57: -1.866666667 | V57: 5.399325084
B58: 2020 | C58: =(C31/C30-1)*100 -> -5.908542807 | D58: 3.13489227 | E58: -3.216813997 | F58: -15.37795891 | G58: 18.90909091 | H58: 6.019428571 | I58: 6.711148407 | J58: 4.644505523 | K58: 7.019699054 | L58: 2.104775151 | M58: -1.791693059 | N58: -2.272727273 | O58: -3.618886062 | P58: 0.9075194468 | Q58: 7.720588235 | R58: 4.439839236 | S58: 6.253944213 | T58: 4.257036215 | U58: -4.406055901 | V58: 24.33297759
B59: 2021 | C59: =(C32/C31-1)*100 -> 9.334335568 | D59: 6.836633663 | E59: 7.238687183 | F59: 13.35312552 | G59: 5.551634909 | H59: 4.233725355 | I59: 4.012428555 | J59: 3.679145233 | K59: 4.971098856 | L59: 0.735561206 | M59: 4.680733438 | N59: -2.803156146 | O59: 13.17101789 | P59: 7.237687366 | Q59: 8.532423208 | R59: 6.415729661 | S59: 5.677971135 | T59: 0.3289791969 | U59: 23.04568528 | V59: 0.7725321888
A61: 전공·학위 Major field of study · Degree | C61: 인문학 Humanities | H61: 사회과학 Social sciences | M61: 총계 Total | W61: 기타 Others
C62: 계 Total | D62: 박사 Doctoral | E62: 석사 Master's | F62: 학사 Bachelor's | G62: 기타 Others | H62: 계 Total | I62: 박사 Doctoral | J62: 석사 Master's | K62: 학사 Bachelor's | L62: 기타 Others | M62: 계 Total | N62: 박사 Doctoral | O62: 석사 Master's | P62: 학사 Bachelor's | Q62: 기타 Others | W62: 계 Total | X62: 박사 Doctoral | Y62: 석사 Master's | Z62: 학사 Bachelor's | AA62: 기타 Others
A63: 연구원(명) Researchers(Person) | B63: 1995 | M63: =SUM(C6,H6,M6,R6,C63,H63,W63) -> 128315 | N63: =SUM(D6,I6,N6,S6,D63,I63,X63) -> 35105 | O63: =SUM(E6,J6,O6,T6,E63,J63,Y63) -> 44178 | P63: =SUM(F6,K6,P6,U6,F63,K63,Z63) -> 44991 | Q63: =SUM(G6,L6,Q6,V6,G63,L63,AA63) -> 4041 | W63: =SUM(X63:AA63) -> 8948 | X63: 2473 | Y63: 3334 | Z63: 2241 | AA63: 900
B64: 1996 | M64: 132023 | N64: 36106 | O64: 46537 | P64: 45084 | Q64: 4296 | W64: 5473 | X64: 1512 | Y64: 1822 | Z64: 1737 | AA64: 402
B65: 1997 | M65: 138438 | N65: 37859 | O65: 49999 | P65: 45828 | Q65: 4752 | W65: 6570 | X65: 1265 | Y65: 2853 | Z65: 1727 | AA65: 725
B66: 1998 | M66: 129767 | N66: 40607 | O66: 44077 | P66: 40034 | Q66: 5049 | W66: 10370 | X66: 4812 | Y66: 3041 | Z66: 1423 | AA66: 1094
B67: 1999 | M67: 134568 | N67: 42134 | O67: 46231 | P67: 40340 | Q67: 5863 | W67: 5322 | X67: 773 | Y67: 2760 | Z67: 1288 | AA67: 501
B68: 2000 | M68: 159973 | N68: 46146 | O68: 51130 | P68: 54026 | Q68: 8671 | W68: 4354 | X68: 2272 | Y68: 1182 | Z68: 371 | AA68: 529
B69: 2001 | M69: 178937 | N69: 46704 | O69: 57936 | P69: 64156 | Q69: 10141 | W69: 11333 | X69: 3671 | Y69: 2356 | Z69: 2966 | AA69: 2340
B70: 2002 | M70: 189888 | N70: 49667 | O70: 64121 | P70: 67612 | Q70: 8488 | W70: 9044 | X70: 3530 | Y70: 2512 | Z70: 2262 | AA70: 740
B71: 2003 | M71: 198171 | N71: 52595 | O71: 67695 | P71: 69892 | Q71: 7989 | W71: 9145 | X71: 3479 | Y71: 2368 | Z71: 2493 | AA71: 805
B72: 2004 | M72: 209979 | N72: 56572 | O72: 68261 | P72: 77854 | Q72: 7292 | W72: 7716 | X72: 2557 | Y72: 1628 | Z72: 2722 | AA72: 809
B73: 2005 | M73: 234702 | N73: 57942 | O73: 78579 | P73: 87829 | Q73: 10352 | W73: 10353 | X73: 3008 | Y73: 2927 | Z73: 3221 | AA73: 1197
B74: 2006 | M74: 256598 | N74: 60013 | O74: 83380 | P74: 101422 | Q74: 11783 | W74: 11939 | X74: 2863 | Y74: 3151 | Z74: 4428 | AA74: 1497
B75: 2007 | C75: =SUM(D75:G75) -> 14430 | D75: 6989 | E75: 3724 | F75: 3124 | G75: 593 | H75: =SUM(I75:L75) -> 19482 | I75: 11285 | J75: 5734 | K75: 1864 | L75: 599 | M75: =SUM(C18,H18,M18,R18,C75,H75) -> 289098 | N75: =SUM(D18,I18,N18,S18,D75,I75) -> 73506 | O75: =SUM(E18,J18,O18,T18,E75,J75) -> 93050 | P75: =SUM(F18,K18,P18,U18,F75,K75) -> 109653 | Q75: =SUM(G18,L18,Q18,V18,G75,L75) -> 12889
B76: 2008 | C76: 15457 | D76: 7111 | E76: 3870 | F76: 3761 | G76: 715 | H76: 19255 | I76: 11421 | J76: 5116 | K76: 1952 | L76: 766 | M76: 300050 | N76: 73444 | O76: 94418 | P76: 117840 | Q76: 14348
B77: 2009 | C77: 16372 | D77: 7205 | E77: 4209 | F77: 4053 | G77: 905 | H77: 21265 | I77: 11851 | J77: 6137 | K77: 2181 | L77: 1096 | M77: 323175 | N77: 76480 | O77: 103664 | P77: 126286 | Q77: 16745
B78: 2010 | C78: 17568 | D78: 7462 | E78: 4217 | F78: 4742 | G78: 1147 | H78: 22280 | I78: 12594 | J78: 6397 | K78: 2548 | L78: 741 | M78: 345912 | N78: 81442 | O78: 109224 | P78: 138285 | Q78: 16961
B79: 2011 | C79: 19633 | D79: 7850 | E79: 4463 | F79: 6084 | G79: 1236 | H79: 23240 | I79: 12466 | J79: 6959 | K79: 2985 | L79: 830 | M79: 375176 | N79: 84674 | O79: 116131 | P79: 154733 | Q79: 19638
B80: 2012 | C80: 20413 | D80: 7971 | E80: 4098 | F80: 6874 | G80: 1470 | H80: 23961 | I80: 13140 | J80: 6872 | K80: 3053 | L80: 896 | M80: 401724 | N80: 87642 | O80: 122948 | P80: 169162 | Q80: 21972
B81: 2013 | C81: 20834 | D81: 7843 | E81: 3835 | F81: 7501 | G81: 1655 | H81: 25223 | I81: 13611 | J81: 7146 | K81: 3448 | L81: 1018 | M81: 410333 | N81: 88988 | O81: 123106 | P81: 175545 | Q81: 22694
B82: 2014 | C82: 22870 | D82: 8046 | E82: 4136 | F82: 8701 | G82: 1987 | H82: 27185 | I82: 14465 | J82: 7694 | K82: 3850 | L82: 1176 | M82: 437447 | N82: 92155 | O82: 129409 | P82: 190415 | Q82: 25468
B83: 2015 | C83: 23996 | D83: 8030 | E83: 3684 | F83: 10226 | G83: 2056 | H83: 27949 | I83: 14592 | J83: 7504 | K83: 4599 | L83: 1254 | M83: 453262 | N83: 98578 | O83: 129264 | P83: 199019 | Q83: 26401
B84: 2016 | C84: 24734 | D84: 7751 | E84: 3826 | F84: 10838 | G84: 2319 | H84: 28613 | I84: 14454 | J84: 7664 | K84: 5057 | L84: 1438 | M84: 460769 | N84: 99980 | O84: 132595 | P84: 200189 | Q84: 28005
B85: 2017 | C85: 26576 | D85: 8017 | E85: 4846 | F85: 11684 | G85: 2029 | H85: 27198 | I85: 13226 | J85: 7215 | K85: 5837 | L85: 920 | M85: 482796 | N85: 103582 | O85: 137996 | P85: 214752 | Q85: 26466
B86: 2018 | C86: 27931 | D86: 8386 | E86: 4480 | F86: 12919 | G86: 2146 | H86: 27674 | I86: 13278 | J86: 7408 | K86: 5796 | L86: 1192 | M86: 514170 | N86: 105930 | O86: 144399 | P86: 233922 | Q86: 29919
B87: 2019 | C87: =SUM(D87:G87) -> 28854 | D87: 8640 | E87: 4403 | F87: 13761 | G87: 2050 | H87: =SUM(I87:L87) -> 30135 | I87: 14096 | J87: 7998 | K87: 7060 | L87: 981 | M87: 538136 | N87: 111955 | O87: 149529 | P87: 247267 | Q87: 29385
B88: 2020 | C88: 30213 | D88: 8618 | E88: 4716 | F88: 14695 | G88: 2184 | H88: 31497 | I88: 14175 | J88: 8139 | K88: 7981 | L88: 1202 | M88: 558045 | N88: 116784 | O88: 153878 | P88: 256264 | Q88: 31119
B89: 2021 | C89: 32267 | D89: 8415 | E89: 4827 | F89: 16674 | G89: 2351 | H89: 32137 | I89: 14315 | J89: 8018 | K89: 8542 | L89: 1262 | M89: 586666 | N89: 121015 | O89: 159973 | P89: 273900 | Q89: 31778
A90: 전년대비증가율(%) Percent change from previous year(%) | B90: 1996 | M90: =(M63/M62-1)*100 ->  | W90: =(W63/W62-1)*100 -> 
B91: 1996 | M91: 2.889763473 | N91: 2.851445663 | O91: 5.339761872 | P91: 0.2067080083 | Q91: 6.310319228 | W91: -38.83549397 | X91: -38.85968459 | Y91: -45.35092981 | Z91: -22.48995984 | AA91: -55.33333333
B92: 1997 | M92: 4.859001841 | N92: 4.855148729 | O92: 7.439241894 | P92: 1.650252861 | Q92: 10.61452514 | W92: 20.04385164 | X92: -16.33597884 | Y92: 56.58616905 | Z92: -0.5757052389 | AA92: 80.34825871
B93: 1998 | M93: -6.263453676 | N93: 7.258511847 | O93: -11.84423688 | P93: -12.64292572 | Q93: 6.25 | W93: 57.83866058 | X93: 280.3952569 | Y93: 6.589554855 | Z93: -17.60277939 | AA93: 50.89655172
B94: 1999 | M94: 3.699707938 | N94: 3.760435393 | O94: 4.886902466 | P94: 0.7643503022 | Q94: 16.12200436 | W94: -48.67888139 | X94: -83.93599335 | Y94: -9.240381453 | Z94: -9.486999297 | AA94: -54.2047532
B95: 2000 | M95: 18.8789311 | N95: 9.522001234 | O95: 10.59678571 | P95: 33.9266237 | Q95: 47.89356984 | W95: -18.18865088 | X95: 193.919793 | Y95: -57.17391304 | Z95: -71.19565217 | AA95: 5.588822355
B96: 2001 | M96: 11.85450045 | N96: 1.209205565 | O96: 13.31116761 | P96: 18.75023137 | Q96: 16.95306193 | W96: 160.2893891 | X96: 61.57570423 | Y96: 99.32318105 | Z96: 699.4609164 | AA96: 342.3440454
B97: 2002 | M97: 6.120031072 | N97: 6.344210346 | O97: 10.67557305 | P97: 5.386869506 | Q97: -16.30016764 | W97: -20.19765287 | X97: -3.840915282 | Y97: 6.62139219 | Z97: -23.73567094 | AA97: -68.37606838
B98: 2003 | M98: 4.362044995 | N98: 5.895262448 | O98: 5.573836964 | P98: 3.372182453 | Q98: -5.878887842 | W98: 1.116762494 | X98: -1.444759207 | Y98: -5.732484076 | Z98: 10.21220159 | AA98: 8.783783784
B99: 2004 | M99: 5.958490395 | N99: 7.561555281 | O99: 0.8361031095 | P99: 11.39186173 | Q99: -8.724496182 | W99: -15.62602515 | X99: -26.50186835 | Y99: -31.25 | Z99: 9.185720016 | AA99: 0.4968944099
B100: 2005 | M100: =(M73/M72-1)*100 -> 11.77403455 | N100: 2.42169271 | O100: 15.11551252 | P100: 12.81244381 | Q100: 41.96379594 | W100: 34.17573872 | X100: 17.63785686 | Y100: 79.79115479 | Z100: 18.33210874 | AA100: 47.96044499
B101: 2006 | M101: 9.329277126 | N101: 3.574263919 | O101: 6.109774876 | P101: 15.47666488 | Q101: 13.82341577 | W101: 15.31923114 | X101: -4.820478723 | Y101: 7.652886915 | Z101: 37.47283452 | AA101: 25.06265664
B102: 2007 | M102: 12.66572616 | N102: 22.48346192 | O102: 11.5975054 | P102: 8.115596222 | Q102: 9.386404142
B103: 2008 | C103: =(C76/C75-1)*100 -> 7.117117117 | D103: 1.745600229 | E103: 3.920515575 | F103: 20.39052497 | G103: 20.57335582 | H103: -1.165178113 | I103: 1.205139566 | J103: -10.77781653 | K103: 4.721030043 | L103: 27.87979967 | M103: 3.788334752 | N103: -0.08434685604 | O103: 1.470177324 | P103: 7.466279992 | Q103: 11.31973
B104: 2009 | C104: =(C77/C76-1)*100 -> 5.919648056 | D104: 1.321895655 | E104: 8.759689922 | F104: 7.763892582 | G104: 26.57342657 | H104: 10.43884705 | I104: 3.764994309 | J104: 19.95699765 | K104: 11.73155738 | L104: 43.08093995 | M104: 7.707048825 | N104: 4.133761778 | O104: 9.792624288 | P104: 7.167345553 | Q104: 16.70616114
B105: 2010 | C105: =(C78/C77-1)*100 -> 7.305155143 | D105: 3.566967384 | E105: 0.1900689 | F105: 16.99975327 | G105: 26.74033149 | H105: 4.77310134 | I105: 6.269513121 | J105: 4.236597686 | K105: 16.82714351 | L105: -32.39051095 | M105: 7.035507078 | N105: 6.487970711 | O105: 5.363482019 | P105: 9.501449092 | Q105: 1.289937295
B106: 2011 | C106: =(C79/C78-1)*100 -> 11.75432605 | D106: 5.19967837 | E106: 5.833530946 | F106: 28.30029523 | G106: 7.759372276 | H106: 4.308797127 | I106: -1.016356995 | J106: 8.785368141 | K106: 17.15070644 | L106: 12.01079622 | M106: 8.459955133 | N106: 3.968468358 | O106: 6.323701751 | P106: 11.89427631 | Q106: 15.7832675
B107: 2012 | C107: =(C80/C79-1)*100 -> 3.972902766 | D107: 1.541401274 | E107: -8.178355366 | F107: 12.98487837 | G107: 18.93203883 | H107: 3.102409639 | I107: 5.406706241 | J107: -1.250179624 | K107: 2.278056951 | L107: 7.951807229 | M107: 7.076145596 | N107: 3.50520821 | O107: 5.870094979 | P107: 9.325095487 | Q107: 11.88512068
B108: 2013 | C108: =(C81/C80-1)*100 -> 2.062411209 | D108: -1.605821101 | E108: -6.417764763 | F108: 9.121326738 | G108: 12.58503401 | H108: 5.266892033 | I108: 3.584474886 | J108: 3.987194412 | K108: 12.93809368 | L108: 13.61607143 | M108: 2.143013611 | N108: 1.535793341 | O108: 0.1285096138 | P108: 3.773306062 | Q108: 3.286000364
B109: 2014 | C109: =(C82/C81-1)*100 -> 9.77248728 | D109: 2.588295295 | E109: 7.848761408 | F109: 15.99786695 | G109: 20.06042296 | H109: 7.778614756 | I109: 6.274336933 | J109: 7.668625805 | K109: 11.65893271 | L109: 15.52062868 | M109: 6.607803906 | N109: 3.558906819 | O109: 5.119977905 | P109: 8.470762483 | Q109: 12.2234952
B110: 2015 | C110: =(C83/C82-1)*100 -> 4.923480542 | D110: -0.1988565747 | E110: -10.92843327 | F110: 17.52672107 | G110: 3.472571716 | H110: 2.810373368 | I110: 0.8779813343 | J110: -2.46945672 | K110: 19.45454545 | L110: 6.632653061 | M110: =(M83/M82-1)*100 -> 3.61529511 | N110: 6.969779176 | O110: -0.1120478483 | P110: 4.518551585 | Q110: 3.663420763
B111: 2016 | C111: =(C84/C83-1)*100 -> 3.075512585 | D111: -3.474470735 | E111: 3.854505972 | F111: 5.984744768 | G111: 12.79182879 | H111: 2.375755841 | I111: -0.9457236842 | J111: 2.132196162 | K111: 9.958686671 | L111: 14.67304625 | M111: 1.656216493 | N111: 1.422224026 | O111: 2.576896893 | P111: 0.5878835689 | Q111: 6.075527442
B112: 2017 | C112: =(C85/C84-1)*100 -> 7.447238619 | D112: 3.43181525 | E112: 26.65969681 | F112: 7.805868241 | G112: -12.50539025 | H112: -4.945304582 | I112: -8.495918085 | J112: -5.858559499 | K112: 15.42416452 | L112: -36.02225313 | M112: 4.780486534 | N112: 3.602720544 | O112: 4.073305932 | P112: 7.274625479 | Q112: -5.495447242
B113: 2018 | C113: =(C86/C85-1)*100 -> 5.09858519 | D113: 4.602719222 | E113: -7.552620718 | F113: 10.57001027 | G113: 5.766387383 | H113: 1.750128686 | I113: 0.3931649781 | J113: 2.674982675 | K113: -0.7024156245 | L113: 29.56521739 | M113: 6.498396838 | N113: 2.266803113 | O113: 4.639989565 | P113: 8.926575771 | Q113: 13.04692813
B114: 2019 | C114: =(C87/C86-1)*100 -> 3.304571981 | D114: 3.02885762 | E114: -1.71875 | F114: 6.517532317 | G114: -4.473438956 | H114: 8.892823589 | I114: 6.16056635 | J114: 7.964362851 | K114: 21.80814355 | L114: -17.70134228 | M114: 4.661104304 | N114: 5.687718305 | O114: 3.552656182 | P114: 5.704893084 | Q114: -1.784819011
B115: 2020 | C115: =(C88/C87-1)*100 -> 4.709918902 | D115: -0.2546296296 | E115: 7.108789462 | F115: 6.787297435 | G115: 6.536585366 | H115: 4.519661523 | I115: 0.5604426788 | J115: 1.762940735 | K115: 13.04532578 | L115: 22.52803262 | M115: 3.6996224 | N115: 4.313340181 | O115: 2.908465916 | P115: 3.638576923 | Q115: 5.900969883
B116: 2021 | C116: =(C89/C88-1)*100 -> 6.798398041 | D116: -2.355534927 | E116: 2.353689567 | F116: 13.4671657 | G116: 7.646520147 | H116: 2.03193955 | I116: 0.987654321 | J116: -1.486669124 | K116: 7.029194337 | L116: 4.991680532 | M116: 5.128797857 | N116: 3.622927798 | O116: 3.960930087 | P116: 6.881965473 | Q116: 2.117677303

Sheet 2-9
A1: 2-9) 연구개발수행기관 및 성별 연구원
A2: R&D performing institutes and researchers by gender
A4: 연도 Year | B4: 연구개발수행기관 R&D performing institutes | J4: 성별 연구원(명) Researchers by gender(Person)
B5: 총계 Total | C5: 공공연구기관 Public research institutes | F5: 대학 Higher educations | I5: 기업체 Business enterprises | J5: 총계 Total
C6: 계 Sub total | D6: 국립·공립·출연(연) Government | E6: 비영리법인 Non-profit | F6: 계 Sub total | G6: 국·공립 National & Pub. | H6: 사립 Private | K6: 여성 Female
A7: 1991 | B7: 2352 | C7: 188 | F7: 221 | G7: 53 | H7: 168 | I7: 1943 | J7: 76252 | K7: 4313
A8: 1992 | B8: 3106 | C8: 212 | F8: 237 | G8: 53 | H8: 184 | I8: 2657 | J8: 88764 | K8: 5764
A9: 1993 | B9: 3318 | C9: 210 | F9: 244 | G9: 51 | H9: 193 | I9: 2864 | J9: 98764 | K9: 6590
A10: 1994 | B10: 2640 | C10: 217 | F10: 244 | G10: 50 | H10: 194 | I10: 2179 | J10: 117446 | K10: 9052
A11: 1995 | B11: 2587 | C11: 178 | F11: 257 | G11: 53 | H11: 204 | I11: 2152 | J11: 128315 | K11: 10235
A12: 1996 | B12: 2856 | C12: 163 | F12: 258 | G12: 53 | H12: 205 | I12: 2435 | J12: 132023 | K12: 11166
A13: 1997 | B13: 2962 | C13: 184 | F13: 271 | G13: 48 | H13: 223 | I13: 2507 | J13: 138434 | K13: 12545
A14: 1998 | B14: 2869 | C14: 183 | F14: 267 | G14: 49 | H14: 218 | I14: 2419 | J14: 129767 | K14: 12317
A15: 1999 | B15: 3059 | C15: 169 | F15: 285 | G15: 56 | H15: 229 | I15: 2605 | J15: 134568 | K15: 13009
A16: 2000 | B16: 4635 | C16: 173 | F16: 268 | G16: 56 | H16: 212 | I16: 4194 | J16: 159973 | K16: 16385
A17: 2001 | B17: 6801 | C17: 188 | F17: 276 | G17: 62 | H17: 214 | I17: 6337 | J17: 178937 | K17: 19930
A18: 2002 | B18: 7210 | C18: 163 | F18: 304 | G18: 61 | H18: 243 | I18: 6743 | J18: 189888 | K18: 22057
A19: 2003 | B19: 7127 | C19: 169 | F19: 310 | G19: 62 | H19: 248 | I19: 6648 | J19: 198171 | K19: 22613
A20: 2004 | B20: 7254 | C20: 159 | F20: 293 | G20: 55 | H20: 238 | I20: 6802 | J20: 209979 | K20: 25198
A21: 2005 | B21: 7761 | C21: 137 | F21: 256 | G21: 51 | H21: 205 | I21: 7368 | J21: 234702 | K21: 30174
A22: 2006 | B22: 9443 | C22: 139 | F22: 268 | G22: 51 | H22: 217 | I22: 9036 | J22: 256598 | K22: 33682
A23: 2007 | B23: 11200 | C23: 188 | F23: 322 | G23: 61 | H23: 261 | I23: 10690 | J23: 289098 | K23: 42977
A24: 2008 | B24: 12822 | C24: 228 | F24: 338 | G24: 65 | H24: 273 | I24: 12256 | J24: 300050 | K24: 46677
A25: 2009 | B25: 15237 | C25: 252 | F25: 359 | G25: 67 | H25: 292 | I25: 14626 | J25: 323175 | K25: 51073
A26: 2010 | B26: 16550 | C26: 261 | D26: 151 | E26: 110 | F26: 352 | G26: 67 | H26: 285 | I26: 15937 | J26: 345912 | K26: 57662
A27: 2011 | B27: 20372 | C27: 268 | D27: 154 | E27: 114 | F27: 350 | G27: 68 | H27: 282 | I27: 19754 | J27: 375176 | K27: 65067
A28: 2012 | B28: 23533 | C28: 272 | D28: 157 | E28: 115 | F28: 344 | G28: 71 | H28: 273 | I28: 22917 | J28: 401724 | K28: 70997
A29: 2013 | B29: 25882 | C29: 326 | D29: 177 | E29: 149 | F29: 371 | G29: 74 | H29: 297 | I29: 25185 | J29: 410333 | K29: 74617
A30: 2014 | B30: 30111 | C30: 348 | D30: 187 | E30: 161 | F30: 371 | G30: 76 | H30: 295 | I30: 29392 | J30: 437447 | K30: 80904
A31: 2015 | B31: 35379 | C31: 372 | D31: 197 | E31: 175 | F31: 365 | G31: 77 | H31: 288 | I31: 34642 | J31: 453262 | K31: 85652
A32: 2016 | B32: 37218 | C32: 372 | D32: 200 | E32: 172 | F32: 368 | G32: 77 | H32: 291 | I32: 36478 | J32: 460769 | K32: 90615
A33: 2017 | B33: 42368 | C33: 375 | D33: 200 | E33: 175 | F33: 364 | G33: 78 | H33: 286 | I33: 41629 | J33: 482796 | K33: 97042
A34: 2018 | B34: 49302 | C34: 401 | D34: 216 | E34: 185 | F34: 365 | G34: 79 | H34: 286 | I34: 48536 | J34: 514170 | K34: 104728
A35: 2019 | B35: 53005 | C35: 419 | D35: 228 | E35: 191 | F35: 368 | G35: 77 | H35: 291 | I35: 52218 | J35: 538136 | K35: 113187
A36: 2020 | B36: 56223 | C36: 415 | D36: 221 | E36: 194 | F36: 363 | G36: 77 | H36: 286 | I36: 55445 | J36: 558045 | K36: 119551
A37: 2021 | B37: 59576 | C37: 433 | D37: 232 | E37: 201 | F37: 366 | G37: 78 | H37: 288 | I37: 58777 | J37: 586666 | K37: 130055
A38: 구성비(%) Percent distribution
A39: 1991 | B39: =B7/$B7*100 -> 100 | C39: 7.993197279 | D39: 0 | E39: 0 | F39: 9.396258503 | G39: 2.253401361 | H39: 7.142857143 | I39: 82.61054422 | J39: =J7/$J7*100 -> 100 | K39: 5.656245082
A40: 1992 | B40: =B8/$B8*100 -> 100 | C40: 6.825499034 | D40: 0 | E40: 0 | F40: 7.630392788 | G40: 1.706374759 | H40: 5.92401803 | I40: 85.54410818 | J40: 100 | K40: 6.493623541
A41: 1993 | B41: =B9/$B9*100 -> 100 | C41: 6.329113924 | D41: 0 | E41: 0 | F41: 7.353827607 | G41: 1.537070524 | H41: 5.816757083 | I41: 86.31705847 | J41: 100 | K41: 6.672471751
A42: 1994 | B42: =B10/$B10*100 -> 100 | C42: 8.21969697 | D42: 0 | E42: 0 | F42: 9.242424242 | G42: 1.893939394 | H42: 7.348484848 | I42: 82.53787879 | J42: 100 | K42: 7.707371899
A43: 1995 | B43: =B11/$B11*100 -> 100 | C43: 6.880556629 | D43: 0 | E43: 0 | F43: 9.934286819 | G43: 2.048705064 | H43: 7.885581755 | I43: 83.18515655 | J43: 100 | K43: 7.97646417
A44: 1996 | B44: =B12/$B12*100 -> 100 | C44: 5.707282913 | D44: 0 | E44: 0 | F44: 9.033613445 | G44: 1.855742297 | H44: 7.177871148 | I44: 85.25910364 | J44: 100 | K44: 8.457617233
A45: 1997 | B45: =B13/$B13*100 -> 100 | C45: 6.212018906 | D45: 0 | E45: 0 | F45: 9.149223498 | G45: 1.620526671 | H45: 7.528696826 | I45: 84.6387576 | J45: 100 | K45: 9.062080125
A46: 1998 | B46: 100 | C46: 6.378529104 | D46: 0 | E46: 0 | F46: 9.306378529 | G46: 1.707912165 | H46: 7.598466365 | I46: 84.31509237 | J46: 100 | K46: 9.491627301
A47: 1999 | B47: 100 | C47: 5.524681268 | D47: 0 | E47: 0 | F47: 9.316770186 | G47: 1.830663616 | H47: 7.486106571 | I47: 85.15854855 | J47: 100 | K47: 9.667231437
A48: 2000 | B48: 100 | C48: 3.732470334 | D48: 0 | E48: 0 | F48: 5.782092772 | G48: 1.20819849 | H48: 4.573894283 | I48: 90.48543689 | J48: 100 | K48: 10.2423534
A49: 2001 | B49: 100 | C49: 2.764299368 | D49: 0 | E49: 0 | F49: 4.058226731 | G49: 0.9116306426 | H49: 3.146596089 | I49: 93.1774739 | J49: 100 | K49: 11.13799829
A50: 2002 | B50: 100 | C50: 2.26074896 | D50: 0 | E50: 0 | F50: 4.216366158 | G50: 0.8460471567 | H50: 3.370319001 | I50: 93.52288488 | J50: 100 | K50: 11.61579457
A51: 2003 | B51: 100 | C51: 2.371264207 | D51: 0 | E51: 0 | F51: 4.349656237 | G51: 0.8699312474 | H51: 3.479724989 | I51: 93.27907956 | J51: 100 | K51: 11.41085224
A52: 2004 | B52: 100 | C52: 2.191894127 | D52: 0 | E52: 0 | F52: 4.039150813 | G52: 0.7582023711 | H52: 3.280948442 | I52: 93.76895506 | J52: 100 | K52: 12.00024764
A53: 2005 | B53: 100 | C53: 1.765236439 | D53: 0 | E53: 0 | F53: 3.298544002 | G53: 0.6571318129 | H53: 2.641412189 | I53: 94.93621956 | J53: 100 | K53: 12.85630289
A54: 2006 | B54: 100 | C54: 1.471989834 | D54: 0 | E54: 0 | F54: 2.838081118 | G54: 0.5400826009 | H54: 2.297998517 | I54: 95.68992905 | J54: 100 | K54: 13.12636887
A55: 2007 | B55: 100 | C55: 1.678571429 | D55: 0 | E55: 0 | F55: 2.875 | G55: 0.5446428571 | H55: 2.330357143 | I55: 95.44642857 | J55: 100 | K55: 14.86589323
A56: 2008 | B56: 100 | C56: 1.77819373 | D56: 0 | E56: 0 | F56: 2.636094213 | G56: 0.5069411948 | H56: 2.129153018 | I56: 95.58571206 | J56: 100 | K56: 15.55640727
A57: 2009 | B57: =B25/$B25*100 -> 100 | C57: 1.653868872 | D57: 0 | E57: 0 | F57: 2.356106845 | G57: 0.4397191048 | H57: 1.91638774 | I57: 95.99002428 | J57: 100 | K57: 15.80351203
A58: 2010 | B58: =B26/$B26*100 -> 100 | C58: 1.577039275 | D58: 0.9123867069 | E58: 0.664652568 | F58: 2.126888218 | G58: 0.4048338369 | H58: 1.722054381 | I58: 96.29607251 | J58: 100 | K58: 16.66955758
A59: 2011 | B59: =B27/$B27*100 -> 100 | C59: 1.315531121 | D59: 0.7559395248 | E59: 0.5595915963 | F59: 1.718044375 | G59: 0.3337914785 | H59: 1.384252896 | I59: 96.9664245 | J59: 100 | K59: 17.34306032
A60: 2012 | B60: =B28/$B28*100 -> 100 | C60: 1.155823737 | D60: 0.6671482599 | E60: 0.488675477 | F60: 1.461777079 | G60: 0.3017039901 | H60: 1.160073089 | I60: 97.38239918 | J60: 100 | K60: 17.67307903
A61: 2013 | B61: =B29/$B29*100 -> 100 | C61: 1.25956263 | D61: 0.6838729619 | E61: 0.5756896685 | F61: 1.433428638 | G61: 0.2859129897 | H61: 1.147515648 | I61: 97.30700873 | J61: 100 | K61: 18.18449893
A62: 2014 | B62: =B30/$B30*100 -> 100 | C62: 1.155723822 | D62: 0.621035502 | E62: 0.5346883199 | F62: 1.232107868 | G62: 0.2523994553 | H62: 0.9797084122 | I62: 97.61216831 | J62: 100 | K62: 18.49458334
A63: 2015 | B63: =B31/$B31*100 -> 100 | C63: 1.051471212 | D63: 0.5568274965 | E63: 0.4946437152 | F63: 1.031685463 | G63: 0.2176432347 | H63: 0.8140422284 | I63: 97.91684333 | J63: 100 | K63: 18.896797
A64: 2016 | B64: =B32/$B32*100 -> 100 | C64: 0.9995163631 | D64: 0.5373743887 | E64: 0.4621419743 | F64: 0.9887688753 | G64: 0.2068891397 | H64: 0.7818797356 | I64: 98.01171476 | J64: 100 | K64: 19.66603656
A65: 2017 | B65: =B33/$B33*100 -> 100 | C65: 0.8851019637 | D65: 0.4720543807 | E65: 0.4130475831 | F65: 0.8591389728 | G65: 0.1841012085 | H65: 0.6750377644 | I65: 98.25575906 | J65: 100 | K65: 20.10000083
A66: 2018 | B66: =B34/$B34*100 -> 100 | C66: 0.8133544278 | D66: 0.4381161008 | E66: 0.375238327 | F66: 0.7403350777 | G66: 0.1602369072 | H66: 0.5800981705 | I66: 98.44631049 | J66: 100 | K66: 20.36836066
A67: 2019 | B67: =B35/$B35*100 -> 100 | C67: 0.7904914631 | D67: 0.4301480992 | E67: 0.3603433638 | F67: 0.6942741251 | G67: 0.1452693142 | H67: 0.5490048109 | I67: 98.51523441 | J67: 100 | K67: 21.0331589
A68: 2020 | B68: 100 | C68: =C36/$B36*100 -> 0.7381320812 | D68: 0.3930775661 | E68: 0.3450545151 | F68: 0.6456432421 | G68: 0.1369546271 | H68: 0.508688615 | I68: 98.61622468 | J68: =J36/$J36*100 -> 100 | K68: 21.42318272
A69: 2021 | B69: =B37/$B37*100 -> 100 | C69: 0.7268027394 | D69: 0.3894185578 | E69: 0.3373841815 | F69: 0.6143413455 | G69: 0.1309252048 | H69: 0.4834161407 | I69: 98.65885592 | J69: =J37/$J37*100 -> 100 | K69: 22.1684911
A70: 전년대비 증가율(%) Percent change from previous year
A71: 1991 | B71: =(B7/B6-1)*100 -> 
A72: 1992 | B72: =(B8/B7-1)*100 -> 32.05782313 | C72: 12.76595745 | F72: 7.239819005 | G72: 0 | H72: 9.523809524 | I72: 36.74729799 | J72: 16.40874993 | K72: 33.64247623
A73: 1993 | B73: =(B9/B8-1)*100 -> 6.825499034 | C73: -0.9433962264 | F73: 2.953586498 | G73: -3.773584906 | H73: 4.891304348 | I73: 7.790741438 | J73: 11.26582849 | K73: 14.33032616
A74: 1994 | B74: =(B10/B9-1)*100 -> -20.43399638 | C74: 3.333333333 | F74: 0 | G74: -1.960784314 | H74: 0.518134715 | I74: -23.91759777 | J74: 18.91579928 | K74: 37.35963581
A75: 1995 | B75: =(B11/B10-1)*100 -> -2.007575758 | C75: -17.97235023 | F75: 5.327868852 | G75: 6 | H75: 5.154639175 | I75: -1.239100505 | J75: 9.254465882 | K75: 13.06893504
A76: 1996 | B76: =(B12/B11-1)*100 -> 10.39814457 | C76: -8.426966292 | F76: 0.3891050584 | G76: 0 | H76: 0.4901960784 | I76: 13.15055762 | J76: 2.889763473 | K76: 9.096238398
A77: 1997 | B77: =(B13/B12-1)*100 -> 3.711484594 | C77: 12.88343558 | F77: 5.03875969 | G77: -9.433962264 | H77: 8.780487805 | I77: 2.95687885 | J77: 4.855972065 | K77: 12.34999104
A78: 1998 | B78: =(B14/B13-1)*100 -> -3.139770425 | C78: -0.5434782609 | F78: -1.47601476 | G78: 2.083333333 | H78: -2.242152466 | I78: -3.51017152 | J78: -6.260745193 | K78: -1.817457154
A79: 1999 | B79: =(B15/B14-1)*100 -> 6.622516556 | C79: -7.650273224 | F79: 6.741573034 | G79: 14.28571429 | H79: 5.04587156 | I79: 7.689127739 | J79: 3.699707938 | K79: 5.618251198
A80: 2000 | B80: =(B16/B15-1)*100 -> 51.52010461 | C80: 2.366863905 | F80: -5.964912281 | G80: 0 | H80: -7.423580786 | I80: 60.99808061 | J80: 18.8789311 | K80: 25.95126451
A81: 2001 | B81: =(B17/B16-1)*100 -> 46.73139159 | C81: 8.670520231 | F81: 2.985074627 | G81: 10.71428571 | H81: 0.9433962264 | I81: 51.09680496 | J81: 11.85450045 | K81: 21.63564236
A82: 2002 | B82: =(B18/B17-1)*100 -> 6.013821497 | C82: -13.29787234 | F82: 10.14492754 | G82: -1.612903226 | H82: 13.55140187 | I82: 6.406817106 | J82: 6.120031072 | K82: 10.67235324
A83: 2003 | B83: =(B19/B18-1)*100 -> -1.151178918 | C83: 3.680981595 | F83: 1.973684211 | G83: 1.639344262 | H83: 2.057613169 | I83: -1.408868456 | J83: 4.362044995 | K83: 2.520741715
A84: 2004 | B84: =(B20/B19-1)*100 -> 1.781955942 | C84: -5.917159763 | F84: -5.483870968 | G84: -11.29032258 | H84: -4.032258065 | I84: 2.316486161 | J84: 5.958490395 | K84: 11.43147747
A85: 2005 | B85: =(B21/B20-1)*100 -> 6.989247312 | C85: -13.83647799 | F85: -12.62798635 | G85: -7.272727273 | H85: -13.86554622 | I85: 8.321082035 | J85: 11.77403455 | K85: 19.74759902
A86: 2006 | B86: =(B22/B21-1)*100 -> 21.67246489 | C86: 1.459854015 | F86: 4.6875 | G86: 0 | H86: 5.853658537 | I86: 22.63843648 | J86: 9.329277126 | K86: 11.6259031
A87: 2007 | B87: =(B23/B22-1)*100 -> 18.60637509 | C87: 35.25179856 | F87: 20.14925373 | G87: 19.60784314 | H87: 20.2764977 | I87: 18.30455954 | J87: 12.66572616 | K87: 27.59634226
A88: 2008 | B88: =(B24/B23-1)*100 -> 14.48214286 | C88: 21.27659574 | F88: 4.968944099 | G88: 6.557377049 | H88: 4.597701149 | I88: 14.64920486 | J88: 3.788334752 | K88: 8.609256114
A89: 2009 | B89: =(B25/B24-1)*100 -> 18.83481516 | C89: 10.52631579 | F89: 6.213017751 | G89: 3.076923077 | H89: 6.95970696 | I89: 19.33746736 | J89: 7.707048825 | K89: 9.417914605
A90: 2010 | B90: =(B26/B25-1)*100 -> 8.61718186 | C90: 3.571428571 | F90: -1.949860724 | G90: 0 | H90: -2.397260274 | I90: 8.963489676 | J90: 7.035507078 | K90: 12.9011415
A91: 2011 | B91: =(B27/B26-1)*100 -> 23.09365559 | C91: 2.681992337 | D91: 1.986754967 | E91: 3.636363636 | F91: -0.5681818182 | G91: 1.492537313 | H91: -1.052631579 | I91: 23.95055531 | J91: 8.459955133 | K91: 12.84207971
A92: 2012 | B92: =(B28/B27-1)*100 -> 15.51639505 | C92: 1.492537313 | D92: 1.948051948 | E92: 0.8771929825 | F92: -1.714285714 | G92: 4.411764706 | H92: -3.191489362 | I92: 16.01194695 | J92: 7.076145596 | K92: 9.113682819
A93: 2013 | B93: =(B29/B28-1)*100 -> 9.981727787 | C93: 19.85294118 | D93: 12.7388535 | E93: 29.56521739 | F93: 7.848837209 | G93: 4.225352113 | H93: 8.791208791 | I93: 9.896583322 | J93: 2.143013611 | K93: 5.098806992
A94: 2014 | B94: =(B30/B29-1)*100 -> 16.33954099 | C94: 6.748466258 | D94: 5.649717514 | E94: 8.053691275 | F94: 0 | G94: 2.702702703 | H94: -0.6734006734 | I94: 16.70438753 | J94: 6.607803906 | K94: 8.425693877
A95: 2015 | B95: =(B31/B30-1)*100 -> 17.49526751 | C95: 6.896551724 | D95: 5.347593583 | E95: 8.695652174 | F95: -1.617250674 | G95: 1.315789474 | H95: -2.372881356 | I95: 17.86200327 | J95: 3.61529511 | K95: 5.868683872
A96: 2016 | B96: =(B32/B31-1)*100 -> 5.197998813 | C96: 0 | D96: 1.52284264 | E96: -1.714285714 | F96: 0.8219178082 | G96: 0 | H96: 1.041666667 | I96: 5.299924947 | J96: 1.656216493 | K96: 5.794377247
A97: 2017 | B97: =(B33/B32-1)*100 -> 13.83739051 | C97: 0.8064516129 | D97: 0 | E97: 1.744186047 | F97: -1.086956522 | G97: 1.298701299 | H97: -1.718213058 | I97: 14.12083996 | J97: 4.780486534 | K97: 7.092644706
A98: 2018 | B98: =(B34/B33-1)*100 -> 16.36612538 | C98: 6.933333333 | D98: 8 | E98: 5.714285714 | F98: 0.2747252747 | G98: 1.282051282 | H98: 0 | I98: 16.59179899 | J98: 6.498396838 | K98: 7.92028194
A99: 2019 | B99: =(B35/B34-1)*100 -> 7.510851487 | C99: 4.488778055 | D99: 5.555555556 | E99: 3.243243243 | F99: 0.8219178082 | G99: -2.53164557 | H99: 1.748251748 | I99: 7.586121642 | J99: 4.661104304 | K99: 8.077114048
A100: 2020 | B100: 6.071125366 | C100: =(C36/C35-1)*100 -> -0.9546539379 | D100: -3.070175439 | E100: 1.570680628 | F100: -1.358695652 | G100: 0 | H100: -1.718213058 | I100: 6.17986135 | J100: 3.6996224 | K100: 5.622553827
A101: 2021 | B101: =(B37/B36-1)*100 -> 5.96375149 | C101: =(C37/C36-1)*100 -> 4.337349398 | D101: 4.977375566 | E101: 3.608247423 | F101: 0.826446281 | G101: 1.298701299 | H101: 0.6993006993 | I101: 6.009559022 | J101: 5.128797857 | K101: 8.786208396
A103: 주 : 1. 공공연구기관 중 '국립·공립·출연(연)'은 '국·공립 연구기관', '국·공립 병원','정부 출연(연)', '지자체 출연(연)'을 포함하며, 나머지는 모두 '비영리법인'으로 분류
A104: 2. 대학의 '국·공립'은 국·공립대학과 국·공립대학 부속 병원을 포함하며, '사립'은 사립대학과 사립대학 부속병원을 포함

Sheet 2-10
A1: 2-10) 2021년도 연구수행주체별 연구개발비(재원, 비목, 연구개발단계)
A2: R&D expenditure(source of funds, type of costs, type of R&D) by sector of performance, 2021
S4: (단위 : 백만원 Unit : Won, Millions)
A5: 연구수행주체 Sector of performance | B5: 연구개발 수행기관 R&D performing inst. | C5: 총계 Total | D5: 재원 Source of funds | H5: 비목 Type of costs | Q5: 연구개발단계 Type of R&D
D6: 정부 Government | E6: 공공 Other national sources | F6: 민간 Business enterprise | G6: 외국 Rest of the world | H6: 경상비 Current costs | K6: 자본적 지출 Capital costs | Q6: 기초연구 Basic research | R6: 응용연구 Applied research | S6: 개발연구 Experimental development
H7: 소계 Sub total | I7: 인건비 Labour costs | J7: 기타 Other current costs | K7: 소계 Sub total | L7: 기계〮장치 Machinery | M7: 토지 Land | N7: 건물 Buildings | O7: 컴퓨터 소프트웨어 Computer software | P7: 기타지식재산물 Other intellectual properties
A8: 총계 Total | B8: 59576 | C8: 102135243.5 | D8: 23517949.37 | E8: 577004.9096 | F8: 77742094.16 | G8: 298195.1023 | H8: 92739180.02 | I8: 45771271.07 | J8: 46967908.95 | K8: 9396063.521 | L8: 6481440.161 | M8: 406188.219 | N8: 1250498.471 | O8: 710469.8836 | P8: 547466.7864 | Q8: 15100171.23 | R8: 21470363.2 | S8: 65564709.11
A9: 공공연구기관 Public research institutes | B9: 433 | C9: 11997001 | D9: 11221829.77 | E9: 219536.7167 | F9: 472553.0161 | G9: 83081.50163 | H9: 8870390 | I9: 3283230 | J9: 5587160 | K9: 3126611 | L9: 2708762 | M9: 1670 | N9: 340255 | O9: 59998 | P9: 15926 | Q9: 2683404.4 | R9: 2988450.9 | S9: 6325145.7
A10: 국·공립 National & Pub. | B10: 88 | C10: 967263 | D10: 965158.5845 | E10: 1794 | F10: 41.94804374 | G10: 268.4674799 | H10: 802355 | I10: 255655 | J10: 546700 | K10: 164908 | L10: 78306 | M10: 0 | N10: 82945 | O10: 1193 | P10: 2464 | Q10: 366171.5 | R10: 431409 | S10: 169682.5
A11: 정부출연 Gov't funded | B11: 72 | C11: 8718510 | D11: 8415337.585 | E11: 65632.49668 | F11: 226739.5494 | G11: 10800.36863 | H11: 6144370 | I11: 2350171 | J11: 3794199 | K11: 2574140 | L11: 2332829 | M11: 643 | N11: 179632 | O11: 54628 | P11: 6408 | Q11: 2117902 | R11: 2101306 | S11: 4499302
A12: 지방자치단체출연 Local gov't funded | B12: 52 | C12: 261100 | D12: 255753.7658 | E12: 1372.154309 | F12: 3974.079885 | G12: 0 | H12: 175145 | I12: 69307 | J12: 105838 | K12: 85955 | L12: 67681 | M12: 0 | N12: 12611 | O12: 360 | P12: 5303 | Q12: 42525 | R12: 24189 | S12: 194386
A13: 기타비영리 Other non-profit corporation | B13: 181 | C13: 1836387 | D13: 1496541.117 | E13: 123458.0108 | F13: 184638.141 | G13: 31749.7312 | H13: 1535782 | I13: 582039 | J13: 953743 | K13: 300605 | L13: 229029 | M13: 1027 | N13: 65067 | O13: 3731 | P13: 1751 | Q13: 111934 | R13: 397805 | S13: 1326648
A14: 국·공립병원 National & Pub. Hospital | B14: 20 | C14: 32763 | D14: 20754.10052 | E14: 6.710526316 | F14: 12002.18895 | G14: 0 | H14: 32382 | I14: 12360 | J14: 20022 | K14: 381 | L14: 342 | M14: 0 | N14: 0 | O14: 39 | P14: 0 | Q14: 10333 | R14: 4850 | S14: 17580
A15: 사립병원 Private hospital | B15: 20 | C15: 180978 | D15: 68284.6125 | E15: 27273.34435 | F15: 45157.10883 | G15: 40262.93432 | H15: 180356 | I15: 13698 | J15: 166658 | K15: 622 | L15: 575 | M15: 0 | N15: 0 | O15: 47 | P15: 0 | Q15: 34538.9 | R15: 28891.9 | S15: 117547.2
A16: 대학 Higher educations | B16: 366 | C16: 9330614.888 | D16: 7632992.423 | E16: 320952.1331 | F16: 1314097.43 | G16: 62572.90168 | H16: 8773385.862 | I16: 3620879.168 | J16: 5152506.694 | K16: 557229.0267 | L16: 522441.5267 | M16: 83 | N16: 2335 | O16: 18521 | P16: 13848.5 | Q16: 3639259.495 | R16: 2906056.977 | S16: 2785298.416
A17: 국·공립 National & Pub. | B17: 78 | C17: 4216323.118 | D17: 3494914.7 | E17: 41428.14844 | F17: 642195.1163 | G17: 37785.15333 | H17: 3941417.118 | I17: 1533446.158 | J17: 2407970.96 | K17: 274906 | L17: 258834 | M17: 77 | N17: 1380 | O17: 10275 | P17: 4340 | Q17: 1681452.088 | R17: 1158570.414 | S17: 1376300.616
A18: 사립 Private | B18: 288 | C18: 5114291.77 | D18: 4138077.723 | E18: 279523.9847 | F18: 671902.3136 | G18: 24787.74835 | H18: 4831968.743 | I18: 2087433.01 | J18: 2744535.734 | K18: 282323.0267 | L18: 263607.5267 | M18: 6 | N18: 955 | O18: 8246 | P18: 9508.5 | Q18: 1957807.407 | R18: 1747486.563 | S18: 1408997.801
A19: 기업체 Business enterprises | B19: 58777 | C19: 80807627.66 | D19: 4663127.184 | E19: 36516.05979 | F19: 75955443.71 | G19: 152540.699 | H19: 75095404.16 | I19: 38867161.91 | J19: 36228242.26 | K19: 5712223.494 | L19: 3250236.634 | M19: 404435.219 | N19: 907908.471 | O19: 631950.8836 | P19: 517692.2864 | Q19: 8777507.337 | R19: 15575855.32 | S19: 56454264.99
A20: 정부투자기관 Gov't investment | B20: 50 | C20: 859518 | D20: 58603 | E20: 917 | F20: 799373 | G20: 625 | H20: 735823 | I20: 342506 | J20: 393317 | K20: 123695 | L20: 69741 | M20: 1425 | N20: 31260 | O20: 20744 | P20: 525 | Q20: 38343.99 | R20: 113999.51 | S20: 707174.5
A21: 민간기업 Private companies | B21: 58727 | C21: 79948109.66 | D21: 4604524.184 | E21: 35599.05979 | F21: 75156070.71 | G21: 151915.699 | H21: 74359581.16 | I21: 38524655.91 | J21: 35834925.26 | K21: 5588528.494 | L21: 3180495.634 | M21: 403010.219 | N21: 876648.471 | O21: 611206.8836 | P21: 517167.2864 | Q21: 8739163.347 | R21: 15461855.81 | S21: 55747090.49

Sheet 2-11
A1: 2-11) 2021년도 연구수행주체별 외부로부터 받은 연구개발비 및 외부로 지출한 연구개발비
A2: R&D expenditure received and paid to outside by sector of performance, 2021
S4: (단위 : 백만원 Unit : Won, Millions)
A5: 연구수행주체 Sector of performance 재원 Source of funds | B5: 총계 Total | D5: 국·공립연구기관 (의료기관 포함) Nat'l & Pub. Research inst. | F5: 정부출연 Gov't funded | H5: 지방자치단체출연 Local gov't funded | J5: 비영리법인 Non-profit corporation | L5: 국·공립대학 Nat'l & Pub. univ. | N5: 사립대학 Private univ. | P5: 정부투자기관 Gov't investment | R5: 민간기업체 Private companies
B6: 수취 Received | C6: 지불 Paid | D6: 수취 Received | E6: 지불 Paid | F6: 수취 Received | G6: 지불 Paid | H6: 수취 Received | I6: 지불 Paid | J6: 수취 Received | K6: 지불 Paid | L6: 수취 Received | M6: 지불 Paid | N6: 수취 Received | O6: 지불 Paid | P6: 수취 Received | Q6: 지불 Paid | R6: 수취 Received | S6: 지불 Paid
A7: 총계 Total | B7: 28272542.91 | C7: 7881304.803 | D7: 969759 | E7: 214682 | F7: 9106527 | G7: 870211 | H7: 271727 | I7: 33538 | J7: 2079081 | K7: 204157 | L7: 4099430.38 | M7: 84779.26174 | N7: 5030471.125 | O7: 124369 | P7: 76898 | Q7: 133043 | R7: 6638649.405 | S7: 6216525.541
A8: 정부·지방자치단체 Gov't · Local gov't | B8: 24012680.39 | C8: 2512572.541 | D8: 955599 | E8: 73121 | F8: 8784063 | G8: 220896 | H8: 265924 | I8: 22581 | J8: 1738704 | K8: 59403 | L8: 3367754.862 | M8: 23350.26174 | N8: 4237508.347 | O8: 36344 | P8: 58603 | Q8: 25669 | R8: 4604524.184 | S8: 2051208.279
A9: 중앙행정기관 Central gov't | B9: 20473068.35 | C9: 0 | D9: 824753 | E9: 0 | F9: 8370087 | G9: 0 | H9: 116642 | I9: 0 | J9: 1557282 | K9: 0 | L9: 2820439.55 | M9: 0 | N9: 3716450.347 | O9: 0 | P9: 57507 | Q9: 0 | R9: 3009907.449 | S9: 0
A10: 지방자치단체 Local gov't | B10: 1004380.424 | C10: 0 | D10: 44128 | E10: 0 | F10: 178877 | G10: 0 | H10: 138605 | I10: 0 | J10: 155224 | K10: 0 | L10: 128224.5 | M10: 0 | N10: 187019 | O10: 0 | P10: 301 | Q10: 0 | R10: 172001.9236 | S10: 0
A11: 국·공립대학교 Nat'l & Pub. univ. | B11: 32416.67 | C11: 396978.969 | D11: 0 | E11: 50357 | F11: 1741 | G11: 102776 | H11: 18 | I11: 2483 | J11: 1457 | K11: 19352 | L11: 9017.364 | M11: 11198 | N11: 6632 | O11: 18019 | P11: 0 | Q11: 10435 | R11: 13551.306 | S11: 182358.969
A12: 정부출연연구기관 Gov't funded | B12: 2211028.184 | C12: 1957665.391 | D12: 3684 | E12: 13566 | F12: 209666 | G12: 68631 | H12: 5704 | I12: 16022 | J12: 19161 | K12: 22467 | L12: 366413.4476 | M12: 9821.261739 | N12: 289674 | O12: 12435 | P12: 795 | Q12: 10414 | R12: 1315930.737 | S12: 1804309.129
A13: 지방자치단체출연연구기관 Local gov't funded | B13: 85610.588 | C13: 38523.063 | D13: 128 | E13: 1006 | F13: 1674 | G13: 5653 | H13: 4945 | I13: 3922 | J13: 1402 | K13: 10328 | L13: 11780 | M13: 854 | N13: 14486 | O13: 469 | P13: 0 | Q13: 9 | R13: 51195.588 | S13: 16282.063
A14: 국·공립연구기관(의료기관 포함) Nat'l & Pub. Research inst. | B14: 206176.181 | C14: 119405.118 | D14: 82906 | E14: 8192 | F14: 22018 | G14: 43836 | H14: 10 | I14: 154 | J14: 4178 | K14: 7256 | L14: 31880 | M14: 1477 | N14: 23247 | O14: 5421 | P14: 0 | Q14: 4811 | R14: 41937.181 | S14: 48258.118
A15: 공공 Public | B15: 249873.0598 | C15: 726061.2562 | D15: 1804 | E15: 102776 | F15: 73071 | G15: 163930 | H15: 1619 | I15: 2179 | J15: 17831 | K15: 49694 | L15: 42140 | M15: 24651 | N15: 76892 | O15: 38035 | P15: 917 | Q15: 22779 | R15: 35599.05979 | S15: 322017.2562
A16: 사립대학(교) Private univ. | B16: 34982.782 | C16: 447801.0489 | D16: 0 | E16: 76480 | F16: 3334 | G16: 124760 | H16: 0 | I16: 890 | J16: 1294 | K16: 20987 | L16: 2990 | M16: 17355 | N16: 18702 | O16: 32798 | P16: 0 | Q16: 13057 | R16: 8662.782 | S16: 161474.0489
A17: 비영리 법인 Non-profit corporation | B17: 214890.2778 | C17: 278260.2074 | D17: 1804 | E17: 26296 | F17: 69737 | G17: 39170 | H17: 1619 | I17: 1289 | J17: 16537 | K17: 28707 | L17: 39150 | M17: 7296 | N17: 58190 | O17: 5237 | P17: 917 | Q17: 9722 | R17: 26936.27779 | S17: 160543.2074
A18: 민간 Business enterprises | B18: 3702593.758 | C18: 2955382.866 | D18: 12068 | E18: 37718 | F18: 237737 | G18: 477378 | H18: 4184 | I18: 8758 | J18: 242787 | K18: 90637 | L18: 651497.5182 | M18: 33526 | N18: 690956.7782 | O18: 49413 | P18: 16753 | Q18: 83790 | R18: 1846610.462 | S18: 2174162.866
A19: 민간기업체 Private companies | B19: 3558123.387 | C19: 2940639.297 | D19: 12068 | E19: 37623 | F19: 189639 | G19: 475912 | H19: 4030 | I19: 8758 | J19: 237245 | K19: 89103 | L19: 613180.5182 | M19: 33462 | N19: 665043.7782 | O19: 49035 | P19: 12610 | Q19: 75135 | R19: 1824307.091 | S19: 2171611.297
A20: 정부투자〮재투자기관 Gov't investment | B20: 144470.371 | C20: 14743.569 | D20: 0 | E20: 95 | F20: 48098 | G20: 1466 | H20: 154 | I20: 0 | J20: 5542 | K20: 1534 | L20: 38317 | M20: 64 | N20: 25913 | O20: 378 | P20: 4143 | Q20: 8655 | R20: 22303.371 | S20: 2551.569
A21: 외국 Rest of the world | B21: 307395.699 | C21: 1687288.14 | D21: 288 | E21: 1067 | F21: 11656 | G21: 8007 | H21: 0 | I21: 20 | J21: 79759 | K21: 4423 | L21: 38038 | M21: 3252 | N21: 25114 | O21: 577 | P21: 625 | Q21: 805 | R21: 151915.699 | S21: 1669137.14
A23: 주 : 1. 연구수행주체 중 '국·공립연구기관(의료기관 포함)'은 '국·공립연구기관'과 '국·공립병원'의 합
A24: 2. 연구수행주체 중 '비영리 법인'는 '기타 비영리'와 '사립병원'의 합

Sheet 2-12
A1: 2-12) 2021년도 연구수행주체별 연구개발인력, 연구원(전공, 학위), 연구원 1인당 연구개발비
A2: R&D personnel, researchers(major field of study, degree) and R&D expenditure per researcher by sector of performance, 2021
Q4: (단위 : 명, 백만원 Unit : Headcount, Won, Millions)
A5: 연구수행주체 Sector of performance | B5: 연구개발인력 R&D personnel | F5: 전공별 연구원 Researchers by major field of study | L5: 학위별 연구원 Researchers by degree | P5: 연구개발비 R&D expenditures
B6: 총계 Total | C6: 연구원 Researchers | D6: 연구보조원 Other R&D personnel | F6: 이학 Natural sciences | G6: 공학 Engineering & technology | H6: 의〮약보건학 Medical & health sciences | I6: 농업과학 Agricultural sciences | J6: 인문학 Humanities | K6: 사회과학 Social sciences | L6: 박사 Doctoral | M6: 석사 Master's | N6: 학사 Bachelor's | O6: 기타 Others | P6: 계 Total | Q6: 연구원1인당 (1,000 won) Per researcher
D7: 연구지원·기능 Technicians and equivalent staff | E7: 연구행정·기타 Other supporting staff
A8: 총계 Total | B8: 785594 | C8: 586666 | D8: 131641 | E8: 67287 | F8: 88727 | G8: 386778 | H8: 35396 | I8: 11361 | J8: 32267 | K8: 32137 | L8: 121015 | M8: 159973 | N8: 273900 | O8: 31778 | P8: 102135243.5 | Q8: =IFERROR(P8*1000/C8,"-") -> 174094.363
A9: 공공연구기관 Public research institutes | B9: 66560 | C9: 42566 | D9: 13498 | E9: 10496 | F9: 8688 | G9: 21578 | H9: 2928 | I9: 2805 | J9: 821 | K9: 5746 | L9: 21568 | M9: 14994 | N9: 5577 | O9: 427 | P9: 11997001 | Q9: =IFERROR(P9*1000/C9,"-") -> 281844.6882
A10: 국·공립 National & Pub. | B10: 13437 | C10: 6184 | D10: 5445 | E10: 1808 | F10: 1805 | G10: 962 | H10: 597 | I10: 2280 | J10: 269 | K10: 271 | L10: 3108 | M10: 2275 | N10: 743 | O10: 58 | P10: 967263 | Q10: 156413.8098
A11: 정부출연 Gov't funded | B11: 33891 | C11: 22794 | D11: 4905 | E11: 6192 | F11: 4723 | G11: 13542 | H11: 534 | I11: 271 | J11: 211 | K11: 3513 | L11: 14157 | M11: 7279 | N11: 1331 | O11: 27 | P11: 8718510 | Q11: 382491.4451
A12: 지방자치단체출연 Local gov't funded | B12: 2342 | C12: 1605 | D12: 343 | E12: 394 | F12: 258 | G12: 711 | H12: 74 | I12: 83 | J12: 68 | K12: 411 | L12: 783 | M12: 592 | N12: 230 | O12: 0 | P12: 261100 | Q12: 162679.1277
A13: 기타비영리 Other non-profit corporation | B13: 14354 | C13: 10486 | D13: 1942 | E13: 1926 | F13: 1680 | G13: 6291 | H13: 640 | I13: 145 | J13: 258 | K13: 1472 | L13: 2975 | M13: 4377 | N13: 2843 | O13: 291 | P13: 1836387 | Q13: 175127.5033
A14: 국·공립병원 National & Pub. hospital | B14: 834 | C14: 787 | D14: 15 | E14: 32 | F14: 21 | G14: 25 | H14: 671 | I14: 5 | J14: 8 | K14: 57 | L14: 202 | M14: 303 | N14: 256 | O14: 26 | P14: 32763 | Q14: 41630.24142
A15: 사립병원 Private hospital | B15: 1702 | C15: 710 | D15: 848 | E15: 144 | F15: 201 | G15: 47 | H15: 412 | I15: 21 | J15: 7 | K15: 22 | L15: 343 | M15: 168 | N15: 174 | O15: 25 | P15: 180978 | Q15: 254898.5915
A16: 대학 Higher educations | B16: 210163 | C16: 114635 | D16: 58942 | E16: 36586 | F16: 16226 | G16: 41788 | H16: 25177 | I16: 4589 | J16: 10958 | K16: 15897 | L16: 66531 | M16: 38064 | N16: 8527 | O16: 1513 | P16: 9330614.888 | Q16: 81394.11949
A17: 국·공립 National & Pub. | B17: 86856 | C17: 45780 | D17: 22783 | E17: 18293 | F17: 6801 | G17: 18686 | H17: 8691 | I17: 3278 | J17: 3125 | K17: 5199 | L17: 24136 | M17: 16224 | N17: 4624 | O17: 796 | P17: 4216323.118 | Q17: 92099.67493
A18: 사립 Private | B18: 123307 | C18: 68855 | D18: 36159 | E18: 18293 | F18: 9425 | G18: 23102 | H18: 16486 | I18: 1311 | J18: 7833 | K18: 10698 | L18: 42395 | M18: 21840 | N18: 3903 | O18: 717 | P18: 5114291.77 | Q18: 74276.25837
A19: 기업체 Business enterprises | B19: 508871 | C19: 429465 | D19: 59201 | E19: 20205 | F19: 63813 | G19: 323412 | H19: 7291 | I19: 3967 | J19: 20488 | K19: 10494 | L19: 32916 | M19: 106915 | N19: 259796 | O19: 29838 | P19: 80807627.66 | Q19: 188158.8201
A20: 정부투자기관 Gov't investment | B20: 3864 | C20: 2753 | D20: 418 | E20: 693 | F20: 231 | G20: 2300 | H20: 40 | I20: 29 | J20: 32 | K20: 121 | L20: 878 | M20: 1149 | N20: 708 | O20: 18 | P20: 859518 | Q20: 312211.4057
A21: 민간기업 Private companies | B21: 505007 | C21: 426712 | D21: 58783 | E21: 19512 | F21: 63582 | G21: 321112 | H21: 7251 | I21: 3938 | J21: 20456 | K21: 10373 | L21: 32038 | M21: 105766 | N21: 259088 | O21: 29820 | P21: 79948109.66 | Q21: 187358.4752

Sheet 2-13
A1: 2-13) 2021년도 전공별 연구원(학위·성)
A2: Researchers(degree & gender) by major field of study, 2021
A5: 전공 Major field of study | B5: 계 Total | E5: 박사 Doctoral | H5: 석사 Master's | K5: 학사 Bachelor's | N5: 기타 Others
C6: 남성 Male | D6: 여성 Female | F6: 남성 Male | G6: 여성 Female | I6: 남성 Male | J6: 여성 Female | L6: 남성 Male | M6: 여성 Female | O6: 남성 Male | P6: 여성 Female
A7: 총계 Total | B7: 586666 | C7: 456611 | D7: 130055 | E7: 121015 | F7: 92769 | G7: 28246 | H7: 159973 | I7: 119301 | J7: 40672 | K7: 273900 | L7: 218253 | M7: 55647 | N7: 31778 | O7: 26288 | P7: 5490
A8: 이학 Natural sciences | B8: 88727 | C8: 61944 | D8: 26783 | E8: 21581 | F8: 16290 | G8: 5291 | H8: 28296 | I8: 17607 | J8: 10689 | K8: 34363 | L8: 24421 | M8: 9942 | N8: 4487 | O8: 3626 | P8: 861
A9: 공학 Engineering & technology | B9: 386778 | C9: 335556 | D9: 51222 | E9: 54230 | F9: 48437 | G9: 5793 | H9: 104605 | I9: 88742 | J9: 15863 | K9: 205757 | L9: 178242 | M9: 27515 | N9: 22186 | O9: 20135 | P9: 2051
A10: 의〮약〮보건학 Medical & health sciences | B10: 35396 | C10: 17724 | D10: 17672 | E10: 17793 | F10: 10366 | G10: 7427 | H10: 10369 | I10: 4481 | J10: 5888 | K10: 6060 | L10: 2321 | M10: 3739 | N10: 1174 | O10: 556 | P10: 618
A11: 농업과학 Agricultural sciences | B11: 11361 | C11: 7653 | D11: 3708 | E11: 4681 | F11: 3522 | G11: 1159 | H11: 3858 | I11: 2218 | J11: 1640 | K11: 2504 | L11: 1675 | M11: 829 | N11: 318 | O11: 238 | P11: 80
A12: 인문학 Humanities | B12: 32267 | C12: 15010 | D12: 17257 | E12: 8415 | F12: 4855 | G12: 3560 | H12: 4827 | I12: 2340 | J12: 2487 | K12: 16674 | L12: 6795 | M12: 9879 | N12: 2351 | O12: 1020 | P12: 1331
A13: 사회과학 Social sciences | B13: 32137 | C13: 18724 | D13: 13413 | E13: 14315 | F13: 9299 | G13: 5016 | H13: 8018 | I13: 3913 | J13: 4105 | K13: 8542 | L13: 4799 | M13: 3743 | N13: 1262 | O13: 713 | P13: 549
A14: 공공연구기관 Public research institutes | B14: 42566 | C14: 30508 | D14: 12058 | E14: 21568 | F14: 17098 | G14: 4470 | H14: 14994 | I14: 9858 | J14: 5136 | K14: 5577 | L14: 3294 | M14: 2283 | N14: 427 | O14: 258 | P14: 169
A15: 이학 Natural sciences | B15: 8688 | C15: 5768 | D15: 2920 | E15: 5226 | F15: 3935 | G15: 1291 | H15: 2518 | I15: 1369 | J15: 1149 | K15: 900 | L15: 438 | M15: 462 | N15: 44 | O15: 26 | P15: 18
A16: 공학 Engineering & technology | B16: 21578 | C16: 18125 | D16: 3453 | E16: 10675 | F16: 9543 | G16: 1132 | H16: 7997 | I16: 6447 | J16: 1550 | K16: 2691 | L16: 1990 | M16: 701 | N16: 215 | O16: 145 | P16: 70
A17: 의〮약〮보건학 Medical & health sciences | B17: 2928 | C17: 1244 | D17: 1684 | E17: 1239 | F17: 622 | G17: 617 | H17: 980 | I17: 405 | J17: 575 | K17: 653 | L17: 198 | M17: 455 | N17: 56 | O17: 19 | P17: 37
A18: 농업과학 Agricultural sciences | B18: 2805 | C18: 1833 | D18: 972 | E18: 1544 | F18: 1131 | G18: 413 | H18: 854 | I18: 464 | J18: 390 | K18: 401 | L18: 233 | M18: 168 | N18: 6 | O18: 5 | P18: 1
A19: 인문학 Humanities | B19: 821 | C19: 400 | D19: 421 | E19: 156 | F19: 91 | G19: 65 | H19: 310 | I19: 136 | J19: 174 | K19: 306 | L19: 143 | M19: 163 | N19: 49 | O19: 30 | P19: 19
A20: 사회과학 Social sciences | B20: 5746 | C20: 3138 | D20: 2608 | E20: 2728 | F20: 1776 | G20: 952 | H20: 2335 | I20: 1037 | J20: 1298 | K20: 626 | L20: 292 | M20: 334 | N20: 57 | O20: 33 | P20: 24
A21: 대학 Higher educations | B21: 114635 | C21: 75843 | D21: 38792 | E21: 66531 | F21: 47151 | G21: 19380 | H21: 38064 | I21: 23525 | J21: 14539 | K21: 8527 | L21: 4448 | M21: 4079 | N21: 1513 | O21: 719 | P21: 794
A22: 이학 Natural sciences | B22: 16226 | C22: 11020 | D22: 5206 | E22: 8699 | F22: 6473 | G22: 2226 | H22: 5866 | I22: 3574 | J22: 2292 | K22: 1486 | L22: 885 | M22: 601 | N22: 175 | O22: 88 | P22: 87
A23: 공학 Engineering & technology | B23: 41788 | C23: 33862 | D23: 7926 | E23: 20728 | F23: 17875 | G23: 2853 | H23: 17754 | I23: 13639 | J23: 4115 | K23: 2933 | L23: 2110 | M23: 823 | N23: 373 | O23: 238 | P23: 135
A24: 의〮약〮보건학 Medical & health sciences | B24: 25177 | C24: 12785 | D24: 12392 | E24: 15379 | F24: 9019 | G24: 6360 | H24: 6427 | I24: 2640 | J24: 3787 | K24: 2829 | L24: 957 | M24: 1872 | N24: 542 | O24: 169 | P24: 373
A25: 농업과학 Agricultural sciences | B25: 4589 | C25: 3021 | D25: 1568 | E25: 2636 | F25: 1990 | G25: 646 | H25: 1716 | I25: 923 | J25: 793 | K25: 181 | L25: 82 | M25: 99 | N25: 56 | O25: 26 | P25: 30
A26: 인문학 Humanities | B26: 10958 | C26: 5965 | D26: 4993 | E26: 7887 | F26: 4550 | G26: 3337 | H26: 2644 | I26: 1239 | J26: 1405 | K26: 276 | L26: 100 | M26: 176 | N26: 151 | O26: 76 | P26: 75
A27: 사회과학 Social sciences | B27: 15897 | C27: 9190 | D27: 6707 | E27: 11202 | F27: 7244 | G27: 3958 | H27: 3657 | I27: 1510 | J27: 2147 | K27: 822 | L27: 314 | M27: 508 | N27: 216 | O27: 122 | P27: 94
A28: 기업체 Business enterprises | B28: 429465 | C28: 350260 | D28: 79205 | E28: 32916 | F28: 28520 | G28: 4396 | H28: 106915 | I28: 85918 | J28: 20997 | K28: 259796 | L28: 210511 | M28: 49285 | N28: 29838 | O28: 25311 | P28: 4527
A29: 이학 Natural sciences | B29: 63813 | C29: 45156 | D29: 18657 | E29: 7656 | F29: 5882 | G29: 1774 | H29: 19912 | I29: 12664 | J29: 7248 | K29: 31977 | L29: 23098 | M29: 8879 | N29: 4268 | O29: 3512 | P29: 756
A30: 공학 Engineering & technology | B30: 323412 | C30: 283569 | D30: 39843 | E30: 22827 | F30: 21019 | G30: 1808 | H30: 78854 | I30: 68656 | J30: 10198 | K30: 200133 | L30: 174142 | M30: 25991 | N30: 21598 | O30: 19752 | P30: 1846
A31: 의〮약〮보건학 Medical & health sciences | B31: 7291 | C31: 3695 | D31: 3596 | E31: 1175 | F31: 725 | G31: 450 | H31: 2962 | I31: 1436 | J31: 1526 | K31: 2578 | L31: 1166 | M31: 1412 | N31: 576 | O31: 368 | P31: 208
A32: 농업과학 Agricultural sciences | B32: 3967 | C32: 2799 | D32: 1168 | E32: 501 | F32: 401 | G32: 100 | H32: 1288 | I32: 831 | J32: 457 | K32: 1922 | L32: 1360 | M32: 562 | N32: 256 | O32: 207 | P32: 49
A33: 인문학 Humanities | B33: 20488 | C33: 8645 | D33: 11843 | E33: 372 | F33: 214 | G33: 158 | H33: 1873 | I33: 965 | J33: 908 | K33: 16092 | L33: 6552 | M33: 9540 | N33: 2151 | O33: 914 | P33: 1237
A34: 사회과학 Social sciences | B34: 10494 | C34: 6396 | D34: 4098 | E34: 385 | F34: 279 | G34: 106 | H34: 2026 | I34: 1366 | J34: 660 | K34: 7094 | L34: 4193 | M34: 2901 | N34: 989 | O34: 558 | P34: 431

Sheet 2-14
A1: 2-14) 2021년도 연구수행주체별 연구원(연령·성)
A2: Researchers(age & gender) by sector of performance, 2021
M4: (단위 : 명 Unit : Headcount)
A5: 연구수행주체 Sector of performance | B5: 계 Total | D5: 29세이하 ~ 29years | F5: 30∼39세 30∼39 years | H5: 40∼49세 40∼49 years | J5: 50∼59세 50∼59 years | L5: 60세이상 60~ years
C6: 여성 Female | E6: 여성 Female | G6: 여성 Female | I6: 여성 Female | K6: 여성 Female | M6: 여성 Female
A7: 총계 Total | B7: 586666 | C7: 130055 | D7: 87866 | E7: 35671 | F7: 221149 | G7: 56235 | H7: 175901 | I7: 27259 | J7: 79072 | K7: 9151 | L7: 22678 | M7: 1739
A8: 공공연구기관 Public research institutes | B8: 42566 | C8: 12058 | D8: 3751 | E8: 2057 | F8: 15366 | G8: 5516 | H8: 13160 | I8: 3234 | J8: 8355 | K8: 1166 | L8: 1934 | M8: 85
A9: 국·공립 National & Pub. | B9: 6184 | C9: 2580 | D9: 501 | E9: 345 | F9: 2032 | G9: 1012 | H9: 2015 | I9: 833 | J9: 1586 | K9: 384 | L9: 50 | M9: 6
A10: 정부출연 Gov't funded | B10: 22794 | C10: 5136 | D10: 1531 | E10: 740 | F10: 7794 | G10: 2444 | H10: 7005 | I10: 1380 | J10: 4874 | K10: 513 | L10: 1590 | M10: 59
A11: 지방자치단체출연 Local gov't funded | B11: 1605 | C11: 557 | D11: 125 | E11: 74 | F11: 664 | G11: 273 | H11: 544 | I11: 156 | J11: 252 | K11: 53 | L11: 20 | M11: 1
A12: 기타비영리 Other non-profit corporation | B12: 10486 | C12: 2949 | D12: 1452 | E12: 780 | F12: 4329 | G12: 1419 | H12: 3055 | I12: 610 | J12: 1412 | K12: 130 | L12: 238 | M12: 10
A13: 국·공립병원 National & Pub. hospital | B13: 787 | C13: 447 | D13: 85 | E13: 69 | F13: 300 | G13: 199 | H13: 266 | I13: 129 | J13: 114 | K13: 46 | L13: 22 | M13: 4
A14: 사립병원 Private hospital | B14: 710 | C14: 389 | D14: 57 | E14: 49 | F14: 247 | G14: 169 | H14: 275 | I14: 126 | J14: 117 | K14: 40 | L14: 14 | M14: 5
A15: 대학 Higher educations | B15: 114635 | C15: 38792 | D15: 20610 | E15: 8204 | F15: 36285 | G15: 13747 | H15: 26487 | I15: 10250 | J15: 21132 | K15: 5267 | L15: 10121 | M15: 1324
A16: 국·공립 National & Pub. | B16: 45780 | C16: 14324 | D16: 9850 | E16: 3662 | F16: 15112 | G16: 5327 | H16: 9960 | I16: 3443 | J16: 7064 | K16: 1548 | L16: 3794 | M16: 344
A17: 사립 Private | B17: 68855 | C17: 24468 | D17: 10760 | E17: 4542 | F17: 21173 | G17: 8420 | H17: 16527 | I17: 6807 | J17: 14068 | K17: 3719 | L17: 6327 | M17: 980
A18: 기업체 Business enterprises | B18: 429465 | C18: 79205 | D18: 63505 | E18: 25410 | F18: 169498 | G18: 36972 | H18: 136254 | I18: 13775 | J18: 49585 | K18: 2718 | L18: 10623 | M18: 330
A19: 정부투자기관 Gov't investment | B19: 2753 | C19: 388 | D19: 136 | E19: 61 | F19: 847 | G19: 178 | H19: 942 | I19: 101 | J19: 789 | K19: 47 | L19: 39 | M19: 1
A20: 민간기업 Private companies | B20: 426712 | C20: 78817 | D20: 63369 | E20: 25349 | F20: 168651 | G20: 36794 | H20: 135312 | I20: 13674 | J20: 48796 | K20: 2671 | L20: 10584 | M20: 329

Sheet 2-15
A1: 2-15) 2021년도 연구수행주체별 연구개발인력(총수, 상근상당)
A2: R&D personnel(Headcount, FTE) by sector of performance, 2021
J4: (단위 : 명 Unit : Headcount, FTE)
A5: 연구수행주체 Sector of performance | B5: 연구원 Researchers | E5: 연구보조원 Other R&D personnel
E6: 연구지원·기능 Technicians and equivalent staff | H6: 연구행정·기타 Other supporting staff
B7: 총수(A) Headcount(A) | C7: 상근상당(B) FTE(B) | D7: B/A | E7: 총수(A) Headcount(A) | F7: 상근상당(B) FTE(B) | G7: B/A | H7: 총수(A) Headcount(A) | I7: 상근상당(B) FTE(B) | J7: B/A
A8: 총계 Total | B8: 586666 | C8: 470728.1152 | D8: 0.8023783809 | E8: 131641 | F8: 75216.21523 | G8: 0.5713737759 | H8: 67287 | I8: 31155.02259 | J8: 0.4630169659
A9: 공공연구기관 Public research institutes | B9: 42566 | C9: 36546.34257 | D9: 0.8585806175 | E9: 13498 | F9: 9858.560131 | G9: 0.7303719166 | H9: 10496 | I9: 5204.991016 | J9: 0.4959023453
A10: 국·공립 National & Pub. | B10: 6184 | C10: 4655.367077 | D10: 0.7528083889 | E10: 5445 | F10: 3830.087 | G10: 0.7034135904 | H10: 1808 | I10: 515.4740769 | J10: 0.2851073434
A11: 정부출연 Gov't funded | B11: 22794 | C11: 21685.1992 | D11: 0.9513555848 | E11: 4905 | F11: 3873.849 | G11: 0.7897755352 | H11: 6192 | I11: 3573.091 | J11: 0.5770495801
A12: 지방자치단체출연 Local gov't funded | B12: 1605 | C12: 1415.208 | D12: 0.8817495327 | E12: 343 | F12: 182.65404 | G12: 0.5325190671 | H12: 394 | I12: 132.814 | J12: 0.3370913706
A13: 기타비영리 Other non-profit corporation | B13: 10486 | C13: 8017.027796 | D13: 0.7645458512 | E13: 1942 | F13: 1517.321 | G13: 0.7813187436 | H13: 1926 | I13: 877.521939 | J13: 0.4556188676
A14: 국·공립병원 National & Pub. hospital | B14: 787 | C14: 233.352 | D14: 0.2965082592 | E14: 15 | F14: 6.6 | G14: 0.44 | H14: 32 | I14: 20.05 | J14: 0.6265625
A15: 사립병원 Private hospital | B15: 710 | C15: 540.188492 | D15: 0.760828862 | E15: 848 | F15: 448.0490909 | G15: 0.528359777 | H15: 144 | I15: 86.04 | J15: 0.5975
A16: 대학 Higher educations | B16: 114635 | C16: 43772.56266 | D16: 0.3818429159 | E16: 58942 | F16: 21067.4151 | G16: 0.3574262003 | H16: 36586 | I16: 14826.70157 | J16: 0.4052561518
A17: 국·공립 National & Pub. | B17: 45780 | C17: 17085.64656 | D17: 0.3732120263 | E17: 22783 | F17: 7400.287524 | G17: 0.3248162017 | H17: 18293 | I17: 6860.914236 | J17: 0.3750568106
A18: 사립 Private | B18: 68855 | C18: 26686.9161 | D18: 0.3875813826 | E18: 36159 | F18: 13667.12758 | G18: 0.3779730517 | H18: 18293 | I18: 7965.787335 | J18: 0.4354554931
A19: 기업체 Business enterprises | B19: 429465 | C19: 390409.21 | D19: 0.9090594344 | E19: 59201 | F19: 44290.24 | G19: 0.7481333086 | H19: 20205 | I19: 11123.33 | J19: 0.5505236328
A20: 정부투자기관 Gov't investment | B20: 2753 | C20: 2079.63 | D20: 0.7554050127 | E20: 418 | F20: 249.19 | G20: 0.5961483254 | H20: 693 | I20: 338.49 | J20: 0.4884415584
A21: 민간기업 Private companies | B21: 426712 | C21: 388329.58 | D21: 0.9100507602 | E21: 58783 | F21: 44041.05 | G21: 0.7492140585 | H21: 19512 | I21: 10784.84 | J21: 0.5527285773

Sheet 2-16
A1: 2-16) 2021년도 연구수행주체별 연구개발비(지입, 부담, 지출, 사용)
A2: R&D expenditure(internal and external funds) by sector of performance, 2021
G4: (단위 : 백만원 Unit : Won, Millions)
A5: 연구수행주체 Sector of performance | B5: 연구개발 수행기관 R&D performing inst. | C5: 외부로부터 받은 연구개발비(A) Received outside | D5: 자체부담 연구개발비(B) Financed by own funds | E5: 외부로 지출한 연구개발비(C) Paid outside | F5: 자체사용 연구개발비 (D=A+B-C) Intramural expenditure | G5: 자체부담대비 자체사용비율 D/B(%)
A6: 총계 Total | B6: 59576 | C6: 28272542.91 | D6: 81744005.44 | E6: 7881304.803 | F6: 102135243.5 | G6: 124.9452397
A7: 공공연구기관 Public research institutes | B7: 433 | C7: 12427094 | D7: 892495 | E7: 1322588 | F7: 11997001 | G7: 1344.209323
A8: 국·공립 National & Pub. | B8: 88 | C8: 934672 | D8: 242813 | E8: 210222 | F8: 967263 | G8: 398.357172
A9: 정부출연 Gov't funded | B9: 72 | C9: 9106527 | D9: 482194 | E9: 870211 | F9: 8718510 | G9: 1808.091764
A10: 지방자치단체출연 Local gov't funded | B10: 52 | C10: 271727 | D10: 22911 | E10: 33538 | F10: 261100 | G10: 1139.627253
A11: 기타비영리 Other non-profit corporation | B11: 181 | C11: 1909615 | D11: 115220 | E11: 188448 | F11: 1836387 | G11: 1593.809235
A12: 국·공립병원 National & Pub. hospital | B12: 20 | C12: 35087 | D12: 2136 | E12: 4460 | F12: 32763 | G12: 1533.848315
A13: 사립병원 Private hospital | B13: 20 | C13: 169466 | D13: 27221 | E13: 15709 | F13: 180978 | G13: 664.8469931
A14: 대학 Higher educations | B14: 366 | C14: 9129901.505 | D14: 409861.6449 | E14: 209148.2617 | F14: 9330614.888 | G14: 2276.527946
A15: 국·공립 National & Pub. | B15: 78 | C15: 4099430.38 | D15: 201672 | E15: 84779.26174 | F15: 4216323.118 | G15: 2090.683445
A16: 사립 Private | B16: 288 | C16: 5030471.125 | D16: 208189.6449 | E16: 124369 | F16: 5114291.77 | G16: 2456.554346
A17: 기업체 Business enterprises | B17: 58777 | C17: 6715547.405 | D17: 80441648.79 | E17: 6349568.541 | F17: 80807627.66 | G17: 100.4549619
A18: 정부투자기관 Gov't investment | B18: 50 | C18: 76898 | D18: 915663 | E18: 133043 | F18: 859518 | G18: 93.86837734
A19: 민간기업 Private companies | B19: 58727 | C19: 6638649.405 | D19: 79525985.79 | E19: 6216525.541 | F19: 79948109.66 | G19: 100.5307999

Sheet 2-17-1
A1: 2-17-1) 2021년도 연구수행주체별 연구개발비(경제사회목적)
A2: R&D expenditure(socio-economic objectives) by sector of performance, 2021
O4: (단위 : 백만원 Unit : Won, Millions)
A5: 연구수행주체 Sector of performance | B5: 연구개발비 R&D expenditure | C5: 경제사회목적 Socio-economic objectives
C7: 지구개발 및 탐사 Exploration and exploitation of the Earth | D7: 환경 Environment | E7: 우주개발 및 탐사 Exploration and exploitation of space | F7: 교통, 전기통신 등 기반시설 Transport, telecommunication and other infrastructures | G7: 에너지 Energy | H7: 산업생산 및 기술 Industrial production and technology | I7: 건강 Health | J7: 농업 Agriculture | K7: 교육 Education | L7: 문화, 휴양, 종교 및 매스미디어 Culture, recreation religion and mass media | M7: 정치·사회시스템, 조직 및 과정 Political and social systems, structures and processes | N7: 지식의 전반적 진보 General advancement of knowledge | O7: 국방 Defence
A9: 총계 Total | B9: 102135243.5 | C9: 630912.7914 | D9: 2564428.565 | E9: 943373.5255 | F9: 9648320.92 | G9: 5638000.317 | H9: 60784663.1 | I9: 9108120.743 | J9: 1957962.169 | K9: 970921.509 | L9: 1424076.612 | M9: 910279.9879 | N9: 3258896.468 | O9: 4295286.836
A10: 공공연구기관 Public research institutes | B10: 11997001 | C10: 386127.3515 | D10: 444874.8804 | E10: 530227.0234 | F10: 683650.6263 | G10: 992668.5899 | H10: 3081437.889 | I10: 999900.9999 | J10: 846562.2552 | K10: 191095.401 | L10: 56143.033 | M10: 417540.5328 | N10: 700969.9989 | O10: 2665802.419
A11: 국·공립 National & Pub. | B11: 967263 | C11: 17239.032 | D11: 149832.964 | E11: 156.492 | F11: 734.214 | G11: 1093.06 | H11: 9424.326 | I11: 63562.014 | J11: 668591.104 | K11: 5188.246 | L11: 25967.87 | M11: 7152.81 | N11: 18320.868 | O11: 0
A12: 정부출연 Gov't funded | B12: 8718510 | C12: 362161.1265 | D12: 226817.4641 | E12: 510551.5714 | F12: 580817.267 | G12: 853468.7707 | H12: 1768370.498 | I12: 487768.5601 | J12: 143287.0444 | K12: 168960.2755 | L12: 6059.88 | M12: 316956.039 | N12: 639899.7038 | O12: 2653391.8
A13: 지방자치단체출연 Local gov't funded | B13: 261100 | C13: 51.316 | D13: 12366.83 | E13: 0 | F13: 16580.766 | G13: 29744.134 | H13: 128852.894 | I13: 18470.55 | J13: 20301.498 | K13: 1495.687 | L13: 4604.113 | M13: 24410.516 | N13: 4191.25 | O13: 30.446
A14: 기타비영리 Other non-profit corporation | B14: 1836387 | C14: 6675.877 | D14: 55857.6223 | E14: 19518.96 | F14: 85518.3793 | G14: 108362.6252 | H14: 1174674.171 | I14: 216586.9758 | J14: 14382.6088 | K14: 15451.1925 | L14: 19511.17 | M14: 69018.3678 | N14: 38452.6771 | O14: 12376.373
A15: 국·공립병원 National & Pub. hospital | B15: 32763 | C15: 0 | D15: 0 | E15: 0 | F15: 0 | G15: 0 | H15: 0 | I15: 32650.9 | J15: 0 | K15: 0 | L15: 0 | M15: 2.8 | N15: 105.5 | O15: 3.8
A16: 사립병원 Private hospital | B16: 180978 | C16: 0 | D16: 0 | E16: 0 | F16: 0 | G16: 0 | H16: 116 | I16: 180862 | J16: 0 | K16: 0 | L16: 0 | M16: 0 | N16: 0 | O16: 0
A17: 대학 Higher educations | B17: 9330614.888 | C17: 146004.3711 | D17: 372186.4455 | E17: 120786.4038 | F17: 819614.9859 | G17: 610456.5253 | H17: 1943581.19 | I17: 2527002.18 | J17: 417557.471 | K17: 466408.524 | L17: 313303.9898 | M17: 327218.2242 | N17: 1200641.551 | O17: 65853.02693
A18: 국·공립 National & Pub. | B18: 4216323.118 | C18: 84307.35715 | D18: 207114.67 | E18: 72070.83668 | F18: 282743.2921 | G18: 391846.1626 | H18: 866431.245 | I18: 1060012.384 | J18: 329309.1491 | K18: 194744.2419 | L18: 107506.6728 | M18: 94085.79579 | N18: 486703.6667 | O18: 39447.64402
A19: 사립 Private | B19: 5114291.77 | C19: 61697.01395 | D19: 165071.7754 | E19: 48715.56716 | F19: 536871.6938 | G19: 218610.3626 | H19: 1077149.945 | I19: 1466989.796 | J19: 88248.32195 | K19: 271664.2821 | L19: 205797.317 | M19: 233132.4284 | N19: 713937.884 | O19: 26405.3829
A20: 기업체 Business enterprises | B20: 80807627.66 | C20: 98781.06875 | D20: 1747367.24 | E20: 292360.0983 | F20: 8145055.307 | G20: 4034875.202 | H20: 55759644.02 | I20: 5581217.564 | J20: 693842.4427 | K20: 313417.5839 | L20: 1054629.589 | M20: 165521.2309 | N20: 1357284.919 | O20: 1563631.39
A21: 정부투자기관 Gov't investment | B21: 859518 | C21: 5028.46 | D21: 51942.93 | E21: 2177 | F21: 111768.6 | G21: 599681.99 | H21: 14756 | I21: 29292.31 | J21: 13641.7 | K21: 218.11 | L21: 3455.7 | M21: 24275.3 | N21: 3279.9 | O21: 0
A22: 민간기업 Private companies | B22: 79948109.66 | C22: 93752.60875 | D22: 1695424.31 | E22: 290183.0983 | F22: 8033286.707 | G22: 3435193.212 | H22: 55744888.02 | I22: 5551925.254 | J22: 680200.7427 | K22: 313199.4739 | L22: 1051173.889 | M22: 141245.9309 | N22: 1354005.019 | O22: 1563631.39

Sheet 2-17-2
A1: 2-17-2) 2021년도 연구수행주체별 연구개발비 비율(경제사회목적)
A2: R&D expenditure rate(socio-economic objectives) by sector of performance, 2021
O4: (단위 : % Unit : %)
A5: 연구수행주체 Sector of performance | B5: 연구개발비 (백만원) R&D expenditure (Won, Millions) | C5: 경제사회목적 Socio-economic objectives
C7: 지구개발 및 탐사 Exploration and exploitation of the Earth | D7: 환경 Environment | E7: 우주개발 및 탐사 Exploration and exploitation of space | F7: 교통, 전기통신 등 기반시설 Transport, telecommunication and other infrastructures | G7: 에너지 Energy | H7: 산업생산 및 기술 Industrial production and technology | I7: 건강 Health | J7: 농업 Agriculture | K7: 교육 Education | L7: 문화, 휴양, 종교 및 매스미디어 Culture, recreation religion and mass media | M7: 정치·사회시스템, 조직 및 과정 Political and social systems, structures and processes | N7: 지식의 전반적 진보 General advancement of knowledge | O7: 국방 Defence
A9: 총계 Total | B9: ='2-17-1'!B9 -> 102135243.5 | C9: ='2-17-1'!C9/'2-17-2'!$B9*100 -> 0.6177229029 | D9: ='2-17-1'!D9/'2-17-2'!$B9*100 -> 2.510816518 | E9: ='2-17-1'!E9/'2-17-2'!$B9*100 -> 0.9236513204 | F9: ='2-17-1'!F9/'2-17-2'!$B9*100 -> 9.446612731 | G9: ='2-17-1'!G9/'2-17-2'!$B9*100 -> 5.520132053 | H9: ='2-17-1'!H9/'2-17-2'!$B9*100 -> 59.51389647 | I9: ='2-17-1'!I9/'2-17-2'!$B9*100 -> 8.917706002 | J9: ='2-17-1'!J9/'2-17-2'!$B9*100 -> 1.917028932 | K9: ='2-17-1'!K9/'2-17-2'!$B9*100 -> 0.9506233845 | L9: ='2-17-1'!L9/'2-17-2'!$B9*100 -> 1.394304808 | M9: ='2-17-1'!M9/'2-17-2'!$B9*100 -> 0.8912496375 | N9: ='2-17-1'!N9/'2-17-2'!$B9*100 -> 3.190765846 | O9: ='2-17-1'!O9/'2-17-2'!$B9*100 -> 4.205489395
A10: 공공연구기관 Public research institutes | B10: ='2-17-1'!B10 -> 11997001 | C10: ='2-17-1'!C10/'2-17-2'!$B10*100 -> 3.218532294 | D10: ='2-17-1'!D10/'2-17-2'!$B10*100 -> 3.708217415 | E10: ='2-17-1'!E10/'2-17-2'!$B10*100 -> 4.419663076 | F10: ='2-17-1'!F10/'2-17-2'!$B10*100 -> 5.698512706 | G10: ='2-17-1'!G10/'2-17-2'!$B10*100 -> 8.274306136 | H10: ='2-17-1'!H10/'2-17-2'!$B10*100 -> 25.6850682 | I10: ='2-17-1'!I10/'2-17-2'!$B10*100 -> 8.334591286 | J10: ='2-17-1'!J10/'2-17-2'!$B10*100 -> 7.056448984 | K10: ='2-17-1'!K10/'2-17-2'!$B10*100 -> 1.592859757 | L10: ='2-17-1'!L10/'2-17-2'!$B10*100 -> 0.4679755632 | M10: ='2-17-1'!M10/'2-17-2'!$B10*100 -> 3.480374244 | N10: ='2-17-1'!N10/'2-17-2'!$B10*100 -> 5.84287689 | O10: ='2-17-1'!O10/'2-17-2'!$B10*100 -> 22.22057345
A11: 국·공립 National & Pub. | B11: ='2-17-1'!B11 -> 967263 | C11: ='2-17-1'!C11/'2-17-2'!$B11*100 -> 1.782248675 | D11: ='2-17-1'!D11/'2-17-2'!$B11*100 -> 15.49040582 | E11: ='2-17-1'!E11/'2-17-2'!$B11*100 -> 0.01617884691 | F11: ='2-17-1'!F11/'2-17-2'!$B11*100 -> 0.07590634605 | G11: ='2-17-1'!G11/'2-17-2'!$B11*100 -> 0.1130054597 | H11: ='2-17-1'!H11/'2-17-2'!$B11*100 -> 0.9743292155 | I11: ='2-17-1'!I11/'2-17-2'!$B11*100 -> 6.57132693 | J11: ='2-17-1'!J11/'2-17-2'!$B11*100 -> 69.12195587 | K11: ='2-17-1'!K11/'2-17-2'!$B11*100 -> 0.5363842099 | L11: ='2-17-1'!L11/'2-17-2'!$B11*100 -> 2.684675212 | M11: ='2-17-1'!M11/'2-17-2'!$B11*100 -> 0.7394896734 | N11: ='2-17-1'!N11/'2-17-2'!$B11*100 -> 1.894093747 | O11: ='2-17-1'!O11/'2-17-2'!$B11*100 -> 0
A12: 정부출연 Gov't funded | B12: ='2-17-1'!B12 -> 8718510 | C12: ='2-17-1'!C12/'2-17-2'!$B12*100 -> 4.153933717 | D12: ='2-17-1'!D12/'2-17-2'!$B12*100 -> 2.601562241 | E12: ='2-17-1'!E12/'2-17-2'!$B12*100 -> 5.855949829 | F12: ='2-17-1'!F12/'2-17-2'!$B12*100 -> 6.661886802 | G12: ='2-17-1'!G12/'2-17-2'!$B12*100 -> 9.789158591 | H12: ='2-17-1'!H12/'2-17-2'!$B12*100 -> 20.28294396 | I12: ='2-17-1'!I12/'2-17-2'!$B12*100 -> 5.594632111 | J12: ='2-17-1'!J12/'2-17-2'!$B12*100 -> 1.643480875 | K12: ='2-17-1'!K12/'2-17-2'!$B12*100 -> 1.937948979 | L12: ='2-17-1'!L12/'2-17-2'!$B12*100 -> 0.06950591328 | M12: ='2-17-1'!M12/'2-17-2'!$B12*100 -> 3.635438154 | N12: ='2-17-1'!N12/'2-17-2'!$B12*100 -> 7.339553476 | O12: ='2-17-1'!O12/'2-17-2'!$B12*100 -> 30.43400535
A13: 지방자치단체출연 Local gov't funded | B13: ='2-17-1'!B13 -> 261100 | C13: ='2-17-1'!C13/'2-17-2'!$B13*100 -> 0.0196537725 | D13: ='2-17-1'!D13/'2-17-2'!$B13*100 -> 4.736434316 | E13: ='2-17-1'!E13/'2-17-2'!$B13*100 -> 0 | F13: ='2-17-1'!F13/'2-17-2'!$B13*100 -> 6.350350823 | G13: ='2-17-1'!G13/'2-17-2'!$B13*100 -> 11.39185523 | H13: ='2-17-1'!H13/'2-17-2'!$B13*100 -> 49.35001685 | I13: ='2-17-1'!I13/'2-17-2'!$B13*100 -> 7.074128686 | J13: ='2-17-1'!J13/'2-17-2'!$B13*100 -> 7.775372654 | K13: ='2-17-1'!K13/'2-17-2'!$B13*100 -> 0.5728406741 | L13: ='2-17-1'!L13/'2-17-2'!$B13*100 -> 1.763352355 | M13: ='2-17-1'!M13/'2-17-2'!$B13*100 -> 9.34910609 | N13: ='2-17-1'!N13/'2-17-2'!$B13*100 -> 1.605227882 | O13: ='2-17-1'!O13/'2-17-2'!$B13*100 -> 0.01166066641
A14: 기타비영리 Other non-profit corporation | B14: ='2-17-1'!B14 -> 1836387 | C14: ='2-17-1'!C14/'2-17-2'!$B14*100 -> 0.3635332313 | D14: ='2-17-1'!D14/'2-17-2'!$B14*100 -> 3.04171301 | E14: ='2-17-1'!E14/'2-17-2'!$B14*100 -> 1.06290014 | F14: ='2-17-1'!F14/'2-17-2'!$B14*100 -> 4.656882199 | G14: ='2-17-1'!G14/'2-17-2'!$B14*100 -> 5.90085996 | H14: ='2-17-1'!H14/'2-17-2'!$B14*100 -> 63.96659153 | I14: ='2-17-1'!I14/'2-17-2'!$B14*100 -> 11.79419021 | J14: ='2-17-1'!J14/'2-17-2'!$B14*100 -> 0.7832014058 | K14: ='2-17-1'!K14/'2-17-2'!$B14*100 -> 0.841390867 | L14: ='2-17-1'!L14/'2-17-2'!$B14*100 -> 1.062475938 | M14: ='2-17-1'!M14/'2-17-2'!$B14*100 -> 3.758378152 | N14: ='2-17-1'!N14/'2-17-2'!$B14*100 -> 2.093931023 | O14: ='2-17-1'!O14/'2-17-2'!$B14*100 -> 0.6739523314
A15: 국·공립병원 National & Pub. hospital | B15: ='2-17-1'!B15 -> 32763 | C15: ='2-17-1'!C15/'2-17-2'!$B15*100 -> 0 | D15: ='2-17-1'!D15/'2-17-2'!$B15*100 -> 0 | E15: ='2-17-1'!E15/'2-17-2'!$B15*100 -> 0 | F15: ='2-17-1'!F15/'2-17-2'!$B15*100 -> 0 | G15: ='2-17-1'!G15/'2-17-2'!$B15*100 -> 0 | H15: ='2-17-1'!H15/'2-17-2'!$B15*100 -> 0 | I15: ='2-17-1'!I15/'2-17-2'!$B15*100 -> 99.65784574 | J15: ='2-17-1'!J15/'2-17-2'!$B15*100 -> 0 | K15: ='2-17-1'!K15/'2-17-2'!$B15*100 -> 0 | L15: ='2-17-1'!L15/'2-17-2'!$B15*100 -> 0 | M15: ='2-17-1'!M15/'2-17-2'!$B15*100 -> 0.008546225926 | N15: ='2-17-1'!N15/'2-17-2'!$B15*100 -> 0.322009584 | O15: ='2-17-1'!O15/'2-17-2'!$B15*100 -> 0.01159844947
A16: 사립병원 Private hospital | B16: ='2-17-1'!B16 -> 180978 | C16: ='2-17-1'!C16/'2-17-2'!$B16*100 -> 0 | D16: ='2-17-1'!D16/'2-17-2'!$B16*100 -> 0 | E16: ='2-17-1'!E16/'2-17-2'!$B16*100 -> 0 | F16: ='2-17-1'!F16/'2-17-2'!$B16*100 -> 0 | G16: ='2-17-1'!G16/'2-17-2'!$B16*100 -> 0 | H16: ='2-17-1'!H16/'2-17-2'!$B16*100 -> 0.06409618849 | I16: ='2-17-1'!I16/'2-17-2'!$B16*100 -> 99.93590381 | J16: ='2-17-1'!J16/'2-17-2'!$B16*100 -> 0 | K16: ='2-17-1'!K16/'2-17-2'!$B16*100 -> 0 | L16: ='2-17-1'!L16/'2-17-2'!$B16*100 -> 0 | M16: ='2-17-1'!M16/'2-17-2'!$B16*100 -> 0 | N16: ='2-17-1'!N16/'2-17-2'!$B16*100 -> 0 | O16: ='2-17-1'!O16/'2-17-2'!$B16*100 -> 0
A17: 대학 Higher educations | B17: ='2-17-1'!B17 -> 9330614.888 | C17: ='2-17-1'!C17/'2-17-2'!$B17*100 -> 1.564788311 | D17: ='2-17-1'!D17/'2-17-2'!$B17*100 -> 3.988873723 | E17: ='2-17-1'!E17/'2-17-2'!$B17*100 -> 1.294517085 | F17: ='2-17-1'!F17/'2-17-2'!$B17*100 -> 8.784147623 | G17: ='2-17-1'!G17/'2-17-2'!$B17*100 -> 6.542511213 | H17: ='2-17-1'!H17/'2-17-2'!$B17*100 -> 20.83015121 | I17: ='2-17-1'!I17/'2-17-2'!$B17*100 -> 27.08291158 | J17: ='2-17-1'!J17/'2-17-2'!$B17*100 -> 4.475133483 | K17: ='2-17-1'!K17/'2-17-2'!$B17*100 -> 4.998690115 | L17: ='2-17-1'!L17/'2-17-2'!$B17*100 -> 3.357806463 | M17: ='2-17-1'!M17/'2-17-2'!$B17*100 -> 3.506930981 | N17: ='2-17-1'!N17/'2-17-2'!$B17*100 -> 12.86776451 | O17: ='2-17-1'!O17/'2-17-2'!$B17*100 -> 0.7057737107
A18: 국·공립 National & Pub. | B18: ='2-17-1'!B18 -> 4216323.118 | C18: ='2-17-1'!C18/'2-17-2'!$B18*100 -> 1.999546875 | D18: ='2-17-1'!D18/'2-17-2'!$B18*100 -> 4.912210574 | E18: ='2-17-1'!E18/'2-17-2'!$B18*100 -> 1.709329068 | F18: ='2-17-1'!F18/'2-17-2'!$B18*100 -> 6.705920875 | G18: ='2-17-1'!G18/'2-17-2'!$B18*100 -> 9.293551554 | H18: ='2-17-1'!H18/'2-17-2'!$B18*100 -> 20.54945081 | I18: ='2-17-1'!I18/'2-17-2'!$B18*100 -> 25.14068193 | J18: ='2-17-1'!J18/'2-17-2'!$B18*100 -> 7.81033948 | K18: ='2-17-1'!K18/'2-17-2'!$B18*100 -> 4.618816833 | L18: ='2-17-1'!L18/'2-17-2'!$B18*100 -> 2.549773103 | M18: ='2-17-1'!M18/'2-17-2'!$B18*100 -> 2.231465501 | N18: ='2-17-1'!N18/'2-17-2'!$B18*100 -> 11.54331993 | O18: ='2-17-1'!O18/'2-17-2'!$B18*100 -> 0.9355934761
A19: 사립 Private | B19: ='2-17-1'!B19 -> 5114291.77 | C19: ='2-17-1'!C19/'2-17-2'!$B19*100 -> 1.206364766 | D19: ='2-17-1'!D19/'2-17-2'!$B19*100 -> 3.227656591 | E19: ='2-17-1'!E19/'2-17-2'!$B19*100 -> 0.9525378949 | F19: ='2-17-1'!F19/'2-17-2'!$B19*100 -> 10.49747879 | G19: ='2-17-1'!G19/'2-17-2'!$B19*100 -> 4.274499236 | H19: ='2-17-1'!H19/'2-17-2'!$B19*100 -> 21.06156617 | I19: ='2-17-1'!I19/'2-17-2'!$B19*100 -> 28.68412405 | J19: ='2-17-1'!J19/'2-17-2'!$B19*100 -> 1.725523805 | K19: ='2-17-1'!K19/'2-17-2'!$B19*100 -> 5.311865149 | L19: ='2-17-1'!L19/'2-17-2'!$B19*100 -> 4.023965121 | M19: ='2-17-1'!M19/'2-17-2'!$B19*100 -> 4.558449906 | N19: ='2-17-1'!N19/'2-17-2'!$B19*100 -> 13.95966277 | O19: ='2-17-1'!O19/'2-17-2'!$B19*100 -> 0.5163057583
A20: 기업체 Business enterprises | B20: ='2-17-1'!B20 -> 80807627.66 | C20: ='2-17-1'!C20/'2-17-2'!$B20*100 -> 0.1222422581 | D20: ='2-17-1'!D20/'2-17-2'!$B20*100 -> 2.162379085 | E20: ='2-17-1'!E20/'2-17-2'!$B20*100 -> 0.3617976505 | F20: ='2-17-1'!F20/'2-17-2'!$B20*100 -> 10.07956247 | G20: ='2-17-1'!G20/'2-17-2'!$B20*100 -> 4.993186062 | H20: ='2-17-1'!H20/'2-17-2'!$B20*100 -> 69.00294643 | I20: ='2-17-1'!I20/'2-17-2'!$B20*100 -> 6.906795467 | J20: ='2-17-1'!J20/'2-17-2'!$B20*100 -> 0.8586348379 | K20: ='2-17-1'!K20/'2-17-2'!$B20*100 -> 0.3878564351 | L20: ='2-17-1'!L20/'2-17-2'!$B20*100 -> 1.305111435 | M20: ='2-17-1'!M20/'2-17-2'!$B20*100 -> 0.2048336719 | N20: ='2-17-1'!N20/'2-17-2'!$B20*100 -> 1.679649506 | O20: ='2-17-1'!O20/'2-17-2'!$B20*100 -> 1.935004696
A21: 정부투자기관 Gov't investment | B21: ='2-17-1'!B21 -> 859518 | C21: ='2-17-1'!C21/'2-17-2'!$B21*100 -> 0.5850325415 | D21: ='2-17-1'!D21/'2-17-2'!$B21*100 -> 6.043262619 | E21: ='2-17-1'!E21/'2-17-2'!$B21*100 -> 0.2532814903 | F21: ='2-17-1'!F21/'2-17-2'!$B21*100 -> 13.00363692 | G21: ='2-17-1'!G21/'2-17-2'!$B21*100 -> 69.76956736 | H21: ='2-17-1'!H21/'2-17-2'!$B21*100 -> 1.716776147 | I21: ='2-17-1'!I21/'2-17-2'!$B21*100 -> 3.407992619 | J21: ='2-17-1'!J21/'2-17-2'!$B21*100 -> 1.587133719 | K21: ='2-17-1'!K21/'2-17-2'!$B21*100 -> 0.02537585019 | L21: ='2-17-1'!L21/'2-17-2'!$B21*100 -> 0.4020509169 | M21: ='2-17-1'!M21/'2-17-2'!$B21*100 -> 2.82429222 | N21: ='2-17-1'!N21/'2-17-2'!$B21*100 -> 0.3815975931 | O21: ='2-17-1'!O21/'2-17-2'!$B21*100 -> 0
A22: 민간기업 Private companies | B22: ='2-17-1'!B22 -> 79948109.66 | C22: ='2-17-1'!C22/'2-17-2'!$B22*100 -> 0.1172668236 | D22: ='2-17-1'!D22/'2-17-2'!$B22*100 -> 2.120655907 | E22: ='2-17-1'!E22/'2-17-2'!$B22*100 -> 0.3629643022 | F22: ='2-17-1'!F22/'2-17-2'!$B22*100 -> 10.04812589 | G22: ='2-17-1'!G22/'2-17-2'!$B22*100 -> 4.296778531 | H22: ='2-17-1'!H22/'2-17-2'!$B22*100 -> 69.72633657 | I22: ='2-17-1'!I22/'2-17-2'!$B22*100 -> 6.944410916 | J22: ='2-17-1'!J22/'2-17-2'!$B22*100 -> 0.850802784 | K22: ='2-17-1'!K22/'2-17-2'!$B22*100 -> 0.3917534452 | L22: ='2-17-1'!L22/'2-17-2'!$B22*100 -> 1.314820192 | M22: ='2-17-1'!M22/'2-17-2'!$B22*100 -> 0.1766720083 | N22: ='2-17-1'!N22/'2-17-2'!$B22*100 -> 1.693604795 | O22: ='2-17-1'!O22/'2-17-2'!$B22*100 -> 1.955807832

Sheet 2-18-1
A1: 2-18-1) 2021년도 연구수행주체별 연구개발비(지역)
A2: R&D expenditure(region) by sector of performance, 2021
S4: (단위 : 백만원 Unit : Won, Millions)
A5: 연구수행주체 Sector of performance | B5: 연구개발비 R&D expenditure | C5: 지역 Region
C6: 서울 Seoul | D6: 부산 Busan | E6: 대구 Daegu | F6: 인천 Incheon | G6: 광주 Gwangju | H6: 대전 Daejeon | I6: 울산 Ulsan | J6: 세종 Sejong | K6: 경기 Gyeonggi | L6: 강원 Gangwon | M6: 충북 Chungbuk | N6: 충남 Chungnam | O6: 전북 Jeonbuk | P6: 전남 Jeonnam | Q6: 경북 Gyeongbuk | R6: 경남 Gyeongnam | S6: 제주 Jeju
A7: 총계 Total | B7: 102135243.5 | C7: 16204341.8 | D7: 1762737.048 | E7: 1487641.72 | F7: 3226992.35 | G7: 1108895.415 | H7: 9442796.924 | I7: 1189960.906 | J7: 653391.394 | K7: 51957126.09 | L7: 685902.457 | M7: 2130660.773 | N7: 3632956.556 | O7: 1411159.785 | P7: 814255.944 | Q7: 2775075.14 | R7: 3408036.389 | S7: 243312.854
A8: 공공연구기관 Public research institutes | B8: 11997001 | C8: 1177556.7 | D8: 447122 | E8: 261320 | F8: 307266 | G8: 223892.4 | H8: 5086426.4 | I8: 131820.8 | J8: 327364 | K8: 992448.4 | L8: 147343.2 | M8: 470209.6 | N8: 300057.2 | O8: 475329 | P8: 239008.1 | Q8: 363987.2 | R8: 951590.2 | S8: 94259.8
A9: 국·공립 National & Pub. | B9: 967263 | C9: 43761 | D9: 122004 | E9: 31576 | F9: 88795 | G9: 3653 | H9: 20881 | I9: 15230 | J9: 1495 | K9: 65786.4 | L9: 49709 | M9: 78022 | N9: 53590 | O9: 179038 | P9: 37611.8 | Q9: 77511 | R9: 45815 | S9: 52784.8
A10: 정부출연 Gov't funded | B10: 8718510 | C10: 632129 | D10: 244387.6 | E10: 59968 | F10: 133102 | G10: 86372.8 | H10: 5036942.4 | I10: 96740.8 | J10: 323844 | K10: 416043.6 | L10: 42461.2 | M10: 326279.6 | N10: 119471.2 | O10: 188263.2 | P10: 89869.2 | Q10: 61593.2 | R10: 835040.2 | S10: 26002
A11: 지방자치단체출연 Local gov't funded | B11: 261100 | C11: 6826 | D11: 5153 | E11: 0 | F11: 13169 | G11: 44846 | H11: 0 | I11: 5712 | J11: 0 | K11: 13019 | L11: 19464 | M11: 2574 | N11: 943 | O11: 26381 | P11: 29671 | Q11: 78982 | R11: 13606 | S11: 754
A12: 기타비영리 Other non-profit corporation | B12: 1836387 | C12: 325545.7 | D12: 75561.4 | E12: 169594 | F12: 71757 | G12: 89020.6 | H12: 28603 | I12: 14138 | J12: 2025 | K12: 456565.4 | L12: 34209 | M12: 63315 | N12: 125924 | O12: 81646.8 | P12: 81640.1 | Q12: 145901 | R12: 56222 | S12: 14719
A13: 국·공립병원 National & Pub. hospital | B13: 32763 | C13: 17323 | D13: 14 | E13: 0 | F13: 24 | G13: 0 | H13: 0 | I13: 0 | J13: 0 | K13: 14079 | L13: 52 | M13: 19 | N13: 129 | O13: 0 | P13: 216 | Q13: 0 | R13: 907 | S13: 0
A14: 사립병원 Private hospital | B14: 180978 | C14: 151972 | D14: 2 | E14: 182 | F14: 419 | G14: 0 | H14: 0 | I14: 0 | J14: 0 | K14: 26955 | L14: 1448 | M14: 0 | N14: 0 | O14: 0 | P14: 0 | Q14: 0 | R14: 0 | S14: 0
A15: 대학 Higher educations | B15: 9330614.888 | C15: 3252990.07 | D15: 459778 | E15: 431055.1181 | F15: 286126.6 | G15: 473043 | H15: 742856.4 | I15: 196612 | J15: 72941 | K15: 1406156.1 | L15: 246849 | M15: 201105 | N15: 255089.6 | O15: 346554 | P15: 157811 | Q15: 441565 | R15: 275877 | S15: 84206
A16: 국·공립 National & Pub. | B16: 4216323.118 | C16: 1068815 | D16: 315431 | E16: 362176.1181 | F16: 44393 | G16: 373148 | H16: 665801 | I16: 158755 | J16: 2576 | K16: 129831 | L16: 124630 | M16: 148440 | N16: 64902 | O16: 255434 | P16: 138124 | Q16: 38560 | R16: 241769 | S16: 83538
A17: 사립 Private | B17: 5114291.77 | C17: 2184175.07 | D17: 144347 | E17: 68879 | F17: 241733.6 | G17: 99895 | H17: 77055.4 | I17: 37857 | J17: 70365 | K17: 1276325.1 | L17: 122219 | M17: 52665 | N17: 190187.6 | O17: 91120 | P17: 19687 | Q17: 403005 | R17: 34108 | S17: 668
A18: 기업체 Business enterprises | B18: 80807627.66 | C18: 11773795.03 | D18: 855837.048 | E18: 795266.602 | F18: 2633599.75 | G18: 411960.015 | H18: 3613514.124 | I18: 861528.106 | J18: 253086.394 | K18: 49558521.59 | L18: 291710.257 | M18: 1459346.173 | N18: 3077809.756 | O18: 589276.785 | P18: 417436.844 | Q18: 1969522.94 | R18: 2180569.189 | S18: 64847.054
A19: 정부투자기관 Gov't investment | B19: 859518 | C19: 24456 | D19: 1230 | E19: 5324 | F19: 26985 | G19: 74 | H19: 618215 | I19: 3294 | J19: 0 | K19: 71607 | L19: 12326 | M19: 9608 | N19: 4406 | O19: 15966 | P19: 27202 | Q19: 36946 | R19: 285 | S19: 1594
A20: 민간기업 Private companies | B20: 79948109.66 | C20: 11749339.03 | D20: 854607.048 | E20: 789942.602 | F20: 2606614.75 | G20: 411886.015 | H20: 2995299.124 | I20: 858234.106 | J20: 253086.394 | K20: 49486914.59 | L20: 279384.257 | M20: 1449738.173 | N20: 3073403.756 | O20: 573310.785 | P20: 390234.844 | Q20: 1932576.94 | R20: 2180284.189 | S20: 63253.054

Sheet 2-18-2
A1: 2-18-2) 2021년도 연구수행주체별 연구개발비 비율(지역)
A2: R&D expenditure rate(region) by sector of performance, 2021
S4: (단위 : % Unit : %)
A5: 연구수행주체 Sector of performance | B5: 연구개발비 (백만원) R&D expenditure (Won, Millions) | C5: 지역 Region
C6: 서울 Seoul | D6: 부산 Busan | E6: 대구 Daegu | F6: 인천 Incheon | G6: 광주 Gwangju | H6: 대전 Daejeon | I6: 울산 Ulsan | J6: 세종 Sejong | K6: 경기 Gyeonggi | L6: 강원 Gangwon | M6: 충북 Chungbuk | N6: 충남 Chungnam | O6: 전북 Jeonbuk | P6: 전남 Jeonnam | Q6: 경북 Gyeongbuk | R6: 경남 Gyeongnam | S6: 제주 Jeju
A7: 총계 Total | B7: ='2-18-1'!B7 -> 102135243.5 | C7: ='2-18-1'!C7/'2-18-2'!$B7*100 -> 15.86557317 | D7: ='2-18-1'!D7/'2-18-2'!$B7*100 -> 1.725885196 | E7: ='2-18-1'!E7/'2-18-2'!$B7*100 -> 1.456541022 | F7: ='2-18-1'!F7/'2-18-2'!$B7*100 -> 3.159528717 | G7: ='2-18-1'!G7/'2-18-2'!$B7*100 -> 1.085712802 | H7: ='2-18-1'!H7/'2-18-2'!$B7*100 -> 9.245385428 | I7: ='2-18-1'!I7/'2-18-2'!$B7*100 -> 1.165083535 | J7: ='2-18-1'!J7/'2-18-2'!$B7*100 -> 0.639731567 | K7: ='2-18-1'!K7/'2-18-2'!$B7*100 -> 50.8709083 | L7: ='2-18-1'!L7/'2-18-2'!$B7*100 -> 0.6715629524 | M7: ='2-18-1'!M7/'2-18-2'!$B7*100 -> 2.086117092 | N7: ='2-18-1'!N7/'2-18-2'!$B7*100 -> 3.557005819 | O7: ='2-18-1'!O7/'2-18-2'!$B7*100 -> 1.381658021 | P7: ='2-18-1'!P7/'2-18-2'!$B7*100 -> 0.7972330762 | Q7: ='2-18-1'!Q7/'2-18-2'!$B7*100 -> 2.717059307 | R7: ='2-18-1'!R7/'2-18-2'!$B7*100 -> 3.336787842 | S7: ='2-18-1'!S7/'2-18-2'!$B7*100 -> 0.2382261456
A8: 공공연구기관 Public research institutes | B8: ='2-18-1'!B8 -> 11997001 | C8: ='2-18-1'!C8/'2-18-2'!$B8*100 -> 9.815425538 | D8: ='2-18-1'!D8/'2-18-2'!$B8*100 -> 3.726948093 | E8: ='2-18-1'!E8/'2-18-2'!$B8*100 -> 2.178211038 | F8: ='2-18-1'!F8/'2-18-2'!$B8*100 -> 2.561190084 | G8: ='2-18-1'!G8/'2-18-2'!$B8*100 -> 1.866236404 | H8: ='2-18-1'!H8/'2-18-2'!$B8*100 -> 42.3974825 | I8: ='2-18-1'!I8/'2-18-2'!$B8*100 -> 1.09878127 | J8: ='2-18-1'!J8/'2-18-2'!$B8*100 -> 2.728715285 | K8: ='2-18-1'!K8/'2-18-2'!$B8*100 -> 8.272470762 | L8: ='2-18-1'!L8/'2-18-2'!$B8*100 -> 1.228166939 | M8: ='2-18-1'!M8/'2-18-2'!$B8*100 -> 3.919392855 | N8: ='2-18-1'!N8/'2-18-2'!$B8*100 -> 2.501101734 | O8: ='2-18-1'!O8/'2-18-2'!$B8*100 -> 3.962065186 | P8: ='2-18-1'!P8/'2-18-2'!$B8*100 -> 1.992232059 | Q8: ='2-18-1'!Q8/'2-18-2'!$B8*100 -> 3.03398491 | R8: ='2-18-1'!R8/'2-18-2'!$B8*100 -> 7.931900648 | S8: ='2-18-1'!S8/'2-18-2'!$B8*100 -> 0.7856946915
A9: 국·공립 National & Pub. | B9: ='2-18-1'!B9 -> 967263 | C9: ='2-18-1'!C9/'2-18-2'!$B9*100 -> 4.524209031 | D9: ='2-18-1'!D9/'2-18-2'!$B9*100 -> 12.61332233 | E9: ='2-18-1'!E9/'2-18-2'!$B9*100 -> 3.264468919 | F9: ='2-18-1'!F9/'2-18-2'!$B9*100 -> 9.180026528 | G9: ='2-18-1'!G9/'2-18-2'!$B9*100 -> 0.3776635724 | H9: ='2-18-1'!H9/'2-18-2'!$B9*100 -> 2.158771709 | I9: ='2-18-1'!I9/'2-18-2'!$B9*100 -> 1.574545909 | J9: ='2-18-1'!J9/'2-18-2'!$B9*100 -> 0.154559825 | K9: ='2-18-1'!K9/'2-18-2'!$B9*100 -> 6.80129396 | L9: ='2-18-1'!L9/'2-18-2'!$B9*100 -> 5.139140027 | M9: ='2-18-1'!M9/'2-18-2'!$B9*100 -> 8.066265328 | N9: ='2-18-1'!N9/'2-18-2'!$B9*100 -> 5.540375265 | O9: ='2-18-1'!O9/'2-18-2'!$B9*100 -> 18.50975381 | P9: ='2-18-1'!P9/'2-18-2'!$B9*100 -> 3.888477074 | Q9: ='2-18-1'!Q9/'2-18-2'!$B9*100 -> 8.013435849 | R9: ='2-18-1'!R9/'2-18-2'!$B9*100 -> 4.736560791 | S9: ='2-18-1'!S9/'2-18-2'!$B9*100 -> 5.457130067
A10: 정부출연 Gov't funded | B10: ='2-18-1'!B10 -> 8718510 | C10: ='2-18-1'!C10/'2-18-2'!$B10*100 -> 7.250424671 | D10: ='2-18-1'!D10/'2-18-2'!$B10*100 -> 2.80308906 | E10: ='2-18-1'!E10/'2-18-2'!$B10*100 -> 0.6878239516 | F10: ='2-18-1'!F10/'2-18-2'!$B10*100 -> 1.526659945 | G10: ='2-18-1'!G10/'2-18-2'!$B10*100 -> 0.990683041 | H10: ='2-18-1'!H10/'2-18-2'!$B10*100 -> 57.77297268 | I10: ='2-18-1'!I10/'2-18-2'!$B10*100 -> 1.109602444 | J10: ='2-18-1'!J10/'2-18-2'!$B10*100 -> 3.714442032 | K10: ='2-18-1'!K10/'2-18-2'!$B10*100 -> 4.771957594 | L10: ='2-18-1'!L10/'2-18-2'!$B10*100 -> 0.4870235855 | M10: ='2-18-1'!M10/'2-18-2'!$B10*100 -> 3.742377998 | N10: ='2-18-1'!N10/'2-18-2'!$B10*100 -> 1.370316717 | O10: ='2-18-1'!O10/'2-18-2'!$B10*100 -> 2.159350623 | P10: ='2-18-1'!P10/'2-18-2'!$B10*100 -> 1.030786224 | Q10: ='2-18-1'!Q10/'2-18-2'!$B10*100 -> 0.7064647514 | R10: ='2-18-1'!R10/'2-18-2'!$B10*100 -> 9.577785654 | S10: ='2-18-1'!S10/'2-18-2'!$B10*100 -> 0.298239034
A11: 지방자치단체출연 Local gov't funded | B11: ='2-18-1'!B11 -> 261100 | C11: ='2-18-1'!C11/'2-18-2'!$B11*100 -> 2.614324014 | D11: ='2-18-1'!D11/'2-18-2'!$B11*100 -> 1.973573344 | E11: ='2-18-1'!E11/'2-18-2'!$B11*100 -> 0 | F11: ='2-18-1'!F11/'2-18-2'!$B11*100 -> 5.043661432 | G11: ='2-18-1'!G11/'2-18-2'!$B11*100 -> 17.17579471 | H11: ='2-18-1'!H11/'2-18-2'!$B11*100 -> 0 | I11: ='2-18-1'!I11/'2-18-2'!$B11*100 -> 2.18766756 | J11: ='2-18-1'!J11/'2-18-2'!$B11*100 -> 0 | K11: ='2-18-1'!K11/'2-18-2'!$B11*100 -> 4.986212179 | L11: ='2-18-1'!L11/'2-18-2'!$B11*100 -> 7.45461509 | M11: ='2-18-1'!M11/'2-18-2'!$B11*100 -> 0.9858291842 | N11: ='2-18-1'!N11/'2-18-2'!$B11*100 -> 0.3611643049 | O11: ='2-18-1'!O11/'2-18-2'!$B11*100 -> 10.10379165 | P11: ='2-18-1'!P11/'2-18-2'!$B11*100 -> 11.36384527 | Q11: ='2-18-1'!Q11/'2-18-2'!$B11*100 -> 30.24971275 | R11: ='2-18-1'!R11/'2-18-2'!$B11*100 -> 5.211030257 | S11: ='2-18-1'!S11/'2-18-2'!$B11*100 -> 0.2887782459
A12: 기타비영리 Other non-profit corporation | B12: ='2-18-1'!B12 -> 1836387 | C12: ='2-18-1'!C12/'2-18-2'!$B12*100 -> 17.7275106 | D12: ='2-18-1'!D12/'2-18-2'!$B12*100 -> 4.114677353 | E12: ='2-18-1'!E12/'2-18-2'!$B12*100 -> 9.235199334 | F12: ='2-18-1'!F12/'2-18-2'!$B12*100 -> 3.907509692 | G12: ='2-18-1'!G12/'2-18-2'!$B12*100 -> 4.847594761 | H12: ='2-18-1'!H12/'2-18-2'!$B12*100 -> 1.557569292 | I12: ='2-18-1'!I12/'2-18-2'!$B12*100 -> 0.7698812941 | J12: ='2-18-1'!J12/'2-18-2'!$B12*100 -> 0.1102708743 | K12: ='2-18-1'!K12/'2-18-2'!$B12*100 -> 24.86215596 | L12: ='2-18-1'!L12/'2-18-2'!$B12*100 -> 1.862842636 | M12: ='2-18-1'!M12/'2-18-2'!$B12*100 -> 3.447802669 | N12: ='2-18-1'!N12/'2-18-2'!$B12*100 -> 6.857160283 | O12: ='2-18-1'!O12/'2-18-2'!$B12*100 -> 4.446056305 | P12: ='2-18-1'!P12/'2-18-2'!$B12*100 -> 4.445691458 | Q12: ='2-18-1'!Q12/'2-18-2'!$B12*100 -> 7.945002878 | R12: ='2-18-1'!R12/'2-18-2'!$B12*100 -> 3.061555108 | S12: ='2-18-1'!S12/'2-18-2'!$B12*100 -> 0.8015195054
A13: 국·공립병원 National & Pub.hospital | B13: ='2-18-1'!B13 -> 32763 | C13: ='2-18-1'!C13/'2-18-2'!$B13*100 -> 52.87366847 | D13: ='2-18-1'!D13/'2-18-2'!$B13*100 -> 0.04273112963 | E13: ='2-18-1'!E13/'2-18-2'!$B13*100 -> 0 | F13: ='2-18-1'!F13/'2-18-2'!$B13*100 -> 0.07325336508 | G13: ='2-18-1'!G13/'2-18-2'!$B13*100 -> 0 | H13: ='2-18-1'!H13/'2-18-2'!$B13*100 -> 0 | I13: ='2-18-1'!I13/'2-18-2'!$B13*100 -> 0 | J13: ='2-18-1'!J13/'2-18-2'!$B13*100 -> 0 | K13: ='2-18-1'!K13/'2-18-2'!$B13*100 -> 42.97225529 | L13: ='2-18-1'!L13/'2-18-2'!$B13*100 -> 0.1587156243 | M13: ='2-18-1'!M13/'2-18-2'!$B13*100 -> 0.05799224735 | N13: ='2-18-1'!N13/'2-18-2'!$B13*100 -> 0.3937368373 | O13: ='2-18-1'!O13/'2-18-2'!$B13*100 -> 0 | P13: ='2-18-1'!P13/'2-18-2'!$B13*100 -> 0.6592802857 | Q13: ='2-18-1'!Q13/'2-18-2'!$B13*100 -> 0 | R13: ='2-18-1'!R13/'2-18-2'!$B13*100 -> 2.768366755 | S13: ='2-18-1'!S13/'2-18-2'!$B13*100 -> 0
A14: 사립병원 Private hospital | B14: ='2-18-1'!B14 -> 180978 | C14: ='2-18-1'!C14/'2-18-2'!$B14*100 -> 83.97263756 | D14: ='2-18-1'!D14/'2-18-2'!$B14*100 -> 0.001105106698 | E14: ='2-18-1'!E14/'2-18-2'!$B14*100 -> 0.1005647095 | F14: ='2-18-1'!F14/'2-18-2'!$B14*100 -> 0.2315198532 | G14: ='2-18-1'!G14/'2-18-2'!$B14*100 -> 0 | H14: ='2-18-1'!H14/'2-18-2'!$B14*100 -> 0 | I14: ='2-18-1'!I14/'2-18-2'!$B14*100 -> 0 | J14: ='2-18-1'!J14/'2-18-2'!$B14*100 -> 0 | K14: ='2-18-1'!K14/'2-18-2'!$B14*100 -> 14.89407552 | L14: ='2-18-1'!L14/'2-18-2'!$B14*100 -> 0.8000972494 | M14: ='2-18-1'!M14/'2-18-2'!$B14*100 -> 0 | N14: ='2-18-1'!N14/'2-18-2'!$B14*100 -> 0 | O14: ='2-18-1'!O14/'2-18-2'!$B14*100 -> 0 | P14: ='2-18-1'!P14/'2-18-2'!$B14*100 -> 0 | Q14: ='2-18-1'!Q14/'2-18-2'!$B14*100 -> 0 | R14: ='2-18-1'!R14/'2-18-2'!$B14*100 -> 0 | S14: ='2-18-1'!S14/'2-18-2'!$B14*100 -> 0
A15: 대학 Higher educations | B15: ='2-18-1'!B15 -> 9330614.888 | C15: ='2-18-1'!C15/'2-18-2'!$B15*100 -> 34.86361948 | D15: ='2-18-1'!D15/'2-18-2'!$B15*100 -> 4.927628088 | E15: ='2-18-1'!E15/'2-18-2'!$B15*100 -> 4.619793264 | F15: ='2-18-1'!F15/'2-18-2'!$B15*100 -> 3.066535308 | G15: ='2-18-1'!G15/'2-18-2'!$B15*100 -> 5.069794496 | H15: ='2-18-1'!H15/'2-18-2'!$B15*100 -> 7.961494595 | I15: ='2-18-1'!I15/'2-18-2'!$B15*100 -> 2.107170882 | J15: ='2-18-1'!J15/'2-18-2'!$B15*100 -> 0.781738405 | K15: ='2-18-1'!K15/'2-18-2'!$B15*100 -> 15.07034763 | L15: ='2-18-1'!L15/'2-18-2'!$B15*100 -> 2.645581272 | M15: ='2-18-1'!M15/'2-18-2'!$B15*100 -> 2.155324193 | N15: ='2-18-1'!N15/'2-18-2'!$B15*100 -> 2.733899138 | O15: ='2-18-1'!O15/'2-18-2'!$B15*100 -> 3.714160365 | P15: ='2-18-1'!P15/'2-18-2'!$B15*100 -> 1.691324761 | Q15: ='2-18-1'!Q15/'2-18-2'!$B15*100 -> 4.732431949 | R15: ='2-18-1'!R15/'2-18-2'!$B15*100 -> 2.95668617 | S15: ='2-18-1'!S15/'2-18-2'!$B15*100 -> 0.9024699981
A16: 국·공립 National & Pub. | B16: ='2-18-1'!B16 -> 4216323.118 | C16: ='2-18-1'!C16/'2-18-2'!$B16*100 -> 25.34945663 | D16: ='2-18-1'!D16/'2-18-2'!$B16*100 -> 7.481186597 | E16: ='2-18-1'!E16/'2-18-2'!$B16*100 -> 8.5898568 | F16: ='2-18-1'!F16/'2-18-2'!$B16*100 -> 1.052884202 | G16: ='2-18-1'!G16/'2-18-2'!$B16*100 -> 8.850080735 | H16: ='2-18-1'!H16/'2-18-2'!$B16*100 -> 15.79103359 | I16: ='2-18-1'!I16/'2-18-2'!$B16*100 -> 3.765247481 | J16: ='2-18-1'!J16/'2-18-2'!$B16*100 -> 0.06109588682 | K16: ='2-18-1'!K16/'2-18-2'!$B16*100 -> 3.079246926 | L16: ='2-18-1'!L16/'2-18-2'!$B16*100 -> 2.955893002 | M16: ='2-18-1'!M16/'2-18-2'!$B16*100 -> 3.520603043 | N16: ='2-18-1'!N16/'2-18-2'!$B16*100 -> 1.539303279 | O16: ='2-18-1'!O16/'2-18-2'!$B16*100 -> 6.058216907 | P16: ='2-18-1'!P16/'2-18-2'!$B16*100 -> 3.275934888 | Q16: ='2-18-1'!Q16/'2-18-2'!$B16*100 -> 0.9145409144 | R16: ='2-18-1'!R16/'2-18-2'!$B16*100 -> 5.734119355 | S16: ='2-18-1'!S16/'2-18-2'!$B16*100 -> 1.981299764
A17: 사립 Private | B17: ='2-18-1'!B17 -> 5114291.77 | C17: ='2-18-1'!C17/'2-18-2'!$B17*100 -> 42.7072832 | D17: ='2-18-1'!D17/'2-18-2'!$B17*100 -> 2.822424032 | E17: ='2-18-1'!E17/'2-18-2'!$B17*100 -> 1.346794495 | F17: ='2-18-1'!F17/'2-18-2'!$B17*100 -> 4.72662904 | G17: ='2-18-1'!G17/'2-18-2'!$B17*100 -> 1.953251877 | H17: ='2-18-1'!H17/'2-18-2'!$B17*100 -> 1.506668048 | I17: ='2-18-1'!I17/'2-18-2'!$B17*100 -> 0.7402197939 | J17: ='2-18-1'!J17/'2-18-2'!$B17*100 -> 1.375850326 | K17: ='2-18-1'!K17/'2-18-2'!$B17*100 -> 24.95604782 | L17: ='2-18-1'!L17/'2-18-2'!$B17*100 -> 2.389754154 | M17: ='2-18-1'!M17/'2-18-2'!$B17*100 -> 1.02976135 | N17: ='2-18-1'!N17/'2-18-2'!$B17*100 -> 3.718747552 | O17: ='2-18-1'!O17/'2-18-2'!$B17*100 -> 1.781673868 | P17: ='2-18-1'!P17/'2-18-2'!$B17*100 -> 0.384940885 | Q17: ='2-18-1'!Q17/'2-18-2'!$B17*100 -> 7.879976703 | R17: ='2-18-1'!R17/'2-18-2'!$B17*100 -> 0.6669154114 | S17: ='2-18-1'!S17/'2-18-2'!$B17*100 -> 0.01306143705
A18: 기업체 Business enterprises | B18: ='2-18-1'!B18 -> 80807627.66 | C18: ='2-18-1'!C18/'2-18-2'!$B18*100 -> 14.57015306 | D18: ='2-18-1'!D18/'2-18-2'!$B18*100 -> 1.059104286 | E18: ='2-18-1'!E18/'2-18-2'!$B18*100 -> 0.9841479388 | F18: ='2-18-1'!F18/'2-18-2'!$B18*100 -> 3.259097967 | G18: ='2-18-1'!G18/'2-18-2'!$B18*100 -> 0.5098033774 | H18: ='2-18-1'!H18/'2-18-2'!$B18*100 -> 4.471748805 | I18: ='2-18-1'!I18/'2-18-2'!$B18*100 -> 1.06614701 | J18: ='2-18-1'!J18/'2-18-2'!$B18*100 -> 0.3131961689 | K18: ='2-18-1'!K18/'2-18-2'!$B18*100 -> 61.32901438 | L18: ='2-18-1'!L18/'2-18-2'!$B18*100 -> 0.3609934674 | M18: ='2-18-1'!M18/'2-18-2'!$B18*100 -> 1.805951016 | N18: ='2-18-1'!N18/'2-18-2'!$B18*100 -> 3.808810932 | O18: ='2-18-1'!O18/'2-18-2'!$B18*100 -> 0.7292341108 | P18: ='2-18-1'!P18/'2-18-2'!$B18*100 -> 0.5165809913 | Q18: ='2-18-1'!Q18/'2-18-2'!$B18*100 -> 2.437298306 | R18: ='2-18-1'!R18/'2-18-2'!$B18*100 -> 2.698469504 | S18: ='2-18-1'!S18/'2-18-2'!$B18*100 -> 0.08024867934
A19: 정부투자기관 Gov't investment | B19: ='2-18-1'!B19 -> 859518 | C19: ='2-18-1'!C19/'2-18-2'!$B19*100 -> 2.84531563 | D19: ='2-18-1'!D19/'2-18-2'!$B19*100 -> 0.1431034603 | E19: ='2-18-1'!E19/'2-18-2'!$B19*100 -> 0.619416929 | F19: ='2-18-1'!F19/'2-18-2'!$B19*100 -> 3.139550306 | G19: ='2-18-1'!G19/'2-18-2'!$B19*100 -> 0.008609476474 | H19: ='2-18-1'!H19/'2-18-2'!$B19*100 -> 71.92577701 | I19: ='2-18-1'!I19/'2-18-2'!$B19*100 -> 0.3832380474 | J19: ='2-18-1'!J19/'2-18-2'!$B19*100 -> 0 | K19: ='2-18-1'!K19/'2-18-2'!$B19*100 -> 8.33106462 | L19: ='2-18-1'!L19/'2-18-2'!$B19*100 -> 1.434059554 | M19: ='2-18-1'!M19/'2-18-2'!$B19*100 -> 1.11783581 | N19: ='2-18-1'!N19/'2-18-2'!$B19*100 -> 0.512612883 | O19: ='2-18-1'!O19/'2-18-2'!$B19*100 -> 1.857552721 | P19: ='2-18-1'!P19/'2-18-2'!$B19*100 -> 3.164797014 | Q19: ='2-18-1'!Q19/'2-18-2'!$B19*100 -> 4.298455646 | R19: ='2-18-1'!R19/'2-18-2'!$B19*100 -> 0.03315811885 | S19: ='2-18-1'!S19/'2-18-2'!$B19*100 -> 0.185452777
A20: 민간기업 Private companies | B20: ='2-18-1'!B20 -> 79948109.66 | C20: ='2-18-1'!C20/'2-18-2'!$B20*100 -> 14.69620618 | D20: ='2-18-1'!D20/'2-18-2'!$B20*100 -> 1.068952164 | E20: ='2-18-1'!E20/'2-18-2'!$B20*100 -> 0.9880691431 | F20: ='2-18-1'!F20/'2-18-2'!$B20*100 -> 3.260383218 | G20: ='2-18-1'!G20/'2-18-2'!$B20*100 -> 0.5151916872 | H20: ='2-18-1'!H20/'2-18-2'!$B20*100 -> 3.74655403 | I20: ='2-18-1'!I20/'2-18-2'!$B20*100 -> 1.073488929 | J20: ='2-18-1'!J20/'2-18-2'!$B20*100 -> 0.3165633247 | K20: ='2-18-1'!K20/'2-18-2'!$B20*100 -> 61.89879261 | L20: ='2-18-1'!L20/'2-18-2'!$B20*100 -> 0.3494569893 | M20: ='2-18-1'!M20/'2-18-2'!$B20*100 -> 1.813348907 | N20: ='2-18-1'!N20/'2-18-2'!$B20*100 -> 3.844248187 | O20: ='2-18-1'!O20/'2-18-2'!$B20*100 -> 0.7171036157 | P20: ='2-18-1'!P20/'2-18-2'!$B20*100 -> 0.4881101575 | Q20: ='2-18-1'!Q20/'2-18-2'!$B20*100 -> 2.4172891 | R20: ='2-18-1'!R20/'2-18-2'!$B20*100 -> 2.727124129 | S20: ='2-18-1'!S20/'2-18-2'!$B20*100 -> 0.07911763552

Sheet 2-19-1
A1: 2-19-1) 2021년도 연구수행주체별 연구개발인력(지역)
A2: R&D personnel(region) by sector of performance, 2021
S4: (단위 : 명 Unit : Headcount)
A5: 연구수행주체 Sector of performance | B5: 연구개발 인력 R&D personnel | C5: 지역 Region
C6: 서울 Seoul | D6: 부산 Busan | E6: 대구 Daegu | F6: 인천 Incheon | G6: 광주 Gwangju | H6: 대전 Daejeon | I6: 울산 Ulsan | J6: 세종 Sejong | K6: 경기 Gyeonggi | L6: 강원 Gangwon | M6: 충북 Chungbuk | N6: 충남 Chungnam | O6: 전북 Jeonbuk | P6: 전남 Jeonnam | Q6: 경북 Gyeongbuk | R6: 경남 Gyeongnam | S6: 제주 Jeju
A7: 총계 Total | B7: 785594 | C7: 205425 | D7: 25223 | E7: 21040 | F7: 29954 | G7: 15117 | H7: 53899 | I7: 10350 | J7: 6911 | K7: 262508 | L7: 13488 | M7: 22931 | N7: 26724 | O7: 17505 | P7: 9135 | Q7: 27398 | R7: 33947 | S7: 4039
A8: 공공연구기관 Public research institutes | B8: 66560 | C8: 8462 | D8: 2690 | E8: 1647 | F8: 2352 | G8: 1085 | H8: 16105 | I8: 1077 | J8: 3415 | K8: 7459 | L8: 2064 | M8: 4057 | N8: 2072 | O8: 4339 | P8: 1821 | Q8: 2591 | R8: 4402 | S8: 922
A9: 국·공립 National & Pub. | B9: 13437 | C9: 384 | D9: 376 | E9: 152 | F9: 1088 | G9: 204 | H9: 304 | I9: 237 | J9: 18 | K9: 982 | L9: 1241 | M9: 1425 | N9: 867 | O9: 2811 | P9: 797 | Q9: 1019 | R9: 957 | S9: 575
A10: 정부출연 Gov't funded | B10: 33891 | C10: 3102 | D10: 1301 | E10: 425 | F10: 546 | G10: 356 | H10: 15488 | I10: 476 | J10: 3327 | K10: 1841 | L10: 207 | M10: 2112 | N10: 641 | O10: 904 | P10: 398 | Q10: 286 | R10: 2387 | S10: 94
A11: 지방자치단체출연 Local gov't funded | B11: 2342 | C11: 136 | D11: 94 | E11: 0 | F11: 125 | G11: 85 | H11: 0 | I11: 81 | J11: 0 | K11: 298 | L11: 237 | M11: 24 | N11: 30 | O11: 309 | P11: 288 | Q11: 344 | R11: 218 | S11: 73
A12: 기타비영리 Other non-profit corporation | B12: 14354 | C12: 2744 | D12: 910 | E12: 1061 | F12: 562 | G12: 438 | H12: 311 | I12: 282 | J12: 70 | K12: 4162 | L12: 278 | M12: 479 | N12: 519 | O12: 313 | P12: 306 | Q12: 941 | R12: 799 | S12: 179
A13: 국·공립병원 National & Pub. hospital | B13: 834 | C13: 634 | D13: 6 | E13: 2 | F13: 12 | G13: 2 | H13: 2 | I13: 1 | J13: 0 | K13: 55 | L13: 11 | M13: 17 | N13: 15 | O13: 2 | P13: 32 | Q13: 1 | R13: 41 | S13: 1
A14: 사립병원 Private hospital | B14: 1702 | C14: 1462 | D14: 3 | E14: 7 | F14: 19 | G14: 0 | H14: 0 | I14: 0 | J14: 0 | K14: 121 | L14: 90 | M14: 0 | N14: 0 | O14: 0 | P14: 0 | Q14: 0 | R14: 0 | S14: 0
A15: 대학 Higher educations | B15: 210163 | C15: 74870 | D15: 10682 | E15: 9205 | F15: 5230 | G15: 9006 | H15: 15901 | I15: 3820 | J15: 1671 | K15: 25387 | L15: 8099 | M15: 7027 | N15: 7376 | O15: 6731 | P15: 2947 | Q15: 9965 | R15: 10066 | S15: 2180
A16: 국·공립 National & Pub. | B16: 86856 | C16: 18158 | D16: 5771 | E16: 7100 | F16: 1253 | G16: 6386 | H16: 13024 | I16: 2740 | J16: 155 | K16: 1671 | L16: 4970 | M16: 4900 | N16: 1646 | O16: 4774 | P16: 2447 | Q16: 1086 | R16: 8631 | S16: 2144
A17: 사립 Private | B17: 123307 | C17: 56712 | D17: 4911 | E17: 2105 | F17: 3977 | G17: 2620 | H17: 2877 | I17: 1080 | J17: 1516 | K17: 23716 | L17: 3129 | M17: 2127 | N17: 5730 | O17: 1957 | P17: 500 | Q17: 8879 | R17: 1435 | S17: 36
A18: 기업체 Business enterprises | B18: 508871 | C18: 122093 | D18: 11851 | E18: 10188 | F18: 22372 | G18: 5026 | H18: 21893 | I18: 5453 | J18: 1825 | K18: 229662 | L18: 3325 | M18: 11847 | N18: 17276 | O18: 6435 | P18: 4367 | Q18: 14842 | R18: 19479 | S18: 937
A19: 정부투자기관 Gov't investment | B19: 3864 | C19: 225 | D19: 8 | E19: 44 | F19: 148 | G19: 5 | H19: 2159 | I19: 15 | J19: 0 | K19: 351 | L19: 84 | M19: 68 | N19: 51 | O19: 114 | P19: 163 | Q19: 391 | R19: 20 | S19: 18
A20: 민간기업 Private companies | B20: 505007 | C20: 121868 | D20: 11843 | E20: 10144 | F20: 22224 | G20: 5021 | H20: 19734 | I20: 5438 | J20: 1825 | K20: 229311 | L20: 3241 | M20: 11779 | N20: 17225 | O20: 6321 | P20: 4204 | Q20: 14451 | R20: 19459 | S20: 919

Sheet 2-19-2
A1: 2-19-2) 2021년도 연구수행주체별 연구개발인력 비율(지역)
A2: R&D personnel rate(region) by sector of performance, 2021
S4: (단위 : % Unit : %)
A5: 연구수행주체 Sector of performance | B5: 연구개발 인력(명) R&D personnel (headcount) | C5: 지역 Region
C6: 서울 Seoul | D6: 부산 Busan | E6: 대구 Daegu | F6: 인천 Incheon | G6: 광주 Gwangju | H6: 대전 Daejeon | I6: 울산 Ulsan | J6: 세종 Sejong | K6: 경기 Gyeonggi | L6: 강원 Gangwon | M6: 충북 Chungbuk | N6: 충남 Chungnam | O6: 전북 Jeonbuk | P6: 전남 Jeonnam | Q6: 경북 Gyeongbuk | R6: 경남 Gyeongnam | S6: 제주 Jeju
A7: 총계 Total | B7: ='2-19-1'!B7 -> 785594 | C7: ='2-19-1'!C7/'2-19-1'!$B7*100 -> 26.14900317 | D7: ='2-19-1'!D7/'2-19-1'!$B7*100 -> 3.210691528 | E7: ='2-19-1'!E7/'2-19-1'!$B7*100 -> 2.678228194 | F7: ='2-19-1'!F7/'2-19-1'!$B7*100 -> 3.812910995 | G7: ='2-19-1'!G7/'2-19-1'!$B7*100 -> 1.924276407 | H7: ='2-19-1'!H7/'2-19-1'!$B7*100 -> 6.860923072 | I7: ='2-19-1'!I7/'2-19-1'!$B7*100 -> 1.317474421 | J7: ='2-19-1'!J7/'2-19-1'!$B7*100 -> 0.8797164948 | K7: ='2-19-1'!K7/'2-19-1'!$B7*100 -> 33.41522466 | L7: ='2-19-1'!L7/'2-19-1'!$B7*100 -> 1.71691739 | M7: ='2-19-1'!M7/'2-19-1'!$B7*100 -> 2.918937772 | N7: ='2-19-1'!N7/'2-19-1'!$B7*100 -> 3.401757142 | O7: ='2-19-1'!O7/'2-19-1'!$B7*100 -> 2.228250216 | P7: ='2-19-1'!P7/'2-19-1'!$B7*100 -> 1.16281438 | Q7: ='2-19-1'!Q7/'2-19-1'!$B7*100 -> 3.487552094 | R7: ='2-19-1'!R7/'2-19-1'!$B7*100 -> 4.321188807 | S7: ='2-19-1'!S7/'2-19-1'!$B7*100 -> 0.5141332546
A8: 공공연구기관 Public research institutes | B8: ='2-19-1'!B8 -> 66560 | C8: ='2-19-1'!C8/'2-19-1'!$B8*100 -> 12.71334135 | D8: ='2-19-1'!D8/'2-19-1'!$B8*100 -> 4.041466346 | E8: ='2-19-1'!E8/'2-19-1'!$B8*100 -> 2.474459135 | F8: ='2-19-1'!F8/'2-19-1'!$B8*100 -> 3.533653846 | G8: ='2-19-1'!G8/'2-19-1'!$B8*100 -> 1.630108173 | H8: ='2-19-1'!H8/'2-19-1'!$B8*100 -> 24.19621394 | I8: ='2-19-1'!I8/'2-19-1'!$B8*100 -> 1.618088942 | J8: ='2-19-1'!J8/'2-19-1'!$B8*100 -> 5.130709135 | K8: ='2-19-1'!K8/'2-19-1'!$B8*100 -> 11.20643029 | L8: ='2-19-1'!L8/'2-19-1'!$B8*100 -> 3.100961538 | M8: ='2-19-1'!M8/'2-19-1'!$B8*100 -> 6.095252404 | N8: ='2-19-1'!N8/'2-19-1'!$B8*100 -> 3.112980769 | O8: ='2-19-1'!O8/'2-19-1'!$B8*100 -> 6.518930288 | P8: ='2-19-1'!P8/'2-19-1'!$B8*100 -> 2.735877404 | Q8: ='2-19-1'!Q8/'2-19-1'!$B8*100 -> 3.892728365 | R8: ='2-19-1'!R8/'2-19-1'!$B8*100 -> 6.613581731 | S8: ='2-19-1'!S8/'2-19-1'!$B8*100 -> 1.385216346
A9: 국·공립 National & Pub. | B9: ='2-19-1'!B9 -> 13437 | C9: ='2-19-1'!C9/'2-19-1'!$B9*100 -> 2.857780755 | D9: ='2-19-1'!D9/'2-19-1'!$B9*100 -> 2.798243656 | E9: ='2-19-1'!E9/'2-19-1'!$B9*100 -> 1.131204882 | F9: ='2-19-1'!F9/'2-19-1'!$B9*100 -> 8.097045471 | G9: ='2-19-1'!G9/'2-19-1'!$B9*100 -> 1.518196026 | H9: ='2-19-1'!H9/'2-19-1'!$B9*100 -> 2.262409764 | I9: ='2-19-1'!I9/'2-19-1'!$B9*100 -> 1.763786559 | J9: ='2-19-1'!J9/'2-19-1'!$B9*100 -> 0.1339584729 | K9: ='2-19-1'!K9/'2-19-1'!$B9*100 -> 7.308178909 | L9: ='2-19-1'!L9/'2-19-1'!$B9*100 -> 9.235692491 | M9: ='2-19-1'!M9/'2-19-1'!$B9*100 -> 10.60504577 | N9: ='2-19-1'!N9/'2-19-1'!$B9*100 -> 6.45233311 | O9: ='2-19-1'!O9/'2-19-1'!$B9*100 -> 20.91984818 | P9: ='2-19-1'!P9/'2-19-1'!$B9*100 -> 5.931383493 | Q9: ='2-19-1'!Q9/'2-19-1'!$B9*100 -> 7.583537992 | R9: ='2-19-1'!R9/'2-19-1'!$B9*100 -> 7.122125474 | S9: ='2-19-1'!S9/'2-19-1'!$B9*100 -> 4.279228995
